Workbook

Sheet Home
C2: CLUSTER REPORT
C5: 2013-11-01
C7: CCCM | F7: Report & Analysis | L7: Dashboards | P7: 3W | T7: Contact List
L9: Rakhine | M9: Kachin | N9: Myanmar | P9: Rakhine | Q9: Kachin | R9: Myanmar | T9: Rakhine | U9: Kachin | V9: Myanmar
C14: Shelter
L16: Rakhine | M16: Kachin | N16: Myanmar | P16: Rakhine | Q16: Kachin | R16: Myanmar | T16: Rakhine | U16: Kachin | V16: Myanmar
C21: NFI
M22: Kachin
L23: Rakhine | M23: Kachin | N23: Myanmar | P23: Rakhine | Q23: Kachin | R23: Myanmar | T23: Rakhine | U23: Kachin | V23: Myanmar

Sheet Define_TCL (hidden)
A1: Status | B1: (All)
A3: Township | B3: Camp | G3: Camp | H3: CP_Pcode | I3: Status | J3: Sum of HH
A4: Bhamo | B4: AD-2000 Tharthana Compound | G4: 1 Ward, Sein Yadanar Company(Lon Khin) | H4: MMR001CMP171 | I4: Closed
A5: Bhamo | B5: Aung Thar Church | G5: 5 Ward Baptist Church(lon Khin) | H5: MMR001CMP179 | I5: Open | J5: 100
A6: Bhamo | B6: Daw Hpum Yang Ninghtawn | G6: 5 Ward RC Church(lon Khin) | H6: MMR001CMP168 | I6: Open | J6: 78
A7: Bhamo | B7: Host Families | G7: AD-2000 Tharthana Compound | H7: MMR001CMP050 | I7: Open | J7: 234
A8: Bhamo | B8: Htoi San Church | G8: AG Church, Hmaw Si Sa | H8: MMR001CMP176 | I8: Open | J8: 65
A9: Bhamo | B9: Kannar Yeik Thar | G9: AG Church, Maw Wan | H9: MMR001CMP190 | I9: Open | J9: 13
A10: Bhamo | B10: Lisu Boarding-House | G10: Anglican Church, Hmaw Si Sar | H10: MMR001CMP173 | I10: Closed
A11: Bhamo | B11: Mu-yin Baptist Church | G11: Aung Thar Church | H11: MMR001CMP194 | I11: Open | J11: 10
A12: Bhamo | B12: Nant Hlaing Church | G12: Away Yar Rama Monastery, Ka Day village | H12: MMR001CMP170 | I12: Closed
A13: Bhamo | B13: Phan Khar Kone | G13: Aye Mya Tharyar Church of Christ | H13: MMR001CMP092 | I13: Closed
A14: Bhamo | B14: Robert Church | G14: Ban Hkung (School) | H14: MMR001CMP215 | I14: Open | J14: 48
A15: Bhamo | B15: St. Patrick Church, Bhamo | G15: Ban Hkung Yang | H15: MMR001CMP216 | I15: Open | J15: 18
A16: Bhamo | B16: Ta Gun Taing Monastery (Shwe Kyi Na) | G16: Ban Hkung Yang (Boarding School) | H16: MMR001CMP214 | I16: Open | J16: 15
A17: Bhamo | B17: Thu Kha Waddy | G17: Baptist Church, Hmaw Si Sar(Lon Khin) | H17: MMR001CMP169 | I17: Open | J17: 41
A18: Bhamo | B18: Yoe Kyi Monastery | G18: Baptist Church, Naung Hmee VT | H18: MMR001CMP188 | I18: Open | J18: 15
A19: Chipwi | B19: Chipwi KBC camp | G19: Baptist Church, Sai Ra village | H19: MMR001CMP172 | I19: Open | J19: 4
A20: Chipwi | B20: Gant Gwin | G20: Border Post 10 | H20: MMR001CMP114 | I20: Closed
A21: Chipwi | B21: Hpare Hkyer - BP6 | G21: Border Post 8 | H21: MMR001CMP113 | I21: Open | J21: 171
A22: Chipwi | B22: Lan Jaw | G22: Bum Tsit Pa | H22: MMR001CMP129 | I22: Open | J22: 591
A23: Chipwi | B23: Lhaovao Baptist Church (LBC) | G23: Chin Church, Seik Mu | H23: MMR001CMP109 | I23: Open | J23: 4
A24: Chipwi | B24: Pan Wa | G24: Chin(Zomi) Baptist Church | H24: MMR001CMP086 | I24: Closed
A25: Chipwi | B25: Women's Affairs Association Building | G25: Chipwi KBC camp | H25: MMR001CMP042 | I25: Open | J25: 107
A26: Hpakant | B26: 1 Ward, Sein Yadanar Company(Lon Khin) | G26: Daw Hpum Yang Ninghtawn | H26: MMR001CMP153 | I26: Closed | J26: 0
A27: Hpakant | B27: 5 Ward Baptist Church(lon Khin) | G27: Dhama Rakhita, Nyein Chan Tar Yar Ward(Lon Khin) | H27: MMR001CMP174 | I27: Open | J27: 67
A28: Hpakant | B28: 5 Ward RC Church(lon Khin) | G28: Du Kahtawng Qtr. 14 | H28: MMR001CMP012 | I28: Open | J28: 6
A29: Hpakant | B29: AG Church, Hmaw Si Sa | G29: Du Kahtawng Qtr. 4 | H29: MMR001CMP010 | I29: Open | J29: 6
A30: Hpakant | B30: AG Church, Maw Wan | G30: Du Kahtawng Qtr. 5 | H30: MMR001CMP011 | I30: Open | J30: 8
A31: Hpakant | B31: Anglican Church, Hmaw Si Sar | G31: Dum Bung | H31: MMR001CMP123 | I31: Open | J31: 119
A32: Hpakant | B32: Away Yar Rama Monastery, Ka Day village | G32: Ei Wan Gali Asso., Ward 1, Seik Mu | H32: MMR001CMP180 | I32: Open | J32: 11
A33: Hpakant | B33: Aye Mya Tharyar Church of Christ | G33: Free Christian Asso., Ward 1, Seik Mu | H33: MMR001CMP186 | I33: Closed | J33: 0
A34: Hpakant | B34: Baptist Church, Hmaw Si Sar(Lon Khin) | G34: Galeng (Kachin) | H34: MMR015CMP211 | I34: Closed
A35: Hpakant | B35: Baptist Church, Naung Hmee VT | G35: Galeng (Palaung) | H35: MMR015CMP212 | I35: Closed
A36: Hpakant | B36: Baptist Church, Sai Ra village | G36: Gant Gwin | H36: MMR001CMP046 | I36: Open | J36: 255
A37: Hpakant | B37: Chin Church, Seik Mu | G37: Hkat Cho | H37: MMR001CMP028 | I37: Open | J37: 134
A38: Hpakant | B38: Chin(Zomi) Baptist Church | G38: Hkau Shau (BP 12) | H38: MMR001CMP115 | I38: Open | J38: 176
A39: Hpakant | B39: Dhama Rakhita, Nyein Chan Tar Yar Ward(Lon Khin) | G39: Hlaing Naung Baptist | H39: MMR001CMP148 | I39: Open | J39: 23
A40: Hpakant | B40: Ei Wan Gali Asso., Ward 1, Seik Mu | G40: Hmaw Wan, Anglican | H40: MMR001CMP191 | I40: Open | J40: 11
A41: Hpakant | B41: Free Christian Asso., Ward 1, Seik Mu | G41: Hmaw Wan, Baptist Christian Church | H41: MMR001CMP189 | I41: Closed
A42: Hpakant | B42: Hlaing Naung Baptist | G42: Host Families | H42: MMR001CMP163 | I42: Open | J42: 335
A43: Hpakant | B43: Hmaw Wan, Anglican | G43: Host Families | H43: MMR001CMP196 | I43: Open | J43: 279
A44: Hpakant | B44: Hmaw Wan, Baptist Christian Church | G44: Host Families | H44: MMR001CMP197 | I44: Open | J44: 421
A45: Hpakant | B45: Lisu Baptist Church, Maw Shan Vil,. Seik Mu | G45: Host Families | H45: MMR001CMP199 | I45: Open | J45: 9
A46: Hpakant | B46: Lisu Baptist Church, Maw Wan Ward | G46: Howa | H46: MMR015CMP010 | I46: Open
A47: Hpakant | B47: Ma Mon Buddhist Monastery | G47: Hpai Kawng Mare | H47: MMR015CMP022 | I47: Open | J47: 32
A48: Hpakant | B48: Mashi Kahtawng Baptist Church | G48: Hpare Hkyer - BP6 | H48: MMR001CMP043 | I48: Open | J48: 144
A49: Hpakant | B49: Mashi Kahtawng Catholic Church | G49: Hpun Lum Yang | H49: MMR001CMP122 | I49: Open | J49: 437
A50: Hpakant | B50: Mashi Kahtawng Evangelical Church | G50: Htoi San Church | H50: MMR001CMP052 | I50: Open | J50: 43
A51: Hpakant | B51: Mashi Kahtawng Municipal Dammar Yone | G51: IDP Boarding School, A Len Bum | H51: MMR001CMP208 | I51: Open
A52: Hpakant | B52: Mashi Kahtawng Myo Oo Taw Ya Monestry | G52: IDPs scattered in South Mansi | H52: MMR001CMP217 | I52: Open | J52: 75
A53: Hpakant | B53: Mashi Kahtawng Rakhine traditional group | G53: Jan Mai Kawng Baptist Church | H53: MMR001CMP018 | I53: Open | J53: 203
A54: Hpakant | B54: Mashi Kahtawng Shan Traditional Monestry | G54: Jan Mai Kawng Catholic Church | H54: MMR001CMP019 | I54: Open | J54: 113
A55: Hpakant | B55: Mashi Kahtawng Yaung Chi Oo Thi la shin Monestry | G55: Je Yang Hka | H55: MMR001CMP121 | I55: Open | J55: 1688
A56: Hpakant | B56: Maw Si Zar, Thiriyardanar Sein, Damma Compound, Lone Khin | G56: Kannar Yeik Thar | H56: MMR001CMP048 | I56: Closed
A57: Hpakant | B57: Maw Wan, Catholic Church | G57: Khun Sint Village | H57: MMR001CMP200 | I57: Open | J57: 4
A58: Hpakant | B58: Maw Wan, Kachin Baptist Church | G58: Kone Khem Camp | H58: MMR015CMP015 | I58: Open | J58: 86
A59: Hpakant | B59: Maw Wan, Kyauk Hlaing Gu Pagoda Compound | G59: Kutkai downtown (KBC Church) | H59: MMR015CMP016 | I59: Open | J59: 86
A60: Hpakant | B60: Maw Wan, Mu-yin Baptist Church | G60: Kutkai downtown (RC Church) | H60: MMR015CMP017 | I60: Open | J60: 41
A61: Hpakant | B61: Maw Wan, Myo Oo Pagoda | G61: Kyun Pin Thar Baptist Church | H61: MMR001CMP013 | I61: Open | J61: 45
A62: Hpakant | B62: May Di Ka Rama Monastery(Lon Khin) | G62: Kyun Taw Baptist Church | H62: MMR001CMP078 | I62: Open | J62: 13
A63: Hpakant | B63: Muring Baptist Church, Awng Ra, Wa Ra Zut VT | G63: La Ja | H63: MMR001CMP074 | I63: Open | J63: 11
A64: Hpakant | B64: Nam Ma Phyit, COC | G64: Lagatyan | H64: MMR001CMP202 | I64: Open | J64: 225
A65: Hpakant | B65: Nant Ma Hpit Catholic Church | G65: Laiza Market 3 / Laiza Gat | H65: MMR001CMP117 | I65: Open | J65: 491
A66: Hpakant | B66: Nga Pyaw Taw Baptist Nursery School | G66: Laiza Muklum Hpyen Yen Mungshawa ni | H66: MMR001CMP149 | I66: Open | J66: 355
A67: Hpakant | B67: Nga Pyaw Taw Roman Catholic Church | G67: Lan Jaw | H67: MMR001CMP045 | I67: Open
A68: Hpakant | B68: Parami, Charity Office, MyoMa Quarter | G68: Lana Zup Ja | H68: MMR001CMP128 | I68: Open | J68: 551
A69: Hpakant | B69: Rawan Baptist Church, Maw Shan Vil., Seik Mu | G69: Lawk Awng Mare D. (Sinbo Area) | H69: MMR001CMP147 | I69: Open | J69: 375
A70: Hpakant | B70: Sa Baw Sarsana Parla Monastery | G70: Lawk Hkawng Ginwang | H70: MMR001CMP146 | I70: Open
A71: Hpakant | B71: Sai Nai Baptish Church, Maw Shan Vil., Seki Mu | G71: Le Kone Bethlehem Church | H71: MMR001CMP015 | I71: Open | J71: 87
A72: Hpakant | B72: San Kyel, Masoe Yein Monestry | G72: Le Kone Ziun Baptist Church | H72: MMR001CMP014 | I72: Open | J72: 146
A73: Hpakant | B73: Tar Ma Hkan Buddhist Monastery, Haung Par | G73: Lhaovao Baptist Church (LBC) | H73: MMR001CMP195 | I73: Open | J73: 137
A74: Hpakant | B74: Thiri Mingalar Manizay Yone, Myoma Quarter | G74: Lisu Baptist Church, Maw Shan Vil,. Seik Mu | H74: MMR001CMP181 | I74: Open | J74: 23
A75: Hpakant | B75: Ward 2 Cahotlic Church, Seik Mu | G75: Lisu Baptist Church, Maw Wan Ward | H75: MMR001CMP167 | I75: Open | J75: 8
A76: Hpakant | B76: Ward 2 Sai Taung Baptist Church, Seik Mu | G76: Lisu Boarding-House | H76: MMR001CMP049 | I76: Open | J76: 68
A77: Hpakant | B77: Wrad(5) Christian Association | G77: Loi Je Baptist Church | H77: MMR001CMP071 | I77: Open | J77: 26
A78: Hpakant | B78: Yumar Baptist Church | G78: Loi Je Catholic Church | H78: MMR001CMP069 | I78: Open | J78: 46
A79: Hpakant | B79: Zomee Baptist Church camp, Hmaw Wan | G79: Loi Je Lisu Camp | H79: MMR001CMP070 | I79: Open | J79: 142
A80: Hseni | B80: Narte | G80: Lung Kawk ( Hka Hkye Zup) | H80: MMR001CMP135 | I80: Open | J80: 54
A81: Injangyang | B81: Lawk Hkawng Ginwang | G81: Ma Mon Buddhist Monastery | H81: MMR001CMP107 | I81: Closed
A82: Khaunglanhpu | B82: La Ja | G82: Machanbaw - KBC | H82: MMR001CMP221 | I82: Open | J82: 9
A83: Kutkai | B83: Galeng (Kachin) | G83: Mading Baptist Church | H83: MMR001CMP027 | I83: Open | J83: 23
A84: Kutkai | B84: Galeng (Palaung) | G84: Maga Yang | H84: MMR001CMP119 | I84: Open | J84: 623
A85: Kutkai | B85: Kone Khem Camp | G85: Mai Khat | H85: MMR001CMP064 | I85: Open | J85: 2
A86: Kutkai | B86: Kutkai downtown (KBC Church) | G86: Maina AG Church | H86: MMR001CMP031 | I86: Open | J86: 141
A87: Kutkai | B87: Kutkai downtown (RC Church) | G87: Maina Catholic Church (St. Joseph) | H87: MMR001CMP029 | I87: Open | J87: 232
A88: Kutkai | B88: Mine Yu Lay village | G88: Maina KBC (Bawng Ring) | H88: MMR001CMP040 | I88: Open | J88: 420
A89: Kutkai | B89: Mungji Pa Dabang (Baptist Church) | G89: Maina Lawang Baptist Church | H89: MMR001CMP039 | I89: Open | J89: 49
A90: Kutkai | B90: Mungji Pa Dabang (RC Church) | G90: Maing Khaung | H90: MMR001CMP218 | I90: Open | J90: 201
A91: Kutkai | B91: Nam Hpak Ka Mare | G91: Maliyang Baptist Church | H91: MMR001CMP016 | I91: Open | J91: 72
A92: Kutkai | B92: Zup Aung Camp | G92: Man Bung Catholic compound | H92: MMR001CMP062 | I92: Open | J92: 117
A93: Machanbaw | B93: Machanbaw - KBC | G93: Man Hkring Baptist Church | H93: MMR001CMP008 | I93: Open | J93: 95
A94: Mansi | B94: Ban Hkung (School) | G94: Man Kawng Baptist Church | H94: MMR001CMP212 | I94: Open | J94: 306
A95: Mansi | B95: Ban Hkung Yang | G95: Man Kawng Catholic Church | H95: MMR001CMP213 | I95: Open | J95: 91
A96: Mansi | B96: Ban Hkung Yang (Boarding School) | G96: Man Nawng | H96: MMR001CMP063 | I96: Open | J96: 28
A97: Mansi | B97: Bum Tsit Pa | G97: Man Ting | H97: MMR001CMP198 | I97: Open
A98: Mansi | B98: Host Families | G98: Man Wing Baptist Church | H98: MMR001CMP133 | I98: Open | J98: 102
A99: Mansi | B99: IDPs scattered in South Mansi | G99: Man Wing Catholic Church | H99: MMR001CMP132 | I99: Open | J99: 403
A100: Mansi | B100: Lagatyan | G100: Man Wing Host Families | H100: MMR001CMP134 | I100: Open | J100: 253
A101: Mansi | B101: Lana Zup Ja | G101: Manau Compound | H101: MMR001CMP118 | I101: Closed
A102: Mansi | B102: Lung Kawk ( Hka Hkye Zup) | G102: Mandalay Monestry | H102: MMR001CMP058 | I102: Open | J102: 4
A103: Mansi | B103: Maing Khaung | G103: Mandung - Jinghpaw | H103: MMR015CMP009 | I103: Open | J103: 43
A104: Mansi | B104: Man Kawng Baptist Church | G104: Mandung - RC | H104: MMR015CMP209 | I104: Open | J104: 26
A105: Mansi | B105: Man Kawng Catholic Church | G105: Mang Hawng Baptist Church | H105: MMR001CMP077 | I105: Open | J105: 14
A106: Mansi | B106: Man Wing Baptist Church | G106: Mansi Baptist Church | H106: MMR001CMP066 | I106: Open | J106: 93
A107: Mansi | B107: Man Wing Catholic Church | G107: Mashi Kahtawng Baptist Church | H107: MMR001CMP094 | I107: Closed
A108: Mansi | B108: Man Wing Host Families | G108: Mashi Kahtawng Catholic Church | H108: MMR001CMP093 | I108: Closed
A109: Mansi | B109: Mansi Baptist Church | G109: Mashi Kahtawng Evangelical Church | H109: MMR001CMP096 | I109: Closed
A110: Mansi | B110: Mung Ding Pa (Boarder) | G110: Mashi Kahtawng Municipal Dammar Yone | H110: MMR001CMP098 | I110: Closed
A111: Mansi | B111: Nam Hka Mare (west of Man Wing) | G111: Mashi Kahtawng Myo Oo Taw Ya Monestry | H111: MMR001CMP099 | I111: Closed
A112: Mansi | B112: Nam Lim Pa | G112: Mashi Kahtawng Rakhine traditional group | H112: MMR001CMP095 | I112: Closed
A113: Mansi | B113: Nam Lim Pa (Boarding School) | G113: Mashi Kahtawng Shan Traditional Monestry | H113: MMR001CMP100 | I113: Closed
A114: Mansi | B114: Nam Lim Pa - Scattered IDPs in forest | G114: Mashi Kahtawng Yaung Chi Oo Thi la shin Monestry | H114: MMR001CMP097 | I114: Closed
A115: Mansi | B115: Si Hkan Gyi | G115: Maw Hpawng Hka Nan Baptist Church | H115: MMR001CMP020 | I115: Open | J115: 26
A116: Manton | B116: Howa | G116: Maw Hpawng Lhaovo Baptist Church | H116: MMR001CMP021 | I116: Open | J116: 21
A117: Manton | B117: Mandung - Jinghpaw | G117: Maw Si Zar, Thiriyardanar Sein, Damma Compound, Lone Khin | H117: MMR001CMP106 | I117: Closed
A118: Manton | B118: Mandung - RC | G118: Maw Wan, Catholic Church | H118: MMR001CMP090 | I118: Closed
A119: Manton | B119: Nam Hkyet | G119: Maw Wan, Kachin Baptist Church | H119: MMR001CMP085 | I119: Closed
A120: Mogaung | B120: Kyun Taw Baptist Church | G120: Maw Wan, Kyauk Hlaing Gu Pagoda Compound | H120: MMR001CMP084 | I120: Closed
A121: Mogaung | B121: Mang Hawng Baptist Church | G121: Maw Wan, Mu-yin Baptist Church | H121: MMR001CMP091 | I121: Open | J121: 4
A122: Mogaung | B122: Nat Gyi Kone Baptist Church | G122: Maw Wan, Myo Oo Pagoda | H122: MMR001CMP088 | I122: Closed
A123: Mohnyin | B123: Nant Mun | G123: May Di Ka Rama Monastery(Lon Khin) | H123: MMR001CMP178 | I123: Closed
A124: Mohnyin | B124: Nawng Ing (Indawgyi) Baptist Church | G124: Mine Yu Lay village | H124: MMR015CMP018 | I124: Open | J124: 86
A125: Mohnyin | B125: St. Patrick Catholic Church | G125: Moke Lwe Village / Hkar Shi | H125: MMR001CMP035 | I125: Closed
A126: Momauk | B126: Dum Bung | G126: Momauk Baptist Church | H126: MMR001CMP056 | I126: Open | J126: 399
A127: Momauk | B127: Host Families | G127: Momauk Catholic Church (St. Patrick) | H127: MMR001CMP057 | I127: Open | J127: 284
A128: Momauk | B128: Hpun Lum Yang | G128: Munekoe Pa (Giwang) - Hka San (Mung Go Pa ) | H128: MMR015CMP012 | I128: Open | J128: 27
A129: Momauk | B129: Je Yang Hka | G129: Mung Baw | H129: MMR015CMP005 | I129: Open | J129: 123
A130: Momauk | B130: Khun Sint Village | G130: Mung Ding Pa | H130: MMR015CMP023 | I130: Open
A131: Momauk | B131: Loi Je Baptist Church | G131: Mung Ding Pa (Boarder) | H131: MMR001CMP203 | I131: Closed
A132: Momauk | B132: Loi Je Catholic Church | G132: Mungji Pa Dabang (Baptist Church) | H132: MMR015CMP006 | I132: Open | J132: 47
A133: Momauk | B133: Loi Je Lisu Camp | G133: Mungji Pa Dabang (RC Church) | H133: MMR015CMP019 | I133: Open | J133: 25
A134: Momauk | B134: Mai Khat | G134: Muring Baptist Church, Awng Ra, Wa Ra Zut VT | H134: MMR001CMP177 | I134: Open | J134: 6
A135: Momauk | B135: Man Bung Catholic compound | G135: Mu-yin Baptist Church | H135: MMR001CMP051 | I135: Open | J135: 8
A136: Momauk | B136: Man Nawng | G136: Myay Myint Baptist Church | H136: MMR001CMP017 | I136: Open | J136: 12
A137: Momauk | B137: Man Ting | G137: Myo Thit | H137: MMR001CMP061 | I137: Open | J137: 13
A138: Momauk | B138: Mandalay Monestry | G138: Nam Hka Mare (west of Man Wing) | H138: MMR001CMP136 | I138: Open | J138: 73
A139: Momauk | B139: Momauk Baptist Church | G139: Nam Hkam - Nay Win Ni (Palawng) | H139: MMR015CMP004 | I139: Open | J139: 92
A140: Momauk | B140: Momauk Catholic Church (St. Patrick) | G140: Nam Hkam (KBC Jaw Wang) | H140: MMR015CMP001 | I140: Open | J140: 98
A141: Momauk | B141: Myo Thit | G141: Nam Hkam Catholic Church ( St. Thomas I) | H141: MMR015CMP003 | I141: Open | J141: 36
A142: Momauk | B142: Nhkawng Pa | G142: Nam Hkam Catholic Church ( St. Thomas II) | H142: MMR015CMP024 | I142: Open | J142: 46
A143: Momauk | B143: Ni Thaw Ka Monestry | G143: Nam Hkam Malut Jak | H143: MMR015CMP002 | I143: Open | J143: 73
A144: Momauk | B144: Nyaung Na Pin | G144: Nam Hkawng | H144: MMR015CMP139 | I144: Open | J144: 40
A145: Momauk | B145: Pa Kahtawng | G145: Nam Hkyet | H145: MMR015CMP011 | I145: Open
A146: Momauk | B146: Phar Kay/Nant Waing | G146: Nam Hpak Ka Mare | H146: MMR015CMP007 | I146: Open | J146: 79
A147: Momauk | B147: Seng Ja | G147: Nam Lim Pa | H147: MMR001CMP204 | I147: Closed
A148: Momauk | B148: Tarli | G148: Nam Lim Pa (Boarding School) | H148: MMR001CMP209 | I148: Closed
A149: Muse | B149: Hpai Kawng Mare | G149: Nam Lim Pa - Scattered IDPs in forest | H149: MMR001CMP137 | I149: Closed
A150: Muse | B150: Munekoe Pa (Giwang) - Hka San (Mung Go Pa ) | G150: Nam Ma Phyit, COC | H150: MMR001CMP192 | I150: Open | J150: 24
A151: Muse | B151: Mung Baw | G151: Nam Tu Baptist | H151: MMR015CMP014 | I151: Open | J151: 20
A152: Myitkyina | B152: Du Kahtawng Qtr. 14 | G152: Nam Tu RC | H152: MMR015CMP210 | I152: Open | J152: 118
A153: Myitkyina | B153: Du Kahtawng Qtr. 4 | G153: Nan Kway St. John Catholic Church | H153: MMR001CMP024 | I153: Open | J153: 72
A154: Myitkyina | B154: Du Kahtawng Qtr. 5 | G154: Nant Hlaing Church | H154: MMR001CMP054 | I154: Open | J154: 22
A155: Myitkyina | B155: Jan Mai Kawng Baptist Church | G155: Nant Ma Hpit Catholic Church | H155: MMR001CMP103 | I155: Open | J155: 38
A156: Myitkyina | B156: Jan Mai Kawng Catholic Church | G156: Nant Mun | H156: MMR001CMP081 | I156: Open | J156: 21
A157: Myitkyina | B157: Kyun Pin Thar Baptist Church | G157: Narte | H157: MMR015CMP207 | I157: Open | J157: 67
A158: Myitkyina | B158: Le Kone Bethlehem Church | G158: Nat Gyi Kone Baptist Church | H158: MMR001CMP079 | I158: Open | J158: 12
A159: Myitkyina | B159: Le Kone Ziun Baptist Church | G159: Naung Khaing | H159: MMR001CMP220 | I159: Open | J159: 18
A160: Myitkyina | B160: Maliyang Baptist Church | G160: Nawng Hee Village | H160: MMR001CMP033 | I160: Open | J160: 18
A161: Myitkyina | B161: Man Hkring Baptist Church | G161: Nawng Ing (Indawgyi) Baptist Church | H161: MMR001CMP152 | I161: Open | J161: 21
A162: Myitkyina | B162: Maw Hpawng Hka Nan Baptist Church | G162: Nawng Si Paw Village / Inn Lay | H162: MMR001CMP034 | I162: Closed
A163: Myitkyina | B163: Maw Hpawng Lhaovo Baptist Church | G163: Nga Pyaw Taw Baptist Nursery School | H163: MMR001CMP082 | I163: Open | J163: 101
A164: Myitkyina | B164: Myay Myint Baptist Church | G164: Nga Pyaw Taw Roman Catholic Church | H164: MMR001CMP083 | I164: Closed
A165: Myitkyina | B165: Nan Kway St. John Catholic Church | G165: Nhkawng Pa | H165: MMR001CMP131 | I165: Open | J165: 387
A166: Myitkyina | B166: Njang Dung Baptist Church | G166: Ni Thaw Ka Monestry | H166: MMR001CMP059 | I166: Open | J166: 23
A167: Myitkyina | B167: Pa Dauk Myaing(Pa La Na) | G167: Njang Dung Baptist Church | H167: MMR001CMP002 | I167: Open | J167: 57
A168: Myitkyina | B168: Shatapru Sut Ngai Tawng | G168: Nyaung Na Pin | H168: MMR001CMP072 | I168: Open | J168: 47
A169: Myitkyina | B169: Shatapru Thida Aye Baptist Church | G169: Pa Dauk Myaing(Pa La Na) | H169: MMR001CMP162 | I169: Open | J169: 31
A170: Myitkyina | B170: Shwe Zet Baptist Church | G170: Pa Kahtawng | H170: MMR001CMP126 | I170: Open | J170: 516
A171: Myitkyina | B171: Tat Kone Baptist Church | G171: Pajau / Jan Mai | H171: MMR001CMP120 | I171: Open | J171: 186
A172: Myitkyina | B172: Tat Kone COC Baptist / Tat Kone Htoi San | G172: Pan Wa | H172: MMR001CMP210 | I172: Open | J172: 94
A173: Myitkyina | B173: Tat Kone Emanuel Church | G173: Parami, Charity Office, MyoMa Quarter | H173: MMR001CMP102 | I173: Closed
A174: Myitkyina | B174: Tat Kone Galile Baptist Church | G174: Phan Khar Kone | H174: MMR001CMP193 | I174: Open | J174: 317
A175: Myitkyina | B175: Tat Kone San Pya Baptist Church | G175: Phar Kay/Nant Waing | H175: MMR001CMP065 | I175: Open | J175: 39
A176: Myitkyina | B176: Wun Tho Buddhist Monastery | G176: Post 6 Camp | H176: MMR001CMP160 | I176: Open | J176: 144
A177: Namhkan | B177: Mung Ding Pa | G177: Qtr. 2 Lhaovo Baptist Church | H177: MMR001CMP032 | I177: Open | J177: 120
A178: Namhkan | B178: Nam Hkam - Nay Win Ni (Palawng) | G178: Qtr. 2 Myoma Baptist Church | H178: MMR001CMP025 | I178: Open | J178: 83
A179: Namhkan | B179: Nam Hkam (KBC Jaw Wang) | G179: Qtr. 3 Mu-yin Baptist Church | H179: MMR001CMP030 | I179: Open | J179: 30
A180: Namhkan | B180: Nam Hkam Catholic Church ( St. Thomas I) | G180: Qtr. 4 Monestry (Thargaya Thayett Taw) | H180: MMR001CMP026 | I180: Open | J180: 101
A181: Namhkan | B181: Nam Hkam Catholic Church ( St. Thomas II) | G181: Rawan Baptist Church, Maw Shan Vil., Seik Mu | H181: MMR001CMP182 | I181: Open | J181: 13
A182: Namhkan | B182: Nam Hkam Malut Jak | G182: Robert Church | H182: MMR001CMP047 | I182: Open | J182: 558
A183: Namhkan | B183: Nam Hkawng | G183: Sa Baw Sarsana Parla Monastery | H183: MMR001CMP108 | I183: Closed
A184: Namtu | B184: Nam Tu Baptist | G184: Sai Nai Baptish Church, Maw Shan Vil., Seki Mu | H184: MMR001CMP183 | I184: Open | J184: 46
A185: Namtu | B185: Nam Tu RC | G185: San Kyel, Masoe Yein Monestry | H185: MMR001CMP104 | I185: Closed
A186: Puta-O | B186: Naung Khaing | G186: Seng Ja | H186: MMR001CMP073 | I186: Open | J186: 35
A187: Puta-O | B187: Tote Tan Ward | G187: Shatapru Sut Ngai Tawng | H187: MMR001CMP006 | I187: Open | J187: 106
A188: Shwegu | B188: Host Families | G188: Shatapru Thida Aye Baptist Church | H188: MMR001CMP007 | I188: Open | J188: 15
A189: Shwegu | B189: Lawk Awng Mare D. (Sinbo Area) | G189: Shing Jai | H189: MMR001CMP041 | I189: Open | J189: 188
A190: Shwegu | B190: Shwe Gu Baptist Church | G190: Shwe Gu Baptist Church | H190: MMR001CMP067 | I190: Open | J190: 79
A191: Shwegu | B191: Shwe Gu Catholic Church | G191: Shwe Gu Catholic Church | H191: MMR001CMP068 | I191: Open | J191: 47
A192: Sumprabum | B192: Sumprabum | G192: Shwe Zet Baptist Church | H192: MMR001CMP009 | I192: Open | J192: 84
A193: Waingmaw | B193: Border Post 10 | G193: Si Hkan Gyi | H193: MMR001CMP219 | I193: Closed
A194: Waingmaw | B194: Border Post 8 | G194: St. Patrick Catholic Church | H194: MMR001CMP080 | I194: Open | J194: 12
A195: Waingmaw | B195: Hkat Cho | G195: St. Patrick Church, Bhamo | H195: MMR001CMP222 | I195: Open | J195: 29
A196: Waingmaw | B196: Hkau Shau (BP 12) | G196: Sumprabum | H196: MMR001CMP206 | I196: Open | J196: 6
A197: Waingmaw | B197: IDP Boarding School, A Len Bum | G197: Ta Gun Taing Monastery (Shwe Kyi Na) | H197: MMR001CMP055 | I197: Open | J197: 61
A198: Waingmaw | B198: Laiza Market 3 / Laiza Gat | G198: Tar Ma Hkan Buddhist Monastery, Haung Par | H198: MMR001CMP110 | I198: Closed
A199: Waingmaw | B199: Laiza Muklum Hpyen Yen Mungshawa ni | G199: Tarli | H199: MMR001CMP060 | I199: Open | J199: 10
A200: Waingmaw | B200: Mading Baptist Church | G200: Tat Kone Baptist Church | H200: MMR001CMP001 | I200: Open | J200: 56
A201: Waingmaw | B201: Maga Yang | G201: Tat Kone COC Baptist / Tat Kone Htoi San | H201: MMR001CMP023 | I201: Open | J201: 69
... 20 more rows

Sheet Camp_List
A2: DETAILED CAMP LIST
A3: =Report_Date -> 2014-01-01
A4: Status | B4: State | C4: S_Pcode | D4: District | E4: D_Pcode | F4: Township | G4: T_Pcode | H4: VillageTracKTown | I4: VTT_Pcode | J4: VillageWard_Name | K4: VW_Pcode | L4: Camp | M4: CP_Pcode | N4: Longitude | O4: Latitude | P4: Altitude | Q4: HH | R4: Total | S4: Avg | T4: Accessibility | U4: Type of Accomodation | V4: Type of Location | W4: Type of Population | X4: Opening Date | Y4: CM/FP | Z4: Responsible Agency | AA4: Source | AB4: Method | AC4: Update Date | AD4: Comment
A5: Closed | B5: Kachin | C5: MMR001 | D5: Myitkyina | E5: MMR001D001 | F5: Waingmaw | G5: MMR001002 | H5: Nawng Si Paw | I5: MMR001002013 | J5: Nawng Si Paw | K5: 165750 | L5: Nawng Si Paw Village / Inn Lay | M5: MMR001CMP034 | S5: =IF(CampList[[#This Row],[HH]]>0,CampList[[#This Row],[Total]]/CampList[[#This Row],[HH]],"NA") -> NA | T5: GCA | U5: Camp
A6: Closed | B6: Kachin | C6: MMR001 | D6: Myitkyina | E6: MMR001D001 | F6: Waingmaw | G6: MMR001002 | H6: Hkat Shu | I6: MMR001002003 | J6: Hkat Shu | K6: 165735 | L6: Moke Lwe Village / Hkar Shi | M6: MMR001CMP035 | N6: 97.421104 | O6: 25.328987 | S6: =IF(CampList[[#This Row],[HH]]>0,CampList[[#This Row],[Total]]/CampList[[#This Row],[HH]],"NA") -> NA | T6: GCA | U6: Camp | AG6: 1
A7: Closed | B7: Kachin | C7: MMR001 | D7: Myitkyina | E7: MMR001D001 | F7: Chipwi | G7: MMR001005 | L7: Women's Affairs Association Building | M7: MMR001CMP044 | S7: =IF(CampList[[#This Row],[HH]]>0,CampList[[#This Row],[Total]]/CampList[[#This Row],[HH]],"NA") -> NA | T7: GCA | U7: Camp | AG7: 1
A8: Closed | B8: Kachin | C8: MMR001 | D8: Bhamo | E8: MMR001D003 | F8: Bhamo | G8: MMR001010 | L8: Kannar Yeik Thar | M8: MMR001CMP048 | N8: 97.2215565 | O8: 24.26241802 | S8: =IF(CampList[[#This Row],[HH]]>0,CampList[[#This Row],[Total]]/CampList[[#This Row],[HH]],"NA") -> NA | T8: GCA | U8: Camp | AA8: IP | AC8: 2014-01-22 | AD8: Closed: Source UNHCR-Bhamo | AG8: 1
A9: Closed | B9: Kachin | C9: MMR001 | D9: Mohnyin | E9: MMR001D002 | F9: Hpakant | G9: MMR001009 | H9: Hpakan Town | I9: MMR001009701 | J9: Hnget Pyaw Taw Ward | K9: MMR001009701502 | L9: Nga Pyaw Taw Roman Catholic Church | M9: MMR001CMP083 | N9: 96.31326 | O9: 25.6119 | S9: =IF(CampList[[#This Row],[HH]]>0,CampList[[#This Row],[Total]]/CampList[[#This Row],[HH]],"NA") -> NA | T9: GCA | U9: Camp | AG9: 1
A10: Closed | B10: Kachin | C10: MMR001 | D10: Mohnyin | E10: MMR001D002 | F10: Hpakant | G10: MMR001009 | H10: Hpakan Town | I10: MMR001009701 | J10: Maw Wam Ward | K10: MMR001009701501 | L10: Maw Wan, Kyauk Hlaing Gu Pagoda Compound | M10: MMR001CMP084 | S10: =IF(CampList[[#This Row],[HH]]>0,CampList[[#This Row],[Total]]/CampList[[#This Row],[HH]],"NA") -> NA | T10: GCA | U10: Camp | AG10: 1
A11: Closed | B11: Kachin | C11: MMR001 | D11: Mohnyin | E11: MMR001D002 | F11: Hpakant | G11: MMR001009 | H11: Hpakan Town | I11: MMR001009701 | J11: Maw Wam Ward | K11: MMR001009701501 | L11: Maw Wan, Kachin Baptist Church | M11: MMR001CMP085 | N11: 96.316211 | O11: 25.619221 | S11: =IF(CampList[[#This Row],[HH]]>0,CampList[[#This Row],[Total]]/CampList[[#This Row],[HH]],"NA") -> NA | T11: GCA | U11: Camp
A12: Closed | B12: Kachin | C12: MMR001 | D12: Mohnyin | E12: MMR001D002 | F12: Hpakant | G12: MMR001009 | L12: Chin(Zomi) Baptist Church | M12: MMR001CMP086 | S12: =IF(CampList[[#This Row],[HH]]>0,CampList[[#This Row],[Total]]/CampList[[#This Row],[HH]],"NA") -> NA | T12: GCA | U12: Camp | AG12: 1
A13: Closed | B13: Kachin | C13: MMR001 | D13: Mohnyin | E13: MMR001D002 | F13: Hpakant | G13: MMR001009 | H13: Hpakan Town | I13: MMR001009701 | J13: Maw Wam Ward | K13: MMR001009701501 | L13: Maw Wan, Myo Oo Pagoda | M13: MMR001CMP088 | S13: =IF(CampList[[#This Row],[HH]]>0,CampList[[#This Row],[Total]]/CampList[[#This Row],[HH]],"NA") -> NA | T13: GCA | U13: Camp
A14: Closed | B14: Kachin | C14: MMR001 | D14: Mohnyin | E14: MMR001D002 | F14: Hpakant | G14: MMR001009 | H14: Hpakan Town | I14: MMR001009701 | J14: Maw Wam Ward | K14: MMR001009701501 | L14: Maw Wan, Catholic Church | M14: MMR001CMP090 | S14: =IF(CampList[[#This Row],[HH]]>0,CampList[[#This Row],[Total]]/CampList[[#This Row],[HH]],"NA") -> NA | T14: GCA | U14: Camp
A15: Closed | B15: Kachin | C15: MMR001 | D15: Mohnyin | E15: MMR001D002 | F15: Hpakant | G15: MMR001009 | H15: Hpakan Town | I15: MMR001009701 | J15: Aye Mya Thar Yar Ward | K15: MMR001009701504 | L15: Aye Mya Tharyar Church of Christ | M15: MMR001CMP092 | S15: =IF(CampList[[#This Row],[HH]]>0,CampList[[#This Row],[Total]]/CampList[[#This Row],[HH]],"NA") -> NA | T15: GCA | U15: Camp
A16: Closed | B16: Kachin | C16: MMR001 | D16: Mohnyin | E16: MMR001D002 | F16: Hpakant | G16: MMR001009 | H16: Hpakan Town | I16: MMR001009701 | J16: Ma Shi Ka Htaung Ward | K16: MMR001009701505 | L16: Mashi Kahtawng Catholic Church | M16: MMR001CMP093 | S16: =IF(CampList[[#This Row],[HH]]>0,CampList[[#This Row],[Total]]/CampList[[#This Row],[HH]],"NA") -> NA | T16: GCA | U16: Camp
A17: Closed | B17: Kachin | C17: MMR001 | D17: Mohnyin | E17: MMR001D002 | F17: Hpakant | G17: MMR001009 | H17: Hpakan Town | I17: MMR001009701 | J17: Ma Shi Ka Htaung Ward | K17: MMR001009701505 | L17: Mashi Kahtawng Baptist Church | M17: MMR001CMP094 | N17: 96.310928 | O17: 25.60918 | S17: =IF(CampList[[#This Row],[HH]]>0,CampList[[#This Row],[Total]]/CampList[[#This Row],[HH]],"NA") -> NA | T17: GCA | U17: Camp | AG17: 1
A18: Closed | B18: Kachin | C18: MMR001 | D18: Mohnyin | E18: MMR001D002 | F18: Hpakant | G18: MMR001009 | H18: Hpakan Town | I18: MMR001009701 | J18: Ma Shi Ka Htaung Ward | K18: MMR001009701505 | L18: Mashi Kahtawng Rakhine traditional group | M18: MMR001CMP095 | S18: =IF(CampList[[#This Row],[HH]]>0,CampList[[#This Row],[Total]]/CampList[[#This Row],[HH]],"NA") -> NA | T18: GCA | U18: Camp | AG18: 1
A19: Closed | B19: Kachin | C19: MMR001 | D19: Mohnyin | E19: MMR001D002 | F19: Hpakant | G19: MMR001009 | H19: Hpakan Town | I19: MMR001009701 | J19: Ma Shi Ka Htaung Ward | K19: MMR001009701505 | L19: Mashi Kahtawng Evangelical Church | M19: MMR001CMP096 | S19: =IF(CampList[[#This Row],[HH]]>0,CampList[[#This Row],[Total]]/CampList[[#This Row],[HH]],"NA") -> NA | T19: GCA | U19: Camp
A20: Closed | B20: Kachin | C20: MMR001 | D20: Mohnyin | E20: MMR001D002 | F20: Hpakant | G20: MMR001009 | H20: Hpakan Town | I20: MMR001009701 | J20: Ma Shi Ka Htaung Ward | K20: MMR001009701505 | L20: Mashi Kahtawng Yaung Chi Oo Thi la shin Monestry | M20: MMR001CMP097 | S20: =IF(CampList[[#This Row],[HH]]>0,CampList[[#This Row],[Total]]/CampList[[#This Row],[HH]],"NA") -> NA | T20: GCA | U20: Camp
A21: Closed | B21: Kachin | C21: MMR001 | D21: Mohnyin | E21: MMR001D002 | F21: Hpakant | G21: MMR001009 | H21: Hpakan Town | I21: MMR001009701 | J21: Ma Shi Ka Htaung Ward | K21: MMR001009701505 | L21: Mashi Kahtawng Municipal Dammar Yone | M21: MMR001CMP098 | S21: =IF(CampList[[#This Row],[HH]]>0,CampList[[#This Row],[Total]]/CampList[[#This Row],[HH]],"NA") -> NA | T21: GCA | U21: Camp
A22: Closed | B22: Kachin | C22: MMR001 | D22: Mohnyin | E22: MMR001D002 | F22: Hpakant | G22: MMR001009 | H22: Hpakan Town | I22: MMR001009701 | J22: Ma Shi Ka Htaung Ward | K22: MMR001009701505 | L22: Mashi Kahtawng Myo Oo Taw Ya Monestry | M22: MMR001CMP099 | S22: =IF(CampList[[#This Row],[HH]]>0,CampList[[#This Row],[Total]]/CampList[[#This Row],[HH]],"NA") -> NA | T22: GCA | U22: Camp
A23: Closed | B23: Kachin | C23: MMR001 | D23: Mohnyin | E23: MMR001D002 | F23: Hpakant | G23: MMR001009 | H23: Hpakan Town | I23: MMR001009701 | J23: Ma Shi Ka Htaung Ward | K23: MMR001009701505 | L23: Mashi Kahtawng Shan Traditional Monestry | M23: MMR001CMP100 | S23: =IF(CampList[[#This Row],[HH]]>0,CampList[[#This Row],[Total]]/CampList[[#This Row],[HH]],"NA") -> NA | T23: GCA | U23: Camp
A24: Closed | B24: Kachin | C24: MMR001 | D24: Mohnyin | E24: MMR001D002 | F24: Hpakant | G24: MMR001009 | H24: Hpakan Town | I24: MMR001009701 | J24: Myo Ma Ward | K24: MMR001009701503 | L24: Thiri Mingalar Manizay Yone, Myoma Quarter | M24: MMR001CMP101 | S24: =IF(CampList[[#This Row],[HH]]>0,CampList[[#This Row],[Total]]/CampList[[#This Row],[HH]],"NA") -> NA | T24: GCA | U24: Camp
A25: Closed | B25: Kachin | C25: MMR001 | D25: Mohnyin | E25: MMR001D002 | F25: Hpakant | G25: MMR001009 | H25: Hpakan Town | I25: MMR001009701 | J25: Myo Ma Ward | K25: MMR001009701503 | L25: Parami, Charity Office, MyoMa Quarter | M25: MMR001CMP102 | S25: =IF(CampList[[#This Row],[HH]]>0,CampList[[#This Row],[Total]]/CampList[[#This Row],[HH]],"NA") -> NA | T25: GCA | U25: Camp
A26: Closed | B26: Kachin | C26: MMR001 | D26: Mohnyin | E26: MMR001D002 | F26: Hpakant | G26: MMR001009 | L26: San Kyel, Masoe Yein Monestry | M26: MMR001CMP104 | S26: =IF(CampList[[#This Row],[HH]]>0,CampList[[#This Row],[Total]]/CampList[[#This Row],[HH]],"NA") -> NA | T26: GCA | U26: Camp
A27: Closed | B27: Kachin | C27: MMR001 | D27: Mohnyin | E27: MMR001D002 | F27: Hpakant | G27: MMR001009 | L27: Maw Si Zar, Thiriyardanar Sein, Damma Compound, Lone Khin | M27: MMR001CMP106 | N27: 96.34335 | O27: 25.6447 | S27: =IF(CampList[[#This Row],[HH]]>0,CampList[[#This Row],[Total]]/CampList[[#This Row],[HH]],"NA") -> NA | T27: GCA | U27: Camp
A28: Closed | B28: Kachin | C28: MMR001 | D28: Mohnyin | E28: MMR001D002 | F28: Hpakant | G28: MMR001009 | H28: Seik Mu | I28: MMR001009003 | J28: Ma Mon | K28: 166790 | L28: Ma Mon Buddhist Monastery | M28: MMR001CMP107 | S28: =IF(CampList[[#This Row],[HH]]>0,CampList[[#This Row],[Total]]/CampList[[#This Row],[HH]],"NA") -> NA | T28: GCA | U28: Camp
A29: Closed | B29: Kachin | C29: MMR001 | D29: Mohnyin | E29: MMR001D002 | F29: Hpakant | G29: MMR001009 | L29: Sa Baw Sarsana Parla Monastery | M29: MMR001CMP108 | S29: =IF(CampList[[#This Row],[HH]]>0,CampList[[#This Row],[Total]]/CampList[[#This Row],[HH]],"NA") -> NA | T29: GCA | U29: Camp
A30: Closed | B30: Kachin | C30: MMR001 | D30: Mohnyin | E30: MMR001D002 | F30: Hpakant | G30: MMR001009 | H30: Haung Par | I30: MMR001009004 | J30: Haung Par | K30: 166794 | L30: Tar Ma Hkan Buddhist Monastery, Haung Par | M30: MMR001CMP110 | S30: =IF(CampList[[#This Row],[HH]]>0,CampList[[#This Row],[Total]]/CampList[[#This Row],[HH]],"NA") -> NA | T30: GCA | U30: Camp
A31: Closed | B31: Kachin | C31: MMR001 | D31: Myitkyina | E31: MMR001D001 | F31: Waingmaw | G31: MMR001002 | H31: Saga Pa (Sadung Sub-township) | L31: Border Post 10 | M31: MMR001CMP114 | N31: 97.837778 | O31: 25.273333 | S31: =IF(CampList[[#This Row],[HH]]>0,CampList[[#This Row],[Total]]/CampList[[#This Row],[HH]],"NA") -> NA | T31: NGCA | U31: Camp
A32: Closed | B32: Kachin | C32: MMR001 | D32: Myitkyina | E32: MMR001D001 | F32: Waingmaw | G32: MMR001002 | H32: Nam Sang Yang | I32: MMR001002024 | J32: Nam Sang Yang | K32: 165772 | L32: Manau Compound | M32: MMR001CMP118 | N32: 97.550267 | O32: 24.747967 | S32: =IF(CampList[[#This Row],[HH]]>0,CampList[[#This Row],[Total]]/CampList[[#This Row],[HH]],"NA") -> NA | T32: GCA | U32: Camp | AD32: Changed to closed
A33: Closed | B33: Kachin | C33: MMR001 | D33: Bhamo | E33: MMR001D003 | F33: Mansi | G33: MMR001013 | H33: Nam Lin Pa | I33: MMR001013037 | L33: Nam Lim Pa - Scattered IDPs in forest | M33: MMR001CMP137 | N33: 97.13234 | O33: 23.75817 | S33: =IF(CampList[[#This Row],[HH]]>0,CampList[[#This Row],[Total]]/CampList[[#This Row],[HH]],"NA") -> NA | T33: NGCA | U33: Camp | AA33: IRRC | AD33: This IDP are registered in Nam Lim pa (Boarder) (MMR001CMP204). We should not calculate this number in total.
A34: Closed | B34: Kachin | C34: MMR001 | D34: Bhamo | E34: MMR001D003 | F34: Bhamo | G34: MMR001010 | L34: Daw Hpum Yang Ninghtawn | M34: MMR001CMP153 | Q34: 0 | R34: 0 | S34: =IF(CampList[[#This Row],[HH]]>0,CampList[[#This Row],[Total]]/CampList[[#This Row],[HH]],"NA") -> NA | T34: GCA | U34: Host Families | AC34: 2014-01-27 | AD34: Closed : Source, OCHA
A35: Closed | B35: Kachin | C35: MMR001 | D35: Mohnyin | E35: MMR001D002 | F35: Hpakant | G35: MMR001009 | H35: Lone Khin | I35: MMR001009001 | J35: Ku Day | K35: 216877 | L35: Away Yar Rama Monastery, Ka Day village | M35: MMR001CMP170 | N35: 96.33987 | O35: 25.65599 | S35: =IF(CampList[[#This Row],[HH]]>0,CampList[[#This Row],[Total]]/CampList[[#This Row],[HH]],"NA") -> NA | T35: GCA | U35: Camp
A36: Closed | B36: Kachin | C36: MMR001 | D36: Mohnyin | E36: MMR001D002 | F36: Hpakant | G36: MMR001009 | H36: Lone Khin | I36: MMR001009001 | J36: Lone Khin | K36: 166773 | L36: 1 Ward, Sein Yadanar Company(Lon Khin) | M36: MMR001CMP171 | N36: 96.35955 | O36: 25.65865 | S36: =IF(CampList[[#This Row],[HH]]>0,CampList[[#This Row],[Total]]/CampList[[#This Row],[HH]],"NA") -> NA | T36: GCA | U36: Camp
A37: Closed | B37: Kachin | C37: MMR001 | D37: Mohnyin | E37: MMR001D002 | F37: Hpakant | G37: MMR001009 | H37: Lone Khin | I37: MMR001009001 | J37: Hmaw Si Zar | K37: 166775 | L37: Anglican Church, Hmaw Si Sar | M37: MMR001CMP173 | S37: =IF(CampList[[#This Row],[HH]]>0,CampList[[#This Row],[Total]]/CampList[[#This Row],[HH]],"NA") -> NA | T37: GCA | U37: Camp
A38: Closed | B38: Kachin | C38: MMR001 | D38: Mohnyin | E38: MMR001D002 | F38: Hpakant | G38: MMR001009 | H38: Hpakan Town | I38: MMR001009701 | J38: Ma Shi Ka Htaung Ward | K38: MMR001009701505 | L38: Wrad(5) Christian Association | M38: MMR001CMP175 | S38: =IF(CampList[[#This Row],[HH]]>0,CampList[[#This Row],[Total]]/CampList[[#This Row],[HH]],"NA") -> NA | T38: GCA | U38: Camp
A39: Closed | B39: Kachin | C39: MMR001 | D39: Mohnyin | E39: MMR001D002 | F39: Hpakant | G39: MMR001009 | H39: Lone Khin | I39: MMR001009001 | J39: Lone Khin | K39: 166773 | L39: May Di Ka Rama Monastery(Lon Khin) | M39: MMR001CMP178 | N39: 96.35931 | O39: 25.65144 | S39: =IF(CampList[[#This Row],[HH]]>0,CampList[[#This Row],[Total]]/CampList[[#This Row],[HH]],"NA") -> NA | T39: GCA | U39: Camp
A40: Closed | B40: Kachin | C40: MMR001 | D40: Mohnyin | E40: MMR001D002 | F40: Hpakant | G40: MMR001009 | H40: Seik Mu | I40: MMR001009003 | J40: Seik Mu | K40: 166783 | L40: Free Christian Asso., Ward 1, Seik Mu | M40: MMR001CMP186 | Q40: 0 | R40: 0 | S40: =IF(CampList[[#This Row],[HH]]>0,CampList[[#This Row],[Total]]/CampList[[#This Row],[HH]],"NA") -> NA | T40: GCA | U40: Camp | AA40: RRD | AC40: 2014-01-24 | AD40: UNOCHA
A41: Closed | B41: Kachin | C41: MMR001 | D41: Mohnyin | E41: MMR001D002 | F41: Hpakant | G41: MMR001009 | H41: Hpakan Town | I41: MMR001009701 | J41: Maw Wam Ward | K41: MMR001009701501 | L41: Hmaw Wan, Baptist Christian Church | M41: MMR001CMP189 | S41: =IF(CampList[[#This Row],[HH]]>0,CampList[[#This Row],[Total]]/CampList[[#This Row],[HH]],"NA") -> NA | T41: GCA | U41: Camp
A42: Closed | B42: Kachin | C42: MMR001 | D42: Mohnyin | E42: MMR001D002 | F42: Hpakant | G42: MMR001009 | H42: Hpakan Town | I42: MMR001009701 | J42: Maw Wam Ward | K42: MMR001009701501 | L42: Zomee Baptist Church camp, Hmaw Wan | M42: MMR001CMP201 | N42: 96.315602 | O42: 25.615006 | S42: =IF(CampList[[#This Row],[HH]]>0,CampList[[#This Row],[Total]]/CampList[[#This Row],[HH]],"NA") -> NA | T42: GCA | U42: Camp
A43: Closed | B43: Kachin | C43: MMR001 | D43: Bhamo | E43: MMR001D003 | F43: Mansi | G43: MMR001013 | H43: Mung Ding Pa | I43: MMR001013038 | L43: Mung Ding Pa (Boarder) | M43: MMR001CMP203 | N43: 96.80885 | O43: 24.20645 | P43: 781.8 | S43: =IF(CampList[[#This Row],[HH]]>0,CampList[[#This Row],[Total]]/CampList[[#This Row],[HH]],"NA") -> NA | T43: NGCA | U43: Camp | V43: Rural | X43: 2012-07-01 | AA43: IP | AC43: 2014-01-22 | AD43: Closed: Source UNHCR-Bhamo
A44: Closed | B44: Kachin | C44: MMR001 | D44: Bhamo | E44: MMR001D003 | F44: Mansi | G44: MMR001013 | H44: Nam Lin Pa | I44: MMR001013037 | L44: Nam Lim Pa | M44: MMR001CMP204 | N44: 97.13234 | O44: 23.75817 | P44: 781.8 | S44: =IF(CampList[[#This Row],[HH]]>0,CampList[[#This Row],[Total]]/CampList[[#This Row],[HH]],"NA") -> NA | T44: NGCA | U44: Camp | V44: Rural | X44: 2012-07-01 | AA44: Ip | AD44: Closed: Source UNHCR-Bhamo
A45: Closed | B45: Kachin | C45: MMR001 | D45: Bhamo | E45: MMR001D003 | F45: Mansi | G45: MMR001013 | H45: Nam Lin Pa | I45: MMR001013037 | L45: Nam Lim Pa (Boarding School) | M45: MMR001CMP209 | S45: =IF(CampList[[#This Row],[HH]]>0,CampList[[#This Row],[Total]]/CampList[[#This Row],[HH]],"NA") -> NA | T45: NGCA | U45: Camp | AA45: IP | AD45: Closed: Source UNHCR-Bhamo
A46: Closed | B46: Kachin | C46: MMR001 | D46: Bhamo | E46: MMR001D003 | F46: Mansi | G46: MMR001013 | L46: Si Hkan Gyi | M46: MMR001CMP219 | S46: =IF(CampList[[#This Row],[HH]]>0,CampList[[#This Row],[Total]]/CampList[[#This Row],[HH]],"NA") -> NA | T46: GCA | U46: Camp | V46: Rural | AA46: IP | AC46: 2014-01-13 | AD46: Close (Source: OCHA)
A47: Closed | B47: Shan_North | C47: MMR015 | D47: Muse | E47: MMR015D002 | F47: Kutkai | G47: MMR015011 | H47: Galeng | J47: Galeng | L47: Galeng (Kachin) | M47: MMR015CMP211 | S47: =IF(CampList[[#This Row],[HH]]>0,CampList[[#This Row],[Total]]/CampList[[#This Row],[HH]],"NA") -> NA | T47: NGCA | U47: Camp | V47: Rural | AA47: IP | AC47: 2013-01-15 | AD47: Close: Duplicate Camp (MMR015CMP020 - Zup Aung Camp) 21-Jan-14
A48: Closed | B48: Shan_North | C48: MMR015 | D48: Muse | E48: MMR015D002 | F48: Kutkai | G48: MMR015011 | H48: Galeng | J48: Galeng | L48: Galeng (Palaung) | M48: MMR015CMP212 | S48: =IF(CampList[[#This Row],[HH]]>0,CampList[[#This Row],[Total]]/CampList[[#This Row],[HH]],"NA") -> NA | T48: NGCA | U48: Camp | V48: Rural | AA48: IP | AC48: 2013-01-15 | AD48: Close: Duplicate Camp (MMR015CMP015 - Kone Khem Camp) 21-Jan-14
A49: Open | B49: Kachin | C49: MMR001 | D49: Myitkyina | E49: MMR001D001 | F49: Myitkyina | G49: MMR001001 | H49: Myitkyina Town | I49: MMR001001701 | J49: Tat Kone Ward | K49: MMR001001701520 | L49: Tat Kone Baptist Church | M49: MMR001CMP001 | N49: 97.386719 | O49: 25.415482 | P49: 0 | Q49: 56 | R49: 262 | S49: =IF(CampList[[#This Row],[HH]]>0,CampList[[#This Row],[Total]]/CampList[[#This Row],[HH]],"NA") -> 4.678571429 | T49: GCA | U49: Camp | V49: Urban | X49: 2011-06-01 | Y49: 1 | Z49: KBC | AA49: IP | AC49: 2014-01-15 | AD49: Checked with KBC data
A50: Open | B50: Kachin | C50: MMR001 | D50: Myitkyina | E50: MMR001D001 | F50: Myitkyina | G50: MMR001001 | H50: Myitkyina Town | I50: MMR001001701 | J50: N Jang Dung | L50: Njang Dung Baptist Church | M50: MMR001CMP002 | N50: 97.394547 | O50: 25.422194 | P50: 0 | Q50: 57 | R50: 233 | S50: =IF(CampList[[#This Row],[HH]]>0,CampList[[#This Row],[Total]]/CampList[[#This Row],[HH]],"NA") -> 4.087719298 | T50: GCA | U50: Camp | V50: Urban | X50: 2011-06-01 | Y50: 1 | Z50: KBC | AA50: IP | AC50: 2014-01-15 | AD50: Checked with KBC data
A51: Open | B51: Kachin | C51: MMR001 | D51: Myitkyina | E51: MMR001D001 | F51: Myitkyina | G51: MMR001001 | H51: Myitkyina Town | I51: MMR001001701 | J51: Tat Kone Ward | K51: MMR001001701520 | L51: Tat Kone Galile Baptist Church | M51: MMR001CMP003 | N51: 97.377663 | O51: 25.404753 | P51: 0 | Q51: 30 | R51: 134 | S51: =IF(CampList[[#This Row],[HH]]>0,CampList[[#This Row],[Total]]/CampList[[#This Row],[HH]],"NA") -> 4.466666667 | T51: GCA | U51: Camp | V51: Urban | X51: 2011-07-01 | Y51: 1 | Z51: KBC | AA51: IP | AC51: 2014-01-15 | AD51: Update population according to KBC data
A52: Open | B52: Kachin | C52: MMR001 | D52: Myitkyina | E52: MMR001D001 | F52: Myitkyina | G52: MMR001001 | H52: Myitkyina Town | I52: MMR001001701 | J52: Tat Kone Ward | K52: MMR001001701520 | L52: Tat Kone Emanuel Church | M52: MMR001CMP004 | N52: 97.389778 | O52: 25.417734 | P52: 0 | Q52: 14 | R52: 62 | S52: =IF(CampList[[#This Row],[HH]]>0,CampList[[#This Row],[Total]]/CampList[[#This Row],[HH]],"NA") -> 4.428571429 | T52: GCA | U52: Camp | V52: Urban | X52: 2011-08-01 | Y52: 1 | Z52: Shalom | AA52: IP | AC52: 2014-01-17 | AD52: Update IDP population from Shalom data (Assistant CCCM Officer)
A53: Open | B53: Kachin | C53: MMR001 | D53: Myitkyina | E53: MMR001D001 | F53: Myitkyina | G53: MMR001001 | H53: Myitkyina Town | I53: MMR001001701 | J53: Tat Kone Ward | K53: MMR001001701520 | L53: Tat Kone San Pya Baptist Church | M53: MMR001CMP005 | N53: 97.382192 | O53: 25.404015 | P53: 0 | Q53: 43 | R53: 198 | S53: =IF(CampList[[#This Row],[HH]]>0,CampList[[#This Row],[Total]]/CampList[[#This Row],[HH]],"NA") -> 4.604651163 | T53: GCA | U53: Camp | V53: Urban | Y53: 1 | Z53: KBC | AA53: IP | AC53: 2014-01-15 | AD53: Checked with KBC data
A54: Open | B54: Kachin | C54: MMR001 | D54: Myitkyina | E54: MMR001D001 | F54: Myitkyina | G54: MMR001001 | H54: Myitkyina Town | I54: MMR001001701 | J54: Si Tar Pu Ward | K54: MMR001001701521 | L54: Shatapru Sut Ngai Tawng | M54: MMR001CMP006 | N54: 97.399628 | O54: 25.412313 | P54: 0 | Q54: 106 | R54: 390 | S54: =IF(CampList[[#This Row],[HH]]>0,CampList[[#This Row],[Total]]/CampList[[#This Row],[HH]],"NA") -> 3.679245283 | T54: GCA | U54: Camp | V54: Urban | X54: 2011-08-01 | Y54: 2 | Z54: KBC | AA54: IP | AC54: 2014-01-15 | AD54: Update population according to KBC data
A55: Open | B55: Kachin | C55: MMR001 | D55: Myitkyina | E55: MMR001D001 | F55: Myitkyina | G55: MMR001001 | H55: Myitkyina Town | I55: MMR001001701 | J55: Si Tar Pu Ward | K55: MMR001001701521 | L55: Shatapru Thida Aye Baptist Church | M55: MMR001CMP007 | N55: 97.418005 | O55: 25.423817 | P55: 0 | Q55: 15 | R55: 74 | S55: =IF(CampList[[#This Row],[HH]]>0,CampList[[#This Row],[Total]]/CampList[[#This Row],[HH]],"NA") -> 4.933333333 | T55: GCA | U55: Camp | V55: Urban | X55: 2012-01-01 | Y55: 1 | Z55: Shalom | AA55: IP | AC55: 2014-01-17 | AD55: Update IDP population from Shalom data (Assistant CCCM Officer)
A56: Open | B56: Kachin | C56: MMR001 | D56: Myitkyina | E56: MMR001D001 | F56: Myitkyina | G56: MMR001001 | H56: Myitkyina Town | I56: MMR001001701 | J56: Man Khein Ward | K56: MMR001001701519 | L56: Man Hkring Baptist Church | M56: MMR001CMP008 | N56: 97.418694 | O56: 25.428911 | P56: 0 | Q56: 95 | R56: 411 | S56: =IF(CampList[[#This Row],[HH]]>0,CampList[[#This Row],[Total]]/CampList[[#This Row],[HH]],"NA") -> 4.326315789 | T56: GCA | U56: Camp | V56: Urban | X56: 2011-07-01 | Y56: 2 | Z56: KBC | AA56: IP | AC56: 2014-01-15 | AD56: Update population according to KBC data
A57: Open | B57: Kachin | C57: MMR001 | D57: Myitkyina | E57: MMR001D001 | F57: Myitkyina | G57: MMR001001 | H57: Myitkyina Town | I57: MMR001001701 | J57: Shwe Set Ward | K57: MMR001001701518 | L57: Shwe Zet Baptist Church | M57: MMR001CMP009 | N57: 97.419403 | O57: 25.440928 | P57: 0 | Q57: 84 | R57: 401 | S57: =IF(CampList[[#This Row],[HH]]>0,CampList[[#This Row],[Total]]/CampList[[#This Row],[HH]],"NA") -> 4.773809524 | T57: GCA | U57: Camp | V57: Urban | X57: 2011-07-01 | Y57: 2 | Z57: KBC | AA57: IP | AC57: 2014-01-15 | AD57: Update population according to KBC data
A58: Open | B58: Kachin | C58: MMR001 | D58: Myitkyina | E58: MMR001D001 | F58: Myitkyina | G58: MMR001001 | H58: Myitkyina Town | I58: MMR001001701 | J58: Du Ka Htaung Ward | K58: MMR001001701504 | L58: Du Kahtawng Qtr. 4 | M58: MMR001CMP010 | N58: 97.38299758 | O58: 25.39597409 | P58: 0 | Q58: 6 | R58: 39 | S58: =IF(CampList[[#This Row],[HH]]>0,CampList[[#This Row],[Total]]/CampList[[#This Row],[HH]],"NA") -> 6.5 | T58: GCA | U58: Camp | V58: Urban | X58: 2011-06-01 | AA58: RRD
A59: Open | B59: Kachin | C59: MMR001 | D59: Myitkyina | E59: MMR001D001 | F59: Myitkyina | G59: MMR001001 | H59: Myitkyina Town | I59: MMR001001701 | J59: Du Ka Htaung Ward | K59: MMR001001701504 | L59: Du Kahtawng Qtr. 5 | M59: MMR001CMP011 | N59: 97.381325 | O59: 25.3964925 | P59: 0 | Q59: 8 | R59: 30 | S59: =IF(CampList[[#This Row],[HH]]>0,CampList[[#This Row],[Total]]/CampList[[#This Row],[HH]],"NA") -> 3.75 | T59: GCA | U59: Camp | V59: Urban | X59: 2011-06-01 | Y59: 2 | Z59: KBC | AA59: IP | AC59: 2014-01-15 | AD59: Update population according to KBC data
A60: Open | B60: Kachin | C60: MMR001 | D60: Myitkyina | E60: MMR001D001 | F60: Myitkyina | G60: MMR001001 | H60: Myitkyina Town | I60: MMR001001701 | J60: Du Ka Htaung Ward | K60: MMR001001701504 | L60: Du Kahtawng Qtr. 14 | M60: MMR001CMP012 | N60: 97.38472963 | O60: 25.40027019 | P60: 0 | Q60: 6 | R60: 28 | S60: =IF(CampList[[#This Row],[HH]]>0,CampList[[#This Row],[Total]]/CampList[[#This Row],[HH]],"NA") -> 4.666666667 | T60: GCA | U60: Camp | V60: Urban | X60: 2011-06-01 | AA60: RRD
A61: Open | B61: Kachin | C61: MMR001 | D61: Myitkyina | E61: MMR001D001 | F61: Myitkyina | G61: MMR001001 | H61: Myitkyina Town | I61: MMR001001701 | J61: Kyun Pin Thar Ward | K61: MMR001001701510 | L61: Kyun Pin Thar Baptist Church | M61: MMR001CMP013 | N61: 97.40520278 | O61: 25.36600361 | P61: 0 | Q61: 45 | R61: 187 | S61: =IF(CampList[[#This Row],[HH]]>0,CampList[[#This Row],[Total]]/CampList[[#This Row],[HH]],"NA") -> 4.155555556 | T61: GCA | U61: Camp | V61: Urban | X61: 2012-01-01 | Y61: 1 | Z61: KBC | AA61: IP | AC61: 2014-01-15 | AD61: Update population according to KBC data
A62: Open | B62: Kachin | C62: MMR001 | D62: Myitkyina | E62: MMR001D001 | F62: Myitkyina | G62: MMR001001 | H62: Myitkyina Town | I62: MMR001001701 | J62: Lel Kone Ward | K62: MMR001001701525 | L62: Le Kone Ziun Baptist Church | M62: MMR001CMP014 | N62: 97.40340231 | O62: 25.35101679 | P62: 0 | Q62: 146 | R62: 751 | S62: =IF(CampList[[#This Row],[HH]]>0,CampList[[#This Row],[Total]]/CampList[[#This Row],[HH]],"NA") -> 5.143835616 | T62: GCA | U62: Camp | V62: Urban | X62: 2011-06-01 | Y62: 2 | Z62: KBC | AA62: IP | AC62: 2014-01-15 | AD62: Update population according to KBC data
A63: Open | B63: Kachin | C63: MMR001 | D63: Myitkyina | E63: MMR001D001 | F63: Myitkyina | G63: MMR001001 | H63: Myitkyina Town | I63: MMR001001701 | J63: Lel Kone Ward | K63: MMR001001701525 | L63: Le Kone Bethlehem Church | M63: MMR001CMP015 | N63: 97.409035 | O63: 25.36242076 | P63: 0 | Q63: 87 | R63: 467 | S63: =IF(CampList[[#This Row],[HH]]>0,CampList[[#This Row],[Total]]/CampList[[#This Row],[HH]],"NA") -> 5.367816092 | T63: GCA | U63: Camp | V63: Urban | X63: 2011-03-01 | Y63: 2 | Z63: KBC | AA63: IP | AC63: 2014-01-15 | AD63: Update population according to KBC data
A64: Open | B64: Kachin | C64: MMR001 | D64: Myitkyina | E64: MMR001D001 | F64: Myitkyina | G64: MMR001001 | H64: Myitkyina Town | I64: MMR001001701 | L64: Maliyang Baptist Church | M64: MMR001CMP016 | N64: 97.41130646 | O64: 25.36046312 | P64: 0 | Q64: 72 | R64: 316 | S64: =IF(CampList[[#This Row],[HH]]>0,CampList[[#This Row],[Total]]/CampList[[#This Row],[HH]],"NA") -> 4.388888889 | T64: GCA | U64: Camp | V64: Urban | X64: 2011-08-01 | Y64: 2 | Z64: KBC | AA64: IP | AC64: 2014-01-15 | AD64: Update population according to KBC data
A65: Open | B65: Kachin | C65: MMR001 | D65: Myitkyina | E65: MMR001D001 | F65: Myitkyina | G65: MMR001001 | H65: Myitkyina Town | I65: MMR001001701 | J65: Myay Myint Ward | K65: MMR001001701517 | L65: Myay Myint Baptist Church | M65: MMR001CMP017 | N65: 97.376672 | O65: 25.387863 | P65: 0 | Q65: 12 | R65: 54 | S65: =IF(CampList[[#This Row],[HH]]>0,CampList[[#This Row],[Total]]/CampList[[#This Row],[HH]],"NA") -> 4.5 | T65: GCA | U65: Camp | V65: Urban | X65: 2011-10-01 | Y65: 1 | Z65: Shalom | AA65: IP | AC65: 2014-01-17 | AD65: Update IDP population from Shalom data (Assistant CCCM Officer)
A66: Open | B66: Kachin | C66: MMR001 | D66: Myitkyina | E66: MMR001D001 | F66: Myitkyina | G66: MMR001001 | H66: Myitkyina Town | I66: MMR001001701 | L66: Jan Mai Kawng Baptist Church | M66: MMR001CMP018 | N66: 97.373361 | O66: 25.403477 | P66: 0 | Q66: 203 | R66: 974 | S66: =IF(CampList[[#This Row],[HH]]>0,CampList[[#This Row],[Total]]/CampList[[#This Row],[HH]],"NA") -> 4.798029557 | T66: GCA | U66: Camp | V66: Urban | X66: 2011-07-01 | Y66: 2 | Z66: KBC | AA66: IP | AC66: 2014-01-15 | AD66: Checked with KBC data
A67: Open | B67: Kachin | C67: MMR001 | D67: Myitkyina | E67: MMR001D001 | F67: Myitkyina | G67: MMR001001 | H67: Myitkyina Town | I67: MMR001001701 | J67: Jan Mai Kawng | L67: Jan Mai Kawng Catholic Church | M67: MMR001CMP019 | N67: 97.379595 | O67: 25.40106111 | P67: 0 | Q67: 113 | R67: 524 | S67: =IF(CampList[[#This Row],[HH]]>0,CampList[[#This Row],[Total]]/CampList[[#This Row],[HH]],"NA") -> 4.637168142 | T67: GCA | U67: Camp | V67: Urban | X67: 2011-07-01 | Y67: 3 | Z67: KMSS | AA67: IP | AC67: 2014-01-03 | AD67: UZW, Maran data
A68: Open | B68: Kachin | C68: MMR001 | D68: Myitkyina | E68: MMR001D001 | F68: Myitkyina | G68: MMR001001 | H68: Maw Hpawng | I68: MMR001001007 | J68: Maw Hpawng | K68: 165698 | L68: Maw Hpawng Hka Nan Baptist Church | M68: MMR001CMP020 | N68: 97.2843959 | O68: 25.37434397 | P68: 0 | Q68: 26 | R68: 109 | S68: =IF(CampList[[#This Row],[HH]]>0,CampList[[#This Row],[Total]]/CampList[[#This Row],[HH]],"NA") -> 4.192307692 | T68: GCA | U68: Camp | V68: Rural | X68: 2011-10-01 | Y68: 1 | Z68: Shalom | AA68: IP | AC68: 2014-01-16 | AD68: Update IDP population from Shalom data
A69: Open | B69: Kachin | C69: MMR001 | D69: Myitkyina | E69: MMR001D001 | F69: Myitkyina | G69: MMR001001 | H69: Maw Hpawng | I69: MMR001001007 | J69: Maw Hpawng | K69: 165698 | L69: Maw Hpawng Lhaovo Baptist Church | M69: MMR001CMP021 | N69: 97.29095204 | O69: 25.37104944 | P69: 476 | Q69: 21 | R69: 101 | S69: =IF(CampList[[#This Row],[HH]]>0,CampList[[#This Row],[Total]]/CampList[[#This Row],[HH]],"NA") -> 4.80952381 | T69: GCA | U69: Camp | V69: Rural | X69: 2011-10-01 | Y69: 1 | Z69: Shalom | AA69: IP | AC69: 2014-01-16 | AD69: Update IDP population from Shalom data
A70: Open | B70: Kachin | C70: MMR001 | D70: Myitkyina | E70: MMR001D001 | F70: Myitkyina | G70: MMR001001 | H70: Myitkyina Town | I70: MMR001001701 | J70: Kachin Su Ward | K70: MMR001001701509 | L70: Wun Tho Buddhist Monastery | M70: MMR001CMP022 | N70: 97.4038785 | O70: 25.37703817 | P70: 0 | Q70: 6 | R70: 33 | S70: =IF(CampList[[#This Row],[HH]]>0,CampList[[#This Row],[Total]]/CampList[[#This Row],[HH]],"NA") -> 5.5 | T70: GCA | U70: Camp | V70: Urban | X70: 2012-04-01 | Y70: 1 | Z70: Shalom | AA70: IP | AC70: 2014-01-17 | AD70: Update IDP population from Shalom data (Assistant CCCM Officer)
A71: Open | B71: Kachin | C71: MMR001 | D71: Myitkyina | E71: MMR001D001 | F71: Myitkyina | G71: MMR001001 | H71: Myitkyina Town | I71: MMR001001701 | J71: Tat Kone Ward | K71: MMR001001701520 | L71: Tat Kone COC Baptist / Tat Kone Htoi San | M71: MMR001CMP023 | N71: 97.38763688 | O71: 25.41091375 | P71: 0 | Q71: 69 | R71: 331 | S71: =IF(CampList[[#This Row],[HH]]>0,CampList[[#This Row],[Total]]/CampList[[#This Row],[HH]],"NA") -> 4.797101449 | T71: GCA | U71: Camp | V71: Urban | X71: 2012-04-01 | Y71: 1 | Z71: Shalom | AA71: IP | AC71: 2014-01-16 | AD71: Update IDP population from Shalom data
A72: Open | B72: Kachin | C72: MMR001 | D72: Myitkyina | E72: MMR001D001 | F72: Myitkyina | G72: MMR001001 | H72: Nam Koi | I72: MMR001001005 | J72: Nam Koi | K72: 165695 | L72: Nan Kway St. John Catholic Church | M72: MMR001CMP024 | N72: 97.35932018 | O72: 25.4105693 | P72: 0 | Q72: 72 | R72: 359 | S72: =IF(CampList[[#This Row],[HH]]>0,CampList[[#This Row],[Total]]/CampList[[#This Row],[HH]],"NA") -> 4.986111111 | T72: GCA | U72: Camp | V72: Urban | X72: 2012-01-01 | Z72: KMSS | AA72: RRD
A73: Open | B73: Kachin | C73: MMR001 | D73: Myitkyina | E73: MMR001D001 | F73: Waingmaw | G73: MMR001002 | H73: Waingmaw Town | I73: MMR001002701 | J73: No (2) Ward | K73: MMR001002701502 | L73: Qtr. 2 Myoma Baptist Church | M73: MMR001CMP025 | N73: 97.43843238 | O73: 25.351725 | P73: 0 | Q73: 83 | R73: 373 | S73: =IF(CampList[[#This Row],[HH]]>0,CampList[[#This Row],[Total]]/CampList[[#This Row],[HH]],"NA") -> 4.493975904 | T73: GCA | U73: Camp | V73: Urban | X73: 2011-06-01 | Y73: 2 | Z73: KBC | AA73: IP | AC73: 2014-01-15 | AD73: Checked with KBC data
A74: Open | B74: Kachin | C74: MMR001 | D74: Myitkyina | E74: MMR001D001 | F74: Waingmaw | G74: MMR001002 | H74: Waingmaw Town | I74: MMR001002701 | J74: No (4) Ward | K74: MMR001002701504 | L74: Qtr. 4 Monestry (Thargaya Thayett Taw) | M74: MMR001CMP026 | N74: 97.432495 | O74: 25.350809 | P74: 0 | Q74: 101 | R74: 528 | S74: =IF(CampList[[#This Row],[HH]]>0,CampList[[#This Row],[Total]]/CampList[[#This Row],[HH]],"NA") -> 5.227722772 | T74: GCA | U74: Camp | V74: Urban | X74: 2012-02-01 | Y74: 1 | Z74: Shalom | AA74: IP | AC74: 2014-01-17 | AD74: UZW, Maran data
A75: Open | B75: Kachin | C75: MMR001 | D75: Myitkyina | E75: MMR001D001 | F75: Waingmaw | G75: MMR001002 | H75: Mading | I75: MMR001002001 | J75: Mading/Hka Kun | K75: 165730 | L75: Mading Baptist Church | M75: MMR001CMP027 | N75: 97.451965 | O75: 25.356632 | P75: 0 | Q75: 23 | R75: 120 | S75: =IF(CampList[[#This Row],[HH]]>0,CampList[[#This Row],[Total]]/CampList[[#This Row],[HH]],"NA") -> 5.217391304 | T75: GCA | U75: Camp | V75: Rural | X75: 2012-05-01 | Y75: 1 | Z75: KBC | AA75: IP | AC75: 2014-01-20 | AD75: UZW, Maran data
A76: Open | B76: Kachin | C76: MMR001 | D76: Myitkyina | E76: MMR001D001 | F76: Waingmaw | G76: MMR001002 | H76: Hkat Shu | I76: MMR001002003 | J76: Hkat Shu | K76: 165735 | L76: Hkat Cho | M76: MMR001CMP028 | N76: 97.40419593 | O76: 25.32171074 | P76: 0 | Q76: 134 | R76: 587 | S76: =IF(CampList[[#This Row],[HH]]>0,CampList[[#This Row],[Total]]/CampList[[#This Row],[HH]],"NA") -> 4.380597015 | T76: GCA | U76: Camp | V76: Rural | X76: 2011-06-01 | Y76: 2 | Z76: Shalom | AA76: IP | AC76: 2014-01-17 | AD76: Update IDP population from U Zaw Win, U Myint Maung Shelter data
A77: Open | B77: Kachin | C77: MMR001 | D77: Myitkyina | E77: MMR001D001 | F77: Waingmaw | G77: MMR001002 | H77: Mai Na | I77: MMR001002006 | J77: Mai Na | K77: 165740 | L77: Maina Catholic Church (St. Joseph) | M77: MMR001CMP029 | N77: 97.4377825 | O77: 25.4156675 | Q77: 232 | R77: 1146 | S77: =IF(CampList[[#This Row],[HH]]>0,CampList[[#This Row],[Total]]/CampList[[#This Row],[HH]],"NA") -> 4.939655172 | T77: GCA | U77: Camp | X77: 2013-06-01 | Y77: 4 | Z77: KMSS | AA77: IP | AC77: 2014-01-20 | AD77: Update IDP population from U Zaw Win, U Myint Maung Shelter data
A78: Open | B78: Kachin | C78: MMR001 | D78: Myitkyina | E78: MMR001D001 | F78: Waingmaw | G78: MMR001002 | H78: Waingmaw Town | I78: MMR001002701 | J78: No (3) Ward | K78: MMR001002701503 | L78: Qtr. 3 Mu-yin Baptist Church | M78: MMR001CMP030 | N78: 97.43747267 | O78: 25.34591817 | Q78: 30 | R78: 152 | S78: =IF(CampList[[#This Row],[HH]]>0,CampList[[#This Row],[Total]]/CampList[[#This Row],[HH]],"NA") -> 5.066666667 | T78: GCA | U78: Camp | V78: Urban | X78: 2011-06-01 | Y78: 1 | Z78: Shalom | AA78: IP | AC78: 2014-01-16 | AD78: Update IDP population from Shalom data
A79: Open | B79: Kachin | C79: MMR001 | D79: Myitkyina | E79: MMR001D001 | F79: Waingmaw | G79: MMR001002 | H79: Mai Na | I79: MMR001002006 | J79: Mai Na | K79: 165740 | L79: Maina AG Church | M79: MMR001CMP031 | N79: 97.43341926 | O79: 25.42452944 | P79: 0 | Q79: 141 | R79: 686 | S79: =IF(CampList[[#This Row],[HH]]>0,CampList[[#This Row],[Total]]/CampList[[#This Row],[HH]],"NA") -> 4.865248227 | T79: GCA | U79: Camp | V79: Rural | X79: 2013-07-01 | Y79: 1 | Z79: Shalom | AA79: IP | AC79: 2014-01-20 | AD79: UZW, Maran data
A80: Open | B80: Kachin | C80: MMR001 | D80: Myitkyina | E80: MMR001D001 | F80: Waingmaw | G80: MMR001002 | H80: Waingmaw Town | I80: MMR001002701 | J80: No (2) Ward | K80: MMR001002701502 | L80: Qtr. 2 Lhaovo Baptist Church | M80: MMR001CMP032 | N80: 97.44116639 | O80: 25.3540362 | P80: 0 | Q80: 120 | R80: 332 | S80: =IF(CampList[[#This Row],[HH]]>0,CampList[[#This Row],[Total]]/CampList[[#This Row],[HH]],"NA") -> 2.766666667 | T80: GCA | U80: Camp | V80: Urban | X80: 2011-07-01 | Y80: 2 | Z80: Shalom | AA80: IP | AC80: 2014-01-16 | AD80: Checked with Shalom data, IDPs figure do not change
A81: Open | B81: Kachin | C81: MMR001 | D81: Myitkyina | E81: MMR001D001 | F81: Waingmaw | G81: MMR001002 | H81: Nawng Hee | I81: MMR001002008 | J81: Nawng Hee | K81: 165745 | L81: Nawng Hee Village | M81: MMR001CMP033 | N81: 97.345039 | O81: 25.351965 | Q81: 18 | R81: 71 | S81: =IF(CampList[[#This Row],[HH]]>0,CampList[[#This Row],[Total]]/CampList[[#This Row],[HH]],"NA") -> 3.944444444 | T81: GCA | U81: Host Families | V81: Rural | Y81: 1 | Z81: Shalom | AA81: IP | AC81: 2014-01-20 | AD81: Update IDP population from U Zaw Win, U Myint Maung Shelter data
A82: Open | B82: Kachin | C82: MMR001 | D82: Myitkyina | E82: MMR001D001 | F82: Waingmaw | G82: MMR001002 | H82: Waingmaw Town | I82: MMR001002701 | J82: No (2) Ward | K82: MMR001002701502 | L82: Waingmaw Baptist Zonal Office | M82: MMR001CMP036 | N82: 97.438259 | O82: 25.355842 | P82: 0 | Q82: 0 | R82: 150 | S82: =IF(CampList[[#This Row],[HH]]>0,CampList[[#This Row],[Total]]/CampList[[#This Row],[HH]],"NA") -> NA | T82: GCA | U82: Camp | V82: Rural | X82: 2011-11-01 | Y82: 1 | Z82: KBC | AA82: IP | AC82: 2014-01-15 | AD82: Update population according to KBC data
A83: Open | B83: Kachin | C83: MMR001 | D83: Myitkyina | E83: MMR001D001 | F83: Waingmaw | G83: MMR001002 | H83: Waingmaw Town | I83: MMR001002701 | J83: No (4) Ward | K83: MMR001002701504 | L83: Thargaya Lisu Baptist Church | M83: MMR001CMP037 | N83: 97.42825115 | O83: 25.33368333 | Q83: 74 | R83: 350 | S83: =IF(CampList[[#This Row],[HH]]>0,CampList[[#This Row],[Total]]/CampList[[#This Row],[HH]],"NA") -> 4.72972973 | T83: GCA | U83: Camp | V83: Urban | Y83: 1 | Z83: Shalom | AA83: IP | AC83: 2014-01-17 | AD83: UZW, Maran data
A84: Open | B84: Kachin | C84: MMR001 | D84: Myitkyina | E84: MMR001D001 | F84: Waingmaw | G84: MMR001002 | H84: Waingmaw Town | I84: MMR001002701 | J84: No (3) Ward | K84: MMR001002701503 | L84: Waingmaw AG Church | M84: MMR001CMP038 | N84: 97.44428373 | O84: 25.3512504 | P84: 476 | Q84: 81 | R84: 406 | S84: =IF(CampList[[#This Row],[HH]]>0,CampList[[#This Row],[Total]]/CampList[[#This Row],[HH]],"NA") -> 5.012345679 | T84: GCA | U84: Camp | V84: Urban | X84: 2011-11-01 | Y84: 1 | Z84: Shalom | AA84: IP | AC84: 2014-01-16 | AD84: UZW, Maran data
A85: Open | B85: Kachin | C85: MMR001 | D85: Myitkyina | E85: MMR001D001 | F85: Waingmaw | G85: MMR001002 | H85: Mai Na | I85: MMR001002006 | J85: Mai Na | K85: 165740 | L85: Maina Lawang Baptist Church | M85: MMR001CMP039 | N85: 97.42653694 | O85: 25.40961269 | P85: 0 | Q85: 49 | R85: 197 | S85: =IF(CampList[[#This Row],[HH]]>0,CampList[[#This Row],[Total]]/CampList[[#This Row],[HH]],"NA") -> 4.020408163 | T85: GCA | U85: Camp | V85: Urban | X85: 2011-12-01 | Y85: 1 | Z85: KBC | AA85: IP | AC85: 2014-01-15 | AD85: Update population according to KBC data
A86: Open | B86: Kachin | C86: MMR001 | D86: Myitkyina | E86: MMR001D001 | F86: Waingmaw | G86: MMR001002 | H86: Mai Na | I86: MMR001002006 | J86: Mai Na | K86: 165740 | L86: Maina KBC (Bawng Ring) | M86: MMR001CMP040 | N86: 97.43485587 | O86: 25.41180058 | P86: 0 | Q86: 420 | R86: 1845 | S86: =IF(CampList[[#This Row],[HH]]>0,CampList[[#This Row],[Total]]/CampList[[#This Row],[HH]],"NA") -> 4.392857143 | T86: GCA | U86: Camp | V86: Rural | X86: 2012-06-01 | Y86: 3 | Z86: KBC | AA86: IP | AC86: 2014-01-15 | AD86: Update population according to KBC data
A87: Open | B87: Kachin | C87: MMR001 | D87: Myitkyina | E87: MMR001D001 | F87: Waingmaw | G87: MMR001002 | H87: Waw Shung (Kan Paik Ti Sub-township) | I87: MMR001002035 | J87: Shan Kyaing | K87: 165845 | L87: Shing Jai | M87: MMR001CMP041 | N87: 98.025663 | O87: 25.418084 | Q87: 188 | R87: 977 | S87: =IF(CampList[[#This Row],[HH]]>0,CampList[[#This Row],[Total]]/CampList[[#This Row],[HH]],"NA") -> 5.196808511 | T87: GCA | U87: Camp | Y87: 2 | Z87: KBC | AA87: IP | AC87: 2014-01-15 | AD87: Update population according to KBC data
A88: Open | B88: Kachin | C88: MMR001 | D88: Myitkyina | E88: MMR001D001 | F88: Chipwi | G88: MMR001005 | H88: Chipwi Town | I88: MMR001005701 | L88: Chipwi KBC camp | M88: MMR001CMP042 | P88: 0 | Q88: 107 | R88: 509 | S88: =IF(CampList[[#This Row],[HH]]>0,CampList[[#This Row],[Total]]/CampList[[#This Row],[HH]],"NA") -> 4.757009346 | T88: GCA | U88: Camp | V88: Urban | X88: 2012-12-01 | Y88: 1 | Z88: Shalom | AA88: IP | AC88: 2014-01-17 | AD88: Update IDP population from Shalom data (Assistant CCCM Officer)
A89: Open | B89: Kachin | C89: MMR001 | D89: Myitkyina | E89: MMR001D001 | F89: Chipwi | G89: MMR001005 | H89: Hpa Re (Pang War Sub-township) | I89: MMR001005026 | J89: Hpa Re Waw Jang | K89: 166355 | L89: Hpare Hkyer - BP6 | M89: MMR001CMP043 | P89: 75411 | Q89: 144 | R89: 862 | S89: =IF(CampList[[#This Row],[HH]]>0,CampList[[#This Row],[Total]]/CampList[[#This Row],[HH]],"NA") -> 5.986111111 | T89: NGCA | U89: Camp | V89: Forest/bush | X89: 2012-05-01 | Y89: 2 | Z89: KBC | AA89: IP | AC89: 2014-01-22 | AD89: Change GCA to NGCA, according to Shelter Unit Info:
A90: Open | B90: Kachin | C90: MMR001 | D90: Myitkyina | E90: MMR001D001 | F90: Chipwi | G90: MMR001005 | H90: Lang Jaw (Pang War Sub-township) | I90: MMR001005022 | J90: Lang Jaw | K90: 166337 | L90: Lan Jaw | M90: MMR001CMP045 | N90: 98.354147 | O90: 25.708763 | S90: =IF(CampList[[#This Row],[HH]]>0,CampList[[#This Row],[Total]]/CampList[[#This Row],[HH]],"NA") -> NA | T90: GCA | U90: Host Families
A91: Open | B91: Kachin | C91: MMR001 | D91: Myitkyina | E91: MMR001D001 | F91: Chipwi | G91: MMR001005 | L91: Gant Gwin | M91: MMR001CMP046 | Q91: 255 | R91: 1273 | S91: =IF(CampList[[#This Row],[HH]]>0,CampList[[#This Row],[Total]]/CampList[[#This Row],[HH]],"NA") -> 4.992156863 | T91: GCA | U91: Camp | AA91: IP
A92: Open | B92: Kachin | C92: MMR001 | D92: Bhamo | E92: MMR001D003 | F92: Bhamo | G92: MMR001010 | H92: Bhamo Town | I92: MMR001010701 | J92: Nyaung Pin Ward | K92: MMR001010701508 | L92: Robert Church | M92: MMR001CMP047 | N92: 97.22911681 | O92: 24.26829283 | P92: 0 | Q92: 558 | R92: 2951 | S92: =IF(CampList[[#This Row],[HH]]>0,CampList[[#This Row],[Total]]/CampList[[#This Row],[HH]],"NA") -> 5.288530466 | T92: GCA | U92: Camp | V92: Urban | X92: 2011-07-01 | Y92: 3 | Z92: KBC | AA92: IP | AC92: 2014-01-15 | AD92: Update population according to KBC data
A93: Open | B93: Kachin | C93: MMR001 | D93: Bhamo | E93: MMR001D003 | F93: Bhamo | G93: MMR001010 | H93: Moe Hping | I93: MMR001010009 | J93: Thar Si | K93: 166837 | L93: Lisu Boarding-House | M93: MMR001CMP049 | N93: 97.24018346 | O93: 24.26317436 | P93: 0 | Q93: 68 | R93: 363 | S93: =IF(CampList[[#This Row],[HH]]>0,CampList[[#This Row],[Total]]/CampList[[#This Row],[HH]],"NA") -> 5.338235294 | T93: GCA | U93: Camp | V93: Urban | X93: 2011-06-01 | Y93: 2 | Z93: Shalom | AA93: IP | AC93: 2014-01-16 | AD93: Update IDP population from Shalom data
A94: Open | B94: Kachin | C94: MMR001 | D94: Bhamo | E94: MMR001D003 | F94: Bhamo | G94: MMR001010 | H94: Moe Hping | I94: MMR001010009 | J94: Thar Si | K94: 166837 | L94: AD-2000 Tharthana Compound | M94: MMR001CMP050 | N94: 97.23883 | O94: 24.26072 | P94: 0 | Q94: 234 | R94: 1089 | S94: =IF(CampList[[#This Row],[HH]]>0,CampList[[#This Row],[Total]]/CampList[[#This Row],[HH]],"NA") -> 4.653846154 | T94: GCA | U94: Camp | V94: Urban | X94: 2011-11-01 | Y94: 2 | Z94: KBSS | AA94: IP | AC94: 2013-12-18 | AD94: Update population from SI winter's kit distibution list
A95: Open | B95: Kachin | C95: MMR001 | D95: Bhamo | E95: MMR001D003 | F95: Bhamo | G95: MMR001010 | H95: Bhamo Town | I95: MMR001010701 | J95: Pauk Kone Ward | K95: MMR001010701506 | L95: Mu-yin Baptist Church | M95: MMR001CMP051 | N95: 97.2342 | O95: 24.253067 | P95: 0 | Q95: 8 | R95: 36 | S95: =IF(CampList[[#This Row],[HH]]>0,CampList[[#This Row],[Total]]/CampList[[#This Row],[HH]],"NA") -> 4.5 | T95: GCA | U95: Camp | V95: Urban | X95: 2012-10-01 | Y95: 1 | Z95: Shalom | AA95: IP | AC95: 2014-01-16 | AD95: Update IDP population from Shalom data (Assistant CCCM Officer)
A96: Open | B96: Kachin | C96: MMR001 | D96: Bhamo | E96: MMR001D003 | F96: Bhamo | G96: MMR001010 | H96: Bhamo Town | I96: MMR001010701 | J96: Pauk Kone Ward | K96: MMR001010701506 | L96: Htoi San Church | M96: MMR001CMP052 | N96: 97.23692 | O96: 24.24766 | P96: 0 | Q96: 43 | R96: 194 | S96: =IF(CampList[[#This Row],[HH]]>0,CampList[[#This Row],[Total]]/CampList[[#This Row],[HH]],"NA") -> 4.511627907 | T96: GCA | U96: Camp | V96: Urban | X96: 2011-12-01 | Y96: 1 | Z96: KBC | AA96: IP | AC96: 2014-01-15 | AD96: Update population according to KBC data
A97: Open | B97: Kachin | C97: MMR001 | D97: Bhamo | E97: MMR001D003 | F97: Bhamo | G97: MMR001010 | H97: Han Te | I97: MMR001010024 | J97: Yoe Gyi | K97: 166852 | L97: Yoe Kyi Monastery | M97: MMR001CMP053 | N97: 97.24064 | O97: 24.24953 | P97: 0 | Q97: 29 | R97: 103 | S97: =IF(CampList[[#This Row],[HH]]>0,CampList[[#This Row],[Total]]/CampList[[#This Row],[HH]],"NA") -> 3.551724138 | T97: GCA | U97: Camp | V97: Urban | X97: 2012-08-01 | Y97: 1 | Z97: Shalom | AA97: IP | AC97: 2014-01-16 | AD97: Update IDP population from Shalom data
A98: Open | B98: Kachin | C98: MMR001 | D98: Bhamo | E98: MMR001D003 | F98: Bhamo | G98: MMR001010 | H98: Nam Hlaing | I98: MMR001010015 | J98: Nam Hlaing | K98: 166844 | L98: Nant Hlaing Church | M98: MMR001CMP054 | N98: 97.31586 | O98: 24.32638 | P98: 0 | Q98: 22 | R98: 108 | S98: =IF(CampList[[#This Row],[HH]]>0,CampList[[#This Row],[Total]]/CampList[[#This Row],[HH]],"NA") -> 4.909090909 | T98: GCA | U98: Camp | V98: Urban | X98: 2011-11-01 | Y98: 2 | Z98: KBSS | AA98: IP | AD98: Update from Shelter Data
A99: Open | B99: Kachin | C99: MMR001 | D99: Bhamo | E99: MMR001D003 | F99: Bhamo | G99: MMR001010 | H99: Bhamo Town | I99: MMR001010701 | J99: Shwe Kyee Nar Ward | K99: MMR001010701513 | L99: Ta Gun Taing Monastery (Shwe Kyi Na) | M99: MMR001CMP055 | N99: 97.22779 | O99: 24.29138 | P99: 0 | Q99: 61 | R99: 282 | S99: =IF(CampList[[#This Row],[HH]]>0,CampList[[#This Row],[Total]]/CampList[[#This Row],[HH]],"NA") -> 4.62295082 | T99: GCA | U99: Camp | V99: Urban | X99: 2012-05-01 | Y99: 2 | Z99: Shalom | AA99: IP | AC99: 2014-01-16 | AD99: Update IDP population from Shalom data
A100: Open | B100: Kachin | C100: MMR001 | D100: Bhamo | E100: MMR001D003 | F100: Momauk | G100: MMR001012 | H100: Momauk Town | I100: MMR001012701 | J100: Ah Lin Kawng Ward | K100: MMR001012701502 | L100: Momauk Baptist Church | M100: MMR001CMP056 | N100: 97.34436 | O100: 24.25069 | P100: 0 | Q100: 399 | R100: 1582 | S100: =IF(CampList[[#This Row],[HH]]>0,CampList[[#This Row],[Total]]/CampList[[#This Row],[HH]],"NA") -> 3.964912281 | T100: GCA | U100: Camp | V100: Urban | X100: 2011-06-01 | Y100: 3 | Z100: KBC | AA100: IP | AC100: 2014-01-15 | AD100: Update population according to KBC data
A101: Open | B101: Kachin | C101: MMR001 | D101: Bhamo | E101: MMR001D003 | F101: Momauk | G101: MMR001012 | H101: Momauk Town | I101: MMR001012701 | J101: Kyay Nan Waing Ward | K101: MMR001012701503 | L101: Momauk Catholic Church (St. Patrick) | M101: MMR001CMP057 | N101: 97.34695 | O101: 24.25177 | P101: 0 | Q101: 284 | R101: 1062 | S101: =IF(CampList[[#This Row],[HH]]>0,CampList[[#This Row],[Total]]/CampList[[#This Row],[HH]],"NA") -> 3.73943662 | T101: GCA | U101: Camp | V101: Urban | X101: 2011-08-01 | Y101: 2 | Z101: KBSS | AA101: IP | AD101: Update from Shelter Data
A102: Open | B102: Kachin | C102: MMR001 | D102: Bhamo | E102: MMR001D003 | F102: Momauk | G102: MMR001012 | H102: Momauk Town | I102: MMR001012701 | J102: Ah Lin Kawng Ward | K102: MMR001012701502 | L102: Mandalay Monestry | M102: MMR001CMP058 | N102: 97.34694 | O102: 24.25186 | P102: 0 | Q102: 4 | R102: 16 | S102: =IF(CampList[[#This Row],[HH]]>0,CampList[[#This Row],[Total]]/CampList[[#This Row],[HH]],"NA") -> 4 | T102: GCA | U102: Camp | V102: Urban | X102: 2011-10-01 | Y102: 1 | Z102: Shalom | AA102: IP | AC102: 2014-01-16 | AD102: Checked with Shalom data, IDPs figure do not change
A103: Open | B103: Kachin | C103: MMR001 | D103: Bhamo | E103: MMR001D003 | F103: Momauk | G103: MMR001012 | H103: Momauk Town | I103: MMR001012701 | J103: Ah Lin Kawng Ward | K103: MMR001012701502 | L103: Ni Thaw Ka Monestry | M103: MMR001CMP059 | N103: 97.34774 | O103: 24.25377 | P103: 0 | Q103: 23 | R103: 85 | S103: =IF(CampList[[#This Row],[HH]]>0,CampList[[#This Row],[Total]]/CampList[[#This Row],[HH]],"NA") -> 3.695652174 | T103: GCA | U103: Camp | V103: Urban | X103: 2011-10-01 | Y103: 1 | Z103: Shalom | AA103: IP | AC103: 2014-01-16 | AD103: Checked with Shalom data, IDPs figure do not change
A104: Open | B104: Kachin | C104: MMR001 | D104: Bhamo | E104: MMR001D003 | F104: Momauk | G104: MMR001012 | H104: Tar Li | I104: MMR001012021 | J104: Tar Li | K104: 167086 | L104: Tarli | M104: MMR001CMP060 | Q104: 10 | R104: 38 | S104: =IF(CampList[[#This Row],[HH]]>0,CampList[[#This Row],[Total]]/CampList[[#This Row],[HH]],"NA") -> 3.8 | T104: GCA | U104: Host Families | AA104: RRD
A105: Open | B105: Kachin | C105: MMR001 | D105: Bhamo | E105: MMR001D003 | F105: Momauk | G105: MMR001012 | H105: Myo Thit | I105: MMR001012010 | J105: Myo Thit | K105: 167048 | L105: Myo Thit | M105: MMR001CMP061 | Q105: 13 | R105: 53 | S105: =IF(CampList[[#This Row],[HH]]>0,CampList[[#This Row],[Total]]/CampList[[#This Row],[HH]],"NA") -> 4.076923077 | T105: GCA | U105: Host Families | V105: Urban | AA105: RRD
A106: Open | B106: Kachin | C106: MMR001 | D106: Bhamo | E106: MMR001D003 | F106: Momauk | G106: MMR001012 | H106: Man Pon | I106: MMR001012001 | J106: Man Pon | K106: 167009 | L106: Man Bung Catholic compound | M106: MMR001CMP062 | N106: 97.32502 | O106: 24.2451 | P106: 0 | Q106: 117 | R106: 448 | S106: =IF(CampList[[#This Row],[HH]]>0,CampList[[#This Row],[Total]]/CampList[[#This Row],[HH]],"NA") -> 3.829059829 | T106: GCA | U106: Camp | V106: Urban | X106: 2012-05-01 | Y106: 2 | Z106: KBSS | AA106: IP | AC106: 2014-01-20 | AD106: Update from Shelter Data
A107: Open | B107: Kachin | C107: MMR001 | D107: Bhamo | E107: MMR001D003 | F107: Momauk | G107: MMR001012 | H107: Man Nawng | I107: MMR001012014 | J107: Man Nawng | K107: 167063 | L107: Man Nawng | M107: MMR001CMP063 | N107: 97.32166 | O107: 24.41 | Q107: 28 | R107: 136 | S107: =IF(CampList[[#This Row],[HH]]>0,CampList[[#This Row],[Total]]/CampList[[#This Row],[HH]],"NA") -> 4.857142857 | T107: GCA | U107: Host Families | AA107: RRD
A108: Open | B108: Kachin | C108: MMR001 | D108: Bhamo | E108: MMR001D003 | F108: Momauk | G108: MMR001012 | H108: Maing Khat | I108: MMR001012020 | J108: Maing Khat | K108: 167078 | L108: Mai Khat | M108: MMR001CMP064 | Q108: 2 | R108: 9 | S108: =IF(CampList[[#This Row],[HH]]>0,CampList[[#This Row],[Total]]/CampList[[#This Row],[HH]],"NA") -> 4.5 | T108: GCA | U108: Host Families | AA108: RRD
A109: Open | B109: Kachin | C109: MMR001 | D109: Bhamo | E109: MMR001D003 | F109: Momauk | G109: MMR001012 | H109: Hpar Kei (Dawthponeyan Sub-township) | I109: MMR001012046 | J109: Hpar Kei | K109: 167242 | L109: Phar Kay/Nant Waing | M109: MMR001CMP065 | N109: 97.42986 | O109: 24.63086 | Q109: 39 | R109: 176 | S109: =IF(CampList[[#This Row],[HH]]>0,CampList[[#This Row],[Total]]/CampList[[#This Row],[HH]],"NA") -> 4.512820513 | T109: GCA | U109: Host Families | AA109: RRD | AC109: 2014-01-07 | AD109: Update from OCHA Data (2 Jan 2014)
A110: Open | B110: Kachin | C110: MMR001 | D110: Bhamo | E110: MMR001D003 | F110: Mansi | G110: MMR001013 | H110: Mansi Town | I110: MMR001013701 | J110: Kawng Yar Ward | K110: MMR001013701504 | L110: Mansi Baptist Church | M110: MMR001CMP066 | N110: 97.29182 | O110: 24.12906 | P110: 0 | Q110: 93 | R110: 408 | S110: =IF(CampList[[#This Row],[HH]]>0,CampList[[#This Row],[Total]]/CampList[[#This Row],[HH]],"NA") -> 4.387096774 | T110: GCA | U110: Camp | V110: Urban | X110: 2013-11-01 | Y110: 2 | Z110: KBC | AA110: IP | AC110: 2014-01-15 | AD110: Update population according to KBC data
A111: Open | B111: Kachin | C111: MMR001 | D111: Bhamo | E111: MMR001D003 | F111: Shwegu | G111: MMR001011 | H111: Shwegu Town | I111: MMR001011701 | J111: Shwegu Town | K111: MMR001011701504 | L111: Shwe Gu Baptist Church | M111: MMR001CMP067 | N111: 96.807353 | O111: 24.200361 | P111: 0 | Q111: 79 | R111: 261 | S111: =IF(CampList[[#This Row],[HH]]>0,CampList[[#This Row],[Total]]/CampList[[#This Row],[HH]],"NA") -> 3.303797468 | T111: GCA | U111: Camp | V111: Urban | X111: 2011-07-01 | Y111: 1 | Z111: KBC | AA111: IP | AC111: 2014-01-15 | AD111: Checked with KBC data
A112: Open | B112: Kachin | C112: MMR001 | D112: Bhamo | E112: MMR001D003 | F112: Shwegu | G112: MMR001011 | H112: Shwegu Town | I112: MMR001011701 | J112: Shwegu Town | K112: MMR001011701504 | L112: Shwe Gu Catholic Church | M112: MMR001CMP068 | N112: 96.807353 | O112: 24.200367 | P112: 0 | Q112: 47 | R112: 176 | S112: =IF(CampList[[#This Row],[HH]]>0,CampList[[#This Row],[Total]]/CampList[[#This Row],[HH]],"NA") -> 3.744680851 | T112: GCA | U112: Camp | V112: Urban | X112: 2011-07-01 | Y112: 2 | Z112: KBSS | AA112: RRD | AC112: 2014-01-07 | AD112: Update from OCHA Data (2 Jan 2014)
A113: Open | B113: Kachin | C113: MMR001 | D113: Bhamo | E113: MMR001D003 | F113: Momauk | G113: MMR001012 | H113: Lwegel Town | I113: MMR001012702 | J113: Loi Je | L113: Loi Je Catholic Church | M113: MMR001CMP069 | N113: 97.724567 | O113: 24.205417 | P113: 0 | Q113: 46 | R113: 396 | S113: =IF(CampList[[#This Row],[HH]]>0,CampList[[#This Row],[Total]]/CampList[[#This Row],[HH]],"NA") -> 8.608695652 | T113: GCA | U113: Camp | V113: Urban | X113: 2011-11-01 | Y113: 2 | Z113: KBSS | AA113: RRD | AC113: 2014-01-07 | AD113: Update from OCHA Data (2 Jan 2014)
A114: Open | B114: Kachin | C114: MMR001 | D114: Bhamo | E114: MMR001D003 | F114: Momauk | G114: MMR001012 | H114: Lwegel Town | I114: MMR001012702 | J114: Aung Zay Yar Ward | K114: MMR001012702505 | L114: Loi Je Lisu Camp | M114: MMR001CMP070 | N114: 97.717133 | O114: 24.200433 | P114: 0 | Q114: 142 | R114: 716 | S114: =IF(CampList[[#This Row],[HH]]>0,CampList[[#This Row],[Total]]/CampList[[#This Row],[HH]],"NA") -> 5.042253521 | T114: GCA | U114: Camp | V114: Urban | X114: 2012-04-01 | Y114: 2 | Z114: KBC | AA114: IP | AC114: 2014-01-21 | AD114: UZW, Convoy Trip, 6-Nov-13
A115: Open | B115: Kachin | C115: MMR001 | D115: Bhamo | E115: MMR001D003 | F115: Momauk | G115: MMR001012 | H115: Lwegel Town | I115: MMR001012702 | L115: Loi Je Baptist Church | M115: MMR001CMP071 | N115: 97.718583 | O115: 24.200972 | Q115: 26 | R115: 149 | S115: =IF(CampList[[#This Row],[HH]]>0,CampList[[#This Row],[Total]]/CampList[[#This Row],[HH]],"NA") -> 5.730769231 | T115: GCA | U115: Camp | Y115: 1 | Z115: KBC | AA115: IP | AC115: 2014-01-21 | AD115: UZW, Convoy Trip, 6-Nov-13
A116: Open | B116: Kachin | C116: MMR001 | D116: Bhamo | E116: MMR001D003 | F116: Momauk | G116: MMR001012 | H116: Lwegel Town | I116: MMR001012702 | J116: Say Yone Kone | L116: Nyaung Na Pin | M116: MMR001CMP072 | N116: 97.724483 | O116: 24.205417 | P116: 0 | Q116: 47 | R116: 266 | S116: =IF(CampList[[#This Row],[HH]]>0,CampList[[#This Row],[Total]]/CampList[[#This Row],[HH]],"NA") -> 5.659574468 | T116: GCA | U116: Camp | V116: Urban | X116: 2012-08-01 | Y116: 1 | Z116: KBC | AA116: IP | AC116: 2013-12-10 | AD116: Data from U Zaw Win Oo
A117: Open | B117: Kachin | C117: MMR001 | D117: Bhamo | E117: MMR001D003 | F117: Momauk | G117: MMR001012 | H117: Lwegel Town | I117: MMR001012702 | J117: Seng Ja | L117: Seng Ja | M117: MMR001CMP073 | N117: 97.710864 | O117: 24.207333 | P117: 0 | Q117: 35 | R117: 204 | S117: =IF(CampList[[#This Row],[HH]]>0,CampList[[#This Row],[Total]]/CampList[[#This Row],[HH]],"NA") -> 5.828571429 | T117: GCA | U117: Camp | V117: Urban | X117: 2012-08-01 | Y117: 1 | Z117: KBC | AA117: IP | AC117: 2014-01-15 | AD117: According to KBC data, HH and Population confirmed.
A118: Open | B118: Kachin | C118: MMR001 | D118: Puta-O | E118: MMR001D004 | F118: Khaunglanhpu | G118: MMR001018 | H118: La Ja Ga | I118: MMR001018021 | J118: La Ja | K118: 168236 | L118: La Ja | M118: MMR001CMP074 | Q118: 11 | R118: 17 | S118: =IF(CampList[[#This Row],[HH]]>0,CampList[[#This Row],[Total]]/CampList[[#This Row],[HH]],"NA") -> 1.545454545 | T118: GCA | U118: Camp | AA118: RRD | AC118: 2014-01-07 | AD118: Update data from OCHA IDPs List
A119: Open | B119: Kachin | C119: MMR001 | D119: Puta-O | E119: MMR001D004 | F119: Puta-O | G119: MMR001014 | H119: Puta-O Town | I119: MMR001014701 | L119: Tote Tan Ward | M119: MMR001CMP075 | Q119: 18 | R119: 98 | S119: =IF(CampList[[#This Row],[HH]]>0,CampList[[#This Row],[Total]]/CampList[[#This Row],[HH]],"NA") -> 5.444444444 | T119: GCA | U119: Camp | V119: Urban | AA119: RRD | AC119: 2014-01-07 | AD119: Update data from OCHA IDPs List
A120: Open | B120: Kachin | C120: MMR001 | D120: Mohnyin | E120: MMR001D002 | F120: Mogaung | G120: MMR001008 | H120: Nawng Kaing Htaw | I120: MMR001008002 | J120: Ma Haung | K120: 166676 | L120: Mang Hawng Baptist Church | M120: MMR001CMP077 | N120: 96.94228 | O120: 25.29658 | P120: 0 | Q120: 14 | R120: 61 | S120: =IF(CampList[[#This Row],[HH]]>0,CampList[[#This Row],[Total]]/CampList[[#This Row],[HH]],"NA") -> 4.357142857 | T120: GCA | U120: Camp | V120: Urban | X120: 2012-05-01 | Y120: 1 | Z120: KBC | AA120: IP | AC120: 2014-01-15 | AD120: Checked with KBC data
A121: Open | B121: Kachin | C121: MMR001 | D121: Mohnyin | E121: MMR001D002 | F121: Mogaung | G121: MMR001008 | H121: Mogaung Town | I121: MMR001008701 | L121: Kyun Taw Baptist Church | M121: MMR001CMP078 | N121: 96.92262 | O121: 25.30567 | P121: 470 | Q121: 13 | R121: 50 | S121: =IF(CampList[[#This Row],[HH]]>0,CampList[[#This Row],[Total]]/CampList[[#This Row],[HH]],"NA") -> 3.846153846 | T121: GCA | U121: Camp | V121: Urban | X121: 2012-05-01 | Y121: 1 | Z121: KBC | AA121: IP | AC121: 2014-01-15 | AD121: Checked with KBC data
A122: Open | B122: Kachin | C122: MMR001 | D122: Mohnyin | E122: MMR001D002 | F122: Mogaung | G122: MMR001008 | H122: Mogaung Town | I122: MMR001008701 | J122: Nat Gyi Kone Ward | K122: MMR001008701506 | L122: Nat Gyi Kone Baptist Church | M122: MMR001CMP079 | N122: 96.94874 | O122: 25.30442 | P122: 100 | Q122: 12 | R122: 37 | S122: =IF(CampList[[#This Row],[HH]]>0,CampList[[#This Row],[Total]]/CampList[[#This Row],[HH]],"NA") -> 3.083333333 | T122: GCA | U122: Camp | V122: Urban | X122: 2012-03-01 | Y122: 1 | Z122: KBC | AA122: IP | AC122: 2014-01-15 | AD122: Update population according to KBC data
A123: Open | B123: Kachin | C123: MMR001 | D123: Mohnyin | E123: MMR001D002 | F123: Mohnyin | G123: MMR001007 | L123: St. Patrick Catholic Church | M123: MMR001CMP080 | N123: 96.36706 | O123: 24.7648 | Q123: 12 | R123: 46 | S123: =IF(CampList[[#This Row],[HH]]>0,CampList[[#This Row],[Total]]/CampList[[#This Row],[HH]],"NA") -> 3.833333333 | T123: GCA | U123: Camp | AA123: RRD
A124: Open | B124: Kachin | C124: MMR001 | D124: Mohnyin | E124: MMR001D002 | F124: Mohnyin | G124: MMR001007 | H124: Nam Mun | I124: MMR001007016 | J124: Nam Mun | K124: 166591 | L124: Nant Mun | M124: MMR001CMP081 | N124: 96.36495 | O124: 24.99835 | P124: 0 | Q124: 21 | R124: 97 | S124: =IF(CampList[[#This Row],[HH]]>0,CampList[[#This Row],[Total]]/CampList[[#This Row],[HH]],"NA") -> 4.619047619 | T124: GCA | U124: Camp | V124: Rural | X124: 2012-03-01 | AA124: RRD
A125: Open | B125: Kachin | C125: MMR001 | D125: Mohnyin | E125: MMR001D002 | F125: Hpakant | G125: MMR001009 | H125: Hpakan Town | I125: MMR001009701 | J125: Hnget Pyaw Taw Ward | K125: MMR001009701502 | L125: Nga Pyaw Taw Baptist Nursery School | M125: MMR001CMP082 | N125: 96.31279 | O125: 25.61116 | P125: 0 | Q125: 101 | R125: 544 | S125: =IF(CampList[[#This Row],[HH]]>0,CampList[[#This Row],[Total]]/CampList[[#This Row],[HH]],"NA") -> 5.386138614 | T125: GCA | U125: Camp | V125: Urban | X125: 2012-08-01 | Y125: 2 | Z125: KBC | AA125: IP | AC125: 2014-01-15 | AD125: Update population according to KBC data
A126: Open | B126: Kachin | C126: MMR001 | D126: Mohnyin | E126: MMR001D002 | F126: Hpakant | G126: MMR001009 | H126: Hpakan Town | I126: MMR001009701 | J126: Maw Wam Ward | K126: MMR001009701501 | L126: Maw Wan, Mu-yin Baptist Church | M126: MMR001CMP091 | N126: 96.319688 | O126: 25.615202 | P126: 319 | Q126: 4 | R126: 22 | S126: =IF(CampList[[#This Row],[HH]]>0,CampList[[#This Row],[Total]]/CampList[[#This Row],[HH]],"NA") -> 5.5 | T126: GCA | U126: Camp | V126: Urban | X126: 2012-08-01 | Y126: 1 | Z126: Shalom | AA126: IP | AC126: 2014-01-17 | AD126: Update IDP population from Shalom data (Assistant CCCM Officer)
A127: Open | B127: Kachin | C127: MMR001 | D127: Mohnyin | E127: MMR001D002 | F127: Hpakant | G127: MMR001009 | H127: Nam Ma Hpyit | I127: MMR001009002 | J127: Nam Ma Hpyit | K127: 166776 | L127: Nant Ma Hpit Catholic Church | M127: MMR001CMP103 | N127: 96.341353 | O127: 25.613895 | P127: 0 | Q127: 38 | R127: 215 | S127: =IF(CampList[[#This Row],[HH]]>0,CampList[[#This Row],[Total]]/CampList[[#This Row],[HH]],"NA") -> 5.657894737 | T127: GCA | U127: Camp | V127: Urban | X127: 2013-08-01 | Y127: 3 | Z127: KMSS | AA127: RRD
A128: Open | B128: Kachin | C128: MMR001 | D128: Mohnyin | E128: MMR001D002 | F128: Hpakant | G128: MMR001009 | H128: Seik Mu | I128: MMR001009003 | J128: Seik Mu | K128: 166783 | L128: Yumar Baptist Church | M128: MMR001CMP105 | N128: 96.306911 | O128: 25.59925 | P128: 0 | Q128: 40 | R128: 166 | S128: =IF(CampList[[#This Row],[HH]]>0,CampList[[#This Row],[Total]]/CampList[[#This Row],[HH]],"NA") -> 4.15 | T128: GCA | U128: Camp | V128: Rural | X128: 2012-08-01 | Y128: 1 | Z128: KBC | AA128: IP | AC128: 2014-01-15 | AD128: Update population according to KBC data
A129: Open | B129: Kachin | C129: MMR001 | D129: Mohnyin | E129: MMR001D002 | F129: Hpakant | G129: MMR001009 | H129: Seik Mu | I129: MMR001009003 | J129: Seik Mu | K129: 166783 | L129: Chin Church, Seik Mu | M129: MMR001CMP109 | N129: 96.283377 | O129: 25.582065 | P129: 0 | Q129: 4 | R129: 20 | S129: =IF(CampList[[#This Row],[HH]]>0,CampList[[#This Row],[Total]]/CampList[[#This Row],[HH]],"NA") -> 5 | T129: GCA | U129: Camp | V129: Rural | X129: 2013-08-01 | Y129: 1 | Z129: Shalom | AA129: IP | AC129: 2014-01-16 | AD129: Update IDP population from Shalom data
A130: Open | B130: Kachin | C130: MMR001 | D130: Myitkyina | E130: MMR001D001 | F130: Waingmaw | G130: MMR001002 | H130: Hpawt Dawt | I130: MMR001002032 | J130: Zai Aung | L130: Zai Awng / Mung Ga Zup | M130: MMR001CMP111 | N130: 97.75679 | O130: 25.10667 | P130: 756 | Q130: 620 | R130: 2342 | S130: =IF(CampList[[#This Row],[HH]]>0,CampList[[#This Row],[Total]]/CampList[[#This Row],[HH]],"NA") -> 3.777419355 | T130: NGCA | U130: Camp | V130: Rural | X130: 2011-11-01 | Y130: 3 | Z130: KBC | AA130: IP | AC130: 2014-01-15 | AD130: Update population according to KBC data
A131: Open | B131: Kachin | C131: MMR001 | D131: Myitkyina | E131: MMR001D001 | F131: Waingmaw | G131: MMR001002 | H131: Saga Pa (Sadung Sub-township) | I131: MMR001002040 | J131: Saga Pa | L131: Border Post 8 | M131: MMR001CMP113 | N131: 97.915833 | O131: 25.220278 | P131: 2404 | Q131: 171 | R131: 725 | S131: =IF(CampList[[#This Row],[HH]]>0,CampList[[#This Row],[Total]]/CampList[[#This Row],[HH]],"NA") -> 4.239766082 | T131: NGCA | U131: Camp | V131: Forest/bush | X131: 2011-11-01 | Y131: 3 | Z131: KMSS | AA131: IRRC | AC131: 2014-01-24
A132: Open | B132: Kachin | C132: MMR001 | D132: Myitkyina | E132: MMR001D001 | F132: Waingmaw | G132: MMR001002 | H132: Saga Pa (Sadung Sub-township) | J132: Hkau Shau | L132: Hkau Shau (BP 12) | M132: MMR001CMP115 | N132: 97.807183 | O132: 25.200333 | P132: 1023 | Q132: 176 | R132: 1207 | S132: =IF(CampList[[#This Row],[HH]]>0,CampList[[#This Row],[Total]]/CampList[[#This Row],[HH]],"NA") -> 6.857954545 | T132: NGCA | U132: Camp | V132: Rural | X132: 2011-12-01 | Y132: 3 | Z132: KBC | AA132: IP | AC132: 2014-01-15 | AD132: Update population according to KBC data
A133: Open | B133: Kachin | C133: MMR001 | D133: Myitkyina | E133: MMR001D001 | F133: Waingmaw | G133: MMR001002 | H133: Nam Sang Yang | I133: MMR001002024 | J133: Nam Sang Yang | K133: 165772 | L133: Woi Chyai | M133: MMR001CMP116 | N133: 97.546894 | O133: 24.755253 | P133: 316 | Q133: 789 | R133: 4211 | S133: =IF(CampList[[#This Row],[HH]]>0,CampList[[#This Row],[Total]]/CampList[[#This Row],[HH]],"NA") -> 5.337135615 | T133: NGCA | U133: Camp | V133: Urban | X133: 2011-06-01 | Y133: 5 | Z133: KMSS | AA133: IP | AC133: 2014-01-17 | AD133: Data received from, Shelter Unit (They have been to convoy trip on 12 to 16 Jan 2014)
A134: Open | B134: Kachin | C134: MMR001 | D134: Myitkyina | E134: MMR001D001 | F134: Waingmaw | G134: MMR001002 | H134: Nam Sang Yang | I134: MMR001002024 | J134: Nam Sang Yang | K134: 165772 | L134: Laiza Market 3 / Laiza Gat | M134: MMR001CMP117 | N134: 97.551507 | O134: 24.747213 | P134: 221 | Q134: 491 | R134: 2090 | S134: =IF(CampList[[#This Row],[HH]]>0,CampList[[#This Row],[Total]]/CampList[[#This Row],[HH]],"NA") -> 4.256619145 | T134: NGCA | U134: Camp | V134: Urban | X134: 2011-06-01 | Y134: 3 | Z134: KMSS | AA134: IP | AC134: 2014-01-17 | AD134: Data received from, Shelter Unit (They have been to convoy trip on 12 to 16 Jan 2014)
A135: Open | B135: Kachin | C135: MMR001 | D135: Myitkyina | E135: MMR001D001 | F135: Waingmaw | G135: MMR001002 | H135: Sa Ma | I135: MMR001002031 | J135: Nar Gu | K135: 165790 | L135: Maga Yang | M135: MMR001CMP119 | N135: 97.71523 | O135: 24.98025 | P135: 984 | Q135: 623 | R135: 2725 | S135: =IF(CampList[[#This Row],[HH]]>0,CampList[[#This Row],[Total]]/CampList[[#This Row],[HH]],"NA") -> 4.37399679 | T135: NGCA | U135: Camp | V135: Rural | X135: 2011-06-01 | Y135: 5 | Z135: KMSS | AA135: IRRC | AC135: 2014-01-24
A136: Open | B136: Kachin | C136: MMR001 | D136: Myitkyina | E136: MMR001D001 | F136: Waingmaw | G136: MMR001002 | H136: Sa Ma | I136: MMR001002031 | J136: Pa Jau | L136: Pajau / Jan Mai | M136: MMR001CMP120 | N136: 97.751389 | O136: 24.831944 | P136: 2330 | Q136: 186 | R136: 749 | S136: =IF(CampList[[#This Row],[HH]]>0,CampList[[#This Row],[Total]]/CampList[[#This Row],[HH]],"NA") -> 4.02688172 | T136: NGCA | U136: Camp | V136: Rural | X136: 2011-07-01 | Y136: 3 | Z136: KBC | AA136: IP | AC136: 2014-01-15 | AD136: Update population according to KBC data
A137: Open | B137: Kachin | C137: MMR001 | D137: Bhamo | E137: MMR001D003 | F137: Momauk | G137: MMR001012 | H137: Dawthponeyan Town | I137: MMR001012703 | J137: Laiza | L137: Je Yang Hka | M137: MMR001CMP121 | N137: 97.568332 | O137: 24.688339 | P137: 314 | Q137: 1688 | R137: 8390 | S137: =IF(CampList[[#This Row],[HH]]>0,CampList[[#This Row],[Total]]/CampList[[#This Row],[HH]],"NA") -> 4.970379147 | T137: NGCA | U137: Camp | V137: Rural | X137: 2012-06-01 | Y137: 7 | Z137: KMSS | AA137: IP | AC137: 2014-01-17 | AD137: Data received from, Shelter Unit (They have been to convoy trip on 12 to 16 Jan 2014)
A138: Open | B138: Kachin | C138: MMR001 | D138: Bhamo | E138: MMR001D003 | F138: Momauk | G138: MMR001012 | H138: In Baw Mai Kyin (Dawthponeyan Sub-township) | I138: MMR001012042 | J138: Hpun Lum Yang | K138: 167223 | L138: Hpun Lum Yang | M138: MMR001CMP122 | N138: 97.573126 | O138: 24.661906 | P138: 415 | Q138: 437 | R138: 1567 | S138: =IF(CampList[[#This Row],[HH]]>0,CampList[[#This Row],[Total]]/CampList[[#This Row],[HH]],"NA") -> 3.585812357 | T138: NGCA | U138: Camp | V138: Rural | X138: 2011-06-01 | Y138: 5 | Z138: KMSS | AA138: IP | AC138: 2014-01-17 | AD138: Data received from, Shelter Unit (They have been to convoy trip on 12 to 16 Jan 2014)
A139: Open | B139: Kachin | C139: MMR001 | D139: Bhamo | E139: MMR001D003 | F139: Momauk | G139: MMR001012 | H139: Zee Wone Gawt | I139: MMR001012023 | J139: Dum Bung | L139: Dum Bung | M139: MMR001CMP123 | N139: 97.5371 | O139: 24.461033 | P139: 360 | Q139: 119 | R139: 614 | S139: =IF(CampList[[#This Row],[HH]]>0,CampList[[#This Row],[Total]]/CampList[[#This Row],[HH]],"NA") -> 5.159663866 | T139: NGCA | U139: Camp | V139: Forest/bush | X139: 2011-08-01 | Y139: 4 | Z139: KMSS | AA139: IRRC | AC139: 2014-01-24
A140: Open | B140: Kachin | C140: MMR001 | D140: Bhamo | E140: MMR001D003 | F140: Momauk | G140: MMR001012 | H140: Kawng Hsa (Lwegel Sub-township) | I140: MMR001012033 | J140: Mai Gyar Yang | K140: 216913 | L140: Pa Kahtawng | M140: MMR001CMP126 | N140: 97.752667 | O140: 24.2744 | P140: 978 | Q140: 516 | R140: 3214 | S140: =IF(CampList[[#This Row],[HH]]>0,CampList[[#This Row],[Total]]/CampList[[#This Row],[HH]],"NA") -> 6.228682171 | T140: NGCA | U140: Camp | V140: Rural | X140: 2012-04-01 | Y140: 2 | Z140: KBSS | AA140: IRRC | AC140: 2014-01-24
A141: Open | B141: Kachin | C141: MMR001 | D141: Bhamo | E141: MMR001D003 | F141: Mansi | G141: MMR001013 | H141: In Ba Pa | I141: MMR001013012 | J141: La Na | K141: 216948 | L141: Lana Zup Ja | M141: MMR001CMP128 | N141: 97.625617 | O141: 24.056133 | P141: 866 | Q141: 551 | R141: 2916 | S141: =IF(CampList[[#This Row],[HH]]>0,CampList[[#This Row],[Total]]/CampList[[#This Row],[HH]],"NA") -> 5.292196007 | T141: NGCA | U141: Camp | V141: Rural | X141: 2011-10-01 | Y141: 2 | Z141: KBSS | AA141: IP | AC141: 2013-12-20 | AD141: Update IDP increased in Oct and Nov 2013 from Angela (UNHCR - Bhamo)
A142: Open | B142: Kachin | C142: MMR001 | D142: Bhamo | E142: MMR001D003 | F142: Mansi | G142: MMR001013 | H142: Dum Buk | I142: MMR001013014 | J142: Dum Buk | K142: Dum Buk | L142: Bum Tsit Pa | M142: MMR001CMP129 | N142: 97.609833 | O142: 24.002433 | P142: 854 | Q142: 591 | R142: 2619 | S142: =IF(CampList[[#This Row],[HH]]>0,CampList[[#This Row],[Total]]/CampList[[#This Row],[HH]],"NA") -> 4.431472081 | T142: NGCA | U142: Camp | V142: Rural | X142: 2011-10-01 | Y142: 2 | Z142: KBSS | AA142: IP | AC142: 2013-12-20 | AD142: Update IDP increased in Oct and Nov 2013 from Angela (UNHCR - Bhamo)
A143: Open | B143: Kachin | C143: MMR001 | D143: Bhamo | E143: MMR001D003 | F143: Momauk | G143: MMR001012 | H143: Ba Lawng Kawng (Lwegel Sub-township) | I143: MMR001012030 | J143: Hpa Lum | K143: 167138 | L143: Nhkawng Pa | M143: MMR001CMP131 | N143: 97.669367 | O143: 24.378167 | P143: 1149 | Q143: 387 | R143: 1624 | S143: =IF(CampList[[#This Row],[HH]]>0,CampList[[#This Row],[Total]]/CampList[[#This Row],[HH]],"NA") -> 4.196382429 | T143: NGCA | U143: Camp | V143: Rural | X143: 2012-04-01 | Y143: 2 | Z143: KBSS | AA143: IRRC | AC143: 2014-01-24
A144: Open | B144: Kachin | C144: MMR001 | D144: Bhamo | E144: MMR001D003 | F144: Mansi | G144: MMR001013 | H144: Man Wein | I144: MMR001013021 | L144: Man Wing Catholic Church | M144: MMR001CMP132 | N144: 97.596 | O144: 23.831 | P144: 0 | Q144: 403 | R144: 1690 | S144: =IF(CampList[[#This Row],[HH]]>0,CampList[[#This Row],[Total]]/CampList[[#This Row],[HH]],"NA") -> 4.193548387 | T144: GCA | U144: Camp | V144: Rural | X144: 2011-11-01 | Y144: 2 | Z144: KBSS | AA144: IP | AC144: 2013-12-20 | AD144: Update IDP increased in Oct and Nov 2013 from Angela (UNHCR - Bhamo)
A145: Open | B145: Kachin | C145: MMR001 | D145: Bhamo | E145: MMR001D003 | F145: Mansi | G145: MMR001013 | H145: Man Wein | I145: MMR001013021 | L145: Man Wing Baptist Church | M145: MMR001CMP133 | N145: 97.5879 | O145: 23.83 | P145: 0 | Q145: 102 | R145: 531 | S145: =IF(CampList[[#This Row],[HH]]>0,CampList[[#This Row],[Total]]/CampList[[#This Row],[HH]],"NA") -> 5.205882353 | T145: GCA | U145: Camp | V145: Rural | X145: 2012-02-01 | Y145: 2 | Z145: KBC | AA145: IP | AC145: 2014-01-15 | AD145: Update population according to KBC data
A146: Open | B146: Kachin | C146: MMR001 | D146: Bhamo | E146: MMR001D003 | F146: Mansi | G146: MMR001013 | H146: Man Wein | I146: MMR001013021 | L146: Man Wing Host Families | M146: MMR001CMP134 | Q146: 253 | R146: 1114 | S146: =IF(CampList[[#This Row],[HH]]>0,CampList[[#This Row],[Total]]/CampList[[#This Row],[HH]],"NA") -> 4.403162055 | T146: GCA | U146: Host Families | AA146: IP | AC146: 2013-12-10 | AD146: Data from U Zaw Win Oo
A147: Open | B147: Kachin | C147: MMR001 | D147: Bhamo | E147: MMR001D003 | F147: Mansi | G147: MMR001013 | H147: La Gat Dawt | I147: MMR001013027 | L147: Lung Kawk ( Hka Hkye Zup) | M147: MMR001CMP135 | N147: 97.585667 | O147: 23.9055 | P147: 745 | Q147: 54 | R147: 187 | S147: =IF(CampList[[#This Row],[HH]]>0,CampList[[#This Row],[Total]]/CampList[[#This Row],[HH]],"NA") -> 3.462962963 | T147: NGCA | U147: Camp | V147: Forest/bush | X147: 2012-08-01 | Y147: 2 | Z147: KBSS | AA147: IRRC | AC147: 2014-01-24
A148: Open | B148: Kachin | C148: MMR001 | D148: Bhamo | E148: MMR001D003 | F148: Mansi | G148: MMR001013 | H148: Man Wein | I148: MMR001013021 | L148: Nam Hka Mare (west of Man Wing) | M148: MMR001CMP136 | Q148: 73 | R148: 637 | S148: =IF(CampList[[#This Row],[HH]]>0,CampList[[#This Row],[Total]]/CampList[[#This Row],[HH]],"NA") -> 8.726027397 | T148: NGCA | U148: Camp | AA148: IRRC | AC148: 2014-01-24
A149: Open | B149: Kachin | C149: MMR001 | D149: Myitkyina | E149: MMR001D001 | F149: Injangyang | G149: MMR001003 | L149: Lawk Hkawng Ginwang | M149: MMR001CMP146 | S149: =IF(CampList[[#This Row],[HH]]>0,CampList[[#This Row],[Total]]/CampList[[#This Row],[HH]],"NA") -> NA | T149: GCA | U149: Camp
A150: Open | B150: Kachin | C150: MMR001 | D150: Bhamo | E150: MMR001D003 | F150: Shwegu | G150: MMR001011 | L150: Lawk Awng Mare D. (Sinbo Area) | M150: MMR001CMP147 | Q150: 375 | R150: 1691 | S150: =IF(CampList[[#This Row],[HH]]>0,CampList[[#This Row],[Total]]/CampList[[#This Row],[HH]],"NA") -> 4.509333333 | T150: NGCA | U150: Camp | AA150: IRRC
A151: Open | B151: Kachin | C151: MMR001 | D151: Mohnyin | E151: MMR001D002 | F151: Hpakant | G151: MMR001009 | H151: Nam Si In (Karmaing Sub-township) | I151: MMR001009012 | J151: Nam Si In | K151: 166822 | L151: Hlaing Naung Baptist | M151: MMR001CMP148 | N151: 96.70596 | O151: 25.51352 | P151: 0 | Q151: 23 | R151: 67 | S151: =IF(CampList[[#This Row],[HH]]>0,CampList[[#This Row],[Total]]/CampList[[#This Row],[HH]],"NA") -> 2.913043478 | T151: GCA | U151: Camp | V151: Rural | X151: 2012-10-01 | Y151: 1 | Z151: KBC | AA151: IP | AC151: 2014-01-15 | AD151: Update population according to KBC data
A152: Open | B152: Kachin | C152: MMR001 | D152: Myitkyina | E152: MMR001D001 | F152: Waingmaw | G152: MMR001002 | H152: Hpawt Dawt | I152: MMR001002032 | J152: Lai Zar | K152: 165816 | L152: Laiza Muklum Hpyen Yen Mungshawa ni | M152: MMR001CMP149 | Q152: 355 | R152: 4450 | S152: =IF(CampList[[#This Row],[HH]]>0,CampList[[#This Row],[Total]]/CampList[[#This Row],[HH]],"NA") -> 12.53521127 | T152: NGCA | U152: Host Families | AA152: IRRC
A153: Open | B153: Kachin | C153: MMR001 | D153: Mohnyin | E153: MMR001D002 | F153: Mohnyin | G153: MMR001007 | H153: Nant Mon | J153: Indawgyi | L153: Nawng Ing (Indawgyi) Baptist Church | M153: MMR001CMP152 | Q153: 21 | R153: 97 | S153: =IF(CampList[[#This Row],[HH]]>0,CampList[[#This Row],[Total]]/CampList[[#This Row],[HH]],"NA") -> 4.619047619 | T153: GCA | U153: Camp | V153: Rural | Y153: 1 | Z153: KBC | AA153: IP | AC153: 2014-01-15 | AD153: Update population according to KBC data
A154: Open | B154: Kachin | C154: MMR001 | D154: Myitkyina | E154: MMR001D001 | F154: Waingmaw | G154: MMR001002 | H154: Saga Pa (Sadung Sub-township) | I154: MMR001002040 | L154: Post 6 Camp | M154: MMR001CMP160 | N154: 97.990556 | O154: 25.265278 | P154: 2764 | Q154: 144 | R154: 862 | S154: =IF(CampList[[#This Row],[HH]]>0,CampList[[#This Row],[Total]]/CampList[[#This Row],[HH]],"NA") -> 5.986111111 | T154: NGCA | U154: Camp | V154: Forest/bush | X154: 2011-11-01 | Y154: 2 | Z154: KMSS | AA154: IP | AC154: 2014-01-15 | AD154: Update population according to KBC data
A155: Open | B155: Kachin | C155: MMR001 | D155: Myitkyina | E155: MMR001D001 | F155: Myitkyina | G155: MMR001001 | H155: Pa La Na Sa Khan Myar | I155: MMR001001003 | J155: Pi Tauk Myaing | K155: 165685 | L155: Pa Dauk Myaing(Pa La Na) | M155: MMR001CMP162 | N155: 97.4345 | O155: 25.49382 | Q155: 31 | R155: 163 | S155: =IF(CampList[[#This Row],[HH]]>0,CampList[[#This Row],[Total]]/CampList[[#This Row],[HH]],"NA") -> 5.258064516 | T155: GCA | U155: Camp | X155: 2012-12-01 | AA155: IP | AD155: Update from Shelter Data
A156: Open | B156: Kachin | C156: MMR001 | D156: Bhamo | E156: MMR001D003 | F156: Bhamo | G156: MMR001010 | L156: Host Families | M156: MMR001CMP163 | Q156: 335 | R156: 1475 | S156: =IF(CampList[[#This Row],[HH]]>0,CampList[[#This Row],[Total]]/CampList[[#This Row],[HH]],"NA") -> 4.402985075 | T156: GCA | U156: Host Families | AA156: IP | AC156: 2013-12-20 | AD156: Update IDP increased in Oct and Nov 2013 from Angela (UNHCR - Bhamo)
A157: Open | B157: Kachin | C157: MMR001 | D157: Mohnyin | E157: MMR001D002 | F157: Hpakant | G157: MMR001009 | H157: Hpakan Town | I157: MMR001009701 | J157: Maw Wam Ward | K157: MMR001009701501 | L157: Lisu Baptist Church, Maw Wan Ward | M157: MMR001CMP167 | N157: 96.3164 | O157: 25.61842 | P157: 0 | Q157: 8 | R157: 30 | S157: =IF(CampList[[#This Row],[HH]]>0,CampList[[#This Row],[Total]]/CampList[[#This Row],[HH]],"NA") -> 3.75 | T157: GCA | U157: Camp | V157: Rural | X157: 2013-01-01 | Y157: 1 | Z157: Shalom | AA157: IP | AC157: 2014-01-16 | AD157: Update IDP population from Shalom data
A158: Open | B158: Kachin | C158: MMR001 | D158: Mohnyin | E158: MMR001D002 | F158: Hpakant | G158: MMR001009 | H158: Lone Khin | I158: MMR001009001 | J158: Lone Khin | K158: 166773 | L158: 5 Ward RC Church(lon Khin) | M158: MMR001CMP168 | N158: 96.35307 | O158: 25.65582 | P158: 0 | Q158: 78 | R158: 334 | S158: =IF(CampList[[#This Row],[HH]]>0,CampList[[#This Row],[Total]]/CampList[[#This Row],[HH]],"NA") -> 4.282051282 | T158: GCA | U158: Camp | V158: Rural | X158: 2013-01-01 | AA158: RRD
A159: Open | B159: Kachin | C159: MMR001 | D159: Mohnyin | E159: MMR001D002 | F159: Hpakant | G159: MMR001009 | H159: Lone Khin | I159: MMR001009001 | J159: Hmaw Si Zar | K159: 166775 | L159: Baptist Church, Hmaw Si Sar(Lon Khin) | M159: MMR001CMP169 | N159: 96.34647 | O159: 25.64765 | P159: 0 | Q159: 41 | R159: 191 | S159: =IF(CampList[[#This Row],[HH]]>0,CampList[[#This Row],[Total]]/CampList[[#This Row],[HH]],"NA") -> 4.658536585 | T159: GCA | U159: Camp | V159: Rural | X159: 2013-01-01 | Y159: 2 | Z159: KBC | AA159: RRD
A160: Open | B160: Kachin | C160: MMR001 | D160: Mohnyin | E160: MMR001D002 | F160: Hpakant | G160: MMR001009 | H160: Lone Khin | I160: MMR001009001 | J160: Ma Sut Yang | K160: 216880 | L160: Baptist Church, Sai Ra village | M160: MMR001CMP172 | N160: 96.35307 | O160: 25.66847 | P160: 256 | Q160: 4 | R160: 13 | S160: =IF(CampList[[#This Row],[HH]]>0,CampList[[#This Row],[Total]]/CampList[[#This Row],[HH]],"NA") -> 3.25 | T160: GCA | U160: Camp | V160: Rural | X160: 2013-01-01 | AA160: RRD
A161: Open | B161: Kachin | C161: MMR001 | D161: Mohnyin | E161: MMR001D002 | F161: Hpakant | G161: MMR001009 | H161: Lone Khin | I161: MMR001009001 | J161: Nyein Chan Thar Yar | K161: 216876 | L161: Dhama Rakhita, Nyein Chan Tar Yar Ward(Lon Khin) | M161: MMR001CMP174 | N161: 96.35493 | O161: 25.64309 | P161: 0 | Q161: 67 | R161: 301 | S161: =IF(CampList[[#This Row],[HH]]>0,CampList[[#This Row],[Total]]/CampList[[#This Row],[HH]],"NA") -> 4.492537313 | T161: GCA | U161: Camp | V161: Rural | X161: 2013-01-01 | Y161: 1 | Z161: Shalom | AA161: IP | AC161: 2014-01-16 | AD161: Update IDP population from Shalom data
A162: Open | B162: Kachin | C162: MMR001 | D162: Mohnyin | E162: MMR001D002 | F162: Hpakant | G162: MMR001009 | H162: Lone Khin | I162: MMR001009001 | J162: Hmaw Si Zar | K162: 166775 | L162: AG Church, Hmaw Si Sa | M162: MMR001CMP176 | N162: 96.34557 | O162: 25.6353 | P162: 0 | Q162: 65 | R162: 306 | S162: =IF(CampList[[#This Row],[HH]]>0,CampList[[#This Row],[Total]]/CampList[[#This Row],[HH]],"NA") -> 4.707692308 | T162: GCA | U162: Camp | V162: Rural | X162: 2013-01-01 | Y162: 1 | Z162: Shalom | AA162: IP | AC162: 2014-01-17 | AD162: Update IDP population from Shalom data (Assistant CCCM Officer)
A163: Open | B163: Kachin | C163: MMR001 | D163: Mohnyin | E163: MMR001D002 | F163: Hpakant | G163: MMR001009 | H163: Lone Khin | I163: MMR001009001 | J163: Lone Khin | K163: 166773 | L163: Muring Baptist Church, Awng Ra, Wa Ra Zut VT | M163: MMR001CMP177 | N163: 96.35416 | O163: 25.65867 | P163: 0 | Q163: 6 | R163: 22 | S163: =IF(CampList[[#This Row],[HH]]>0,CampList[[#This Row],[Total]]/CampList[[#This Row],[HH]],"NA") -> 3.666666667 | T163: GCA | U163: Camp | V163: Rural | X163: 2013-01-01 | AA163: RRD
A164: Open | B164: Kachin | C164: MMR001 | D164: Mohnyin | E164: MMR001D002 | F164: Hpakant | G164: MMR001009 | H164: Lone Khin | I164: MMR001009001 | J164: Lone Khin | K164: 166773 | L164: 5 Ward Baptist Church(lon Khin) | M164: MMR001CMP179 | N164: 96.35527 | O164: 25.65613 | P164: 0 | Q164: 100 | R164: 401 | S164: =IF(CampList[[#This Row],[HH]]>0,CampList[[#This Row],[Total]]/CampList[[#This Row],[HH]],"NA") -> 4.01 | T164: GCA | U164: Camp | V164: Rural | X164: 2013-01-01 | Y164: 2 | Z164: KBC | AA164: IP | AC164: 2014-01-15 | AD164: Update population according to KBC data
A165: Open | B165: Kachin | C165: MMR001 | D165: Mohnyin | E165: MMR001D002 | F165: Hpakant | G165: MMR001009 | H165: Seik Mu | I165: MMR001009003 | J165: Seik Mu | K165: 166783 | L165: Ei Wan Gali Asso., Ward 1, Seik Mu | M165: MMR001CMP180 | Q165: 11 | R165: 30 | S165: =IF(CampList[[#This Row],[HH]]>0,CampList[[#This Row],[Total]]/CampList[[#This Row],[HH]],"NA") -> 2.727272727 | T165: GCA | U165: Camp | AA165: IP | AD165: Shelter Unit
A166: Open | B166: Kachin | C166: MMR001 | D166: Mohnyin | E166: MMR001D002 | F166: Hpakant | G166: MMR001009 | H166: Seik Mu | I166: MMR001009003 | J166: Maw Shan | K166: 166785 | L166: Lisu Baptist Church, Maw Shan Vil,. Seik Mu | M166: MMR001CMP181 | N166: 96.2692 | O166: 25.56651 | P166: 278 | Q166: 23 | R166: 92 | S166: =IF(CampList[[#This Row],[HH]]>0,CampList[[#This Row],[Total]]/CampList[[#This Row],[HH]],"NA") -> 4 | T166: GCA | U166: Camp | V166: Rural | X166: 2013-01-01 | Y166: 1 | Z166: Shalom | AA166: IP | AC166: 2014-01-17 | AD166: Update IDP population from Shalom data (Assistant CCCM Officer)
A167: Open | B167: Kachin | C167: MMR001 | D167: Mohnyin | E167: MMR001D002 | F167: Hpakant | G167: MMR001009 | H167: Seik Mu | I167: MMR001009003 | J167: Maw Shan | K167: 166785 | L167: Rawan Baptist Church, Maw Shan Vil., Seik Mu | M167: MMR001CMP182 | N167: 96.2792 | O167: 25.56551 | P167: 259 | Q167: 13 | R167: 50 | S167: =IF(CampList[[#This Row],[HH]]>0,CampList[[#This Row],[Total]]/CampList[[#This Row],[HH]],"NA") -> 3.846153846 | T167: GCA | U167: Camp | V167: Rural | X167: 2013-01-01 | Y167: 1 | Z167: Shalom | AA167: IP | AC167: 2014-01-17 | AD167: Update IDP population from Shalom data (Assistant CCCM Officer)
A168: Open | B168: Kachin | C168: MMR001 | D168: Mohnyin | E168: MMR001D002 | F168: Hpakant | G168: MMR001009 | H168: Seik Mu | I168: MMR001009003 | J168: Maw Shan | K168: 166785 | L168: Sai Nai Baptish Church, Maw Shan Vil., Seki Mu | M168: MMR001CMP183 | N168: 96.35303 | O168: 25.6684 | P168: 0 | Q168: 46 | R168: 196 | S168: =IF(CampList[[#This Row],[HH]]>0,CampList[[#This Row],[Total]]/CampList[[#This Row],[HH]],"NA") -> 4.260869565 | T168: GCA | U168: Camp | V168: Rural | X168: 2013-01-01 | Y168: 1 | Z168: KBC | AA168: IP | AC168: 2014-01-15 | AD168: Update population according to KBC data
A169: Open | B169: Kachin | C169: MMR001 | D169: Mohnyin | E169: MMR001D002 | F169: Hpakant | G169: MMR001009 | H169: Seik Mu | I169: MMR001009003 | J169: Sai Taung (Ywar Haung) | K169: 166788 | L169: Ward 2 Sai Taung Baptist Church, Seik Mu | M169: MMR001CMP184 | N169: 96.28668 | O169: 25.57756 | P169: 0 | Q169: 134 | R169: 503 | S169: =IF(CampList[[#This Row],[HH]]>0,CampList[[#This Row],[Total]]/CampList[[#This Row],[HH]],"NA") -> 3.753731343 | T169: GCA | U169: Camp | V169: Rural | X169: 2013-01-01 | Y169: 2 | Z169: KBC | AA169: IP | AC169: 2014-01-15 | AD169: Update population according to KBC data
A170: Open | B170: Kachin | C170: MMR001 | D170: Mohnyin | E170: MMR001D002 | F170: Hpakant | G170: MMR001009 | H170: Seik Mu | I170: MMR001009003 | J170: Seik Mu | K170: 166783 | L170: Ward 2 Cahotlic Church, Seik Mu | M170: MMR001CMP185 | N170: 96.28825 | O170: 25.57921 | P170: 0 | Q170: 17 | R170: 79 | S170: =IF(CampList[[#This Row],[HH]]>0,CampList[[#This Row],[Total]]/CampList[[#This Row],[HH]],"NA") -> 4.647058824 | T170: GCA | U170: Camp | V170: Rural | X170: 2013-01-01 | AA170: RRD
A171: Open | B171: Kachin | C171: MMR001 | D171: Mohnyin | E171: MMR001D002 | F171: Hpakant | G171: MMR001009 | H171: Nawng Mi | I171: MMR001009008 | J171: Nawng Myi | K171: 166817 | L171: Baptist Church, Naung Hmee VT | M171: MMR001CMP188 | N171: 96.673805 | O171: 25.728653 | Q171: 15 | R171: 65 | S171: =IF(CampList[[#This Row],[HH]]>0,CampList[[#This Row],[Total]]/CampList[[#This Row],[HH]],"NA") -> 4.333333333 | T171: GCA | U171: Camp | Y171: 1 | Z171: Shalom | AA171: IP | AC171: 2014-01-16 | AD171: Update IDP population from Shalom data
A172: Open | B172: Kachin | C172: MMR001 | D172: Mohnyin | E172: MMR001D002 | F172: Hpakant | G172: MMR001009 | H172: Hpakan Town | I172: MMR001009701 | J172: Maw Wam Ward | K172: MMR001009701501 | L172: AG Church, Maw Wan | M172: MMR001CMP190 | N172: 96.31735 | O172: 25.616509 | P172: 0 | Q172: 13 | R172: 77 | S172: =IF(CampList[[#This Row],[HH]]>0,CampList[[#This Row],[Total]]/CampList[[#This Row],[HH]],"NA") -> 5.923076923 | T172: GCA | U172: Camp | V172: Urban | X172: 2013-01-01 | Y172: 1 | Z172: Shalom | AA172: IP | AC172: 2014-01-16 | AD172: Update IDP population from Shalom data
A173: Open | B173: Kachin | C173: MMR001 | D173: Mohnyin | E173: MMR001D002 | F173: Hpakant | G173: MMR001009 | H173: Hpakan Town | I173: MMR001009701 | J173: Maw Wam Ward | K173: MMR001009701501 | L173: Hmaw Wan, Anglican | M173: MMR001CMP191 | N173: 96.316564 | O173: 25.615961 | P173: 281 | Q173: 11 | R173: 57 | S173: =IF(CampList[[#This Row],[HH]]>0,CampList[[#This Row],[Total]]/CampList[[#This Row],[HH]],"NA") -> 5.181818182 | T173: GCA | U173: Camp | V173: Rural | X173: 2012-08-01 | Y173: 1 | Z173: Shalom | AA173: IP | AC173: 2014-01-17 | AD173: Update IDP population from Shalom data (Assistant CCCM Officer)
A174: Open | B174: Kachin | C174: MMR001 | D174: Mohnyin | E174: MMR001D002 | F174: Hpakant | G174: MMR001009 | H174: Nam Ma Hpyit | I174: MMR001009002 | J174: Nam Ma Hpyit | K174: 166776 | L174: Nam Ma Phyit, COC | M174: MMR001CMP192 | N174: 96.33959 | O174: 25.617998 | Q174: 24 | R174: 82 | S174: =IF(CampList[[#This Row],[HH]]>0,CampList[[#This Row],[Total]]/CampList[[#This Row],[HH]],"NA") -> 3.416666667 | T174: GCA | U174: Camp | X174: 2013-01-01 | Y174: 1 | Z174: Shalom | AA174: IP | AC174: 2014-01-16 | AD174: Update IDP population from Shalom data
A175: Open | B175: Kachin | C175: MMR001 | D175: Bhamo | E175: MMR001D003 | F175: Bhamo | G175: MMR001010 | H175: Han Te | I175: MMR001010024 | J175: Hpan Hkar Kone | K175: 166854 | L175: Phan Khar Kone | M175: MMR001CMP193 | N175: 97.25265 | O175: 24.22235 | P175: 0 | Q175: 317 | R175: 1062 | S175: =IF(CampList[[#This Row],[HH]]>0,CampList[[#This Row],[Total]]/CampList[[#This Row],[HH]],"NA") -> 3.350157729 | T175: GCA | U175: Camp | V175: Rural | X175: 2013-01-01 | Y175: 1 | Z175: KBC | AA175: IP | AC175: 2014-01-20 | AD175: Shelter Unit
A176: Open | B176: Kachin | C176: MMR001 | D176: Bhamo | E176: MMR001D003 | F176: Bhamo | G176: MMR001010 | H176: Aung Thar | I176: MMR001010048 | J176: Aung Thar | K176: 166904 | L176: Aung Thar Church | M176: MMR001CMP194 | N176: 97.25265 | O176: 24.260467 | P176: 0 | Q176: 10 | R176: 44 | S176: =IF(CampList[[#This Row],[HH]]>0,CampList[[#This Row],[Total]]/CampList[[#This Row],[HH]],"NA") -> 4.4 | T176: GCA | U176: Camp | V176: Urban | X176: 2011-09-01 | Y176: 1 | Z176: KBC | AA176: IP | AC176: 2014-01-15 | AD176: Update population according to KBC data
A177: Open | B177: Kachin | C177: MMR001 | D177: Myitkyina | E177: MMR001D001 | F177: Chipwi | G177: MMR001005 | H177: Urban | J177: Rit Law | L177: Lhaovao Baptist Church (LBC) | M177: MMR001CMP195 | Q177: 137 | R177: 519 | S177: =IF(CampList[[#This Row],[HH]]>0,CampList[[#This Row],[Total]]/CampList[[#This Row],[HH]],"NA") -> 3.788321168 | T177: GCA | U177: Camp | X177: 2012-02-01 | Y177: 1 | Z177: Shalom | AA177: IP | AC177: 2014-01-17 | AD177: Update IDP population from Shalom data (Assistant CCCM Officer)
A178: Open | B178: Kachin | C178: MMR001 | D178: Bhamo | E178: MMR001D003 | F178: Mansi | G178: MMR001013 | L178: Host Families | M178: MMR001CMP196 | Q178: 279 | R178: 1031 | S178: =IF(CampList[[#This Row],[HH]]>0,CampList[[#This Row],[Total]]/CampList[[#This Row],[HH]],"NA") -> 3.695340502 | T178: GCA | U178: Host Families | AA178: IP | AC178: 2013-12-20 | AD178: Update IDP increased in Oct and Nov 2013 from Angela (UNHCR - Bhamo)
A179: Open | B179: Kachin | C179: MMR001 | D179: Bhamo | E179: MMR001D003 | F179: Momauk | G179: MMR001012 | L179: Host Families | M179: MMR001CMP197 | Q179: 421 | R179: 1414 | S179: =IF(CampList[[#This Row],[HH]]>0,CampList[[#This Row],[Total]]/CampList[[#This Row],[HH]],"NA") -> 3.358669834 | T179: GCA | U179: Host Families | AA179: RRD
A180: Open | B180: Kachin | C180: MMR001 | D180: Bhamo | E180: MMR001D003 | F180: Momauk | G180: MMR001012 | H180: Man Ping (Ping) (Dawthponeyan Sub-township) | I180: MMR001012052 | J180: Man Ping | K180: 167270 | L180: Man Ting | M180: MMR001CMP198 | S180: =IF(CampList[[#This Row],[HH]]>0,CampList[[#This Row],[Total]]/CampList[[#This Row],[HH]],"NA") -> NA | T180: GCA | U180: Host Families | AA180: RRD
A181: Open | B181: Kachin | C181: MMR001 | D181: Bhamo | E181: MMR001D003 | F181: Shwegu | G181: MMR001011 | L181: Host Families | M181: MMR001CMP199 | Q181: 9 | R181: 30 | S181: =IF(CampList[[#This Row],[HH]]>0,CampList[[#This Row],[Total]]/CampList[[#This Row],[HH]],"NA") -> 3.333333333 | T181: GCA | U181: Host Families | AA181: RRD
A182: Open | B182: Kachin | C182: MMR001 | D182: Bhamo | E182: MMR001D003 | F182: Momauk | G182: MMR001012 | L182: Khun Sint Village | M182: MMR001CMP200 | Q182: 4 | R182: 26 | S182: =IF(CampList[[#This Row],[HH]]>0,CampList[[#This Row],[Total]]/CampList[[#This Row],[HH]],"NA") -> 6.5 | T182: GCA | U182: Camp | AA182: RRD
A183: Open | B183: Kachin | C183: MMR001 | D183: Bhamo | E183: MMR001D003 | F183: Mansi | G183: MMR001013 | H183: Man Mawn | I183: MMR001013022 | L183: Lagatyan | M183: MMR001CMP202 | N183: 97.6137 | O183: 23.8799 | P183: 0 | Q183: 225 | R183: 945 | S183: =IF(CampList[[#This Row],[HH]]>0,CampList[[#This Row],[Total]]/CampList[[#This Row],[HH]],"NA") -> 4.2 | T183: NGCA | U183: Camp | V183: Rural | X183: 2013-04-01 | Y183: 2 | Z183: KBSS | AA183: IP | AC183: 2013-12-20 | AD183: Update IDP increased in Oct and Nov 2013 from Angela (UNHCR - Bhamo)
A184: Open | B184: Kachin | C184: MMR001 | D184: Puta-O | E184: MMR001D004 | F184: Sumprabum | G184: MMR001015 | H184: Sumprabum Town | I184: MMR001015701 | L184: Sumprabum | M184: MMR001CMP206 | Q184: 6 | R184: 38 | S184: =IF(CampList[[#This Row],[HH]]>0,CampList[[#This Row],[Total]]/CampList[[#This Row],[HH]],"NA") -> 6.333333333 | T184: GCA | U184: Camp | AA184: RRD
A185: Open | B185: Kachin | C185: MMR001 | D185: Myitkyina | E185: MMR001D001 | F185: Waingmaw | G185: MMR001002 | L185: IDP Boarding School, A Len Bum | M185: MMR001CMP208 | N185: 97.541794 | O185: 24.752471 | R185: 1605 | S185: =IF(CampList[[#This Row],[HH]]>0,CampList[[#This Row],[Total]]/CampList[[#This Row],[HH]],"NA") -> NA | T185: NGCA | U185: Camp | AA185: IRRC | AC185: 2014-01-24
A186: Open | B186: Kachin | C186: MMR001 | D186: Myitkyina | E186: MMR001D001 | F186: Chipwi | G186: MMR001005 | L186: Pan Wa | M186: MMR001CMP210 | Q186: 94 | R186: 420 | S186: =IF(CampList[[#This Row],[HH]]>0,CampList[[#This Row],[Total]]/CampList[[#This Row],[HH]],"NA") -> 4.468085106 | T186: GCA | U186: Camp | Y186: 1 | Z186: KMSS | AA186: IP | AD186: New
A187: Open | B187: Kachin | C187: MMR001 | D187: Bhamo | E187: MMR001D003 | F187: Bhamo | G187: MMR001010 | L187: Thu Kha Waddy | M187: MMR001CMP211 | Q187: 12 | R187: 35 | S187: =IF(CampList[[#This Row],[HH]]>0,CampList[[#This Row],[Total]]/CampList[[#This Row],[HH]],"NA") -> 2.916666667 | T187: GCA | U187: Camp | V187: Urban | AA187: IP | AC187: 2013-12-20 | AD187: Update IDP increased in Oct and Nov 2013 from Angela (UNHCR - Bhamo)
A188: Open | B188: Kachin | C188: MMR001 | D188: Bhamo | E188: MMR001D003 | F188: Mansi | G188: MMR001013 | H188: Mai Bat | I188: MMR001013018 | J188: Man Kawng | K188: 167391 | L188: Man Kawng Baptist Church | M188: MMR001CMP212 | N188: 97.71099 | O188: 24.18164 | Q188: 306 | R188: 1135 | S188: =IF(CampList[[#This Row],[HH]]>0,CampList[[#This Row],[Total]]/CampList[[#This Row],[HH]],"NA") -> 3.709150327 | T188: GCA | U188: Camp | AA188: IP | AC188: 2013-12-20 | AD188: Update IDP increased in Oct and Nov 2013 from Angela (UNHCR - Bhamo)
A189: Open | B189: Kachin | C189: MMR001 | D189: Bhamo | E189: MMR001D003 | F189: Mansi | G189: MMR001013 | H189: Mai Bat | I189: MMR001013018 | J189: Man Kawng | K189: 167391 | L189: Man Kawng Catholic Church | M189: MMR001CMP213 | N189: 97.71099 | O189: 24.18164 | Q189: 91 | R189: 294 | S189: =IF(CampList[[#This Row],[HH]]>0,CampList[[#This Row],[Total]]/CampList[[#This Row],[HH]],"NA") -> 3.230769231 | T189: GCA | U189: Camp | AA189: IP | AC189: 2013-12-20 | AD189: Update IDP increased in Oct and Nov 2013 from Angela (UNHCR - Bhamo)
A190: Open | B190: Kachin | C190: MMR001 | D190: Bhamo | E190: MMR001D003 | F190: Mansi | G190: MMR001013 | L190: Ban Hkung Yang (Boarding School) | M190: MMR001CMP214 | Q190: 15 | R190: 60 | S190: =IF(CampList[[#This Row],[HH]]>0,CampList[[#This Row],[Total]]/CampList[[#This Row],[HH]],"NA") -> 4 | T190: GCA | U190: Camp | AA190: IP | AD190: New Camp
A191: Open | B191: Kachin | C191: MMR001 | D191: Bhamo | E191: MMR001D003 | F191: Mansi | G191: MMR001013 | L191: Ban Hkung (School) | M191: MMR001CMP215 | Q191: 48 | R191: 200 | S191: =IF(CampList[[#This Row],[HH]]>0,CampList[[#This Row],[Total]]/CampList[[#This Row],[HH]],"NA") -> 4.166666667 | T191: GCA | U191: Camp | AA191: IP | AD191: New Camp
A192: Open | B192: Kachin | C192: MMR001 | D192: Bhamo | E192: MMR001D003 | F192: Mansi | G192: MMR001013 | L192: Ban Hkung Yang | M192: MMR001CMP216 | Q192: 18 | R192: 75 | S192: =IF(CampList[[#This Row],[HH]]>0,CampList[[#This Row],[Total]]/CampList[[#This Row],[HH]],"NA") -> 4.166666667 | T192: GCA | U192: Host Families | AA192: IP | AD192: New Camp
A193: Open | B193: Kachin | C193: MMR001 | D193: Bhamo | E193: MMR001D003 | F193: Mansi | G193: MMR001013 | L193: IDPs scattered in South Mansi | M193: MMR001CMP217 | Q193: 75 | R193: 500 | S193: =IF(CampList[[#This Row],[HH]]>0,CampList[[#This Row],[Total]]/CampList[[#This Row],[HH]],"NA") -> 6.666666667 | T193: GCA | U193: in the forest | AA193: IP | AD193: in the forest
A194: Open | B194: Kachin | C194: MMR001 | D194: Bhamo | E194: MMR001D003 | F194: Mansi | G194: MMR001010 | H194: Maing Khaung Town | L194: Maing Khaung | M194: MMR001CMP218 | Q194: 201 | R194: 611 | S194: =IF(CampList[[#This Row],[HH]]>0,CampList[[#This Row],[Total]]/CampList[[#This Row],[HH]],"NA") -> 3.039800995 | T194: NGCA | U194: Camp | Y194: 2 | Z194: KBSS | AA194: IP | AD194: New Camp (More detail data were requested to DRC)
A195: Open | B195: Kachin | C195: MMR001 | D195: Puta-O | E195: MMR001D004 | F195: Puta-O | G195: MMR001014 | L195: Naung Khaing | M195: MMR001CMP220 | Q195: 18 | R195: 58 | S195: =IF(CampList[[#This Row],[HH]]>0,CampList[[#This Row],[Total]]/CampList[[#This Row],[HH]],"NA") -> 3.222222222 | T195: GCA | U195: Camp | AA195: RRD | AD195: New Camp (Source OCHA - RRD)
A196: Open | B196: Kachin | C196: MMR001 | D196: Puta-O | E196: MMR001D004 | F196: Machanbaw | G196: MMR001016 | L196: Machanbaw - KBC | M196: MMR001CMP221 | Q196: 9 | R196: 27 | S196: =IF(CampList[[#This Row],[HH]]>0,CampList[[#This Row],[Total]]/CampList[[#This Row],[HH]],"NA") -> 3 | T196: GCA | U196: Camp | AA196: RRD | AD196: New Camp (Source OCHA - RRD)
A197: Open | B197: Kachin | C197: MMR001 | D197: Bhamo | E197: MMR001D003 | F197: Bhamo | G197: MMR001010 | L197: St. Patrick Church, Bhamo | M197: MMR001CMP222 | Q197: 29 | R197: 89 | S197: =IF(CampList[[#This Row],[HH]]>0,CampList[[#This Row],[Total]]/CampList[[#This Row],[HH]],"NA") -> 3.068965517 | T197: GCA | U197: Camp | V197: Urban | AA197: RRD | AD197: New camp from OCHA List
A198: Open | B198: Shan_North | C198: MMR015 | D198: Muse | E198: MMR015D002 | F198: Namhkan | G198: MMR015010 | H198: Nawng Hkam | I198: MMR015010010 | J198: Nawng Hkam | K198: 208353 | L198: Nam Hkam (KBC Jaw Wang) | M198: MMR015CMP001 | N198: 97.669558 | O198: 23.82852 | P198: 0 | Q198: 98 | R198: 390 | S198: =IF(CampList[[#This Row],[HH]]>0,CampList[[#This Row],[Total]]/CampList[[#This Row],[HH]],"NA") -> 3.979591837 | T198: NGCA | U198: Camp | V198: Urban | X198: 2011-12-01 | Y198: 2 | Z198: KBC | AA198: IP | AC198: 2014-01-15 | AD198: Update population according to KBC data
A199: Open | B199: Shan_North | C199: MMR015 | D199: Muse | E199: MMR015D002 | F199: Namhkan | G199: MMR015010 | H199: Nawng Hkam | I199: MMR015010010 | J199: Nawng Hkam | K199: 208353 | L199: Nam Hkam Malut Jak | M199: MMR015CMP002 | Q199: 73 | R199: 127 | S199: =IF(CampList[[#This Row],[HH]]>0,CampList[[#This Row],[Total]]/CampList[[#This Row],[HH]],"NA") -> 1.739726027 | T199: NGCA | U199: Camp | AA199: IRRC | AC199: 2014-01-24
A200: Open | B200: Shan_North | C200: MMR015 | D200: Muse | E200: MMR015D002 | F200: Namhkan | G200: MMR015010 | H200: Nawng Hkam | I200: MMR015010010 | J200: Nawng Hkam | K200: 208353 | L200: Nam Hkam Catholic Church ( St. Thomas I) | M200: MMR015CMP003 | N200: 97.6852 | O200: 23.8331 | P200: 0 | Q200: 36 | R200: 136 | S200: =IF(CampList[[#This Row],[HH]]>0,CampList[[#This Row],[Total]]/CampList[[#This Row],[HH]],"NA") -> 3.777777778 | T200: NGCA | U200: Camp | V200: Urban | X200: 2011-12-01 | AA200: IRRC | AC200: 2014-01-24
A201: Open | B201: Shan_North | C201: MMR015 | D201: Muse | E201: MMR015D002 | F201: Namhkan | G201: MMR015010 | H201: Nawng Hkam | I201: MMR015010010 | J201: Nawng Hkam | K201: 208353 | L201: Nam Hkam - Nay Win Ni (Palawng) | M201: MMR015CMP004 | N201: 97.681959 | O201: 23.821126 | P201: 0 | Q201: 92 | R201: 302 | S201: =IF(CampList[[#This Row],[HH]]>0,CampList[[#This Row],[Total]]/CampList[[#This Row],[HH]],"NA") -> 3.282608696 | T201: NGCA | U201: Camp | V201: Urban | X201: 2013-12-01 | Y201: 2 | Z201: KBC | AA201: IP | AC201: 2014-01-15 | AD201: Update population according to KBC data
... 21 more rows

Sheet Camp List Printable
A1: Kachin & Northern Shan States - IDPs Location List
A2: =Report_Date -> 2014-01-01
A3: Status | B3: Open
A5: State | B5: Township | C5: Camp | D5: CP_Pcode | E5: Type of Accomodation | F5: HoH | G5: Individual
A6: Kachin | B6: Bhamo | C6: AD-2000 Tharthana Compound | D6: MMR001CMP050 | E6: Camp | F6: 234 | G6: 1089
C7: Aung Thar Church | D7: MMR001CMP194 | E7: Camp | F7: 10 | G7: 44
C8: Host Families | D8: MMR001CMP163 | E8: Host Families | F8: 335 | G8: 1475
C9: Htoi San Church | D9: MMR001CMP052 | E9: Camp | F9: 43 | G9: 194
C10: Lisu Boarding-House | D10: MMR001CMP049 | E10: Camp | F10: 68 | G10: 363
C11: Mu-yin Baptist Church | D11: MMR001CMP051 | E11: Camp | F11: 8 | G11: 36
C12: Nant Hlaing Church | D12: MMR001CMP054 | E12: Camp | F12: 22 | G12: 108
C13: Phan Khar Kone | D13: MMR001CMP193 | E13: Camp | F13: 317 | G13: 1062
C14: Robert Church | D14: MMR001CMP047 | E14: Camp | F14: 558 | G14: 2951
C15: St. Patrick Church, Bhamo | D15: MMR001CMP222 | E15: Camp | F15: 29 | G15: 89
C16: Ta Gun Taing Monastery (Shwe Kyi Na) | D16: MMR001CMP055 | E16: Camp | F16: 61 | G16: 282
C17: Thu Kha Waddy | D17: MMR001CMP211 | E17: Camp | F17: 12 | G17: 35
C18: Yoe Kyi Monastery | D18: MMR001CMP053 | E18: Camp | F18: 29 | G18: 103
B19: Chipwi | C19: Chipwi KBC camp | D19: MMR001CMP042 | E19: Camp | F19: 107 | G19: 509
C20: Gant Gwin | D20: MMR001CMP046 | E20: Camp | F20: 255 | G20: 1273
C21: Hpare Hkyer - BP6 | D21: MMR001CMP043 | E21: Camp | F21: 144 | G21: 862
C22: Lan Jaw | D22: MMR001CMP045 | E22: Host Families
C23: Lhaovao Baptist Church (LBC) | D23: MMR001CMP195 | E23: Camp | F23: 137 | G23: 519
C24: Pan Wa | D24: MMR001CMP210 | E24: Camp | F24: 94 | G24: 420
B25: Hpakant | C25: 5 Ward Baptist Church(lon Khin) | D25: MMR001CMP179 | E25: Camp | F25: 100 | G25: 401
C26: 5 Ward RC Church(lon Khin) | D26: MMR001CMP168 | E26: Camp | F26: 78 | G26: 334
C27: AG Church, Hmaw Si Sa | D27: MMR001CMP176 | E27: Camp | F27: 65 | G27: 306
C28: AG Church, Maw Wan | D28: MMR001CMP190 | E28: Camp | F28: 13 | G28: 77
C29: Baptist Church, Hmaw Si Sar(Lon Khin) | D29: MMR001CMP169 | E29: Camp | F29: 41 | G29: 191
C30: Baptist Church, Naung Hmee VT | D30: MMR001CMP188 | E30: Camp | F30: 15 | G30: 65
C31: Baptist Church, Sai Ra village | D31: MMR001CMP172 | E31: Camp | F31: 4 | G31: 13
C32: Chin Church, Seik Mu | D32: MMR001CMP109 | E32: Camp | F32: 4 | G32: 20
C33: Dhama Rakhita, Nyein Chan Tar Yar Ward(Lon Khin) | D33: MMR001CMP174 | E33: Camp | F33: 67 | G33: 301
C34: Ei Wan Gali Asso., Ward 1, Seik Mu | D34: MMR001CMP180 | E34: Camp | F34: 11 | G34: 30
C35: Hlaing Naung Baptist | D35: MMR001CMP148 | E35: Camp | F35: 23 | G35: 67
C36: Hmaw Wan, Anglican | D36: MMR001CMP191 | E36: Camp | F36: 11 | G36: 57
C37: Lisu Baptist Church, Maw Shan Vil,. Seik Mu | D37: MMR001CMP181 | E37: Camp | F37: 23 | G37: 92
C38: Lisu Baptist Church, Maw Wan Ward | D38: MMR001CMP167 | E38: Camp | F38: 8 | G38: 30
C39: Maw Wan, Mu-yin Baptist Church | D39: MMR001CMP091 | E39: Camp | F39: 4 | G39: 22
C40: Muring Baptist Church, Awng Ra, Wa Ra Zut VT | D40: MMR001CMP177 | E40: Camp | F40: 6 | G40: 22
C41: Nam Ma Phyit, COC | D41: MMR001CMP192 | E41: Camp | F41: 24 | G41: 82
C42: Nant Ma Hpit Catholic Church | D42: MMR001CMP103 | E42: Camp | F42: 38 | G42: 215
C43: Nga Pyaw Taw Baptist Nursery School | D43: MMR001CMP082 | E43: Camp | F43: 101 | G43: 544
C44: Rawan Baptist Church, Maw Shan Vil., Seik Mu | D44: MMR001CMP182 | E44: Camp | F44: 13 | G44: 50
C45: Sai Nai Baptish Church, Maw Shan Vil., Seki Mu | D45: MMR001CMP183 | E45: Camp | F45: 46 | G45: 196
C46: Ward 2 Cahotlic Church, Seik Mu | D46: MMR001CMP185 | E46: Camp | F46: 17 | G46: 79
C47: Ward 2 Sai Taung Baptist Church, Seik Mu | D47: MMR001CMP184 | E47: Camp | F47: 134 | G47: 503
C48: Yumar Baptist Church | D48: MMR001CMP105 | E48: Camp | F48: 40 | G48: 166
B49: Injangyang | C49: Lawk Hkawng Ginwang | D49: MMR001CMP146 | E49: Camp
B50: Khaunglanhpu | C50: La Ja | D50: MMR001CMP074 | E50: Camp | F50: 11 | G50: 17
B51: Machanbaw | C51: Machanbaw - KBC | D51: MMR001CMP221 | E51: Camp | F51: 9 | G51: 27
B52: Mansi | C52: Ban Hkung (School) | D52: MMR001CMP215 | E52: Camp | F52: 48 | G52: 200
C53: Ban Hkung Yang | D53: MMR001CMP216 | E53: Host Families | F53: 18 | G53: 75
C54: Ban Hkung Yang (Boarding School) | D54: MMR001CMP214 | E54: Camp | F54: 15 | G54: 60
C55: Bum Tsit Pa | D55: MMR001CMP129 | E55: Camp | F55: 591 | G55: 2619
C56: Host Families | D56: MMR001CMP196 | E56: Host Families | F56: 279 | G56: 1031
C57: IDPs scattered in South Mansi | D57: MMR001CMP217 | E57: in the forest | F57: 75 | G57: 500
C58: Lagatyan | D58: MMR001CMP202 | E58: Camp | F58: 225 | G58: 945
C59: Lana Zup Ja | D59: MMR001CMP128 | E59: Camp | F59: 551 | G59: 2916
C60: Lung Kawk ( Hka Hkye Zup) | D60: MMR001CMP135 | E60: Camp | F60: 54 | G60: 187
C61: Maing Khaung | D61: MMR001CMP218 | E61: Camp | F61: 201 | G61: 611
C62: Man Kawng Baptist Church | D62: MMR001CMP212 | E62: Camp | F62: 306 | G62: 1135
C63: Man Kawng Catholic Church | D63: MMR001CMP213 | E63: Camp | F63: 91 | G63: 294
C64: Man Wing Baptist Church | D64: MMR001CMP133 | E64: Camp | F64: 102 | G64: 531
C65: Man Wing Catholic Church | D65: MMR001CMP132 | E65: Camp | F65: 403 | G65: 1690
C66: Man Wing Host Families | D66: MMR001CMP134 | E66: Host Families | F66: 253 | G66: 1114
C67: Mansi Baptist Church | D67: MMR001CMP066 | E67: Camp | F67: 93 | G67: 408
C68: Nam Hka Mare (west of Man Wing) | D68: MMR001CMP136 | E68: Camp | F68: 73 | G68: 637
B69: Mogaung | C69: Kyun Taw Baptist Church | D69: MMR001CMP078 | E69: Camp | F69: 13 | G69: 50
C70: Mang Hawng Baptist Church | D70: MMR001CMP077 | E70: Camp | F70: 14 | G70: 61
C71: Nat Gyi Kone Baptist Church | D71: MMR001CMP079 | E71: Camp | F71: 12 | G71: 37
B72: Mohnyin | C72: Nant Mun | D72: MMR001CMP081 | E72: Camp | F72: 21 | G72: 97
C73: Nawng Ing (Indawgyi) Baptist Church | D73: MMR001CMP152 | E73: Camp | F73: 21 | G73: 97
C74: St. Patrick Catholic Church | D74: MMR001CMP080 | E74: Camp | F74: 12 | G74: 46
B75: Momauk | C75: Dum Bung | D75: MMR001CMP123 | E75: Camp | F75: 119 | G75: 614
C76: Host Families | D76: MMR001CMP197 | E76: Host Families | F76: 421 | G76: 1414
C77: Hpun Lum Yang | D77: MMR001CMP122 | E77: Camp | F77: 437 | G77: 1567
C78: Je Yang Hka | D78: MMR001CMP121 | E78: Camp | F78: 1688 | G78: 8390
C79: Khun Sint Village | D79: MMR001CMP200 | E79: Camp | F79: 4 | G79: 26
C80: Loi Je Baptist Church | D80: MMR001CMP071 | E80: Camp | F80: 26 | G80: 149
C81: Loi Je Catholic Church | D81: MMR001CMP069 | E81: Camp | F81: 46 | G81: 396
C82: Loi Je Lisu Camp | D82: MMR001CMP070 | E82: Camp | F82: 142 | G82: 716
C83: Mai Khat | D83: MMR001CMP064 | E83: Host Families | F83: 2 | G83: 9
C84: Man Bung Catholic compound | D84: MMR001CMP062 | E84: Camp | F84: 117 | G84: 448
C85: Man Nawng | D85: MMR001CMP063 | E85: Host Families | F85: 28 | G85: 136
C86: Man Ting | D86: MMR001CMP198 | E86: Host Families
C87: Mandalay Monestry | D87: MMR001CMP058 | E87: Camp | F87: 4 | G87: 16
C88: Momauk Baptist Church | D88: MMR001CMP056 | E88: Camp | F88: 399 | G88: 1582
C89: Momauk Catholic Church (St. Patrick) | D89: MMR001CMP057 | E89: Camp | F89: 284 | G89: 1062
C90: Myo Thit | D90: MMR001CMP061 | E90: Host Families | F90: 13 | G90: 53
C91: Nhkawng Pa | D91: MMR001CMP131 | E91: Camp | F91: 387 | G91: 1624
C92: Ni Thaw Ka Monestry | D92: MMR001CMP059 | E92: Camp | F92: 23 | G92: 85
C93: Nyaung Na Pin | D93: MMR001CMP072 | E93: Camp | F93: 47 | G93: 266
C94: Pa Kahtawng | D94: MMR001CMP126 | E94: Camp | F94: 516 | G94: 3214
C95: Phar Kay/Nant Waing | D95: MMR001CMP065 | E95: Host Families | F95: 39 | G95: 176
C96: Seng Ja | D96: MMR001CMP073 | E96: Camp | F96: 35 | G96: 204
C97: Tarli | D97: MMR001CMP060 | E97: Host Families | F97: 10 | G97: 38
B98: Myitkyina | C98: Du Kahtawng Qtr. 14 | D98: MMR001CMP012 | E98: Camp | F98: 6 | G98: 28
C99: Du Kahtawng Qtr. 4 | D99: MMR001CMP010 | E99: Camp | F99: 6 | G99: 39
C100: Du Kahtawng Qtr. 5 | D100: MMR001CMP011 | E100: Camp | F100: 8 | G100: 30
C101: Jan Mai Kawng Baptist Church | D101: MMR001CMP018 | E101: Camp | F101: 203 | G101: 974
C102: Jan Mai Kawng Catholic Church | D102: MMR001CMP019 | E102: Camp | F102: 113 | G102: 524
C103: Kyun Pin Thar Baptist Church | D103: MMR001CMP013 | E103: Camp | F103: 45 | G103: 187
C104: Le Kone Bethlehem Church | D104: MMR001CMP015 | E104: Camp | F104: 87 | G104: 467
C105: Le Kone Ziun Baptist Church | D105: MMR001CMP014 | E105: Camp | F105: 146 | G105: 751
C106: Maliyang Baptist Church | D106: MMR001CMP016 | E106: Camp | F106: 72 | G106: 316
C107: Man Hkring Baptist Church | D107: MMR001CMP008 | E107: Camp | F107: 95 | G107: 411
C108: Maw Hpawng Hka Nan Baptist Church | D108: MMR001CMP020 | E108: Camp | F108: 26 | G108: 109
C109: Maw Hpawng Lhaovo Baptist Church | D109: MMR001CMP021 | E109: Camp | F109: 21 | G109: 101
C110: Myay Myint Baptist Church | D110: MMR001CMP017 | E110: Camp | F110: 12 | G110: 54
C111: Nan Kway St. John Catholic Church | D111: MMR001CMP024 | E111: Camp | F111: 72 | G111: 359
C112: Njang Dung Baptist Church | D112: MMR001CMP002 | E112: Camp | F112: 57 | G112: 233
C113: Pa Dauk Myaing(Pa La Na) | D113: MMR001CMP162 | E113: Camp | F113: 31 | G113: 163
C114: Shatapru Sut Ngai Tawng | D114: MMR001CMP006 | E114: Camp | F114: 106 | G114: 390
C115: Shatapru Thida Aye Baptist Church | D115: MMR001CMP007 | E115: Camp | F115: 15 | G115: 74
C116: Shwe Zet Baptist Church | D116: MMR001CMP009 | E116: Camp | F116: 84 | G116: 401
C117: Tat Kone Baptist Church | D117: MMR001CMP001 | E117: Camp | F117: 56 | G117: 262
C118: Tat Kone COC Baptist / Tat Kone Htoi San | D118: MMR001CMP023 | E118: Camp | F118: 69 | G118: 331
C119: Tat Kone Emanuel Church | D119: MMR001CMP004 | E119: Camp | F119: 14 | G119: 62
C120: Tat Kone Galile Baptist Church | D120: MMR001CMP003 | E120: Camp | F120: 30 | G120: 134
C121: Tat Kone San Pya Baptist Church | D121: MMR001CMP005 | E121: Camp | F121: 43 | G121: 198
C122: Wun Tho Buddhist Monastery | D122: MMR001CMP022 | E122: Camp | F122: 6 | G122: 33
B123: Puta-O | C123: Naung Khaing | D123: MMR001CMP220 | E123: Camp | F123: 18 | G123: 58
C124: Tote Tan Ward | D124: MMR001CMP075 | E124: Camp | F124: 18 | G124: 98
B125: Shwegu | C125: Host Families | D125: MMR001CMP199 | E125: Host Families | F125: 9 | G125: 30
C126: Lawk Awng Mare D. (Sinbo Area) | D126: MMR001CMP147 | E126: Camp | F126: 375 | G126: 1691
C127: Shwe Gu Baptist Church | D127: MMR001CMP067 | E127: Camp | F127: 79 | G127: 261
C128: Shwe Gu Catholic Church | D128: MMR001CMP068 | E128: Camp | F128: 47 | G128: 176
B129: Sumprabum | C129: Sumprabum | D129: MMR001CMP206 | E129: Camp | F129: 6 | G129: 38
B130: Waingmaw | C130: Border Post 8 | D130: MMR001CMP113 | E130: Camp | F130: 171 | G130: 725
C131: Hkat Cho | D131: MMR001CMP028 | E131: Camp | F131: 134 | G131: 587
C132: Hkau Shau (BP 12) | D132: MMR001CMP115 | E132: Camp | F132: 176 | G132: 1207
C133: IDP Boarding School, A Len Bum | D133: MMR001CMP208 | E133: Camp | G133: 1605
C134: Laiza Market 3 / Laiza Gat | D134: MMR001CMP117 | E134: Camp | F134: 491 | G134: 2090
C135: Laiza Muklum Hpyen Yen Mungshawa ni | D135: MMR001CMP149 | E135: Host Families | F135: 355 | G135: 4450
C136: Mading Baptist Church | D136: MMR001CMP027 | E136: Camp | F136: 23 | G136: 120
C137: Maga Yang | D137: MMR001CMP119 | E137: Camp | F137: 623 | G137: 2725
C138: Maina AG Church | D138: MMR001CMP031 | E138: Camp | F138: 141 | G138: 686
C139: Maina Catholic Church (St. Joseph) | D139: MMR001CMP029 | E139: Camp | F139: 232 | G139: 1146
C140: Maina KBC (Bawng Ring) | D140: MMR001CMP040 | E140: Camp | F140: 420 | G140: 1845
C141: Maina Lawang Baptist Church | D141: MMR001CMP039 | E141: Camp | F141: 49 | G141: 197
C142: Nawng Hee Village | D142: MMR001CMP033 | E142: Host Families | F142: 18 | G142: 71
C143: Pajau / Jan Mai | D143: MMR001CMP120 | E143: Camp | F143: 186 | G143: 749
C144: Post 6 Camp | D144: MMR001CMP160 | E144: Camp | F144: 144 | G144: 862
C145: Qtr. 2 Lhaovo Baptist Church | D145: MMR001CMP032 | E145: Camp | F145: 120 | G145: 332
C146: Qtr. 2 Myoma Baptist Church | D146: MMR001CMP025 | E146: Camp | F146: 83 | G146: 373
C147: Qtr. 3 Mu-yin Baptist Church | D147: MMR001CMP030 | E147: Camp | F147: 30 | G147: 152
C148: Qtr. 4 Monestry (Thargaya Thayett Taw) | D148: MMR001CMP026 | E148: Camp | F148: 101 | G148: 528
C149: Shing Jai | D149: MMR001CMP041 | E149: Camp | F149: 188 | G149: 977
C150: Thargaya Lisu Baptist Church | D150: MMR001CMP037 | E150: Camp | F150: 74 | G150: 350
C151: Waingmaw AG Church | D151: MMR001CMP038 | E151: Camp | F151: 81 | G151: 406
C152: Waingmaw Baptist Zonal Office | D152: MMR001CMP036 | E152: Camp | F152: 0 | G152: 150
C153: Woi Chyai | D153: MMR001CMP116 | E153: Camp | F153: 789 | G153: 4211
C154: Zai Awng / Mung Ga Zup | D154: MMR001CMP111 | E154: Camp | F154: 620 | G154: 2342
A155: Kachin Total | F155: 18851 | G155: 90716
A156: Shan_North | B156: Hseni | C156: Narte | D156: MMR015CMP207 | E156: Camp | F156: 67 | G156: 392
B157: Kutkai | C157: Kone Khem Camp | D157: MMR015CMP015 | E157: Camp | F157: 86 | G157: 453
C158: Kutkai downtown (KBC Church) | D158: MMR015CMP016 | E158: Camp | F158: 86 | G158: 382
C159: Kutkai downtown (RC Church) | D159: MMR015CMP017 | E159: Camp | F159: 41 | G159: 172
C160: Mine Yu Lay village | D160: MMR015CMP018 | E160: Camp | F160: 86 | G160: 524
C161: Mungji Pa Dabang (Baptist Church) | D161: MMR015CMP006 | E161: Camp | F161: 47 | G161: 251
C162: Mungji Pa Dabang (RC Church) | D162: MMR015CMP019 | E162: Camp | F162: 25 | G162: 136
C163: Nam Hpak Ka Mare | D163: MMR015CMP007 | E163: Camp | F163: 79 | G163: 277
C164: Zup Aung Camp | D164: MMR015CMP020 | E164: Camp | F164: 81 | G164: 465
B165: Manton | C165: Howa | D165: MMR015CMP010 | E165: Camp
C166: Mandung - Jinghpaw | D166: MMR015CMP009 | E166: Camp | F166: 43 | G166: 183
C167: Mandung - RC | D167: MMR015CMP209 | E167: Camp | F167: 26 | G167: 147
C168: Nam Hkyet | D168: MMR015CMP011 | E168: Camp
B169: Muse | C169: Hpai Kawng Mare | D169: MMR015CMP022 | E169: Camp | F169: 32 | G169: 187
C170: Munekoe Pa (Giwang) - Hka San (Mung Go Pa ) | D170: MMR015CMP012 | E170: Camp | F170: 27 | G170: 99
C171: Mung Baw | D171: MMR015CMP005 | E171: Camp | F171: 123 | G171: 503
B172: Namhkan | C172: Mung Ding Pa | D172: MMR015CMP023 | E172: Camp
C173: Nam Hkam - Nay Win Ni (Palawng) | D173: MMR015CMP004 | E173: Camp | F173: 92 | G173: 302
C174: Nam Hkam (KBC Jaw Wang) | D174: MMR015CMP001 | E174: Camp | F174: 98 | G174: 390
C175: Nam Hkam Catholic Church ( St. Thomas I) | D175: MMR015CMP003 | E175: Camp | F175: 36 | G175: 136
C176: Nam Hkam Catholic Church ( St. Thomas II) | D176: MMR015CMP024 | E176: Camp | F176: 46 | G176: 145
C177: Nam Hkam Malut Jak | D177: MMR015CMP002 | E177: Camp | F177: 73 | G177: 127
C178: Nam Hkawng | D178: MMR015CMP139 | E178: Camp | F178: 40 | G178: 65
B179: Namtu | C179: Nam Tu Baptist | D179: MMR015CMP014 | E179: Camp | F179: 20 | G179: 66
C180: Nam Tu RC | D180: MMR015CMP210 | E180: Camp | F180: 118 | G180: 520
A181: Shan_North Total | F181: 1372 | G181: 5922
A182: Grand Total | F182: 20223 | G182: 96638

Sheet CampAnalysis
A2: CAMPS SUMMARY
A3: =Report_Date -> 2014-01-01
A5: Kachin & Northern Shan States # of IDPs /Township
A7: State | B7: (All) | C7: (Select State)
A9: Row Labels | B9: Households | C9: Population | P9: State | Q9: (All) | R9: (Select State)
A10: Open | B10: 20223 | C10: 96638
A11: Bhamo | B11: 1726 | C11: 7831 | P11: Row Labels | Q11: Population
A12: Chipwi | B12: 737 | C12: 3583 | P12: Bhamo | Q12: 7831
A13: Hpakant | B13: 886 | C13: 3863 | P13: Chipwi | Q13: 3583
A14: Hseni | B14: 67 | C14: 392 | P14: Hpakant | Q14: 3863
A15: Injangyang | P15: Hseni | Q15: 392
A16: Khaunglanhpu | B16: 11 | C16: 17 | P16: Injangyang
A17: Kutkai | B17: 531 | C17: 2660 | P17: Khaunglanhpu | Q17: 17
A18: Machanbaw | B18: 9 | C18: 27 | P18: Kutkai | Q18: 2660
A19: Mansi | B19: 3378 | C19: 14953 | P19: Machanbaw | Q19: 27
A20: Manton | B20: 69 | C20: 330 | P20: Mansi | Q20: 14953
A21: Mogaung | B21: 39 | C21: 148 | P21: Manton | Q21: 330
A22: Mohnyin | B22: 54 | C22: 240 | P22: Mogaung | Q22: 148
A23: Momauk | B23: 4787 | C23: 22185 | P23: Mohnyin | Q23: 240
A24: Muse | B24: 182 | C24: 789 | P24: Momauk | Q24: 22185
A25: Myitkyina | B25: 1423 | C25: 6631 | P25: Muse | Q25: 789
A26: Namhkan | B26: 385 | C26: 1165 | P26: Myitkyina | Q26: 6631
A27: Namtu | B27: 138 | C27: 586 | P27: Namhkan | Q27: 1165
A28: Puta-O | B28: 36 | C28: 156 | P28: Namtu | Q28: 586
A29: Shwegu | B29: 510 | C29: 2158 | P29: Puta-O | Q29: 156
A30: Sumprabum | B30: 6 | C30: 38 | P30: Shwegu | Q30: 2158
A31: Waingmaw | B31: 5249 | C31: 28886 | P31: Sumprabum | Q31: 38
A32: Closed | B32: 0 | C32: 0 | P32: Waingmaw | Q32: 28886
A33: Bhamo | B33: 0 | C33: 0 | P33: Grand Total | Q33: 96638
A34: Chipwi
A35: Hpakant | B35: 0 | C35: 0
A36: Kutkai
A37: Mansi
A38: Waingmaw
A39: Grand Total | B39: 20223 | C39: 96638
A40: State | B40: (All) | C40: (Select State)
A42: Sum of Total | B42: Column Labels
A43: Row Labels | B43: GCA | C43: NGCA | D43: Grand Total
A44: Open | B44: 46152 | C44: 50486 | D44: 96638
A45: Closed | B45: 0 | D45: 0
A46: Grand Total | B46: 46152 | C46: 50486 | D46: 96638
A48: Status | B48: (All)
A50: Sum of Total | B50: Column Labels
A51: Row Labels | B51: GCA | C51: NGCA | D51: Grand Total
A52: Camp | B52: 40030 | C52: 46036 | D52: 86066
A53: Host Families | B53: 5622 | C53: 4450 | D53: 10072
A54: in the forest | B54: 500 | D54: 500
A55: Grand Total | B55: 46152 | C55: 50486 | D55: 96638
A58: Status | B58: (All)
A60: Sum of Total | B60: Column Labels
A61: Row Labels | B61: GCA | C61: NGCA | D61: Grand Total
A62: Camp | B62: 40030 | C62: 46036 | D62: 86066
A63: Host Families | B63: 5622 | C63: 4450 | D63: 10072
A64: in the forest | B64: 500 | D64: 500
A65: Grand Total | B65: 46152 | C65: 50486 | D65: 96638

Sheet Kachin_CCCM_D
A2: Kachin & Northern Shan CCCM Dashboard
A3: =Report_Date -> 2014-01-01
AI4: Township | AJ4: 1-1k | AK4: 1k-5k | AL4: 5k-10k | AM4: Over 10k
AI5: Bhamo | AJ5: =SUMIFS(Camplist_Popl,Camplist_Township,AI5,Camplist_Popl,">0",Camplist_Popl,"<=1000") -> 1254 | AK5: =SUMIFS(Camplist_Popl,Camplist_Township,AI5,Camplist_Popl,">1000",Camplist_Popl,"<=5000") -> 6577 | AL5: =SUMIFS(Camplist_Popl,Camplist_Township,AI5,Camplist_Popl,">5000",Camplist_Popl,"<=10000") -> 0 | AM5: =SUMIFS(Camplist_Popl,Camplist_Township,AI5,Camplist_Popl,">10000") -> 0
AI6: Chipwi | AJ6: 2310 | AK6: 1273 | AL6: 0 | AM6: 0
AI7: Hpakant | AJ7: 3863 | AK7: 0 | AL7: 0 | AM7: 0
AI8: Hseni | AJ8: =SUMIFS(Camplist_Popl,Camplist_Township,AI8,Camplist_Popl,">0",Camplist_Popl,"<=1000") -> 392 | AK8: 0 | AL8: 0 | AM8: 0
AI9: Injangyang | AJ9: 0 | AK9: 0 | AL9: 0 | AM9: 0
A10: Township | B10: # of HH | C10: # of IDPs | D10: # of Camp | AI10: Khaunglanhpu | AJ10: 17 | AK10: 0 | AL10: 0 | AM10: 0
A11: Bhamo | B11: =SUMIFS(Camplist_HH,Camplist_Township,Kachin_CCCM_D!$A11,CampList_Status,"Open") -> 1726 | C11: =SUMIFS(Camplist_Popl,Camplist_Township,Kachin_CCCM_D!$A11,CampList_Status,"Open") -> 7831 | D11: =COUNTIFS(Camplist_Township,Kachin_CCCM_D!A11,CampList_Status,"open") -> 13 | AI11: Kutkai | AJ11: 2660 | AK11: 0 | AL11: 0 | AM11: 0
A12: Chipwi | B12: =SUMIFS(Camplist_HH,Camplist_Township,Kachin_CCCM_D!$A12,CampList_Status,"Open") -> 737 | C12: =SUMIFS(Camplist_Popl,Camplist_Township,Kachin_CCCM_D!$A12,CampList_Status,"Open") -> 3583 | D12: =COUNTIFS(Camplist_Township,Kachin_CCCM_D!A12,CampList_Status,"open") -> 6 | AI12: Machanbaw | AJ12: =SUMIFS(Camplist_Popl,Camplist_Township,AI12,Camplist_Popl,">0",Camplist_Popl,"<=1000") -> 27 | AK12: =SUMIFS(Camplist_Popl,Camplist_Township,AI12,Camplist_Popl,">1000",Camplist_Popl,"<=5000") -> 0 | AL12: =SUMIFS(Camplist_Popl,Camplist_Township,AI12,Camplist_Popl,">5000",Camplist_Popl,"<=10000") -> 0 | AM12: =SUMIFS(Camplist_Popl,Camplist_Township,AI12,Camplist_Popl,">10000") -> 0
A13: Hpakant | B13: =SUMIFS(Camplist_HH,Camplist_Township,Kachin_CCCM_D!$A13,CampList_Status,"Open") -> 886 | C13: =SUMIFS(Camplist_Popl,Camplist_Township,Kachin_CCCM_D!$A13,CampList_Status,"Open") -> 3863 | D13: =COUNTIFS(Camplist_Township,Kachin_CCCM_D!A13,CampList_Status,"open") -> 24 | AI13: Mansi | AJ13: 4448 | AK13: 10505 | AL13: 0 | AM13: 0
A14: Hseni | B14: =SUMIFS(Camplist_HH,Camplist_Township,Kachin_CCCM_D!$A14,CampList_Status,"Open") -> 67 | C14: =SUMIFS(Camplist_Popl,Camplist_Township,Kachin_CCCM_D!$A14,CampList_Status,"Open") -> 392 | D14: =COUNTIFS(Camplist_Township,Kachin_CCCM_D!A14,CampList_Status,"open") -> 1 | AI14: Manton | AJ14: 330 | AK14: 0 | AL14: 0 | AM14: 0
A15: Injangyang | B15: =SUMIFS(Camplist_HH,Camplist_Township,Kachin_CCCM_D!$A15,CampList_Status,"Open") -> 0 | C15: =SUMIFS(Camplist_Popl,Camplist_Township,Kachin_CCCM_D!$A15,CampList_Status,"Open") -> 0 | D15: =COUNTIFS(Camplist_Township,Kachin_CCCM_D!A15,CampList_Status,"open") -> 1 | AI15: Mogaung | AJ15: 148 | AK15: 0 | AL15: 0 | AM15: 0
A16: Khaunglanhpu | B16: =SUMIFS(Camplist_HH,Camplist_Township,Kachin_CCCM_D!$A16,CampList_Status,"Open") -> 11 | C16: =SUMIFS(Camplist_Popl,Camplist_Township,Kachin_CCCM_D!$A16,CampList_Status,"Open") -> 17 | D16: =COUNTIFS(Camplist_Township,Kachin_CCCM_D!A16,CampList_Status,"open") -> 1 | AI16: Mohnyin | AJ16: 240 | AK16: 0 | AL16: 0 | AM16: 0
A17: Kutkai | B17: =SUMIFS(Camplist_HH,Camplist_Township,Kachin_CCCM_D!$A17,CampList_Status,"Open") -> 531 | C17: =SUMIFS(Camplist_Popl,Camplist_Township,Kachin_CCCM_D!$A17,CampList_Status,"Open") -> 2660 | D17: =COUNTIFS(Camplist_Township,Kachin_CCCM_D!A17,CampList_Status,"open") -> 8 | AI17: Momauk | AJ17: 3332 | AK17: 10463 | AL17: 8390 | AM17: 0
A18: Machanbaw | B18: =SUMIFS(Camplist_HH,Camplist_Township,Kachin_CCCM_D!$A18,CampList_Status,"Open") -> 9 | C18: =SUMIFS(Camplist_Popl,Camplist_Township,Kachin_CCCM_D!$A18,CampList_Status,"Open") -> 27 | D18: =COUNTIFS(Camplist_Township,Kachin_CCCM_D!A18,CampList_Status,"open") -> 1 | AI18: Muse | AJ18: 789 | AK18: 0 | AL18: 0 | AM18: 0
A19: Mansi | B19: =SUMIFS(Camplist_HH,Camplist_Township,Kachin_CCCM_D!$A19,CampList_Status,"Open") -> 3378 | C19: =SUMIFS(Camplist_Popl,Camplist_Township,Kachin_CCCM_D!$A19,CampList_Status,"Open") -> 14953 | D19: =COUNTIFS(Camplist_Township,Kachin_CCCM_D!A19,CampList_Status,"open") -> 17 | AI19: Myitkyina | AJ19: 6631 | AK19: 0 | AL19: 0 | AM19: 0
A20: Manton | B20: =SUMIFS(Camplist_HH,Camplist_Township,Kachin_CCCM_D!$A20,CampList_Status,"Open") -> 69 | C20: =SUMIFS(Camplist_Popl,Camplist_Township,Kachin_CCCM_D!$A20,CampList_Status,"Open") -> 330 | D20: =COUNTIFS(Camplist_Township,Kachin_CCCM_D!A20,CampList_Status,"open") -> 4 | AI20: Namhkan | AJ20: 1165 | AK20: 0 | AL20: 0 | AM20: 0
A21: Mogaung | B21: =SUMIFS(Camplist_HH,Camplist_Township,Kachin_CCCM_D!$A21,CampList_Status,"Open") -> 39 | C21: =SUMIFS(Camplist_Popl,Camplist_Township,Kachin_CCCM_D!$A21,CampList_Status,"Open") -> 148 | D21: =COUNTIFS(Camplist_Township,Kachin_CCCM_D!A21,CampList_Status,"open") -> 3 | AI21: Namtu | AJ21: 586 | AK21: 0 | AL21: 0 | AM21: 0
A22: Mohnyin | B22: =SUMIFS(Camplist_HH,Camplist_Township,Kachin_CCCM_D!$A22,CampList_Status,"Open") -> 54 | C22: =SUMIFS(Camplist_Popl,Camplist_Township,Kachin_CCCM_D!$A22,CampList_Status,"Open") -> 240 | D22: =COUNTIFS(Camplist_Township,Kachin_CCCM_D!A22,CampList_Status,"open") -> 3 | AI22: Puta-O | AJ22: 156 | AK22: 0 | AL22: 0 | AM22: 0
A23: Momauk | B23: =SUMIFS(Camplist_HH,Camplist_Township,Kachin_CCCM_D!$A23,CampList_Status,"Open") -> 4787 | C23: =SUMIFS(Camplist_Popl,Camplist_Township,Kachin_CCCM_D!$A23,CampList_Status,"Open") -> 22185 | D23: =COUNTIFS(Camplist_Township,Kachin_CCCM_D!A23,CampList_Status,"open") -> 23 | AI23: Shwegu | AJ23: 467 | AK23: 1691 | AL23: 0 | AM23: 0
A24: Muse | B24: =SUMIFS(Camplist_HH,Camplist_Township,Kachin_CCCM_D!$A24,CampList_Status,"Open") -> 182 | C24: =SUMIFS(Camplist_Popl,Camplist_Township,Kachin_CCCM_D!$A24,CampList_Status,"Open") -> 789 | D24: =COUNTIFS(Camplist_Township,Kachin_CCCM_D!A24,CampList_Status,"open") -> 3 | AI24: Sumprabum | AJ24: 38 | AK24: 0 | AL24: 0 | AM24: 0
A25: Myitkyina | B25: =SUMIFS(Camplist_HH,Camplist_Township,Kachin_CCCM_D!$A25,CampList_Status,"Open") -> 1423 | C25: =SUMIFS(Camplist_Popl,Camplist_Township,Kachin_CCCM_D!$A25,CampList_Status,"Open") -> 6631 | D25: =COUNTIFS(Camplist_Township,Kachin_CCCM_D!A25,CampList_Status,"open") -> 25 | AI25: Waingmaw | AJ25: 7265 | AK25: 21621 | AL25: 0 | AM25: 0 | AN25: =AM26+AJ26+AK26+AL26 -> 96638
A26: Namhkan | B26: =SUMIFS(Camplist_HH,Camplist_Township,Kachin_CCCM_D!$A26,CampList_Status,"Open") -> 385 | C26: =SUMIFS(Camplist_Popl,Camplist_Township,Kachin_CCCM_D!$A26,CampList_Status,"Open") -> 1165 | D26: =COUNTIFS(Camplist_Township,Kachin_CCCM_D!A26,CampList_Status,"open") -> 7 | AI26: Total | AJ26: =SUM(AJ5:AJ25) -> 36118 | AK26: =SUM(AK5:AK25) -> 52130 | AL26: =SUM(AL5:AL25) -> 8390 | AM26: =SUM(AM5:AM25) -> 0
A27: Namtu | B27: =SUMIFS(Camplist_HH,Camplist_Township,Kachin_CCCM_D!$A27,CampList_Status,"Open") -> 138 | C27: =SUMIFS(Camplist_Popl,Camplist_Township,Kachin_CCCM_D!$A27,CampList_Status,"Open") -> 586 | D27: =COUNTIFS(Camplist_Township,Kachin_CCCM_D!A27,CampList_Status,"open") -> 2 | AI27: % of IDP | AJ27: =AJ26/$AN$25 -> 0.3737453176 | AK27: =AK26/$AN$25 -> 0.5394358327 | AL27: 0.08681884973 | AM27: 0
A28: Puta-O | B28: =SUMIFS(Camplist_HH,Camplist_Township,Kachin_CCCM_D!$A28,CampList_Status,"Open") -> 36 | C28: =SUMIFS(Camplist_Popl,Camplist_Township,Kachin_CCCM_D!$A28,CampList_Status,"Open") -> 156 | D28: =COUNTIFS(Camplist_Township,Kachin_CCCM_D!A28,CampList_Status,"open") -> 2
A29: Shwegu | B29: =SUMIFS(Camplist_HH,Camplist_Township,Kachin_CCCM_D!$A29,CampList_Status,"Open") -> 510 | C29: =SUMIFS(Camplist_Popl,Camplist_Township,Kachin_CCCM_D!$A29,CampList_Status,"Open") -> 2158 | D29: =COUNTIFS(Camplist_Township,Kachin_CCCM_D!A29,CampList_Status,"open") -> 4
A30: Sumprabum | B30: =SUMIFS(Camplist_HH,Camplist_Township,Kachin_CCCM_D!$A30,CampList_Status,"Open") -> 6 | C30: =SUMIFS(Camplist_Popl,Camplist_Township,Kachin_CCCM_D!$A30,CampList_Status,"Open") -> 38 | D30: =COUNTIFS(Camplist_Township,Kachin_CCCM_D!A30,CampList_Status,"open") -> 1
A31: Waingmaw | B31: =SUMIFS(Camplist_HH,Camplist_Township,Kachin_CCCM_D!$A31,CampList_Status,"Open") -> 5249 | C31: =SUMIFS(Camplist_Popl,Camplist_Township,Kachin_CCCM_D!$A31,CampList_Status,"Open") -> 28886 | D31: =COUNTIFS(Camplist_Township,Kachin_CCCM_D!A31,CampList_Status,"open") -> 25
A32: Total | B32: =SUM(B10:B30) -> 14974 | C32: =SUM(C10:C31) -> 96638 | D32: =SUM(D10:D31) -> 174 | AJ32: # of camps by Size of Population | AN32: Unknown
AI33: Township | AJ33: 1-1k | AK33: 1k - 5k | AL33: 5k-10k | AM33: >10k | AN33: =COUNTIFS(Camplist_Township,Kachin_CCCM_D!$AI34,Camplist_Popl,"=0",CampList_Status,"Open")+COUNTIFS(Camplist_Township,Kachin_CCCM_D!$AI34,Camplist_Popl,"",CampList_Status,"Open") -> 0 | AO33: =SUM(AJ33:AN33) -> 0
B34: GCA | C34: NGCA | D34: Total | F34: Size of camps | AI34: Bhamo | AJ34: =COUNTIFS(Camplist_Township,Kachin_CCCM_D!$AI34,Camplist_Popl,">0",Camplist_Popl,"<=1000",CampList_Status,"Open") -> 9 | AK34: =COUNTIFS(Camplist_Township,Kachin_CCCM_D!$AI34,Camplist_Popl,">1000",Camplist_Popl,"<=5000",CampList_Status,"Open") -> 4 | AL34: =COUNTIFS(Camplist_Township,Kachin_CCCM_D!$AI34,Camplist_Popl,">5000",Camplist_Popl,"<=10000",CampList_Status,"Open") -> 0 | AM34: =COUNTIFS(Camplist_Township,Kachin_CCCM_D!$AI34,Camplist_Popl,">10000",CampList_Status,"Open") -> 0 | AN34: =COUNTIFS(Camplist_Township,Kachin_CCCM_D!$AI35,Camplist_Popl,"=0",CampList_Status,"Open")+COUNTIFS(Camplist_Township,Kachin_CCCM_D!$AI35,Camplist_Popl,"",CampList_Status,"Open") -> 1 | AO34: =SUM(AJ34:AN34) -> 14
A35: Camp | B35: =GETPIVOTDATA("Total",CampAnalysis!$A$60,"Accessibility",B$34,"Type of Accomodation",$A35) -> 40030 | C35: =GETPIVOTDATA("Total",CampAnalysis!$A$60,"Accessibility",C$34,"Type of Accomodation",$A35) -> 46036 | D35: =SUM(B35:C35) -> 86066 | G35: 1-1k | H35: 1k-5k | I35: 5k-10k | J35: Over 10k | K35: Unknown | AI35: Chipwi | AJ35: =COUNTIFS(Camplist_Township,Kachin_CCCM_D!$AI35,Camplist_Popl,">0",Camplist_Popl,"<=1000",CampList_Status,"Open") -> 4 | AK35: =COUNTIFS(Camplist_Township,Kachin_CCCM_D!$AI35,Camplist_Popl,">1000",Camplist_Popl,"<=5000",CampList_Status,"Open") -> 1 | AL35: =COUNTIFS(Camplist_Township,Kachin_CCCM_D!$AI35,Camplist_Popl,">5000",Camplist_Popl,"<=10000",CampList_Status,"Open") -> 0 | AM35: =COUNTIFS(Camplist_Township,Kachin_CCCM_D!$AI35,Camplist_Popl,">10000",CampList_Status,"Open") -> 0 | AN35: =COUNTIFS(Camplist_Township,Kachin_CCCM_D!$AI36,Camplist_Popl,"=0",CampList_Status,"Open")+COUNTIFS(Camplist_Township,Kachin_CCCM_D!$AI36,Camplist_Popl,"",CampList_Status,"Open") -> 0 | AO35: 5
A36: Host Families | B36: =GETPIVOTDATA("Total",CampAnalysis!$A$60,"Accessibility",B$34,"Type of Accomodation",$A36) -> 5622 | C36: =GETPIVOTDATA("Total",CampAnalysis!$A$60,"Accessibility",C$34,"Type of Accomodation",$A36) -> 4450 | D36: =SUM(B36:C36) -> 10072 | F36: # of Camps | G36: =AJ55 -> 125 | H36: =AK55 -> 18 | I36: =AL55 -> 1 | J36: =AM55 -> 0 | K36: =AN54 -> 0 | AI36: Hpakant | AJ36: =COUNTIFS(Camplist_Township,Kachin_CCCM_D!$AI36,Camplist_Popl,">0",Camplist_Popl,"<=1000",CampList_Status,"Open") -> 24 | AK36: =COUNTIFS(Camplist_Township,Kachin_CCCM_D!$AI36,Camplist_Popl,">1000",Camplist_Popl,"<=5000",CampList_Status,"Open") -> 0 | AL36: =COUNTIFS(Camplist_Township,Kachin_CCCM_D!$AI36,Camplist_Popl,">5000",Camplist_Popl,"<=10000",CampList_Status,"Open") -> 0 | AM36: =COUNTIFS(Camplist_Township,Kachin_CCCM_D!$AI36,Camplist_Popl,">10000",CampList_Status,"Open") -> 0 | AN36: =COUNTIFS(Camplist_Township,Kachin_CCCM_D!$AI37,Camplist_Popl,"=0",CampList_Status,"Open")+COUNTIFS(Camplist_Township,Kachin_CCCM_D!$AI37,Camplist_Popl,"",CampList_Status,"Open") -> 1 | AO36: 25
A37: Total | B37: =SUM(B35:B36) -> 45652 | C37: =SUM(C35:C36) -> 50486 | D37: =SUM(D35:D36) -> 96138 | F37: # of IDP | G37: =AJ26 -> 36118 | H37: =AK26 -> 52130 | I37: =AL26 -> 8390 | J37: =AM26 -> 0 | K37: =AO25 -> 0 | AI37: Injangyang | AJ37: =COUNTIFS(Camplist_Township,Kachin_CCCM_D!$AI37,Camplist_Popl,">0",Camplist_Popl,"<=1000",CampList_Status,"Open") -> 0 | AK37: =COUNTIFS(Camplist_Township,Kachin_CCCM_D!$AI37,Camplist_Popl,">1000",Camplist_Popl,"<=5000",CampList_Status,"Open") -> 0 | AL37: =COUNTIFS(Camplist_Township,Kachin_CCCM_D!$AI37,Camplist_Popl,">5000",Camplist_Popl,"<=10000",CampList_Status,"Open") -> 0 | AM37: =COUNTIFS(Camplist_Township,Kachin_CCCM_D!$AI37,Camplist_Popl,">10000",CampList_Status,"Open") -> 0 | AN37: =COUNTIFS(Camplist_Township,Kachin_CCCM_D!$AI38,Camplist_Popl,"=0",CampList_Status,"Open")+COUNTIFS(Camplist_Township,Kachin_CCCM_D!$AI38,Camplist_Popl,"",CampList_Status,"Open") -> 0 | AO37: 0
AI38: Khaunglanhpu | AJ38: =COUNTIFS(Camplist_Township,Kachin_CCCM_D!$AI38,Camplist_Popl,">0",Camplist_Popl,"<=1000",CampList_Status,"Open") -> 1 | AK38: =COUNTIFS(Camplist_Township,Kachin_CCCM_D!$AI38,Camplist_Popl,">1000",Camplist_Popl,"<=5000",CampList_Status,"Open") -> 0 | AL38: =COUNTIFS(Camplist_Township,Kachin_CCCM_D!$AI38,Camplist_Popl,">5000",Camplist_Popl,"<=10000",CampList_Status,"Open") -> 0 | AM38: =COUNTIFS(Camplist_Township,Kachin_CCCM_D!$AI38,Camplist_Popl,">10000",CampList_Status,"Open") -> 0 | AN38: =COUNTIFS(Camplist_Township,Kachin_CCCM_D!$AI39,Camplist_Popl,"=0",CampList_Status,"Open")+COUNTIFS(Camplist_Township,Kachin_CCCM_D!$AI39,Camplist_Popl,"",CampList_Status,"Open") -> 0 | AO38: 1
AI39: Kutkai | AJ39: =COUNTIFS(Camplist_Township,Kachin_CCCM_D!$AI39,Camplist_Popl,">0",Camplist_Popl,"<=1000",CampList_Status,"Open") -> 8 | AK39: =COUNTIFS(Camplist_Township,Kachin_CCCM_D!$AI39,Camplist_Popl,">1000",Camplist_Popl,"<=5000",CampList_Status,"Open") -> 0 | AL39: =COUNTIFS(Camplist_Township,Kachin_CCCM_D!$AI39,Camplist_Popl,">5000",Camplist_Popl,"<=10000",CampList_Status,"Open") -> 0 | AM39: =COUNTIFS(Camplist_Township,Kachin_CCCM_D!$AI39,Camplist_Popl,">10000",CampList_Status,"Open") -> 0 | AN39: =COUNTIFS(Camplist_Township,Kachin_CCCM_D!$AI41,Camplist_Popl,"=0",CampList_Status,"Open")+COUNTIFS(Camplist_Township,Kachin_CCCM_D!$AI41,Camplist_Popl,"",CampList_Status,"Open") -> 0 | AO39: 8
AI40: Machanbaw | AJ40: =COUNTIFS(Camplist_Township,Kachin_CCCM_D!$AI40,Camplist_Popl,">0",Camplist_Popl,"<=1000",CampList_Status,"Open") -> 1 | AK40: =COUNTIFS(Camplist_Township,Kachin_CCCM_D!$AI40,Camplist_Popl,">1000",Camplist_Popl,"<=5000",CampList_Status,"Open") -> 0 | AL40: =COUNTIFS(Camplist_Township,Kachin_CCCM_D!$AI40,Camplist_Popl,">5000",Camplist_Popl,"<=10000",CampList_Status,"Open") -> 0 | AM40: =COUNTIFS(Camplist_Township,Kachin_CCCM_D!$AI40,Camplist_Popl,">10000",CampList_Status,"Open") -> 0 | AN40: =COUNTIFS(Camplist_Township,Kachin_CCCM_D!$AI42,Camplist_Popl,"=0",CampList_Status,"Open")+COUNTIFS(Camplist_Township,Kachin_CCCM_D!$AI42,Camplist_Popl,"",CampList_Status,"Open") -> 2 | AO40: =SUM(AJ40:AN40) -> 3
AI41: Mansi | AJ41: =COUNTIFS(Camplist_Township,Kachin_CCCM_D!$AI41,Camplist_Popl,">0",Camplist_Popl,"<=1000",CampList_Status,"Open") -> 11 | AK41: =COUNTIFS(Camplist_Township,Kachin_CCCM_D!$AI41,Camplist_Popl,">1000",Camplist_Popl,"<=5000",CampList_Status,"Open") -> 6 | AL41: =COUNTIFS(Camplist_Township,Kachin_CCCM_D!$AI41,Camplist_Popl,">5000",Camplist_Popl,"<=10000",CampList_Status,"Open") -> 0 | AM41: =COUNTIFS(Camplist_Township,Kachin_CCCM_D!$AI41,Camplist_Popl,">10000",CampList_Status,"Open") -> 0 | AN41: =COUNTIFS(Camplist_Township,Kachin_CCCM_D!$AI42,Camplist_Popl,"=0",CampList_Status,"Open")+COUNTIFS(Camplist_Township,Kachin_CCCM_D!$AI42,Camplist_Popl,"",CampList_Status,"Open") -> 2 | AO41: 19
AI42: Manton | AJ42: =COUNTIFS(Camplist_Township,Kachin_CCCM_D!$AI42,Camplist_Popl,">0",Camplist_Popl,"<=1000",CampList_Status,"Open") -> 2 | AK42: =COUNTIFS(Camplist_Township,Kachin_CCCM_D!$AI42,Camplist_Popl,">1000",Camplist_Popl,"<=5000",CampList_Status,"Open") -> 0 | AL42: =COUNTIFS(Camplist_Township,Kachin_CCCM_D!$AI42,Camplist_Popl,">5000",Camplist_Popl,"<=10000",CampList_Status,"Open") -> 0 | AM42: =COUNTIFS(Camplist_Township,Kachin_CCCM_D!$AI42,Camplist_Popl,">10000",CampList_Status,"Open") -> 0 | AN42: =COUNTIFS(Camplist_Township,Kachin_CCCM_D!$AI43,Camplist_Popl,"=0",CampList_Status,"Open")+COUNTIFS(Camplist_Township,Kachin_CCCM_D!$AI43,Camplist_Popl,"",CampList_Status,"Open") -> 0 | AO42: 2
AI43: Mogaung | AJ43: =COUNTIFS(Camplist_Township,Kachin_CCCM_D!$AI43,Camplist_Popl,">0",Camplist_Popl,"<=1000",CampList_Status,"Open") -> 3 | AK43: =COUNTIFS(Camplist_Township,Kachin_CCCM_D!$AI43,Camplist_Popl,">1000",Camplist_Popl,"<=5000",CampList_Status,"Open") -> 0 | AL43: =COUNTIFS(Camplist_Township,Kachin_CCCM_D!$AI43,Camplist_Popl,">5000",Camplist_Popl,"<=10000",CampList_Status,"Open") -> 0 | AM43: =COUNTIFS(Camplist_Township,Kachin_CCCM_D!$AI43,Camplist_Popl,">10000",CampList_Status,"Open") -> 0 | AN43: =COUNTIFS(Camplist_Township,Kachin_CCCM_D!$AI44,Camplist_Popl,"=0",CampList_Status,"Open")+COUNTIFS(Camplist_Township,Kachin_CCCM_D!$AI44,Camplist_Popl,"",CampList_Status,"Open") -> 0 | AO43: 3
AI44: Mohnyin | AJ44: =COUNTIFS(Camplist_Township,Kachin_CCCM_D!$AI44,Camplist_Popl,">0",Camplist_Popl,"<=1000",CampList_Status,"Open") -> 3 | AK44: =COUNTIFS(Camplist_Township,Kachin_CCCM_D!$AI44,Camplist_Popl,">1000",Camplist_Popl,"<=5000",CampList_Status,"Open") -> 0 | AL44: =COUNTIFS(Camplist_Township,Kachin_CCCM_D!$AI44,Camplist_Popl,">5000",Camplist_Popl,"<=10000",CampList_Status,"Open") -> 0 | AM44: =COUNTIFS(Camplist_Township,Kachin_CCCM_D!$AI44,Camplist_Popl,">10000",CampList_Status,"Open") -> 0 | AN44: =COUNTIFS(Camplist_Township,Kachin_CCCM_D!$AI45,Camplist_Popl,"=0",CampList_Status,"Open")+COUNTIFS(Camplist_Township,Kachin_CCCM_D!$AI45,Camplist_Popl,"",CampList_Status,"Open") -> 1 | AO44: 4
AI45: Momauk | AJ45: =COUNTIFS(Camplist_Township,Kachin_CCCM_D!$AI45,Camplist_Popl,">0",Camplist_Popl,"<=1000",CampList_Status,"Open") -> 15 | AK45: =COUNTIFS(Camplist_Township,Kachin_CCCM_D!$AI45,Camplist_Popl,">1000",Camplist_Popl,"<=5000",CampList_Status,"Open") -> 6 | AL45: =COUNTIFS(Camplist_Township,Kachin_CCCM_D!$AI45,Camplist_Popl,">5000",Camplist_Popl,"<=10000",CampList_Status,"Open") -> 1 | AM45: =COUNTIFS(Camplist_Township,Kachin_CCCM_D!$AI45,Camplist_Popl,">10000",CampList_Status,"Open") -> 0 | AN45: =COUNTIFS(Camplist_Township,Kachin_CCCM_D!$AI46,Camplist_Popl,"=0",CampList_Status,"Open")+COUNTIFS(Camplist_Township,Kachin_CCCM_D!$AI46,Camplist_Popl,"",CampList_Status,"Open") -> 0 | AO45: 22
AI46: Muse | AJ46: =COUNTIFS(Camplist_Township,Kachin_CCCM_D!$AI46,Camplist_Popl,">0",Camplist_Popl,"<=1000",CampList_Status,"Open") -> 3 | AK46: =COUNTIFS(Camplist_Township,Kachin_CCCM_D!$AI46,Camplist_Popl,">1000",Camplist_Popl,"<=5000",CampList_Status,"Open") -> 0 | AL46: =COUNTIFS(Camplist_Township,Kachin_CCCM_D!$AI46,Camplist_Popl,">5000",Camplist_Popl,"<=10000",CampList_Status,"Open") -> 0 | AM46: =COUNTIFS(Camplist_Township,Kachin_CCCM_D!$AI46,Camplist_Popl,">10000",CampList_Status,"Open") -> 0 | AN46: =COUNTIFS(Camplist_Township,Kachin_CCCM_D!$AI47,Camplist_Popl,"=0",CampList_Status,"Open")+COUNTIFS(Camplist_Township,Kachin_CCCM_D!$AI47,Camplist_Popl,"",CampList_Status,"Open") -> 0 | AO46: 3
AI47: Myitkyina | AJ47: =COUNTIFS(Camplist_Township,Kachin_CCCM_D!$AI47,Camplist_Popl,">0",Camplist_Popl,"<=1000",CampList_Status,"Open") -> 25 | AK47: =COUNTIFS(Camplist_Township,Kachin_CCCM_D!$AI47,Camplist_Popl,">1000",Camplist_Popl,"<=5000",CampList_Status,"Open") -> 0 | AL47: =COUNTIFS(Camplist_Township,Kachin_CCCM_D!$AI47,Camplist_Popl,">5000",Camplist_Popl,"<=10000",CampList_Status,"Open") -> 0 | AM47: =COUNTIFS(Camplist_Township,Kachin_CCCM_D!$AI47,Camplist_Popl,">10000",CampList_Status,"Open") -> 0 | AN47: =COUNTIFS(Camplist_Township,Kachin_CCCM_D!$AI48,Camplist_Popl,"=0",CampList_Status,"Open")+COUNTIFS(Camplist_Township,Kachin_CCCM_D!$AI48,Camplist_Popl,"",CampList_Status,"Open") -> 1 | AO47: 26
AI48: Namhkan | AJ48: =COUNTIFS(Camplist_Township,Kachin_CCCM_D!$AI48,Camplist_Popl,">0",Camplist_Popl,"<=1000",CampList_Status,"Open") -> 6 | AK48: =COUNTIFS(Camplist_Township,Kachin_CCCM_D!$AI48,Camplist_Popl,">1000",Camplist_Popl,"<=5000",CampList_Status,"Open") -> 0 | AL48: =COUNTIFS(Camplist_Township,Kachin_CCCM_D!$AI48,Camplist_Popl,">5000",Camplist_Popl,"<=10000",CampList_Status,"Open") -> 0 | AM48: =COUNTIFS(Camplist_Township,Kachin_CCCM_D!$AI48,Camplist_Popl,">10000",CampList_Status,"Open") -> 0 | AN48: =COUNTIFS(Camplist_Township,Kachin_CCCM_D!$AI49,Camplist_Popl,"=0",CampList_Status,"Open")+COUNTIFS(Camplist_Township,Kachin_CCCM_D!$AI49,Camplist_Popl,"",CampList_Status,"Open") -> 0 | AO48: 6
AI49: Namtu | AJ49: =COUNTIFS(Camplist_Township,Kachin_CCCM_D!$AI49,Camplist_Popl,">0",Camplist_Popl,"<=1000",CampList_Status,"Open") -> 2 | AK49: =COUNTIFS(Camplist_Township,Kachin_CCCM_D!$AI49,Camplist_Popl,">1000",Camplist_Popl,"<=5000",CampList_Status,"Open") -> 0 | AL49: =COUNTIFS(Camplist_Township,Kachin_CCCM_D!$AI49,Camplist_Popl,">5000",Camplist_Popl,"<=10000",CampList_Status,"Open") -> 0 | AM49: =COUNTIFS(Camplist_Township,Kachin_CCCM_D!$AI49,Camplist_Popl,">10000",CampList_Status,"Open") -> 0 | AN49: =COUNTIFS(Camplist_Township,Kachin_CCCM_D!$AI50,Camplist_Popl,"=0",CampList_Status,"Open")+COUNTIFS(Camplist_Township,Kachin_CCCM_D!$AI50,Camplist_Popl,"",CampList_Status,"Open") -> 0 | AO49: 2
AI50: Puta-O | AJ50: =COUNTIFS(Camplist_Township,Kachin_CCCM_D!$AI50,Camplist_Popl,">0",Camplist_Popl,"<=1000",CampList_Status,"Open") -> 2 | AK50: =COUNTIFS(Camplist_Township,Kachin_CCCM_D!$AI50,Camplist_Popl,">1000",Camplist_Popl,"<=5000",CampList_Status,"Open") -> 0 | AL50: =COUNTIFS(Camplist_Township,Kachin_CCCM_D!$AI50,Camplist_Popl,">5000",Camplist_Popl,"<=10000",CampList_Status,"Open") -> 0 | AM50: =COUNTIFS(Camplist_Township,Kachin_CCCM_D!$AI50,Camplist_Popl,">10000",CampList_Status,"Open") -> 0 | AN50: =COUNTIFS(Camplist_Township,Kachin_CCCM_D!$AI51,Camplist_Popl,"=0",CampList_Status,"Open")+COUNTIFS(Camplist_Township,Kachin_CCCM_D!$AI51,Camplist_Popl,"",CampList_Status,"Open") -> 0 | AO50: 2
AI51: Shwegu | AJ51: =COUNTIFS(Camplist_Township,Kachin_CCCM_D!$AI51,Camplist_Popl,">0",Camplist_Popl,"<=1000",CampList_Status,"Open") -> 3 | AK51: =COUNTIFS(Camplist_Township,Kachin_CCCM_D!$AI51,Camplist_Popl,">1000",Camplist_Popl,"<=5000",CampList_Status,"Open") -> 1 | AL51: =COUNTIFS(Camplist_Township,Kachin_CCCM_D!$AI51,Camplist_Popl,">5000",Camplist_Popl,"<=10000",CampList_Status,"Open") -> 0 | AM51: =COUNTIFS(Camplist_Township,Kachin_CCCM_D!$AI51,Camplist_Popl,">10000",CampList_Status,"Open") -> 0 | AN51: =COUNTIFS(Camplist_Township,Kachin_CCCM_D!$AI52,Camplist_Popl,"=0",CampList_Status,"Open")+COUNTIFS(Camplist_Township,Kachin_CCCM_D!$AI52,Camplist_Popl,"",CampList_Status,"Open") -> 0 | AO51: 4
AI52: Hseni | AJ52: =COUNTIFS(Camplist_Township,Kachin_CCCM_D!$AI52,Camplist_Popl,">0",Camplist_Popl,"<=1000",CampList_Status,"Open") -> 1 | AK52: =COUNTIFS(Camplist_Township,Kachin_CCCM_D!$AI52,Camplist_Popl,">1000",Camplist_Popl,"<=5000",CampList_Status,"Open") -> 0 | AL52: =COUNTIFS(Camplist_Township,Kachin_CCCM_D!$AI52,Camplist_Popl,">5000",Camplist_Popl,"<=10000",CampList_Status,"Open") -> 0 | AM52: =COUNTIFS(Camplist_Township,Kachin_CCCM_D!$AI52,Camplist_Popl,">10000",CampList_Status,"Open") -> 0 | AN52: =COUNTIFS(Camplist_Township,Kachin_CCCM_D!$AI53,Camplist_Popl,"=0",CampList_Status,"Open")+COUNTIFS(Camplist_Township,Kachin_CCCM_D!$AI53,Camplist_Popl,"",CampList_Status,"Open") -> 0 | AO52: 1
AI53: Sumprabum | AJ53: =COUNTIFS(Camplist_Township,Kachin_CCCM_D!$AI53,Camplist_Popl,">0",Camplist_Popl,"<=1000",CampList_Status,"Open") -> 1 | AK53: =COUNTIFS(Camplist_Township,Kachin_CCCM_D!$AI53,Camplist_Popl,">1000",Camplist_Popl,"<=5000",CampList_Status,"Open") -> 0 | AL53: =COUNTIFS(Camplist_Township,Kachin_CCCM_D!$AI53,Camplist_Popl,">5000",Camplist_Popl,"<=10000",CampList_Status,"Open") -> 0 | AM53: =COUNTIFS(Camplist_Township,Kachin_CCCM_D!$AI53,Camplist_Popl,">10000",CampList_Status,"Open") -> 0 | AN53: =COUNTIFS(Camplist_Township,Kachin_CCCM_D!$AI54,Camplist_Popl,"=0",CampList_Status,"Open")+COUNTIFS(Camplist_Township,Kachin_CCCM_D!$AI54,Camplist_Popl,"",CampList_Status,"Open") -> 0 | AO53: 1
AI54: Sumprabum | AJ54: =COUNTIFS(Camplist_Township,Kachin_CCCM_D!$AI54,Camplist_Popl,">0",Camplist_Popl,"<=1000",CampList_Status,"Open") -> 1 | AK54: =COUNTIFS(Camplist_Township,Kachin_CCCM_D!$AI54,Camplist_Popl,">1000",Camplist_Popl,"<=5000",CampList_Status,"Open") -> 0 | AL54: =COUNTIFS(Camplist_Township,Kachin_CCCM_D!$AI54,Camplist_Popl,">5000",Camplist_Popl,"<=10000",CampList_Status,"Open") -> 0 | AM54: =COUNTIFS(Camplist_Township,Kachin_CCCM_D!$AI54,Camplist_Popl,">10000",CampList_Status,"Open") -> 0 | AN54: =COUNTIFS(Camplist_Township,Kachin_CCCM_D!$AI55,Camplist_Popl,"=0",CampList_Status,"Open")+COUNTIFS(Camplist_Township,Kachin_CCCM_D!$AI55,Camplist_Popl,"",CampList_Status,"Open") -> 0 | AO54: =SUM(AJ54:AN54) -> 1
AI55: Total | AJ55: =SUM(AJ34:AJ54) -> 125 | AK55: =SUM(AK34:AK54) -> 18 | AL55: 1 | AM55: 0 | AN55: 8 | AO55: 152

Sheet Shelter Tracking
A2: SHELTERTRACKINGSHEET
A3: =Report_Date -> 2014-01-01
A4: DateUpdated | B4: Organization | C4: ImplementingPartner | D4: State | E4: Township | F4: CampName | G4: HHperShelter | H4: #ofFamilyTentPlanned(Target) | I4: #ofFamilyTentDistributed | J4: #ofTemporaryShelterUnitsPlanned(Target) | K4: #ofTemporaryShelterUnitsBuilt | L4: #ofTemporaryShelterUnderConstruction | M4: #ofPermanentHousePlanned(Target) | N4: #ofPermanentHouseBuilt | O4: #ofPermanentHouseUnderConstruction | P4: HHCovered | Q4: Pcode | R4: Status | S4: Coverage
A5: 2013-10-31 | B5: Caritas | C5: KBSS | D5: Kachin | E5: Shwegu | F5: Shwe Gu Catholic Church | G5: 1 | J5: 36 | K5: 36 | P5: =Table_Shelter[[#This Row],[HHperShelter]]*(Table_Shelter[[#This Row],['#ofTemporaryShelterUnitsBuilt]]+Table_Shelter[[#This Row],['#ofTemporaryShelterUnderConstruction]]+Table_Shelter[[#This Row],['#ofPermanentHouseUnderConstruction]]) -> 36 | Q5: =IFERROR(VLOOKUP(Table_Shelter[[#This Row],[CampName]],CL,2,0),"") -> MMR001CMP068 | R5: =IFERROR(VLOOKUP(Table_Shelter[[#This Row],[CampName]],CL,3,0),"") -> Open | S5: =IFERROR(Table_Shelter[[#This Row],[HHCovered]]/VLOOKUP(Table_Shelter[[#This Row],[CampName]],CL,4,0),"") -> 0.7659574468
A6: 2013-10-31 | B6: Metta | C6: Metta | D6: Kachin | E6: Bhamo | F6: Htoi San Church | G6: 1 | J6: 38 | K6: 38 | P6: =Table_Shelter[[#This Row],[HHperShelter]]*(Table_Shelter[[#This Row],['#ofTemporaryShelterUnitsBuilt]]+Table_Shelter[[#This Row],['#ofTemporaryShelterUnderConstruction]]+Table_Shelter[[#This Row],['#ofPermanentHouseUnderConstruction]]) -> 38 | Q6: =IFERROR(VLOOKUP(Table_Shelter[[#This Row],[CampName]],CL,2,0),"") -> MMR001CMP052 | R6: =IFERROR(VLOOKUP(Table_Shelter[[#This Row],[CampName]],CL,3,0),"") -> Open | S6: =IFERROR(Table_Shelter[[#This Row],[HHCovered]]/VLOOKUP(Table_Shelter[[#This Row],[CampName]],CL,4,0),"") -> 0.8837209302
A7: 2013-10-31 | B7: Metta | C7: Metta | D7: Kachin | E7: Bhamo | F7: Lisu Boarding-House | G7: 1 | J7: 12 | K7: 12 | P7: =Table_Shelter[[#This Row],[HHperShelter]]*(Table_Shelter[[#This Row],['#ofTemporaryShelterUnitsBuilt]]+Table_Shelter[[#This Row],['#ofTemporaryShelterUnderConstruction]]+Table_Shelter[[#This Row],['#ofPermanentHouseUnderConstruction]]) -> 12 | Q7: =IFERROR(VLOOKUP(Table_Shelter[[#This Row],[CampName]],CL,2,0),"") -> MMR001CMP049 | R7: =IFERROR(VLOOKUP(Table_Shelter[[#This Row],[CampName]],CL,3,0),"") -> Open | S7: =IFERROR(Table_Shelter[[#This Row],[HHCovered]]/VLOOKUP(Table_Shelter[[#This Row],[CampName]],CL,4,0),"") -> 0.1764705882
A8: 2013-10-31 | B8: Metta | C8: Metta | D8: Kachin | E8: Bhamo | F8: Robert Church | G8: 1 | J8: 216 | K8: 216 | P8: =Table_Shelter[[#This Row],[HHperShelter]]*(Table_Shelter[[#This Row],['#ofTemporaryShelterUnitsBuilt]]+Table_Shelter[[#This Row],['#ofTemporaryShelterUnderConstruction]]+Table_Shelter[[#This Row],['#ofPermanentHouseUnderConstruction]]) -> 216 | Q8: =IFERROR(VLOOKUP(Table_Shelter[[#This Row],[CampName]],CL,2,0),"") -> MMR001CMP047 | R8: =IFERROR(VLOOKUP(Table_Shelter[[#This Row],[CampName]],CL,3,0),"") -> Open | S8: =IFERROR(Table_Shelter[[#This Row],[HHCovered]]/VLOOKUP(Table_Shelter[[#This Row],[CampName]],CL,4,0),"") -> 0.3870967742
A9: 2013-10-31 | B9: Metta | C9: Metta | D9: Kachin | E9: Bhamo | F9: Yoe Kyi Monastery | G9: 1 | J9: 30 | K9: 30 | P9: =Table_Shelter[[#This Row],[HHperShelter]]*(Table_Shelter[[#This Row],['#ofTemporaryShelterUnitsBuilt]]+Table_Shelter[[#This Row],['#ofTemporaryShelterUnderConstruction]]+Table_Shelter[[#This Row],['#ofPermanentHouseUnderConstruction]]) -> 30 | Q9: =IFERROR(VLOOKUP(Table_Shelter[[#This Row],[CampName]],CL,2,0),"") -> MMR001CMP053 | R9: =IFERROR(VLOOKUP(Table_Shelter[[#This Row],[CampName]],CL,3,0),"") -> Open | S9: =IFERROR(Table_Shelter[[#This Row],[HHCovered]]/VLOOKUP(Table_Shelter[[#This Row],[CampName]],CL,4,0),"") -> 1.034482759
A10: 2013-10-31 | B10: Metta | C10: Metta | D10: Shan_North | E10: Kutkai | F10: Kutkai downtown (KBC Church) | G10: 1 | J10: 80 | K10: 80 | P10: =Table_Shelter[[#This Row],[HHperShelter]]*(Table_Shelter[[#This Row],['#ofTemporaryShelterUnitsBuilt]]+Table_Shelter[[#This Row],['#ofTemporaryShelterUnderConstruction]]+Table_Shelter[[#This Row],['#ofPermanentHouseUnderConstruction]]) -> 80 | Q10: =IFERROR(VLOOKUP(Table_Shelter[[#This Row],[CampName]],CL,2,0),"") -> MMR015CMP016 | R10: =IFERROR(VLOOKUP(Table_Shelter[[#This Row],[CampName]],CL,3,0),"") -> Open | S10: =IFERROR(Table_Shelter[[#This Row],[HHCovered]]/VLOOKUP(Table_Shelter[[#This Row],[CampName]],CL,4,0),"") -> 0.9302325581
A11: 2013-10-31 | B11: Metta | C11: Metta | D11: Shan_North | E11: Kutkai | F11: Kutkai downtown (RC Church) | G11: 1 | J11: 48 | K11: 48 | P11: =Table_Shelter[[#This Row],[HHperShelter]]*(Table_Shelter[[#This Row],['#ofTemporaryShelterUnitsBuilt]]+Table_Shelter[[#This Row],['#ofTemporaryShelterUnderConstruction]]+Table_Shelter[[#This Row],['#ofPermanentHouseUnderConstruction]]) -> 48 | Q11: =IFERROR(VLOOKUP(Table_Shelter[[#This Row],[CampName]],CL,2,0),"") -> MMR015CMP017 | R11: =IFERROR(VLOOKUP(Table_Shelter[[#This Row],[CampName]],CL,3,0),"") -> Open | S11: =IFERROR(Table_Shelter[[#This Row],[HHCovered]]/VLOOKUP(Table_Shelter[[#This Row],[CampName]],CL,4,0),"") -> 1.170731707
A12: 2013-10-31 | B12: Metta | C12: Metta | D12: Shan_North | E12: Kutkai | F12: Nam Hpak Ka Mare | G12: 1 | J12: 86 | K12: 86 | P12: =Table_Shelter[[#This Row],[HHperShelter]]*(Table_Shelter[[#This Row],['#ofTemporaryShelterUnitsBuilt]]+Table_Shelter[[#This Row],['#ofTemporaryShelterUnderConstruction]]+Table_Shelter[[#This Row],['#ofPermanentHouseUnderConstruction]]) -> 86 | Q12: =IFERROR(VLOOKUP(Table_Shelter[[#This Row],[CampName]],CL,2,0),"") -> MMR015CMP007 | R12: =IFERROR(VLOOKUP(Table_Shelter[[#This Row],[CampName]],CL,3,0),"") -> Open | S12: =IFERROR(Table_Shelter[[#This Row],[HHCovered]]/VLOOKUP(Table_Shelter[[#This Row],[CampName]],CL,4,0),"") -> 1.088607595
A13: 2013-10-31 | B13: Metta | C13: Metta | D13: Kachin | E13: Momauk | F13: Man Bung Catholic compound | G13: 1 | J13: 18 | K13: 18 | P13: =Table_Shelter[[#This Row],[HHperShelter]]*(Table_Shelter[[#This Row],['#ofTemporaryShelterUnitsBuilt]]+Table_Shelter[[#This Row],['#ofTemporaryShelterUnderConstruction]]+Table_Shelter[[#This Row],['#ofPermanentHouseUnderConstruction]]) -> 18 | Q13: =IFERROR(VLOOKUP(Table_Shelter[[#This Row],[CampName]],CL,2,0),"") -> MMR001CMP062 | R13: =IFERROR(VLOOKUP(Table_Shelter[[#This Row],[CampName]],CL,3,0),"") -> Open | S13: =IFERROR(Table_Shelter[[#This Row],[HHCovered]]/VLOOKUP(Table_Shelter[[#This Row],[CampName]],CL,4,0),"") -> 0.1538461538
A14: 2013-10-31 | B14: Metta | C14: Metta | D14: Kachin | E14: Momauk | F14: Mandalay Monestry | G14: 1 | J14: 6 | K14: 6 | P14: =Table_Shelter[[#This Row],[HHperShelter]]*(Table_Shelter[[#This Row],['#ofTemporaryShelterUnitsBuilt]]+Table_Shelter[[#This Row],['#ofTemporaryShelterUnderConstruction]]+Table_Shelter[[#This Row],['#ofPermanentHouseUnderConstruction]]) -> 6 | Q14: =IFERROR(VLOOKUP(Table_Shelter[[#This Row],[CampName]],CL,2,0),"") -> MMR001CMP058 | R14: =IFERROR(VLOOKUP(Table_Shelter[[#This Row],[CampName]],CL,3,0),"") -> Open | S14: =IFERROR(Table_Shelter[[#This Row],[HHCovered]]/VLOOKUP(Table_Shelter[[#This Row],[CampName]],CL,4,0),"") -> 1.5
A15: 2013-10-31 | B15: Metta | C15: Metta | D15: Kachin | E15: Momauk | F15: Momauk Baptist Church | G15: 1 | J15: 108 | K15: 108 | P15: =Table_Shelter[[#This Row],[HHperShelter]]*(Table_Shelter[[#This Row],['#ofTemporaryShelterUnitsBuilt]]+Table_Shelter[[#This Row],['#ofTemporaryShelterUnderConstruction]]+Table_Shelter[[#This Row],['#ofPermanentHouseUnderConstruction]]) -> 108 | Q15: =IFERROR(VLOOKUP(Table_Shelter[[#This Row],[CampName]],CL,2,0),"") -> MMR001CMP056 | R15: =IFERROR(VLOOKUP(Table_Shelter[[#This Row],[CampName]],CL,3,0),"") -> Open | S15: =IFERROR(Table_Shelter[[#This Row],[HHCovered]]/VLOOKUP(Table_Shelter[[#This Row],[CampName]],CL,4,0),"") -> 0.2706766917
A16: 2013-10-31 | B16: Metta | C16: Metta | D16: Kachin | E16: Shwegu | F16: Shwe Gu Baptist Church | G16: 1 | J16: 30 | K16: 30 | P16: =Table_Shelter[[#This Row],[HHperShelter]]*(Table_Shelter[[#This Row],['#ofTemporaryShelterUnitsBuilt]]+Table_Shelter[[#This Row],['#ofTemporaryShelterUnderConstruction]]+Table_Shelter[[#This Row],['#ofPermanentHouseUnderConstruction]]) -> 30 | Q16: =IFERROR(VLOOKUP(Table_Shelter[[#This Row],[CampName]],CL,2,0),"") -> MMR001CMP067 | R16: =IFERROR(VLOOKUP(Table_Shelter[[#This Row],[CampName]],CL,3,0),"") -> Open | S16: =IFERROR(Table_Shelter[[#This Row],[HHCovered]]/VLOOKUP(Table_Shelter[[#This Row],[CampName]],CL,4,0),"") -> 0.3797468354
A17: 2013-10-31 | B17: Caritas | C17: IRRC | D17: Kachin | E17: Momauk | F17: Pa Kahtawng | G17: 1 | J17: 447 | K17: 447 | P17: =Table_Shelter[[#This Row],[HHperShelter]]*(Table_Shelter[[#This Row],['#ofTemporaryShelterUnitsBuilt]]+Table_Shelter[[#This Row],['#ofTemporaryShelterUnderConstruction]]+Table_Shelter[[#This Row],['#ofPermanentHouseUnderConstruction]]) -> 447 | Q17: =IFERROR(VLOOKUP(Table_Shelter[[#This Row],[CampName]],CL,2,0),"") -> MMR001CMP126 | R17: =IFERROR(VLOOKUP(Table_Shelter[[#This Row],[CampName]],CL,3,0),"") -> Open | S17: =IFERROR(Table_Shelter[[#This Row],[HHCovered]]/VLOOKUP(Table_Shelter[[#This Row],[CampName]],CL,4,0),"") -> 0.8662790698
A18: 2013-10-31 | B18: Caritas | C18: KBSS | D18: Kachin | E18: Mansi | F18: Lung Kawk ( Hka Hkye Zup) | G18: 1 | J18: 100 | K18: 100 | P18: =Table_Shelter[[#This Row],[HHperShelter]]*(Table_Shelter[[#This Row],['#ofTemporaryShelterUnitsBuilt]]+Table_Shelter[[#This Row],['#ofTemporaryShelterUnderConstruction]]+Table_Shelter[[#This Row],['#ofPermanentHouseUnderConstruction]]) -> 100 | Q18: =IFERROR(VLOOKUP(Table_Shelter[[#This Row],[CampName]],CL,2,0),"") -> MMR001CMP135 | R18: =IFERROR(VLOOKUP(Table_Shelter[[#This Row],[CampName]],CL,3,0),"") -> Open | S18: =IFERROR(Table_Shelter[[#This Row],[HHCovered]]/VLOOKUP(Table_Shelter[[#This Row],[CampName]],CL,4,0),"") -> 1.851851852
A19: 2013-10-31 | B19: Caritas | C19: KBSS | D19: Kachin | E19: Mansi | F19: Mung Ding Pa (Boarder) | G19: 1 | J19: 24 | K19: 24 | P19: =Table_Shelter[[#This Row],[HHperShelter]]*(Table_Shelter[[#This Row],['#ofTemporaryShelterUnitsBuilt]]+Table_Shelter[[#This Row],['#ofTemporaryShelterUnderConstruction]]+Table_Shelter[[#This Row],['#ofPermanentHouseUnderConstruction]]) -> 24 | Q19: =IFERROR(VLOOKUP(Table_Shelter[[#This Row],[CampName]],CL,2,0),"") -> MMR001CMP203 | R19: =IFERROR(VLOOKUP(Table_Shelter[[#This Row],[CampName]],CL,3,0),"") -> Closed | S19: =IFERROR(Table_Shelter[[#This Row],[HHCovered]]/VLOOKUP(Table_Shelter[[#This Row],[CampName]],CL,4,0),"") -> 
A20: 2013-10-31 | B20: Caritas | C20: KBSS | D20: Kachin | E20: Momauk | F20: Momauk Catholic Church (St. Patrick) | G20: 1 | J20: 92 | K20: 92 | P20: =Table_Shelter[[#This Row],[HHperShelter]]*(Table_Shelter[[#This Row],['#ofTemporaryShelterUnitsBuilt]]+Table_Shelter[[#This Row],['#ofTemporaryShelterUnderConstruction]]+Table_Shelter[[#This Row],['#ofPermanentHouseUnderConstruction]]) -> 92 | Q20: =IFERROR(VLOOKUP(Table_Shelter[[#This Row],[CampName]],CL,2,0),"") -> MMR001CMP057 | R20: =IFERROR(VLOOKUP(Table_Shelter[[#This Row],[CampName]],CL,3,0),"") -> Open | S20: =IFERROR(Table_Shelter[[#This Row],[HHCovered]]/VLOOKUP(Table_Shelter[[#This Row],[CampName]],CL,4,0),"") -> 0.323943662
A21: 2013-10-31 | B21: Caritas | C21: KMSS | D21: Kachin | E21: Mohnyin | F21: St. Patrick Catholic Church | G21: 1 | J21: 12 | K21: 12 | P21: =Table_Shelter[[#This Row],[HHperShelter]]*(Table_Shelter[[#This Row],['#ofTemporaryShelterUnitsBuilt]]+Table_Shelter[[#This Row],['#ofTemporaryShelterUnderConstruction]]+Table_Shelter[[#This Row],['#ofPermanentHouseUnderConstruction]]) -> 12 | Q21: =IFERROR(VLOOKUP(Table_Shelter[[#This Row],[CampName]],CL,2,0),"") -> MMR001CMP080 | R21: =IFERROR(VLOOKUP(Table_Shelter[[#This Row],[CampName]],CL,3,0),"") -> Open | S21: =IFERROR(Table_Shelter[[#This Row],[HHCovered]]/VLOOKUP(Table_Shelter[[#This Row],[CampName]],CL,4,0),"") -> 1
A22: 2013-10-31 | B22: Caritas | C22: KMSS | D22: Kachin | E22: Myitkyina | F22: Jan Mai Kawng Catholic Church | G22: 1 | J22: 60 | K22: 60 | P22: =Table_Shelter[[#This Row],[HHperShelter]]*(Table_Shelter[[#This Row],['#ofTemporaryShelterUnitsBuilt]]+Table_Shelter[[#This Row],['#ofTemporaryShelterUnderConstruction]]+Table_Shelter[[#This Row],['#ofPermanentHouseUnderConstruction]]) -> 60 | Q22: =IFERROR(VLOOKUP(Table_Shelter[[#This Row],[CampName]],CL,2,0),"") -> MMR001CMP019 | R22: =IFERROR(VLOOKUP(Table_Shelter[[#This Row],[CampName]],CL,3,0),"") -> Open | S22: =IFERROR(Table_Shelter[[#This Row],[HHCovered]]/VLOOKUP(Table_Shelter[[#This Row],[CampName]],CL,4,0),"") -> 0.5309734513
A23: 2013-10-31 | B23: Caritas | C23: KMSS | D23: Kachin | E23: Myitkyina | F23: Pa Dauk Myaing(Pa La Na) | G23: 1 | J23: 30 | K23: 30 | P23: =Table_Shelter[[#This Row],[HHperShelter]]*(Table_Shelter[[#This Row],['#ofTemporaryShelterUnitsBuilt]]+Table_Shelter[[#This Row],['#ofTemporaryShelterUnderConstruction]]+Table_Shelter[[#This Row],['#ofPermanentHouseUnderConstruction]]) -> 30 | Q23: =IFERROR(VLOOKUP(Table_Shelter[[#This Row],[CampName]],CL,2,0),"") -> MMR001CMP162 | R23: =IFERROR(VLOOKUP(Table_Shelter[[#This Row],[CampName]],CL,3,0),"") -> Open | S23: =IFERROR(Table_Shelter[[#This Row],[HHCovered]]/VLOOKUP(Table_Shelter[[#This Row],[CampName]],CL,4,0),"") -> 0.9677419355
A24: 2013-10-31 | B24: CC | C24: CC | D24: Kachin | E24: Bhamo | F24: Robert Church | G24: 1 | J24: 48 | K24: 48 | P24: =Table_Shelter[[#This Row],[HHperShelter]]*(Table_Shelter[[#This Row],['#ofTemporaryShelterUnitsBuilt]]+Table_Shelter[[#This Row],['#ofTemporaryShelterUnderConstruction]]+Table_Shelter[[#This Row],['#ofPermanentHouseUnderConstruction]]) -> 48 | Q24: =IFERROR(VLOOKUP(Table_Shelter[[#This Row],[CampName]],CL,2,0),"") -> MMR001CMP047 | R24: =IFERROR(VLOOKUP(Table_Shelter[[#This Row],[CampName]],CL,3,0),"") -> Open | S24: =IFERROR(Table_Shelter[[#This Row],[HHCovered]]/VLOOKUP(Table_Shelter[[#This Row],[CampName]],CL,4,0),"") -> 0.08602150538
A25: 2013-10-31 | B25: CC | C25: KBC | D25: Kachin | E25: Myitkyina | F25: Le Kone Bethlehem Church | G25: 1 | J25: 9 | K25: 9 | P25: =Table_Shelter[[#This Row],[HHperShelter]]*(Table_Shelter[[#This Row],['#ofTemporaryShelterUnitsBuilt]]+Table_Shelter[[#This Row],['#ofTemporaryShelterUnderConstruction]]+Table_Shelter[[#This Row],['#ofPermanentHouseUnderConstruction]]) -> 9 | Q25: =IFERROR(VLOOKUP(Table_Shelter[[#This Row],[CampName]],CL,2,0),"") -> MMR001CMP015 | R25: =IFERROR(VLOOKUP(Table_Shelter[[#This Row],[CampName]],CL,3,0),"") -> Open | S25: =IFERROR(Table_Shelter[[#This Row],[HHCovered]]/VLOOKUP(Table_Shelter[[#This Row],[CampName]],CL,4,0),"") -> 0.1034482759
A26: 2013-10-31 | B26: CC | C26: KBC | D26: Kachin | E26: Myitkyina | F26: Tat Kone San Pya Baptist Church | G26: 1 | J26: 14 | K26: 14 | P26: =Table_Shelter[[#This Row],[HHperShelter]]*(Table_Shelter[[#This Row],['#ofTemporaryShelterUnitsBuilt]]+Table_Shelter[[#This Row],['#ofTemporaryShelterUnderConstruction]]+Table_Shelter[[#This Row],['#ofPermanentHouseUnderConstruction]]) -> 14 | Q26: =IFERROR(VLOOKUP(Table_Shelter[[#This Row],[CampName]],CL,2,0),"") -> MMR001CMP005 | R26: =IFERROR(VLOOKUP(Table_Shelter[[#This Row],[CampName]],CL,3,0),"") -> Open | S26: =IFERROR(Table_Shelter[[#This Row],[HHCovered]]/VLOOKUP(Table_Shelter[[#This Row],[CampName]],CL,4,0),"") -> 0.3255813953
A27: 2013-10-31 | B27: CC | C27: KBC | D27: Kachin | E27: Waingmaw | F27: Qtr. 2 Myoma Baptist Church | G27: 1 | J27: 8 | K27: 8 | P27: =Table_Shelter[[#This Row],[HHperShelter]]*(Table_Shelter[[#This Row],['#ofTemporaryShelterUnitsBuilt]]+Table_Shelter[[#This Row],['#ofTemporaryShelterUnderConstruction]]+Table_Shelter[[#This Row],['#ofPermanentHouseUnderConstruction]]) -> 8 | Q27: =IFERROR(VLOOKUP(Table_Shelter[[#This Row],[CampName]],CL,2,0),"") -> MMR001CMP025 | R27: =IFERROR(VLOOKUP(Table_Shelter[[#This Row],[CampName]],CL,3,0),"") -> Open | S27: =IFERROR(Table_Shelter[[#This Row],[HHCovered]]/VLOOKUP(Table_Shelter[[#This Row],[CampName]],CL,4,0),"") -> 0.09638554217
A28: 2013-10-31 | B28: CC | C28: KMSS | D28: Kachin | E28: Myitkyina | F28: Jan Mai Kawng Baptist Church | G28: 1 | J28: 20 | K28: 20 | P28: =Table_Shelter[[#This Row],[HHperShelter]]*(Table_Shelter[[#This Row],['#ofTemporaryShelterUnitsBuilt]]+Table_Shelter[[#This Row],['#ofTemporaryShelterUnderConstruction]]+Table_Shelter[[#This Row],['#ofPermanentHouseUnderConstruction]]) -> 20 | Q28: =IFERROR(VLOOKUP(Table_Shelter[[#This Row],[CampName]],CL,2,0),"") -> MMR001CMP018 | R28: =IFERROR(VLOOKUP(Table_Shelter[[#This Row],[CampName]],CL,3,0),"") -> Open | S28: =IFERROR(Table_Shelter[[#This Row],[HHCovered]]/VLOOKUP(Table_Shelter[[#This Row],[CampName]],CL,4,0),"") -> 0.09852216749
A29: 2013-10-31 | B29: CC | C29: Metta | D29: Kachin | E29: Momauk | F29: Momauk Baptist Church | G29: 1 | J29: 32 | K29: 32 | P29: =Table_Shelter[[#This Row],[HHperShelter]]*(Table_Shelter[[#This Row],['#ofTemporaryShelterUnitsBuilt]]+Table_Shelter[[#This Row],['#ofTemporaryShelterUnderConstruction]]+Table_Shelter[[#This Row],['#ofPermanentHouseUnderConstruction]]) -> 32 | Q29: =IFERROR(VLOOKUP(Table_Shelter[[#This Row],[CampName]],CL,2,0),"") -> MMR001CMP056 | R29: =IFERROR(VLOOKUP(Table_Shelter[[#This Row],[CampName]],CL,3,0),"") -> Open | S29: =IFERROR(Table_Shelter[[#This Row],[HHCovered]]/VLOOKUP(Table_Shelter[[#This Row],[CampName]],CL,4,0),"") -> 0.08020050125
A30: 2013-10-31 | B30: CC | C30: SHALOM | D30: Kachin | E30: Myitkyina | F30: Shatapru Sut Ngai Tawng | G30: 1 | J30: 14 | K30: 14 | P30: =Table_Shelter[[#This Row],[HHperShelter]]*(Table_Shelter[[#This Row],['#ofTemporaryShelterUnitsBuilt]]+Table_Shelter[[#This Row],['#ofTemporaryShelterUnderConstruction]]+Table_Shelter[[#This Row],['#ofPermanentHouseUnderConstruction]]) -> 14 | Q30: =IFERROR(VLOOKUP(Table_Shelter[[#This Row],[CampName]],CL,2,0),"") -> MMR001CMP006 | R30: =IFERROR(VLOOKUP(Table_Shelter[[#This Row],[CampName]],CL,3,0),"") -> Open | S30: =IFERROR(Table_Shelter[[#This Row],[HHCovered]]/VLOOKUP(Table_Shelter[[#This Row],[CampName]],CL,4,0),"") -> 0.1320754717
A31: 2013-10-31 | B31: IRRC | C31: IRRC | D31: Kachin | E31: Momauk | F31: Nhkawng Pa | G31: 1 | J31: 350 | K31: 350 | P31: =Table_Shelter[[#This Row],[HHperShelter]]*(Table_Shelter[[#This Row],['#ofTemporaryShelterUnitsBuilt]]+Table_Shelter[[#This Row],['#ofTemporaryShelterUnderConstruction]]+Table_Shelter[[#This Row],['#ofPermanentHouseUnderConstruction]]) -> 350 | Q31: =IFERROR(VLOOKUP(Table_Shelter[[#This Row],[CampName]],CL,2,0),"") -> MMR001CMP131 | R31: =IFERROR(VLOOKUP(Table_Shelter[[#This Row],[CampName]],CL,3,0),"") -> Open | S31: =IFERROR(Table_Shelter[[#This Row],[HHCovered]]/VLOOKUP(Table_Shelter[[#This Row],[CampName]],CL,4,0),"") -> 0.9043927649
A32: 2013-10-31 | B32: DRC | C32: KBC | D32: Kachin | E32: Mansi | F32: Man Wing Baptist Church | G32: 1 | J32: 39 | K32: 39 | P32: =Table_Shelter[[#This Row],[HHperShelter]]*(Table_Shelter[[#This Row],['#ofTemporaryShelterUnitsBuilt]]+Table_Shelter[[#This Row],['#ofTemporaryShelterUnderConstruction]]+Table_Shelter[[#This Row],['#ofPermanentHouseUnderConstruction]]) -> 39 | Q32: =IFERROR(VLOOKUP(Table_Shelter[[#This Row],[CampName]],CL,2,0),"") -> MMR001CMP133 | R32: =IFERROR(VLOOKUP(Table_Shelter[[#This Row],[CampName]],CL,3,0),"") -> Open | S32: =IFERROR(Table_Shelter[[#This Row],[HHCovered]]/VLOOKUP(Table_Shelter[[#This Row],[CampName]],CL,4,0),"") -> 0.3823529412
A33: 2013-10-31 | B33: DRC | C33: KBC | D33: Shan_North | E33: Namhkan | F33: Nam Hkam - Nay Win Ni (Palawng) | G33: 1 | J33: 78 | K33: 78 | P33: =Table_Shelter[[#This Row],[HHperShelter]]*(Table_Shelter[[#This Row],['#ofTemporaryShelterUnitsBuilt]]+Table_Shelter[[#This Row],['#ofTemporaryShelterUnderConstruction]]+Table_Shelter[[#This Row],['#ofPermanentHouseUnderConstruction]]) -> 78 | Q33: =IFERROR(VLOOKUP(Table_Shelter[[#This Row],[CampName]],CL,2,0),"") -> MMR015CMP004 | R33: =IFERROR(VLOOKUP(Table_Shelter[[#This Row],[CampName]],CL,3,0),"") -> Open | S33: =IFERROR(Table_Shelter[[#This Row],[HHCovered]]/VLOOKUP(Table_Shelter[[#This Row],[CampName]],CL,4,0),"") -> 0.847826087
A34: 2013-10-31 | B34: DRC | C34: KBC | D34: Shan_North | E34: Namhkan | F34: Nam Hkam (KBC Jaw Wang) | G34: 1 | J34: 30 | K34: 30 | P34: =Table_Shelter[[#This Row],[HHperShelter]]*(Table_Shelter[[#This Row],['#ofTemporaryShelterUnitsBuilt]]+Table_Shelter[[#This Row],['#ofTemporaryShelterUnderConstruction]]+Table_Shelter[[#This Row],['#ofPermanentHouseUnderConstruction]]) -> 30 | Q34: =IFERROR(VLOOKUP(Table_Shelter[[#This Row],[CampName]],CL,2,0),"") -> MMR015CMP001 | R34: =IFERROR(VLOOKUP(Table_Shelter[[#This Row],[CampName]],CL,3,0),"") -> Open | S34: =IFERROR(Table_Shelter[[#This Row],[HHCovered]]/VLOOKUP(Table_Shelter[[#This Row],[CampName]],CL,4,0),"") -> 0.306122449
A35: 2013-10-31 | B35: DRC | C35: KMSS | D35: Kachin | E35: Momauk | F35: Je Yang Hka | G35: 1 | J35: 702 | K35: 138 | L35: 30 | P35: =Table_Shelter[[#This Row],[HHperShelter]]*(Table_Shelter[[#This Row],['#ofTemporaryShelterUnitsBuilt]]+Table_Shelter[[#This Row],['#ofTemporaryShelterUnderConstruction]]+Table_Shelter[[#This Row],['#ofPermanentHouseUnderConstruction]]) -> 168 | Q35: =IFERROR(VLOOKUP(Table_Shelter[[#This Row],[CampName]],CL,2,0),"") -> MMR001CMP121 | R35: =IFERROR(VLOOKUP(Table_Shelter[[#This Row],[CampName]],CL,3,0),"") -> Open | S35: =IFERROR(Table_Shelter[[#This Row],[HHCovered]]/VLOOKUP(Table_Shelter[[#This Row],[CampName]],CL,4,0),"") -> 0.09952606635
A36: 2013-10-31 | B36: DRC | C36: KMSS | D36: Kachin | E36: Myitkyina | F36: Nan Kway St. John Catholic Church | G36: 1 | J36: 46 | K36: 46 | P36: =Table_Shelter[[#This Row],[HHperShelter]]*(Table_Shelter[[#This Row],['#ofTemporaryShelterUnitsBuilt]]+Table_Shelter[[#This Row],['#ofTemporaryShelterUnderConstruction]]+Table_Shelter[[#This Row],['#ofPermanentHouseUnderConstruction]]) -> 46 | Q36: =IFERROR(VLOOKUP(Table_Shelter[[#This Row],[CampName]],CL,2,0),"") -> MMR001CMP024 | R36: =IFERROR(VLOOKUP(Table_Shelter[[#This Row],[CampName]],CL,3,0),"") -> Open | S36: =IFERROR(Table_Shelter[[#This Row],[HHCovered]]/VLOOKUP(Table_Shelter[[#This Row],[CampName]],CL,4,0),"") -> 0.6388888889
A37: 2013-10-31 | B37: DRC | C37: KMSS | D37: Kachin | E37: Waingmaw | F37: Maga Yang | G37: 1 | J37: 604 | K37: 604 | P37: =Table_Shelter[[#This Row],[HHperShelter]]*(Table_Shelter[[#This Row],['#ofTemporaryShelterUnitsBuilt]]+Table_Shelter[[#This Row],['#ofTemporaryShelterUnderConstruction]]+Table_Shelter[[#This Row],['#ofPermanentHouseUnderConstruction]]) -> 604 | Q37: =IFERROR(VLOOKUP(Table_Shelter[[#This Row],[CampName]],CL,2,0),"") -> MMR001CMP119 | R37: =IFERROR(VLOOKUP(Table_Shelter[[#This Row],[CampName]],CL,3,0),"") -> Open | S37: =IFERROR(Table_Shelter[[#This Row],[HHCovered]]/VLOOKUP(Table_Shelter[[#This Row],[CampName]],CL,4,0),"") -> 0.9695024077
A38: 2013-10-31 | B38: DRC | C38: KMSS | D38: Kachin | E38: Waingmaw | F38: Maina Catholic Church (St. Joseph) | G38: 1 | J38: 12 | K38: 12 | P38: =Table_Shelter[[#This Row],[HHperShelter]]*(Table_Shelter[[#This Row],['#ofTemporaryShelterUnitsBuilt]]+Table_Shelter[[#This Row],['#ofTemporaryShelterUnderConstruction]]+Table_Shelter[[#This Row],['#ofPermanentHouseUnderConstruction]]) -> 12 | Q38: =IFERROR(VLOOKUP(Table_Shelter[[#This Row],[CampName]],CL,2,0),"") -> MMR001CMP029 | R38: =IFERROR(VLOOKUP(Table_Shelter[[#This Row],[CampName]],CL,3,0),"") -> Open | S38: =IFERROR(Table_Shelter[[#This Row],[HHCovered]]/VLOOKUP(Table_Shelter[[#This Row],[CampName]],CL,4,0),"") -> 0.05172413793
A39: 2013-10-31 | B39: DRC | C39: SHALOM | D39: Kachin | E39: Chipwi | F39: Chipwi KBC camp | G39: 1 | J39: 82 | K39: 82 | P39: =Table_Shelter[[#This Row],[HHperShelter]]*(Table_Shelter[[#This Row],['#ofTemporaryShelterUnitsBuilt]]+Table_Shelter[[#This Row],['#ofTemporaryShelterUnderConstruction]]+Table_Shelter[[#This Row],['#ofPermanentHouseUnderConstruction]]) -> 82 | Q39: =IFERROR(VLOOKUP(Table_Shelter[[#This Row],[CampName]],CL,2,0),"") -> MMR001CMP042 | R39: =IFERROR(VLOOKUP(Table_Shelter[[#This Row],[CampName]],CL,3,0),"") -> Open | S39: =IFERROR(Table_Shelter[[#This Row],[HHCovered]]/VLOOKUP(Table_Shelter[[#This Row],[CampName]],CL,4,0),"") -> 0.7663551402
A40: 2013-10-31 | B40: DRC | C40: SHALOM | D40: Kachin | E40: Waingmaw | F40: Hkat Cho | G40: 1 | J40: 50 | K40: 50 | P40: =Table_Shelter[[#This Row],[HHperShelter]]*(Table_Shelter[[#This Row],['#ofTemporaryShelterUnitsBuilt]]+Table_Shelter[[#This Row],['#ofTemporaryShelterUnderConstruction]]+Table_Shelter[[#This Row],['#ofPermanentHouseUnderConstruction]]) -> 50 | Q40: =IFERROR(VLOOKUP(Table_Shelter[[#This Row],[CampName]],CL,2,0),"") -> MMR001CMP028 | R40: =IFERROR(VLOOKUP(Table_Shelter[[#This Row],[CampName]],CL,3,0),"") -> Open | S40: =IFERROR(Table_Shelter[[#This Row],[HHCovered]]/VLOOKUP(Table_Shelter[[#This Row],[CampName]],CL,4,0),"") -> 0.3731343284
A41: 2013-10-31 | B41: DRC | C41: SHALOM | D41: Kachin | E41: Waingmaw | F41: Hkau Shau (BP 12) | G41: 1 | J41: 100 | K41: 100 | P41: =Table_Shelter[[#This Row],[HHperShelter]]*(Table_Shelter[[#This Row],['#ofTemporaryShelterUnitsBuilt]]+Table_Shelter[[#This Row],['#ofTemporaryShelterUnderConstruction]]+Table_Shelter[[#This Row],['#ofPermanentHouseUnderConstruction]]) -> 100 | Q41: =IFERROR(VLOOKUP(Table_Shelter[[#This Row],[CampName]],CL,2,0),"") -> MMR001CMP115 | R41: =IFERROR(VLOOKUP(Table_Shelter[[#This Row],[CampName]],CL,3,0),"") -> Open | S41: =IFERROR(Table_Shelter[[#This Row],[HHCovered]]/VLOOKUP(Table_Shelter[[#This Row],[CampName]],CL,4,0),"") -> 0.5681818182
A42: 2013-10-31 | B42: DRC | C42: KMSS | D42: Kachin | E42: Momauk | F42: Hpun Lum Yang | G42: 1 | J42: 338 | K42: 338 | P42: =Table_Shelter[[#This Row],[HHperShelter]]*(Table_Shelter[[#This Row],['#ofTemporaryShelterUnitsBuilt]]+Table_Shelter[[#This Row],['#ofTemporaryShelterUnderConstruction]]+Table_Shelter[[#This Row],['#ofPermanentHouseUnderConstruction]]) -> 338 | Q42: =IFERROR(VLOOKUP(Table_Shelter[[#This Row],[CampName]],CL,2,0),"") -> MMR001CMP122 | R42: =IFERROR(VLOOKUP(Table_Shelter[[#This Row],[CampName]],CL,3,0),"") -> Open | S42: =IFERROR(Table_Shelter[[#This Row],[HHCovered]]/VLOOKUP(Table_Shelter[[#This Row],[CampName]],CL,4,0),"") -> 0.7734553776
A43: 2013-10-31 | B43: IRRC | C43: KBSS | D43: Kachin | E43: Bhamo | F43: AD-2000 Tharthana Compound | G43: 1 | J43: 6 | K43: 6 | P43: =Table_Shelter[[#This Row],[HHperShelter]]*(Table_Shelter[[#This Row],['#ofTemporaryShelterUnitsBuilt]]+Table_Shelter[[#This Row],['#ofTemporaryShelterUnderConstruction]]+Table_Shelter[[#This Row],['#ofPermanentHouseUnderConstruction]]) -> 6 | Q43: =IFERROR(VLOOKUP(Table_Shelter[[#This Row],[CampName]],CL,2,0),"") -> MMR001CMP050 | R43: =IFERROR(VLOOKUP(Table_Shelter[[#This Row],[CampName]],CL,3,0),"") -> Open | S43: =IFERROR(Table_Shelter[[#This Row],[HHCovered]]/VLOOKUP(Table_Shelter[[#This Row],[CampName]],CL,4,0),"") -> 0.02564102564
A44: 2013-10-31 | B44: KBC Zonal | C44: KBC | D44: Kachin | E44: Myitkyina | F44: Njang Dung Baptist Church | G44: 1 | J44: 32 | K44: 32 | P44: =Table_Shelter[[#This Row],[HHperShelter]]*(Table_Shelter[[#This Row],['#ofTemporaryShelterUnitsBuilt]]+Table_Shelter[[#This Row],['#ofTemporaryShelterUnderConstruction]]+Table_Shelter[[#This Row],['#ofPermanentHouseUnderConstruction]]) -> 32 | Q44: =IFERROR(VLOOKUP(Table_Shelter[[#This Row],[CampName]],CL,2,0),"") -> MMR001CMP002 | R44: =IFERROR(VLOOKUP(Table_Shelter[[#This Row],[CampName]],CL,3,0),"") -> Open | S44: =IFERROR(Table_Shelter[[#This Row],[HHCovered]]/VLOOKUP(Table_Shelter[[#This Row],[CampName]],CL,4,0),"") -> 0.5614035088
A45: 2013-10-31 | B45: Misereor | C45: SHALOM | D45: Kachin | E45: Myitkyina | F45: Tat Kone COC Baptist / Tat Kone Htoi San | G45: 1 | J45: 12 | K45: 12 | P45: =Table_Shelter[[#This Row],[HHperShelter]]*(Table_Shelter[[#This Row],['#ofTemporaryShelterUnitsBuilt]]+Table_Shelter[[#This Row],['#ofTemporaryShelterUnderConstruction]]+Table_Shelter[[#This Row],['#ofPermanentHouseUnderConstruction]]) -> 12 | Q45: =IFERROR(VLOOKUP(Table_Shelter[[#This Row],[CampName]],CL,2,0),"") -> MMR001CMP023 | R45: =IFERROR(VLOOKUP(Table_Shelter[[#This Row],[CampName]],CL,3,0),"") -> Open | S45: =IFERROR(Table_Shelter[[#This Row],[HHCovered]]/VLOOKUP(Table_Shelter[[#This Row],[CampName]],CL,4,0),"") -> 0.1739130435
A46: 2013-10-31 | B46: Oxfam | C46: KBC | D46: Kachin | E46: Myitkyina | F46: Jan Mai Kawng Baptist Church | G46: 1 | J46: 85 | K46: 85 | P46: =Table_Shelter[[#This Row],[HHperShelter]]*(Table_Shelter[[#This Row],['#ofTemporaryShelterUnitsBuilt]]+Table_Shelter[[#This Row],['#ofTemporaryShelterUnderConstruction]]+Table_Shelter[[#This Row],['#ofPermanentHouseUnderConstruction]]) -> 85 | Q46: =IFERROR(VLOOKUP(Table_Shelter[[#This Row],[CampName]],CL,2,0),"") -> MMR001CMP018 | R46: =IFERROR(VLOOKUP(Table_Shelter[[#This Row],[CampName]],CL,3,0),"") -> Open | S46: =IFERROR(Table_Shelter[[#This Row],[HHCovered]]/VLOOKUP(Table_Shelter[[#This Row],[CampName]],CL,4,0),"") -> 0.4187192118
A47: 2013-10-31 | B47: Oxfam | C47: KBC | D47: Kachin | E47: Myitkyina | F47: Le Kone Bethlehem Church | G47: 1 | J47: 10 | K47: 10 | P47: =Table_Shelter[[#This Row],[HHperShelter]]*(Table_Shelter[[#This Row],['#ofTemporaryShelterUnitsBuilt]]+Table_Shelter[[#This Row],['#ofTemporaryShelterUnderConstruction]]+Table_Shelter[[#This Row],['#ofPermanentHouseUnderConstruction]]) -> 10 | Q47: =IFERROR(VLOOKUP(Table_Shelter[[#This Row],[CampName]],CL,2,0),"") -> MMR001CMP015 | R47: =IFERROR(VLOOKUP(Table_Shelter[[#This Row],[CampName]],CL,3,0),"") -> Open | S47: =IFERROR(Table_Shelter[[#This Row],[HHCovered]]/VLOOKUP(Table_Shelter[[#This Row],[CampName]],CL,4,0),"") -> 0.1149425287
A48: 2013-10-31 | B48: Oxfam | C48: KBC | D48: Kachin | E48: Myitkyina | F48: Le Kone Ziun Baptist Church | G48: 1 | J48: 20 | K48: 20 | P48: =Table_Shelter[[#This Row],[HHperShelter]]*(Table_Shelter[[#This Row],['#ofTemporaryShelterUnitsBuilt]]+Table_Shelter[[#This Row],['#ofTemporaryShelterUnderConstruction]]+Table_Shelter[[#This Row],['#ofPermanentHouseUnderConstruction]]) -> 20 | Q48: =IFERROR(VLOOKUP(Table_Shelter[[#This Row],[CampName]],CL,2,0),"") -> MMR001CMP014 | R48: =IFERROR(VLOOKUP(Table_Shelter[[#This Row],[CampName]],CL,3,0),"") -> Open | S48: =IFERROR(Table_Shelter[[#This Row],[HHCovered]]/VLOOKUP(Table_Shelter[[#This Row],[CampName]],CL,4,0),"") -> 0.1369863014
A49: 2013-10-31 | B49: Oxfam | C49: KBC | D49: Kachin | E49: Waingmaw | F49: Maina KBC (Bawng Ring) | G49: 1 | J49: 50 | K49: 50 | P49: =Table_Shelter[[#This Row],[HHperShelter]]*(Table_Shelter[[#This Row],['#ofTemporaryShelterUnitsBuilt]]+Table_Shelter[[#This Row],['#ofTemporaryShelterUnderConstruction]]+Table_Shelter[[#This Row],['#ofPermanentHouseUnderConstruction]]) -> 50 | Q49: =IFERROR(VLOOKUP(Table_Shelter[[#This Row],[CampName]],CL,2,0),"") -> MMR001CMP040 | R49: =IFERROR(VLOOKUP(Table_Shelter[[#This Row],[CampName]],CL,3,0),"") -> Open | S49: =IFERROR(Table_Shelter[[#This Row],[HHCovered]]/VLOOKUP(Table_Shelter[[#This Row],[CampName]],CL,4,0),"") -> 0.119047619
A50: 2013-10-31 | B50: Oxfam | C50: KBC | D50: Kachin | E50: Waingmaw | F50: Zai Awng / Mung Ga Zup | G50: 1 | J50: 220 | K50: 220 | P50: =Table_Shelter[[#This Row],[HHperShelter]]*(Table_Shelter[[#This Row],['#ofTemporaryShelterUnitsBuilt]]+Table_Shelter[[#This Row],['#ofTemporaryShelterUnderConstruction]]+Table_Shelter[[#This Row],['#ofPermanentHouseUnderConstruction]]) -> 220 | Q50: =IFERROR(VLOOKUP(Table_Shelter[[#This Row],[CampName]],CL,2,0),"") -> MMR001CMP111 | R50: =IFERROR(VLOOKUP(Table_Shelter[[#This Row],[CampName]],CL,3,0),"") -> Open | S50: =IFERROR(Table_Shelter[[#This Row],[HHCovered]]/VLOOKUP(Table_Shelter[[#This Row],[CampName]],CL,4,0),"") -> 0.3548387097
A51: 2013-10-31 | B51: UNHCR | C51: KBC | D51: Kachin | E51: Hpakant | F51: 5 Ward Baptist Church(lon Khin) | G51: 1 | J51: 20 | K51: 20 | P51: =Table_Shelter[[#This Row],[HHperShelter]]*(Table_Shelter[[#This Row],['#ofTemporaryShelterUnitsBuilt]]+Table_Shelter[[#This Row],['#ofTemporaryShelterUnderConstruction]]+Table_Shelter[[#This Row],['#ofPermanentHouseUnderConstruction]]) -> 20 | Q51: =IFERROR(VLOOKUP(Table_Shelter[[#This Row],[CampName]],CL,2,0),"") -> MMR001CMP179 | R51: =IFERROR(VLOOKUP(Table_Shelter[[#This Row],[CampName]],CL,3,0),"") -> Open | S51: =IFERROR(Table_Shelter[[#This Row],[HHCovered]]/VLOOKUP(Table_Shelter[[#This Row],[CampName]],CL,4,0),"") -> 0.2
A52: 2013-10-31 | B52: UNHCR | C52: KBC | D52: Kachin | E52: Hpakant | F52: Baptist Church, Hmaw Si Sar(Lon Khin) | G52: 1 | J52: 20 | K52: 20 | P52: =Table_Shelter[[#This Row],[HHperShelter]]*(Table_Shelter[[#This Row],['#ofTemporaryShelterUnitsBuilt]]+Table_Shelter[[#This Row],['#ofTemporaryShelterUnderConstruction]]+Table_Shelter[[#This Row],['#ofPermanentHouseUnderConstruction]]) -> 20 | Q52: =IFERROR(VLOOKUP(Table_Shelter[[#This Row],[CampName]],CL,2,0),"") -> MMR001CMP169 | R52: =IFERROR(VLOOKUP(Table_Shelter[[#This Row],[CampName]],CL,3,0),"") -> Open | S52: =IFERROR(Table_Shelter[[#This Row],[HHCovered]]/VLOOKUP(Table_Shelter[[#This Row],[CampName]],CL,4,0),"") -> 0.487804878
A53: 2013-10-31 | B53: UNHCR | C53: KBC | D53: Kachin | E53: Hpakant | F53: Nant Ma Hpit Catholic Church | G53: 1 | J53: 40 | K53: 40 | P53: =Table_Shelter[[#This Row],[HHperShelter]]*(Table_Shelter[[#This Row],['#ofTemporaryShelterUnitsBuilt]]+Table_Shelter[[#This Row],['#ofTemporaryShelterUnderConstruction]]+Table_Shelter[[#This Row],['#ofPermanentHouseUnderConstruction]]) -> 40 | Q53: =IFERROR(VLOOKUP(Table_Shelter[[#This Row],[CampName]],CL,2,0),"") -> MMR001CMP103 | R53: =IFERROR(VLOOKUP(Table_Shelter[[#This Row],[CampName]],CL,3,0),"") -> Open | S53: =IFERROR(Table_Shelter[[#This Row],[HHCovered]]/VLOOKUP(Table_Shelter[[#This Row],[CampName]],CL,4,0),"") -> 1.052631579
A54: 2013-10-31 | B54: UNHCR | C54: KBC | D54: Kachin | E54: Hpakant | F54: Sai Nai Baptish Church, Maw Shan Vil., Seki Mu | G54: 1 | J54: 5 | K54: 5 | P54: =Table_Shelter[[#This Row],[HHperShelter]]*(Table_Shelter[[#This Row],['#ofTemporaryShelterUnitsBuilt]]+Table_Shelter[[#This Row],['#ofTemporaryShelterUnderConstruction]]+Table_Shelter[[#This Row],['#ofPermanentHouseUnderConstruction]]) -> 5 | Q54: =IFERROR(VLOOKUP(Table_Shelter[[#This Row],[CampName]],CL,2,0),"") -> MMR001CMP183 | R54: =IFERROR(VLOOKUP(Table_Shelter[[#This Row],[CampName]],CL,3,0),"") -> Open | S54: =IFERROR(Table_Shelter[[#This Row],[HHCovered]]/VLOOKUP(Table_Shelter[[#This Row],[CampName]],CL,4,0),"") -> 0.1086956522
A55: 2013-10-31 | B55: UNHCR | C55: KBC | D55: Kachin | E55: Hpakant | F55: Ward 2 Sai Taung Baptist Church, Seik Mu | G55: 1 | J55: 15 | K55: 15 | P55: =Table_Shelter[[#This Row],[HHperShelter]]*(Table_Shelter[[#This Row],['#ofTemporaryShelterUnitsBuilt]]+Table_Shelter[[#This Row],['#ofTemporaryShelterUnderConstruction]]+Table_Shelter[[#This Row],['#ofPermanentHouseUnderConstruction]]) -> 15 | Q55: =IFERROR(VLOOKUP(Table_Shelter[[#This Row],[CampName]],CL,2,0),"") -> MMR001CMP184 | R55: =IFERROR(VLOOKUP(Table_Shelter[[#This Row],[CampName]],CL,3,0),"") -> Open | S55: =IFERROR(Table_Shelter[[#This Row],[HHCovered]]/VLOOKUP(Table_Shelter[[#This Row],[CampName]],CL,4,0),"") -> 0.1119402985
A56: 2013-10-31 | B56: UNHCR | C56: KBC | D56: Shan_North | E56: Kutkai | F56: Nam Hpak Ka Mare | G56: 1 | J56: 10 | K56: 10 | P56: =Table_Shelter[[#This Row],[HHperShelter]]*(Table_Shelter[[#This Row],['#ofTemporaryShelterUnitsBuilt]]+Table_Shelter[[#This Row],['#ofTemporaryShelterUnderConstruction]]+Table_Shelter[[#This Row],['#ofPermanentHouseUnderConstruction]]) -> 10 | Q56: =IFERROR(VLOOKUP(Table_Shelter[[#This Row],[CampName]],CL,2,0),"") -> MMR015CMP007 | R56: =IFERROR(VLOOKUP(Table_Shelter[[#This Row],[CampName]],CL,3,0),"") -> Open | S56: =IFERROR(Table_Shelter[[#This Row],[HHCovered]]/VLOOKUP(Table_Shelter[[#This Row],[CampName]],CL,4,0),"") -> 0.1265822785
A57: 2013-10-31 | B57: UNHCR | C57: KBC | D57: Shan_North | E57: Manton | F57: Howa | G57: 1 | J57: 10 | K57: 10 | P57: =Table_Shelter[[#This Row],[HHperShelter]]*(Table_Shelter[[#This Row],['#ofTemporaryShelterUnitsBuilt]]+Table_Shelter[[#This Row],['#ofTemporaryShelterUnderConstruction]]+Table_Shelter[[#This Row],['#ofPermanentHouseUnderConstruction]]) -> 10 | Q57: =IFERROR(VLOOKUP(Table_Shelter[[#This Row],[CampName]],CL,2,0),"") -> MMR015CMP010 | R57: =IFERROR(VLOOKUP(Table_Shelter[[#This Row],[CampName]],CL,3,0),"") -> Open | S57: =IFERROR(Table_Shelter[[#This Row],[HHCovered]]/VLOOKUP(Table_Shelter[[#This Row],[CampName]],CL,4,0),"") -> 
A58: 2013-10-31 | B58: UNHCR | C58: KBC | D58: Shan_North | E58: Manton | F58: Mandung - Jinghpaw | G58: 1 | J58: 10 | K58: 10 | P58: =Table_Shelter[[#This Row],[HHperShelter]]*(Table_Shelter[[#This Row],['#ofTemporaryShelterUnitsBuilt]]+Table_Shelter[[#This Row],['#ofTemporaryShelterUnderConstruction]]+Table_Shelter[[#This Row],['#ofPermanentHouseUnderConstruction]]) -> 10 | Q58: =IFERROR(VLOOKUP(Table_Shelter[[#This Row],[CampName]],CL,2,0),"") -> MMR015CMP009 | R58: =IFERROR(VLOOKUP(Table_Shelter[[#This Row],[CampName]],CL,3,0),"") -> Open | S58: =IFERROR(Table_Shelter[[#This Row],[HHCovered]]/VLOOKUP(Table_Shelter[[#This Row],[CampName]],CL,4,0),"") -> 0.2325581395
A59: 2013-10-31 | B59: UNHCR | C59: KBC | D59: Kachin | E59: Mogaung | F59: Kyun Taw Baptist Church | G59: 1 | J59: 15 | K59: 15 | P59: =Table_Shelter[[#This Row],[HHperShelter]]*(Table_Shelter[[#This Row],['#ofTemporaryShelterUnitsBuilt]]+Table_Shelter[[#This Row],['#ofTemporaryShelterUnderConstruction]]+Table_Shelter[[#This Row],['#ofPermanentHouseUnderConstruction]]) -> 15 | Q59: =IFERROR(VLOOKUP(Table_Shelter[[#This Row],[CampName]],CL,2,0),"") -> MMR001CMP078 | R59: =IFERROR(VLOOKUP(Table_Shelter[[#This Row],[CampName]],CL,3,0),"") -> Open | S59: =IFERROR(Table_Shelter[[#This Row],[HHCovered]]/VLOOKUP(Table_Shelter[[#This Row],[CampName]],CL,4,0),"") -> 1.153846154
A60: 2013-10-31 | B60: UNHCR | C60: KBC | D60: Kachin | E60: Mogaung | F60: Mang Hawng Baptist Church | G60: 1 | J60: 10 | K60: 10 | P60: =Table_Shelter[[#This Row],[HHperShelter]]*(Table_Shelter[[#This Row],['#ofTemporaryShelterUnitsBuilt]]+Table_Shelter[[#This Row],['#ofTemporaryShelterUnderConstruction]]+Table_Shelter[[#This Row],['#ofPermanentHouseUnderConstruction]]) -> 10 | Q60: =IFERROR(VLOOKUP(Table_Shelter[[#This Row],[CampName]],CL,2,0),"") -> MMR001CMP077 | R60: =IFERROR(VLOOKUP(Table_Shelter[[#This Row],[CampName]],CL,3,0),"") -> Open | S60: =IFERROR(Table_Shelter[[#This Row],[HHCovered]]/VLOOKUP(Table_Shelter[[#This Row],[CampName]],CL,4,0),"") -> 0.7142857143
A61: 2013-10-31 | B61: UNHCR | C61: KBC | D61: Kachin | E61: Mogaung | F61: Nat Gyi Kone Baptist Church | G61: 1 | J61: 15 | K61: 15 | P61: =Table_Shelter[[#This Row],[HHperShelter]]*(Table_Shelter[[#This Row],['#ofTemporaryShelterUnitsBuilt]]+Table_Shelter[[#This Row],['#ofTemporaryShelterUnderConstruction]]+Table_Shelter[[#This Row],['#ofPermanentHouseUnderConstruction]]) -> 15 | Q61: =IFERROR(VLOOKUP(Table_Shelter[[#This Row],[CampName]],CL,2,0),"") -> MMR001CMP079 | R61: =IFERROR(VLOOKUP(Table_Shelter[[#This Row],[CampName]],CL,3,0),"") -> Open | S61: =IFERROR(Table_Shelter[[#This Row],[HHCovered]]/VLOOKUP(Table_Shelter[[#This Row],[CampName]],CL,4,0),"") -> 1.25
A62: 2013-10-31 | B62: UNHCR | C62: KBC | D62: Kachin | E62: Mohnyin | F62: Nawng Ing (Indawgyi) Baptist Church | G62: 1 | J62: 20 | K62: 20 | P62: =Table_Shelter[[#This Row],[HHperShelter]]*(Table_Shelter[[#This Row],['#ofTemporaryShelterUnitsBuilt]]+Table_Shelter[[#This Row],['#ofTemporaryShelterUnderConstruction]]+Table_Shelter[[#This Row],['#ofPermanentHouseUnderConstruction]]) -> 20 | Q62: =IFERROR(VLOOKUP(Table_Shelter[[#This Row],[CampName]],CL,2,0),"") -> MMR001CMP152 | R62: =IFERROR(VLOOKUP(Table_Shelter[[#This Row],[CampName]],CL,3,0),"") -> Open | S62: =IFERROR(Table_Shelter[[#This Row],[HHCovered]]/VLOOKUP(Table_Shelter[[#This Row],[CampName]],CL,4,0),"") -> 0.9523809524
A63: 2013-10-31 | B63: UNHCR | C63: KBC | D63: Shan_North | E63: Muse | F63: Mung Baw | G63: 1 | J63: 10 | K63: 10 | P63: =Table_Shelter[[#This Row],[HHperShelter]]*(Table_Shelter[[#This Row],['#ofTemporaryShelterUnitsBuilt]]+Table_Shelter[[#This Row],['#ofTemporaryShelterUnderConstruction]]+Table_Shelter[[#This Row],['#ofPermanentHouseUnderConstruction]]) -> 10 | Q63: =IFERROR(VLOOKUP(Table_Shelter[[#This Row],[CampName]],CL,2,0),"") -> MMR015CMP005 | R63: =IFERROR(VLOOKUP(Table_Shelter[[#This Row],[CampName]],CL,3,0),"") -> Open | S63: =IFERROR(Table_Shelter[[#This Row],[HHCovered]]/VLOOKUP(Table_Shelter[[#This Row],[CampName]],CL,4,0),"") -> 0.08130081301
A64: 2013-10-31 | B64: UNHCR | C64: KBC | D64: Kachin | E64: Myitkyina | F64: Jan Mai Kawng Baptist Church | G64: 1 | J64: 20 | K64: 20 | P64: =Table_Shelter[[#This Row],[HHperShelter]]*(Table_Shelter[[#This Row],['#ofTemporaryShelterUnitsBuilt]]+Table_Shelter[[#This Row],['#ofTemporaryShelterUnderConstruction]]+Table_Shelter[[#This Row],['#ofPermanentHouseUnderConstruction]]) -> 20 | Q64: =IFERROR(VLOOKUP(Table_Shelter[[#This Row],[CampName]],CL,2,0),"") -> MMR001CMP018 | R64: =IFERROR(VLOOKUP(Table_Shelter[[#This Row],[CampName]],CL,3,0),"") -> Open | S64: =IFERROR(Table_Shelter[[#This Row],[HHCovered]]/VLOOKUP(Table_Shelter[[#This Row],[CampName]],CL,4,0),"") -> 0.09852216749
A65: 2013-10-31 | B65: UNHCR | C65: KBC | D65: Kachin | E65: Myitkyina | F65: Kyun Pin Thar Baptist Church | G65: 1 | J65: 5 | K65: 5 | P65: =Table_Shelter[[#This Row],[HHperShelter]]*(Table_Shelter[[#This Row],['#ofTemporaryShelterUnitsBuilt]]+Table_Shelter[[#This Row],['#ofTemporaryShelterUnderConstruction]]+Table_Shelter[[#This Row],['#ofPermanentHouseUnderConstruction]]) -> 5 | Q65: =IFERROR(VLOOKUP(Table_Shelter[[#This Row],[CampName]],CL,2,0),"") -> MMR001CMP013 | R65: =IFERROR(VLOOKUP(Table_Shelter[[#This Row],[CampName]],CL,3,0),"") -> Open | S65: =IFERROR(Table_Shelter[[#This Row],[HHCovered]]/VLOOKUP(Table_Shelter[[#This Row],[CampName]],CL,4,0),"") -> 0.1111111111
A66: 2013-10-31 | B66: UNHCR | C66: KBC | D66: Kachin | E66: Myitkyina | F66: Le Kone Bethlehem Church | G66: 1 | J66: 10 | K66: 10 | P66: =Table_Shelter[[#This Row],[HHperShelter]]*(Table_Shelter[[#This Row],['#ofTemporaryShelterUnitsBuilt]]+Table_Shelter[[#This Row],['#ofTemporaryShelterUnderConstruction]]+Table_Shelter[[#This Row],['#ofPermanentHouseUnderConstruction]]) -> 10 | Q66: =IFERROR(VLOOKUP(Table_Shelter[[#This Row],[CampName]],CL,2,0),"") -> MMR001CMP015 | R66: =IFERROR(VLOOKUP(Table_Shelter[[#This Row],[CampName]],CL,3,0),"") -> Open | S66: =IFERROR(Table_Shelter[[#This Row],[HHCovered]]/VLOOKUP(Table_Shelter[[#This Row],[CampName]],CL,4,0),"") -> 0.1149425287
A67: 2013-10-31 | B67: UNHCR | C67: KBC | D67: Kachin | E67: Myitkyina | F67: Le Kone Ziun Baptist Church | G67: 1 | J67: 60 | K67: 60 | P67: =Table_Shelter[[#This Row],[HHperShelter]]*(Table_Shelter[[#This Row],['#ofTemporaryShelterUnitsBuilt]]+Table_Shelter[[#This Row],['#ofTemporaryShelterUnderConstruction]]+Table_Shelter[[#This Row],['#ofPermanentHouseUnderConstruction]]) -> 60 | Q67: =IFERROR(VLOOKUP(Table_Shelter[[#This Row],[CampName]],CL,2,0),"") -> MMR001CMP014 | R67: =IFERROR(VLOOKUP(Table_Shelter[[#This Row],[CampName]],CL,3,0),"") -> Open | S67: =IFERROR(Table_Shelter[[#This Row],[HHCovered]]/VLOOKUP(Table_Shelter[[#This Row],[CampName]],CL,4,0),"") -> 0.4109589041
A68: 2013-10-31 | B68: UNHCR | C68: KBC | D68: Kachin | E68: Myitkyina | F68: Maliyang Baptist Church | G68: 1 | J68: 20 | K68: 20 | P68: =Table_Shelter[[#This Row],[HHperShelter]]*(Table_Shelter[[#This Row],['#ofTemporaryShelterUnitsBuilt]]+Table_Shelter[[#This Row],['#ofTemporaryShelterUnderConstruction]]+Table_Shelter[[#This Row],['#ofPermanentHouseUnderConstruction]]) -> 20 | Q68: =IFERROR(VLOOKUP(Table_Shelter[[#This Row],[CampName]],CL,2,0),"") -> MMR001CMP016 | R68: =IFERROR(VLOOKUP(Table_Shelter[[#This Row],[CampName]],CL,3,0),"") -> Open | S68: =IFERROR(Table_Shelter[[#This Row],[HHCovered]]/VLOOKUP(Table_Shelter[[#This Row],[CampName]],CL,4,0),"") -> 0.2777777778
A69: 2013-10-31 | B69: UNHCR | C69: KBC | D69: Kachin | E69: Myitkyina | F69: Man Hkring Baptist Church | G69: 1 | J69: 60 | K69: 60 | P69: =Table_Shelter[[#This Row],[HHperShelter]]*(Table_Shelter[[#This Row],['#ofTemporaryShelterUnitsBuilt]]+Table_Shelter[[#This Row],['#ofTemporaryShelterUnderConstruction]]+Table_Shelter[[#This Row],['#ofPermanentHouseUnderConstruction]]) -> 60 | Q69: =IFERROR(VLOOKUP(Table_Shelter[[#This Row],[CampName]],CL,2,0),"") -> MMR001CMP008 | R69: =IFERROR(VLOOKUP(Table_Shelter[[#This Row],[CampName]],CL,3,0),"") -> Open | S69: =IFERROR(Table_Shelter[[#This Row],[HHCovered]]/VLOOKUP(Table_Shelter[[#This Row],[CampName]],CL,4,0),"") -> 0.6315789474
A70: 2013-10-31 | B70: UNHCR | C70: KBC | D70: Kachin | E70: Myitkyina | F70: Njang Dung Baptist Church | G70: 1 | J70: 20 | K70: 20 | P70: =Table_Shelter[[#This Row],[HHperShelter]]*(Table_Shelter[[#This Row],['#ofTemporaryShelterUnitsBuilt]]+Table_Shelter[[#This Row],['#ofTemporaryShelterUnderConstruction]]+Table_Shelter[[#This Row],['#ofPermanentHouseUnderConstruction]]) -> 20 | Q70: =IFERROR(VLOOKUP(Table_Shelter[[#This Row],[CampName]],CL,2,0),"") -> MMR001CMP002 | R70: =IFERROR(VLOOKUP(Table_Shelter[[#This Row],[CampName]],CL,3,0),"") -> Open | S70: =IFERROR(Table_Shelter[[#This Row],[HHCovered]]/VLOOKUP(Table_Shelter[[#This Row],[CampName]],CL,4,0),"") -> 0.350877193
A71: 2013-10-31 | B71: UNHCR | C71: KBC | D71: Kachin | E71: Myitkyina | F71: Shatapru Sut Ngai Tawng | G71: 1 | J71: 10 | K71: 10 | P71: =Table_Shelter[[#This Row],[HHperShelter]]*(Table_Shelter[[#This Row],['#ofTemporaryShelterUnitsBuilt]]+Table_Shelter[[#This Row],['#ofTemporaryShelterUnderConstruction]]+Table_Shelter[[#This Row],['#ofPermanentHouseUnderConstruction]]) -> 10 | Q71: =IFERROR(VLOOKUP(Table_Shelter[[#This Row],[CampName]],CL,2,0),"") -> MMR001CMP006 | R71: =IFERROR(VLOOKUP(Table_Shelter[[#This Row],[CampName]],CL,3,0),"") -> Open | S71: =IFERROR(Table_Shelter[[#This Row],[HHCovered]]/VLOOKUP(Table_Shelter[[#This Row],[CampName]],CL,4,0),"") -> 0.09433962264
A72: 2013-10-31 | B72: UNHCR | C72: KBC | D72: Kachin | E72: Myitkyina | F72: Shwe Zet Baptist Church | G72: 1 | J72: 50 | K72: 50 | P72: =Table_Shelter[[#This Row],[HHperShelter]]*(Table_Shelter[[#This Row],['#ofTemporaryShelterUnitsBuilt]]+Table_Shelter[[#This Row],['#ofTemporaryShelterUnderConstruction]]+Table_Shelter[[#This Row],['#ofPermanentHouseUnderConstruction]]) -> 50 | Q72: =IFERROR(VLOOKUP(Table_Shelter[[#This Row],[CampName]],CL,2,0),"") -> MMR001CMP009 | R72: =IFERROR(VLOOKUP(Table_Shelter[[#This Row],[CampName]],CL,3,0),"") -> Open | S72: =IFERROR(Table_Shelter[[#This Row],[HHCovered]]/VLOOKUP(Table_Shelter[[#This Row],[CampName]],CL,4,0),"") -> 0.5952380952
A73: 2013-10-31 | B73: UNHCR | C73: KBC | D73: Kachin | E73: Myitkyina | F73: Tat Kone Baptist Church | G73: 1 | J73: 60 | K73: 60 | P73: =Table_Shelter[[#This Row],[HHperShelter]]*(Table_Shelter[[#This Row],['#ofTemporaryShelterUnitsBuilt]]+Table_Shelter[[#This Row],['#ofTemporaryShelterUnderConstruction]]+Table_Shelter[[#This Row],['#ofPermanentHouseUnderConstruction]]) -> 60 | Q73: =IFERROR(VLOOKUP(Table_Shelter[[#This Row],[CampName]],CL,2,0),"") -> MMR001CMP001 | R73: =IFERROR(VLOOKUP(Table_Shelter[[#This Row],[CampName]],CL,3,0),"") -> Open | S73: =IFERROR(Table_Shelter[[#This Row],[HHCovered]]/VLOOKUP(Table_Shelter[[#This Row],[CampName]],CL,4,0),"") -> 1.071428571
A74: 2013-10-31 | B74: UNHCR | C74: KBC | D74: Kachin | E74: Myitkyina | F74: Tat Kone Galile Baptist Church | G74: 1 | J74: 20 | K74: 20 | P74: =Table_Shelter[[#This Row],[HHperShelter]]*(Table_Shelter[[#This Row],['#ofTemporaryShelterUnitsBuilt]]+Table_Shelter[[#This Row],['#ofTemporaryShelterUnderConstruction]]+Table_Shelter[[#This Row],['#ofPermanentHouseUnderConstruction]]) -> 20 | Q74: =IFERROR(VLOOKUP(Table_Shelter[[#This Row],[CampName]],CL,2,0),"") -> MMR001CMP003 | R74: =IFERROR(VLOOKUP(Table_Shelter[[#This Row],[CampName]],CL,3,0),"") -> Open | S74: =IFERROR(Table_Shelter[[#This Row],[HHCovered]]/VLOOKUP(Table_Shelter[[#This Row],[CampName]],CL,4,0),"") -> 0.6666666667
A75: 2013-10-31 | B75: UNHCR | C75: KBC | D75: Kachin | E75: Myitkyina | F75: Tat Kone San Pya Baptist Church | G75: 1 | J75: 10 | K75: 10 | P75: =Table_Shelter[[#This Row],[HHperShelter]]*(Table_Shelter[[#This Row],['#ofTemporaryShelterUnitsBuilt]]+Table_Shelter[[#This Row],['#ofTemporaryShelterUnderConstruction]]+Table_Shelter[[#This Row],['#ofPermanentHouseUnderConstruction]]) -> 10 | Q75: =IFERROR(VLOOKUP(Table_Shelter[[#This Row],[CampName]],CL,2,0),"") -> MMR001CMP005 | R75: =IFERROR(VLOOKUP(Table_Shelter[[#This Row],[CampName]],CL,3,0),"") -> Open | S75: =IFERROR(Table_Shelter[[#This Row],[HHCovered]]/VLOOKUP(Table_Shelter[[#This Row],[CampName]],CL,4,0),"") -> 0.2325581395
A76: 2013-10-31 | B76: UNHCR | C76: KBC | D76: Shan_North | E76: Namtu | F76: Nam Tu Baptist | G76: 1 | J76: 10 | K76: 10 | P76: =Table_Shelter[[#This Row],[HHperShelter]]*(Table_Shelter[[#This Row],['#ofTemporaryShelterUnitsBuilt]]+Table_Shelter[[#This Row],['#ofTemporaryShelterUnderConstruction]]+Table_Shelter[[#This Row],['#ofPermanentHouseUnderConstruction]]) -> 10 | Q76: =IFERROR(VLOOKUP(Table_Shelter[[#This Row],[CampName]],CL,2,0),"") -> MMR015CMP014 | R76: =IFERROR(VLOOKUP(Table_Shelter[[#This Row],[CampName]],CL,3,0),"") -> Open | S76: =IFERROR(Table_Shelter[[#This Row],[HHCovered]]/VLOOKUP(Table_Shelter[[#This Row],[CampName]],CL,4,0),"") -> 0.5
A77: 2013-10-31 | B77: UNHCR | C77: KBC | D77: Kachin | E77: Waingmaw | F77: Maina KBC (Bawng Ring) | G77: 1 | J77: 400 | K77: 400 | P77: =Table_Shelter[[#This Row],[HHperShelter]]*(Table_Shelter[[#This Row],['#ofTemporaryShelterUnitsBuilt]]+Table_Shelter[[#This Row],['#ofTemporaryShelterUnderConstruction]]+Table_Shelter[[#This Row],['#ofPermanentHouseUnderConstruction]]) -> 400 | Q77: =IFERROR(VLOOKUP(Table_Shelter[[#This Row],[CampName]],CL,2,0),"") -> MMR001CMP040 | R77: =IFERROR(VLOOKUP(Table_Shelter[[#This Row],[CampName]],CL,3,0),"") -> Open | S77: =IFERROR(Table_Shelter[[#This Row],[HHCovered]]/VLOOKUP(Table_Shelter[[#This Row],[CampName]],CL,4,0),"") -> 0.9523809524
A78: 2013-10-31 | B78: UNHCR | C78: KBC | D78: Kachin | E78: Waingmaw | F78: Maina Lawang Baptist Church | G78: 1 | J78: 30 | K78: 30 | P78: =Table_Shelter[[#This Row],[HHperShelter]]*(Table_Shelter[[#This Row],['#ofTemporaryShelterUnitsBuilt]]+Table_Shelter[[#This Row],['#ofTemporaryShelterUnderConstruction]]+Table_Shelter[[#This Row],['#ofPermanentHouseUnderConstruction]]) -> 30 | Q78: =IFERROR(VLOOKUP(Table_Shelter[[#This Row],[CampName]],CL,2,0),"") -> MMR001CMP039 | R78: =IFERROR(VLOOKUP(Table_Shelter[[#This Row],[CampName]],CL,3,0),"") -> Open | S78: =IFERROR(Table_Shelter[[#This Row],[HHCovered]]/VLOOKUP(Table_Shelter[[#This Row],[CampName]],CL,4,0),"") -> 0.612244898
A79: 2013-10-31 | B79: UNHCR | C79: KBC | D79: Kachin | E79: Waingmaw | F79: Pajau / Jan Mai | G79: 1 | J79: 35 | K79: 35 | P79: =Table_Shelter[[#This Row],[HHperShelter]]*(Table_Shelter[[#This Row],['#ofTemporaryShelterUnitsBuilt]]+Table_Shelter[[#This Row],['#ofTemporaryShelterUnderConstruction]]+Table_Shelter[[#This Row],['#ofPermanentHouseUnderConstruction]]) -> 35 | Q79: =IFERROR(VLOOKUP(Table_Shelter[[#This Row],[CampName]],CL,2,0),"") -> MMR001CMP120 | R79: =IFERROR(VLOOKUP(Table_Shelter[[#This Row],[CampName]],CL,3,0),"") -> Open | S79: =IFERROR(Table_Shelter[[#This Row],[HHCovered]]/VLOOKUP(Table_Shelter[[#This Row],[CampName]],CL,4,0),"") -> 0.188172043
A80: 2013-10-31 | B80: UNHCR | C80: KBC | D80: Kachin | E80: Waingmaw | F80: Qtr. 2 Myoma Baptist Church | G80: 1 | J80: 10 | K80: 10 | P80: =Table_Shelter[[#This Row],[HHperShelter]]*(Table_Shelter[[#This Row],['#ofTemporaryShelterUnitsBuilt]]+Table_Shelter[[#This Row],['#ofTemporaryShelterUnderConstruction]]+Table_Shelter[[#This Row],['#ofPermanentHouseUnderConstruction]]) -> 10 | Q80: =IFERROR(VLOOKUP(Table_Shelter[[#This Row],[CampName]],CL,2,0),"") -> MMR001CMP025 | R80: =IFERROR(VLOOKUP(Table_Shelter[[#This Row],[CampName]],CL,3,0),"") -> Open | S80: =IFERROR(Table_Shelter[[#This Row],[HHCovered]]/VLOOKUP(Table_Shelter[[#This Row],[CampName]],CL,4,0),"") -> 0.1204819277
A81: 2013-10-31 | B81: UNHCR | C81: KBC | D81: Kachin | E81: Waingmaw | F81: Shing Jai | G81: 1 | J81: 170 | K81: 170 | P81: =Table_Shelter[[#This Row],[HHperShelter]]*(Table_Shelter[[#This Row],['#ofTemporaryShelterUnitsBuilt]]+Table_Shelter[[#This Row],['#ofTemporaryShelterUnderConstruction]]+Table_Shelter[[#This Row],['#ofPermanentHouseUnderConstruction]]) -> 170 | Q81: =IFERROR(VLOOKUP(Table_Shelter[[#This Row],[CampName]],CL,2,0),"") -> MMR001CMP041 | R81: =IFERROR(VLOOKUP(Table_Shelter[[#This Row],[CampName]],CL,3,0),"") -> Open | S81: =IFERROR(Table_Shelter[[#This Row],[HHCovered]]/VLOOKUP(Table_Shelter[[#This Row],[CampName]],CL,4,0),"") -> 0.9042553191
A82: 2013-10-31 | B82: UNHCR | C82: KBC | D82: Kachin | E82: Waingmaw | F82: Waingmaw Baptist Zonal Office | G82: 1 | J82: 10 | K82: 10 | P82: =Table_Shelter[[#This Row],[HHperShelter]]*(Table_Shelter[[#This Row],['#ofTemporaryShelterUnitsBuilt]]+Table_Shelter[[#This Row],['#ofTemporaryShelterUnderConstruction]]+Table_Shelter[[#This Row],['#ofPermanentHouseUnderConstruction]]) -> 10 | Q82: =IFERROR(VLOOKUP(Table_Shelter[[#This Row],[CampName]],CL,2,0),"") -> MMR001CMP036 | R82: =IFERROR(VLOOKUP(Table_Shelter[[#This Row],[CampName]],CL,3,0),"") -> Open | S82: =IFERROR(Table_Shelter[[#This Row],[HHCovered]]/VLOOKUP(Table_Shelter[[#This Row],[CampName]],CL,4,0),"") -> 
A83: 2013-10-31 | B83: UNHCR | C83: KBC | D83: Kachin | E83: Waingmaw | F83: Zai Awng / Mung Ga Zup | G83: 1 | J83: 325 | K83: 325 | P83: =Table_Shelter[[#This Row],[HHperShelter]]*(Table_Shelter[[#This Row],['#ofTemporaryShelterUnitsBuilt]]+Table_Shelter[[#This Row],['#ofTemporaryShelterUnderConstruction]]+Table_Shelter[[#This Row],['#ofPermanentHouseUnderConstruction]]) -> 325 | Q83: =IFERROR(VLOOKUP(Table_Shelter[[#This Row],[CampName]],CL,2,0),"") -> MMR001CMP111 | R83: =IFERROR(VLOOKUP(Table_Shelter[[#This Row],[CampName]],CL,3,0),"") -> Open | S83: =IFERROR(Table_Shelter[[#This Row],[HHCovered]]/VLOOKUP(Table_Shelter[[#This Row],[CampName]],CL,4,0),"") -> 0.5241935484
A84: 2013-10-31 | B84: UNHCR | C84: KBSS | D84: Kachin | E84: Bhamo | F84: AD-2000 Tharthana Compound | G84: 1 | J84: 144 | K84: 144 | P84: =Table_Shelter[[#This Row],[HHperShelter]]*(Table_Shelter[[#This Row],['#ofTemporaryShelterUnitsBuilt]]+Table_Shelter[[#This Row],['#ofTemporaryShelterUnderConstruction]]+Table_Shelter[[#This Row],['#ofPermanentHouseUnderConstruction]]) -> 144 | Q84: =IFERROR(VLOOKUP(Table_Shelter[[#This Row],[CampName]],CL,2,0),"") -> MMR001CMP050 | R84: =IFERROR(VLOOKUP(Table_Shelter[[#This Row],[CampName]],CL,3,0),"") -> Open | S84: =IFERROR(Table_Shelter[[#This Row],[HHCovered]]/VLOOKUP(Table_Shelter[[#This Row],[CampName]],CL,4,0),"") -> 0.6153846154
A85: 2013-10-31 | B85: UNHCR | C85: KBSS | D85: Kachin | E85: Mansi | F85: Lana Zup Ja | G85: 1 | J85: 350 | K85: 350 | P85: =Table_Shelter[[#This Row],[HHperShelter]]*(Table_Shelter[[#This Row],['#ofTemporaryShelterUnitsBuilt]]+Table_Shelter[[#This Row],['#ofTemporaryShelterUnderConstruction]]+Table_Shelter[[#This Row],['#ofPermanentHouseUnderConstruction]]) -> 350 | Q85: =IFERROR(VLOOKUP(Table_Shelter[[#This Row],[CampName]],CL,2,0),"") -> MMR001CMP128 | R85: =IFERROR(VLOOKUP(Table_Shelter[[#This Row],[CampName]],CL,3,0),"") -> Open | S85: =IFERROR(Table_Shelter[[#This Row],[HHCovered]]/VLOOKUP(Table_Shelter[[#This Row],[CampName]],CL,4,0),"") -> 0.6352087114
A86: 2013-10-31 | B86: UNHCR | C86: KBSS | D86: Kachin | E86: Mansi | F86: Nam Lim Pa | G86: 1 | J86: 36 | K86: 36 | P86: =Table_Shelter[[#This Row],[HHperShelter]]*(Table_Shelter[[#This Row],['#ofTemporaryShelterUnitsBuilt]]+Table_Shelter[[#This Row],['#ofTemporaryShelterUnderConstruction]]+Table_Shelter[[#This Row],['#ofPermanentHouseUnderConstruction]]) -> 36 | Q86: =IFERROR(VLOOKUP(Table_Shelter[[#This Row],[CampName]],CL,2,0),"") -> MMR001CMP204 | R86: =IFERROR(VLOOKUP(Table_Shelter[[#This Row],[CampName]],CL,3,0),"") -> Closed | S86: =IFERROR(Table_Shelter[[#This Row],[HHCovered]]/VLOOKUP(Table_Shelter[[#This Row],[CampName]],CL,4,0),"") -> 
A87: 2013-10-31 | B87: UNHCR | C87: KBSS | D87: Kachin | E87: Momauk | F87: Je Yang Hka | G87: 1 | J87: 237 | K87: 237 | P87: =Table_Shelter[[#This Row],[HHperShelter]]*(Table_Shelter[[#This Row],['#ofTemporaryShelterUnitsBuilt]]+Table_Shelter[[#This Row],['#ofTemporaryShelterUnderConstruction]]+Table_Shelter[[#This Row],['#ofPermanentHouseUnderConstruction]]) -> 237 | Q87: =IFERROR(VLOOKUP(Table_Shelter[[#This Row],[CampName]],CL,2,0),"") -> MMR001CMP121 | R87: =IFERROR(VLOOKUP(Table_Shelter[[#This Row],[CampName]],CL,3,0),"") -> Open | S87: =IFERROR(Table_Shelter[[#This Row],[HHCovered]]/VLOOKUP(Table_Shelter[[#This Row],[CampName]],CL,4,0),"") -> 0.1404028436
A88: 2013-10-31 | B88: UNHCR | C88: KBSS | D88: Kachin | E88: Momauk | F88: Man Bung Catholic compound | G88: 1 | J88: 20 | K88: 20 | P88: =Table_Shelter[[#This Row],[HHperShelter]]*(Table_Shelter[[#This Row],['#ofTemporaryShelterUnitsBuilt]]+Table_Shelter[[#This Row],['#ofTemporaryShelterUnderConstruction]]+Table_Shelter[[#This Row],['#ofPermanentHouseUnderConstruction]]) -> 20 | Q88: =IFERROR(VLOOKUP(Table_Shelter[[#This Row],[CampName]],CL,2,0),"") -> MMR001CMP062 | R88: =IFERROR(VLOOKUP(Table_Shelter[[#This Row],[CampName]],CL,3,0),"") -> Open | S88: =IFERROR(Table_Shelter[[#This Row],[HHCovered]]/VLOOKUP(Table_Shelter[[#This Row],[CampName]],CL,4,0),"") -> 0.1709401709
A89: 2013-10-31 | B89: UNHCR | C89: KBSS | D89: Kachin | E89: Momauk | F89: Pa Kahtawng | G89: 1 | J89: 120 | K89: 120 | P89: =Table_Shelter[[#This Row],[HHperShelter]]*(Table_Shelter[[#This Row],['#ofTemporaryShelterUnitsBuilt]]+Table_Shelter[[#This Row],['#ofTemporaryShelterUnderConstruction]]+Table_Shelter[[#This Row],['#ofPermanentHouseUnderConstruction]]) -> 120 | Q89: =IFERROR(VLOOKUP(Table_Shelter[[#This Row],[CampName]],CL,2,0),"") -> MMR001CMP126 | R89: =IFERROR(VLOOKUP(Table_Shelter[[#This Row],[CampName]],CL,3,0),"") -> Open | S89: =IFERROR(Table_Shelter[[#This Row],[HHCovered]]/VLOOKUP(Table_Shelter[[#This Row],[CampName]],CL,4,0),"") -> 0.2325581395
A90: 2013-10-31 | B90: UNHCR | C90: KBSS | D90: Kachin | E90: Shwegu | F90: Shwe Gu Catholic Church | G90: 1 | J90: 10 | K90: 10 | P90: =Table_Shelter[[#This Row],[HHperShelter]]*(Table_Shelter[[#This Row],['#ofTemporaryShelterUnitsBuilt]]+Table_Shelter[[#This Row],['#ofTemporaryShelterUnderConstruction]]+Table_Shelter[[#This Row],['#ofPermanentHouseUnderConstruction]]) -> 10 | Q90: =IFERROR(VLOOKUP(Table_Shelter[[#This Row],[CampName]],CL,2,0),"") -> MMR001CMP068 | R90: =IFERROR(VLOOKUP(Table_Shelter[[#This Row],[CampName]],CL,3,0),"") -> Open | S90: =IFERROR(Table_Shelter[[#This Row],[HHCovered]]/VLOOKUP(Table_Shelter[[#This Row],[CampName]],CL,4,0),"") -> 0.2127659574
A91: 2013-10-31 | B91: UNHCR | C91: KMSS | D91: Kachin | E91: Mansi | F91: Man Wing Catholic Church | G91: 1 | J91: 200 | K91: 200 | P91: =Table_Shelter[[#This Row],[HHperShelter]]*(Table_Shelter[[#This Row],['#ofTemporaryShelterUnitsBuilt]]+Table_Shelter[[#This Row],['#ofTemporaryShelterUnderConstruction]]+Table_Shelter[[#This Row],['#ofPermanentHouseUnderConstruction]]) -> 200 | Q91: =IFERROR(VLOOKUP(Table_Shelter[[#This Row],[CampName]],CL,2,0),"") -> MMR001CMP132 | R91: =IFERROR(VLOOKUP(Table_Shelter[[#This Row],[CampName]],CL,3,0),"") -> Open | S91: =IFERROR(Table_Shelter[[#This Row],[HHCovered]]/VLOOKUP(Table_Shelter[[#This Row],[CampName]],CL,4,0),"") -> 0.4962779156
A92: 2013-10-31 | B92: UNHCR | C92: KMSS | D92: Kachin | E92: Momauk | F92: Dum Bung | G92: 1 | J92: 123 | K92: 123 | P92: =Table_Shelter[[#This Row],[HHperShelter]]*(Table_Shelter[[#This Row],['#ofTemporaryShelterUnitsBuilt]]+Table_Shelter[[#This Row],['#ofTemporaryShelterUnderConstruction]]+Table_Shelter[[#This Row],['#ofPermanentHouseUnderConstruction]]) -> 123 | Q92: =IFERROR(VLOOKUP(Table_Shelter[[#This Row],[CampName]],CL,2,0),"") -> MMR001CMP123 | R92: =IFERROR(VLOOKUP(Table_Shelter[[#This Row],[CampName]],CL,3,0),"") -> Open | S92: =IFERROR(Table_Shelter[[#This Row],[HHCovered]]/VLOOKUP(Table_Shelter[[#This Row],[CampName]],CL,4,0),"") -> 1.033613445
A93: 2013-10-31 | B93: UNHCR | C93: KMSS | D93: Kachin | E93: Myitkyina | F93: Jan Mai Kawng Catholic Church | G93: 1 | J93: 20 | K93: 20 | P93: =Table_Shelter[[#This Row],[HHperShelter]]*(Table_Shelter[[#This Row],['#ofTemporaryShelterUnitsBuilt]]+Table_Shelter[[#This Row],['#ofTemporaryShelterUnderConstruction]]+Table_Shelter[[#This Row],['#ofPermanentHouseUnderConstruction]]) -> 20 | Q93: =IFERROR(VLOOKUP(Table_Shelter[[#This Row],[CampName]],CL,2,0),"") -> MMR001CMP019 | R93: =IFERROR(VLOOKUP(Table_Shelter[[#This Row],[CampName]],CL,3,0),"") -> Open | S93: =IFERROR(Table_Shelter[[#This Row],[HHCovered]]/VLOOKUP(Table_Shelter[[#This Row],[CampName]],CL,4,0),"") -> 0.1769911504
A94: 2013-10-31 | B94: UNHCR | C94: KMSS | D94: Kachin | E94: Myitkyina | F94: Nan Kway St. John Catholic Church | G94: 1 | J94: 21 | K94: 21 | P94: =Table_Shelter[[#This Row],[HHperShelter]]*(Table_Shelter[[#This Row],['#ofTemporaryShelterUnitsBuilt]]+Table_Shelter[[#This Row],['#ofTemporaryShelterUnderConstruction]]+Table_Shelter[[#This Row],['#ofPermanentHouseUnderConstruction]]) -> 21 | Q94: =IFERROR(VLOOKUP(Table_Shelter[[#This Row],[CampName]],CL,2,0),"") -> MMR001CMP024 | R94: =IFERROR(VLOOKUP(Table_Shelter[[#This Row],[CampName]],CL,3,0),"") -> Open | S94: =IFERROR(Table_Shelter[[#This Row],[HHCovered]]/VLOOKUP(Table_Shelter[[#This Row],[CampName]],CL,4,0),"") -> 0.2916666667
A95: 2013-10-31 | B95: UNHCR | C95: KMSS | D95: Kachin | E95: Waingmaw | F95: Border Post 8 | G95: 1 | J95: 237 | K95: 237 | P95: =Table_Shelter[[#This Row],[HHperShelter]]*(Table_Shelter[[#This Row],['#ofTemporaryShelterUnitsBuilt]]+Table_Shelter[[#This Row],['#ofTemporaryShelterUnderConstruction]]+Table_Shelter[[#This Row],['#ofPermanentHouseUnderConstruction]]) -> 237 | Q95: =IFERROR(VLOOKUP(Table_Shelter[[#This Row],[CampName]],CL,2,0),"") -> MMR001CMP113 | R95: =IFERROR(VLOOKUP(Table_Shelter[[#This Row],[CampName]],CL,3,0),"") -> Open | S95: =IFERROR(Table_Shelter[[#This Row],[HHCovered]]/VLOOKUP(Table_Shelter[[#This Row],[CampName]],CL,4,0),"") -> 1.385964912
A96: 2013-10-31 | B96: UNHCR | C96: KMSS | D96: Kachin | E96: Waingmaw | F96: Maina Catholic Church (St. Joseph) | G96: 1 | J96: 78 | K96: 78 | P96: =Table_Shelter[[#This Row],[HHperShelter]]*(Table_Shelter[[#This Row],['#ofTemporaryShelterUnitsBuilt]]+Table_Shelter[[#This Row],['#ofTemporaryShelterUnderConstruction]]+Table_Shelter[[#This Row],['#ofPermanentHouseUnderConstruction]]) -> 78 | Q96: =IFERROR(VLOOKUP(Table_Shelter[[#This Row],[CampName]],CL,2,0),"") -> MMR001CMP029 | R96: =IFERROR(VLOOKUP(Table_Shelter[[#This Row],[CampName]],CL,3,0),"") -> Open | S96: =IFERROR(Table_Shelter[[#This Row],[HHCovered]]/VLOOKUP(Table_Shelter[[#This Row],[CampName]],CL,4,0),"") -> 0.3362068966
A97: 2013-10-31 | B97: UNHCR | C97: Metta | D97: Kachin | E97: Mansi | F97: Mansi Baptist Church | G97: 1 | J97: 30 | K97: 30 | P97: =Table_Shelter[[#This Row],[HHperShelter]]*(Table_Shelter[[#This Row],['#ofTemporaryShelterUnitsBuilt]]+Table_Shelter[[#This Row],['#ofTemporaryShelterUnderConstruction]]+Table_Shelter[[#This Row],['#ofPermanentHouseUnderConstruction]]) -> 30 | Q97: =IFERROR(VLOOKUP(Table_Shelter[[#This Row],[CampName]],CL,2,0),"") -> MMR001CMP066 | R97: =IFERROR(VLOOKUP(Table_Shelter[[#This Row],[CampName]],CL,3,0),"") -> Open | S97: =IFERROR(Table_Shelter[[#This Row],[HHCovered]]/VLOOKUP(Table_Shelter[[#This Row],[CampName]],CL,4,0),"") -> 0.3225806452
A98: 2013-10-31 | B98: UNHCR | C98: Metta | D98: Kachin | E98: Momauk | F98: Ni Thaw Ka Monestry | G98: 1 | J98: 18 | K98: 18 | P98: =Table_Shelter[[#This Row],[HHperShelter]]*(Table_Shelter[[#This Row],['#ofTemporaryShelterUnitsBuilt]]+Table_Shelter[[#This Row],['#ofTemporaryShelterUnderConstruction]]+Table_Shelter[[#This Row],['#ofPermanentHouseUnderConstruction]]) -> 18 | Q98: =IFERROR(VLOOKUP(Table_Shelter[[#This Row],[CampName]],CL,2,0),"") -> MMR001CMP059 | R98: =IFERROR(VLOOKUP(Table_Shelter[[#This Row],[CampName]],CL,3,0),"") -> Open | S98: =IFERROR(Table_Shelter[[#This Row],[HHCovered]]/VLOOKUP(Table_Shelter[[#This Row],[CampName]],CL,4,0),"") -> 0.7826086957
A99: 2013-10-31 | B99: UNHCR | C99: SHALOM | D99: Kachin | E99: Bhamo | F99: Robert Church | G99: 1 | J99: 30 | K99: 30 | P99: =Table_Shelter[[#This Row],[HHperShelter]]*(Table_Shelter[[#This Row],['#ofTemporaryShelterUnitsBuilt]]+Table_Shelter[[#This Row],['#ofTemporaryShelterUnderConstruction]]+Table_Shelter[[#This Row],['#ofPermanentHouseUnderConstruction]]) -> 30 | Q99: =IFERROR(VLOOKUP(Table_Shelter[[#This Row],[CampName]],CL,2,0),"") -> MMR001CMP047 | R99: =IFERROR(VLOOKUP(Table_Shelter[[#This Row],[CampName]],CL,3,0),"") -> Open | S99: =IFERROR(Table_Shelter[[#This Row],[HHCovered]]/VLOOKUP(Table_Shelter[[#This Row],[CampName]],CL,4,0),"") -> 0.05376344086
A100: 2013-10-31 | B100: UNHCR | C100: SHALOM | D100: Kachin | E100: Chipwi | F100: Lhaovao Baptist Church (LBC) | G100: 1 | J100: 70 | K100: 70 | P100: =Table_Shelter[[#This Row],[HHperShelter]]*(Table_Shelter[[#This Row],['#ofTemporaryShelterUnitsBuilt]]+Table_Shelter[[#This Row],['#ofTemporaryShelterUnderConstruction]]+Table_Shelter[[#This Row],['#ofPermanentHouseUnderConstruction]]) -> 70 | Q100: =IFERROR(VLOOKUP(Table_Shelter[[#This Row],[CampName]],CL,2,0),"") -> MMR001CMP195 | R100: =IFERROR(VLOOKUP(Table_Shelter[[#This Row],[CampName]],CL,3,0),"") -> Open | S100: =IFERROR(Table_Shelter[[#This Row],[HHCovered]]/VLOOKUP(Table_Shelter[[#This Row],[CampName]],CL,4,0),"") -> 0.5109489051
A101: 2013-10-31 | B101: UNHCR | C101: SHALOM | D101: Kachin | E101: Hpakant | F101: Mashi Kahtawng Baptist Church | G101: 1 | J101: 10 | K101: 10 | P101: =Table_Shelter[[#This Row],[HHperShelter]]*(Table_Shelter[[#This Row],['#ofTemporaryShelterUnitsBuilt]]+Table_Shelter[[#This Row],['#ofTemporaryShelterUnderConstruction]]+Table_Shelter[[#This Row],['#ofPermanentHouseUnderConstruction]]) -> 10 | Q101: =IFERROR(VLOOKUP(Table_Shelter[[#This Row],[CampName]],CL,2,0),"") -> MMR001CMP094 | R101: =IFERROR(VLOOKUP(Table_Shelter[[#This Row],[CampName]],CL,3,0),"") -> Closed | S101: =IFERROR(Table_Shelter[[#This Row],[HHCovered]]/VLOOKUP(Table_Shelter[[#This Row],[CampName]],CL,4,0),"") -> 
A102: 2013-10-31 | B102: UNHCR | C102: SHALOM | D102: Kachin | E102: Hpakant | F102: Maw Wan, Mu-yin Baptist Church | G102: 1 | J102: 10 | K102: 10 | P102: =Table_Shelter[[#This Row],[HHperShelter]]*(Table_Shelter[[#This Row],['#ofTemporaryShelterUnitsBuilt]]+Table_Shelter[[#This Row],['#ofTemporaryShelterUnderConstruction]]+Table_Shelter[[#This Row],['#ofPermanentHouseUnderConstruction]]) -> 10 | Q102: =IFERROR(VLOOKUP(Table_Shelter[[#This Row],[CampName]],CL,2,0),"") -> MMR001CMP091 | R102: =IFERROR(VLOOKUP(Table_Shelter[[#This Row],[CampName]],CL,3,0),"") -> Open | S102: =IFERROR(Table_Shelter[[#This Row],[HHCovered]]/VLOOKUP(Table_Shelter[[#This Row],[CampName]],CL,4,0),"") -> 2.5
A103: 2013-10-31 | B103: UNHCR | C103: SHALOM | D103: Kachin | E103: Hpakant | F103: Nga Pyaw Taw Baptist Nursery School | G103: 1 | J103: 20 | K103: 20 | P103: =Table_Shelter[[#This Row],[HHperShelter]]*(Table_Shelter[[#This Row],['#ofTemporaryShelterUnitsBuilt]]+Table_Shelter[[#This Row],['#ofTemporaryShelterUnderConstruction]]+Table_Shelter[[#This Row],['#ofPermanentHouseUnderConstruction]]) -> 20 | Q103: =IFERROR(VLOOKUP(Table_Shelter[[#This Row],[CampName]],CL,2,0),"") -> MMR001CMP082 | R103: =IFERROR(VLOOKUP(Table_Shelter[[#This Row],[CampName]],CL,3,0),"") -> Open | S103: =IFERROR(Table_Shelter[[#This Row],[HHCovered]]/VLOOKUP(Table_Shelter[[#This Row],[CampName]],CL,4,0),"") -> 0.198019802
A104: 2013-10-31 | B104: UNHCR | C104: SHALOM | D104: Kachin | E104: Hpakant | F104: Yumar Baptist Church | G104: 1 | J104: 10 | K104: 10 | P104: =Table_Shelter[[#This Row],[HHperShelter]]*(Table_Shelter[[#This Row],['#ofTemporaryShelterUnitsBuilt]]+Table_Shelter[[#This Row],['#ofTemporaryShelterUnderConstruction]]+Table_Shelter[[#This Row],['#ofPermanentHouseUnderConstruction]]) -> 10 | Q104: =IFERROR(VLOOKUP(Table_Shelter[[#This Row],[CampName]],CL,2,0),"") -> MMR001CMP105 | R104: =IFERROR(VLOOKUP(Table_Shelter[[#This Row],[CampName]],CL,3,0),"") -> Open | S104: =IFERROR(Table_Shelter[[#This Row],[HHCovered]]/VLOOKUP(Table_Shelter[[#This Row],[CampName]],CL,4,0),"") -> 0.25
A105: 2013-10-31 | B105: UNHCR | C105: SHALOM | D105: Kachin | E105: Myitkyina | F105: Maw Hpawng Hka Nan Baptist Church | G105: 1 | J105: 12 | K105: 12 | P105: =Table_Shelter[[#This Row],[HHperShelter]]*(Table_Shelter[[#This Row],['#ofTemporaryShelterUnitsBuilt]]+Table_Shelter[[#This Row],['#ofTemporaryShelterUnderConstruction]]+Table_Shelter[[#This Row],['#ofPermanentHouseUnderConstruction]]) -> 12 | Q105: =IFERROR(VLOOKUP(Table_Shelter[[#This Row],[CampName]],CL,2,0),"") -> MMR001CMP020 | R105: =IFERROR(VLOOKUP(Table_Shelter[[#This Row],[CampName]],CL,3,0),"") -> Open | S105: =IFERROR(Table_Shelter[[#This Row],[HHCovered]]/VLOOKUP(Table_Shelter[[#This Row],[CampName]],CL,4,0),"") -> 0.4615384615
A106: 2013-10-31 | B106: UNHCR | C106: SHALOM | D106: Kachin | E106: Myitkyina | F106: Maw Hpawng Lhaovo Baptist Church | G106: 1 | J106: 19 | K106: 19 | P106: =Table_Shelter[[#This Row],[HHperShelter]]*(Table_Shelter[[#This Row],['#ofTemporaryShelterUnitsBuilt]]+Table_Shelter[[#This Row],['#ofTemporaryShelterUnderConstruction]]+Table_Shelter[[#This Row],['#ofPermanentHouseUnderConstruction]]) -> 19 | Q106: =IFERROR(VLOOKUP(Table_Shelter[[#This Row],[CampName]],CL,2,0),"") -> MMR001CMP021 | R106: =IFERROR(VLOOKUP(Table_Shelter[[#This Row],[CampName]],CL,3,0),"") -> Open | S106: =IFERROR(Table_Shelter[[#This Row],[HHCovered]]/VLOOKUP(Table_Shelter[[#This Row],[CampName]],CL,4,0),"") -> 0.9047619048
A107: 2013-10-31 | B107: UNHCR | C107: SHALOM | D107: Kachin | E107: Myitkyina | F107: Tat Kone COC Baptist / Tat Kone Htoi San | G107: 1 | J107: 20 | K107: 20 | P107: =Table_Shelter[[#This Row],[HHperShelter]]*(Table_Shelter[[#This Row],['#ofTemporaryShelterUnitsBuilt]]+Table_Shelter[[#This Row],['#ofTemporaryShelterUnderConstruction]]+Table_Shelter[[#This Row],['#ofPermanentHouseUnderConstruction]]) -> 20 | Q107: =IFERROR(VLOOKUP(Table_Shelter[[#This Row],[CampName]],CL,2,0),"") -> MMR001CMP023 | R107: =IFERROR(VLOOKUP(Table_Shelter[[#This Row],[CampName]],CL,3,0),"") -> Open | S107: =IFERROR(Table_Shelter[[#This Row],[HHCovered]]/VLOOKUP(Table_Shelter[[#This Row],[CampName]],CL,4,0),"") -> 0.2898550725
A108: 2013-10-31 | B108: UNHCR | C108: SHALOM | D108: Kachin | E108: Myitkyina | F108: Tat Kone Emanuel Church | G108: 1 | J108: 10 | K108: 10 | P108: =Table_Shelter[[#This Row],[HHperShelter]]*(Table_Shelter[[#This Row],['#ofTemporaryShelterUnitsBuilt]]+Table_Shelter[[#This Row],['#ofTemporaryShelterUnderConstruction]]+Table_Shelter[[#This Row],['#ofPermanentHouseUnderConstruction]]) -> 10 | Q108: =IFERROR(VLOOKUP(Table_Shelter[[#This Row],[CampName]],CL,2,0),"") -> MMR001CMP004 | R108: =IFERROR(VLOOKUP(Table_Shelter[[#This Row],[CampName]],CL,3,0),"") -> Open | S108: =IFERROR(Table_Shelter[[#This Row],[HHCovered]]/VLOOKUP(Table_Shelter[[#This Row],[CampName]],CL,4,0),"") -> 0.7142857143
A109: 2013-10-31 | B109: UNHCR | C109: SHALOM | D109: Kachin | E109: Myitkyina | F109: Wun Tho Buddhist Monastery | G109: 1 | J109: 24 | K109: 24 | P109: =Table_Shelter[[#This Row],[HHperShelter]]*(Table_Shelter[[#This Row],['#ofTemporaryShelterUnitsBuilt]]+Table_Shelter[[#This Row],['#ofTemporaryShelterUnderConstruction]]+Table_Shelter[[#This Row],['#ofPermanentHouseUnderConstruction]]) -> 24 | Q109: =IFERROR(VLOOKUP(Table_Shelter[[#This Row],[CampName]],CL,2,0),"") -> MMR001CMP022 | R109: =IFERROR(VLOOKUP(Table_Shelter[[#This Row],[CampName]],CL,3,0),"") -> Open | S109: =IFERROR(Table_Shelter[[#This Row],[HHCovered]]/VLOOKUP(Table_Shelter[[#This Row],[CampName]],CL,4,0),"") -> 4
A110: 2013-10-31 | B110: UNHCR | C110: SHALOM | D110: Kachin | E110: Waingmaw | F110: Hkat Cho | G110: 1 | J110: 50 | K110: 50 | P110: =Table_Shelter[[#This Row],[HHperShelter]]*(Table_Shelter[[#This Row],['#ofTemporaryShelterUnitsBuilt]]+Table_Shelter[[#This Row],['#ofTemporaryShelterUnderConstruction]]+Table_Shelter[[#This Row],['#ofPermanentHouseUnderConstruction]]) -> 50 | Q110: =IFERROR(VLOOKUP(Table_Shelter[[#This Row],[CampName]],CL,2,0),"") -> MMR001CMP028 | R110: =IFERROR(VLOOKUP(Table_Shelter[[#This Row],[CampName]],CL,3,0),"") -> Open | S110: =IFERROR(Table_Shelter[[#This Row],[HHCovered]]/VLOOKUP(Table_Shelter[[#This Row],[CampName]],CL,4,0),"") -> 0.3731343284
A111: 2013-10-31 | B111: UNHCR | C111: SHALOM | D111: Kachin | E111: Waingmaw | F111: Mading Baptist Church | G111: 1 | J111: 25 | K111: 25 | P111: =Table_Shelter[[#This Row],[HHperShelter]]*(Table_Shelter[[#This Row],['#ofTemporaryShelterUnitsBuilt]]+Table_Shelter[[#This Row],['#ofTemporaryShelterUnderConstruction]]+Table_Shelter[[#This Row],['#ofPermanentHouseUnderConstruction]]) -> 25 | Q111: =IFERROR(VLOOKUP(Table_Shelter[[#This Row],[CampName]],CL,2,0),"") -> MMR001CMP027 | R111: =IFERROR(VLOOKUP(Table_Shelter[[#This Row],[CampName]],CL,3,0),"") -> Open | S111: =IFERROR(Table_Shelter[[#This Row],[HHCovered]]/VLOOKUP(Table_Shelter[[#This Row],[CampName]],CL,4,0),"") -> 1.086956522
A112: 2013-10-31 | B112: UNHCR | C112: SHALOM | D112: Kachin | E112: Waingmaw | F112: Maina AG Church | G112: 1 | J112: 27 | K112: 27 | P112: =Table_Shelter[[#This Row],[HHperShelter]]*(Table_Shelter[[#This Row],['#ofTemporaryShelterUnitsBuilt]]+Table_Shelter[[#This Row],['#ofTemporaryShelterUnderConstruction]]+Table_Shelter[[#This Row],['#ofPermanentHouseUnderConstruction]]) -> 27 | Q112: =IFERROR(VLOOKUP(Table_Shelter[[#This Row],[CampName]],CL,2,0),"") -> MMR001CMP031 | R112: =IFERROR(VLOOKUP(Table_Shelter[[#This Row],[CampName]],CL,3,0),"") -> Open | S112: =IFERROR(Table_Shelter[[#This Row],[HHCovered]]/VLOOKUP(Table_Shelter[[#This Row],[CampName]],CL,4,0),"") -> 0.1914893617
A113: 2013-10-31 | B113: UNHCR | C113: SHALOM | D113: Kachin | E113: Waingmaw | F113: Qtr. 2 Lhaovo Baptist Church | G113: 1 | J113: 45 | K113: 45 | P113: =Table_Shelter[[#This Row],[HHperShelter]]*(Table_Shelter[[#This Row],['#ofTemporaryShelterUnitsBuilt]]+Table_Shelter[[#This Row],['#ofTemporaryShelterUnderConstruction]]+Table_Shelter[[#This Row],['#ofPermanentHouseUnderConstruction]]) -> 45 | Q113: =IFERROR(VLOOKUP(Table_Shelter[[#This Row],[CampName]],CL,2,0),"") -> MMR001CMP032 | R113: =IFERROR(VLOOKUP(Table_Shelter[[#This Row],[CampName]],CL,3,0),"") -> Open | S113: =IFERROR(Table_Shelter[[#This Row],[HHCovered]]/VLOOKUP(Table_Shelter[[#This Row],[CampName]],CL,4,0),"") -> 0.375
A114: 2013-10-31 | B114: UNHCR | C114: SHALOM | D114: Kachin | E114: Waingmaw | F114: Qtr. 3 Mu-yin Baptist Church | G114: 1 | J114: 18 | K114: 18 | P114: =Table_Shelter[[#This Row],[HHperShelter]]*(Table_Shelter[[#This Row],['#ofTemporaryShelterUnitsBuilt]]+Table_Shelter[[#This Row],['#ofTemporaryShelterUnderConstruction]]+Table_Shelter[[#This Row],['#ofPermanentHouseUnderConstruction]]) -> 18 | Q114: =IFERROR(VLOOKUP(Table_Shelter[[#This Row],[CampName]],CL,2,0),"") -> MMR001CMP030 | R114: =IFERROR(VLOOKUP(Table_Shelter[[#This Row],[CampName]],CL,3,0),"") -> Open | S114: =IFERROR(Table_Shelter[[#This Row],[HHCovered]]/VLOOKUP(Table_Shelter[[#This Row],[CampName]],CL,4,0),"") -> 0.6
A115: 2013-10-31 | B115: UNHCR | C115: SHALOM | D115: Kachin | E115: Waingmaw | F115: Qtr. 4 Monestry (Thargaya Thayett Taw) | G115: 1 | J115: 100 | K115: 100 | P115: =Table_Shelter[[#This Row],[HHperShelter]]*(Table_Shelter[[#This Row],['#ofTemporaryShelterUnitsBuilt]]+Table_Shelter[[#This Row],['#ofTemporaryShelterUnderConstruction]]+Table_Shelter[[#This Row],['#ofPermanentHouseUnderConstruction]]) -> 100 | Q115: =IFERROR(VLOOKUP(Table_Shelter[[#This Row],[CampName]],CL,2,0),"") -> MMR001CMP026 | R115: =IFERROR(VLOOKUP(Table_Shelter[[#This Row],[CampName]],CL,3,0),"") -> Open | S115: =IFERROR(Table_Shelter[[#This Row],[HHCovered]]/VLOOKUP(Table_Shelter[[#This Row],[CampName]],CL,4,0),"") -> 0.9900990099
A116: 2013-10-31 | B116: UNHCR | C116: SHALOM | D116: Kachin | E116: Waingmaw | F116: Thargaya Lisu Baptist Church | G116: 1 | J116: 45 | K116: 45 | P116: =Table_Shelter[[#This Row],[HHperShelter]]*(Table_Shelter[[#This Row],['#ofTemporaryShelterUnitsBuilt]]+Table_Shelter[[#This Row],['#ofTemporaryShelterUnderConstruction]]+Table_Shelter[[#This Row],['#ofPermanentHouseUnderConstruction]]) -> 45 | Q116: =IFERROR(VLOOKUP(Table_Shelter[[#This Row],[CampName]],CL,2,0),"") -> MMR001CMP037 | R116: =IFERROR(VLOOKUP(Table_Shelter[[#This Row],[CampName]],CL,3,0),"") -> Open | S116: =IFERROR(Table_Shelter[[#This Row],[HHCovered]]/VLOOKUP(Table_Shelter[[#This Row],[CampName]],CL,4,0),"") -> 0.6081081081
A117: 2013-10-31 | B117: UNHCR | C117: SHALOM | D117: Kachin | E117: Waingmaw | F117: Waingmaw AG Church | G117: 1 | J117: 28 | K117: 28 | P117: =Table_Shelter[[#This Row],[HHperShelter]]*(Table_Shelter[[#This Row],['#ofTemporaryShelterUnitsBuilt]]+Table_Shelter[[#This Row],['#ofTemporaryShelterUnderConstruction]]+Table_Shelter[[#This Row],['#ofPermanentHouseUnderConstruction]]) -> 28 | Q117: =IFERROR(VLOOKUP(Table_Shelter[[#This Row],[CampName]],CL,2,0),"") -> MMR001CMP038 | R117: =IFERROR(VLOOKUP(Table_Shelter[[#This Row],[CampName]],CL,3,0),"") -> Open | S117: =IFERROR(Table_Shelter[[#This Row],[HHCovered]]/VLOOKUP(Table_Shelter[[#This Row],[CampName]],CL,4,0),"") -> 0.3456790123
A118: 2013-10-31 | B118: UNHCR | C118: UNHCR | D118: Kachin | E118: Bhamo | F118: AD-2000 Tharthana Compound | G118: 1 | J118: 20 | K118: 20 | P118: =Table_Shelter[[#This Row],[HHperShelter]]*(Table_Shelter[[#This Row],['#ofTemporaryShelterUnitsBuilt]]+Table_Shelter[[#This Row],['#ofTemporaryShelterUnderConstruction]]+Table_Shelter[[#This Row],['#ofPermanentHouseUnderConstruction]]) -> 20 | Q118: =IFERROR(VLOOKUP(Table_Shelter[[#This Row],[CampName]],CL,2,0),"") -> MMR001CMP050 | R118: =IFERROR(VLOOKUP(Table_Shelter[[#This Row],[CampName]],CL,3,0),"") -> Open | S118: =IFERROR(Table_Shelter[[#This Row],[HHCovered]]/VLOOKUP(Table_Shelter[[#This Row],[CampName]],CL,4,0),"") -> 0.08547008547
A119: 2013-10-31 | B119: UNHCR | C119: UNHCR | D119: Kachin | E119: Bhamo | F119: Lisu Boarding-House | G119: 1 | J119: 15 | K119: 15 | P119: =Table_Shelter[[#This Row],[HHperShelter]]*(Table_Shelter[[#This Row],['#ofTemporaryShelterUnitsBuilt]]+Table_Shelter[[#This Row],['#ofTemporaryShelterUnderConstruction]]+Table_Shelter[[#This Row],['#ofPermanentHouseUnderConstruction]]) -> 15 | Q119: =IFERROR(VLOOKUP(Table_Shelter[[#This Row],[CampName]],CL,2,0),"") -> MMR001CMP049 | R119: =IFERROR(VLOOKUP(Table_Shelter[[#This Row],[CampName]],CL,3,0),"") -> Open | S119: =IFERROR(Table_Shelter[[#This Row],[HHCovered]]/VLOOKUP(Table_Shelter[[#This Row],[CampName]],CL,4,0),"") -> 0.2205882353
A120: 2013-10-31 | B120: UNHCR | C120: UNHCR | D120: Kachin | E120: Bhamo | F120: Nant Hlaing Church | G120: 1 | J120: 10 | K120: 10 | P120: =Table_Shelter[[#This Row],[HHperShelter]]*(Table_Shelter[[#This Row],['#ofTemporaryShelterUnitsBuilt]]+Table_Shelter[[#This Row],['#ofTemporaryShelterUnderConstruction]]+Table_Shelter[[#This Row],['#ofPermanentHouseUnderConstruction]]) -> 10 | Q120: =IFERROR(VLOOKUP(Table_Shelter[[#This Row],[CampName]],CL,2,0),"") -> MMR001CMP054 | R120: =IFERROR(VLOOKUP(Table_Shelter[[#This Row],[CampName]],CL,3,0),"") -> Open | S120: =IFERROR(Table_Shelter[[#This Row],[HHCovered]]/VLOOKUP(Table_Shelter[[#This Row],[CampName]],CL,4,0),"") -> 0.4545454545
A121: 2013-10-31 | B121: UNHCR | C121: UNHCR | D121: Kachin | E121: Bhamo | F121: Phan Khar Kone | G121: 1 | J121: 30 | K121: 30 | P121: =Table_Shelter[[#This Row],[HHperShelter]]*(Table_Shelter[[#This Row],['#ofTemporaryShelterUnitsBuilt]]+Table_Shelter[[#This Row],['#ofTemporaryShelterUnderConstruction]]+Table_Shelter[[#This Row],['#ofPermanentHouseUnderConstruction]]) -> 30 | Q121: =IFERROR(VLOOKUP(Table_Shelter[[#This Row],[CampName]],CL,2,0),"") -> MMR001CMP193 | R121: =IFERROR(VLOOKUP(Table_Shelter[[#This Row],[CampName]],CL,3,0),"") -> Open | S121: =IFERROR(Table_Shelter[[#This Row],[HHCovered]]/VLOOKUP(Table_Shelter[[#This Row],[CampName]],CL,4,0),"") -> 0.09463722397
A122: 2013-10-31 | B122: UNHCR | C122: UNHCR | D122: Kachin | E122: Bhamo | F122: Robert Church | G122: 1 | J122: 12 | K122: 12 | P122: =Table_Shelter[[#This Row],[HHperShelter]]*(Table_Shelter[[#This Row],['#ofTemporaryShelterUnitsBuilt]]+Table_Shelter[[#This Row],['#ofTemporaryShelterUnderConstruction]]+Table_Shelter[[#This Row],['#ofPermanentHouseUnderConstruction]]) -> 12 | Q122: =IFERROR(VLOOKUP(Table_Shelter[[#This Row],[CampName]],CL,2,0),"") -> MMR001CMP047 | R122: =IFERROR(VLOOKUP(Table_Shelter[[#This Row],[CampName]],CL,3,0),"") -> Open | S122: =IFERROR(Table_Shelter[[#This Row],[HHCovered]]/VLOOKUP(Table_Shelter[[#This Row],[CampName]],CL,4,0),"") -> 0.02150537634
A123: 2013-10-31 | B123: UNHCR | C123: UNHCR | D123: Kachin | E123: Bhamo | F123: Robert Church | G123: 1 | J123: 8 | K123: 8 | P123: =Table_Shelter[[#This Row],[HHperShelter]]*(Table_Shelter[[#This Row],['#ofTemporaryShelterUnitsBuilt]]+Table_Shelter[[#This Row],['#ofTemporaryShelterUnderConstruction]]+Table_Shelter[[#This Row],['#ofPermanentHouseUnderConstruction]]) -> 8 | Q123: =IFERROR(VLOOKUP(Table_Shelter[[#This Row],[CampName]],CL,2,0),"") -> MMR001CMP047 | R123: =IFERROR(VLOOKUP(Table_Shelter[[#This Row],[CampName]],CL,3,0),"") -> Open | S123: =IFERROR(Table_Shelter[[#This Row],[HHCovered]]/VLOOKUP(Table_Shelter[[#This Row],[CampName]],CL,4,0),"") -> 0.01433691756
A124: 2013-10-31 | B124: UNHCR | C124: UNHCR | D124: Kachin | E124: Bhamo | F124: Robert Church | G124: 1 | J124: 50 | K124: 50 | P124: =Table_Shelter[[#This Row],[HHperShelter]]*(Table_Shelter[[#This Row],['#ofTemporaryShelterUnitsBuilt]]+Table_Shelter[[#This Row],['#ofTemporaryShelterUnderConstruction]]+Table_Shelter[[#This Row],['#ofPermanentHouseUnderConstruction]]) -> 50 | Q124: =IFERROR(VLOOKUP(Table_Shelter[[#This Row],[CampName]],CL,2,0),"") -> MMR001CMP047 | R124: =IFERROR(VLOOKUP(Table_Shelter[[#This Row],[CampName]],CL,3,0),"") -> Open | S124: =IFERROR(Table_Shelter[[#This Row],[HHCovered]]/VLOOKUP(Table_Shelter[[#This Row],[CampName]],CL,4,0),"") -> 0.08960573477
A125: 2013-10-31 | B125: UNHCR | C125: UNHCR | D125: Kachin | E125: Bhamo | F125: Ta Gun Taing Monastery (Shwe Kyi Na) | G125: 1 | J125: 40 | K125: 40 | P125: =Table_Shelter[[#This Row],[HHperShelter]]*(Table_Shelter[[#This Row],['#ofTemporaryShelterUnitsBuilt]]+Table_Shelter[[#This Row],['#ofTemporaryShelterUnderConstruction]]+Table_Shelter[[#This Row],['#ofPermanentHouseUnderConstruction]]) -> 40 | Q125: =IFERROR(VLOOKUP(Table_Shelter[[#This Row],[CampName]],CL,2,0),"") -> MMR001CMP055 | R125: =IFERROR(VLOOKUP(Table_Shelter[[#This Row],[CampName]],CL,3,0),"") -> Open | S125: =IFERROR(Table_Shelter[[#This Row],[HHCovered]]/VLOOKUP(Table_Shelter[[#This Row],[CampName]],CL,4,0),"") -> 0.6557377049
A126: 2013-10-31 | B126: UNHCR | C126: UNHCR | D126: Kachin | E126: Mansi | F126: Mansi Baptist Church | G126: 1 | J126: 10 | K126: 10 | P126: =Table_Shelter[[#This Row],[HHperShelter]]*(Table_Shelter[[#This Row],['#ofTemporaryShelterUnitsBuilt]]+Table_Shelter[[#This Row],['#ofTemporaryShelterUnderConstruction]]+Table_Shelter[[#This Row],['#ofPermanentHouseUnderConstruction]]) -> 10 | Q126: =IFERROR(VLOOKUP(Table_Shelter[[#This Row],[CampName]],CL,2,0),"") -> MMR001CMP066 | R126: =IFERROR(VLOOKUP(Table_Shelter[[#This Row],[CampName]],CL,3,0),"") -> Open | S126: =IFERROR(Table_Shelter[[#This Row],[HHCovered]]/VLOOKUP(Table_Shelter[[#This Row],[CampName]],CL,4,0),"") -> 0.1075268817
A127: 2013-10-31 | B127: UNHCR | C127: UNHCR | D127: Kachin | E127: Momauk | F127: Loi Je Baptist Church | G127: 1 | J127: 12 | K127: 12 | P127: =Table_Shelter[[#This Row],[HHperShelter]]*(Table_Shelter[[#This Row],['#ofTemporaryShelterUnitsBuilt]]+Table_Shelter[[#This Row],['#ofTemporaryShelterUnderConstruction]]+Table_Shelter[[#This Row],['#ofPermanentHouseUnderConstruction]]) -> 12 | Q127: =IFERROR(VLOOKUP(Table_Shelter[[#This Row],[CampName]],CL,2,0),"") -> MMR001CMP071 | R127: =IFERROR(VLOOKUP(Table_Shelter[[#This Row],[CampName]],CL,3,0),"") -> Open | S127: =IFERROR(Table_Shelter[[#This Row],[HHCovered]]/VLOOKUP(Table_Shelter[[#This Row],[CampName]],CL,4,0),"") -> 0.4615384615
A128: 2013-10-31 | B128: UNHCR | C128: UNHCR | D128: Kachin | E128: Momauk | F128: Loi Je Catholic Church | G128: 1 | J128: 6 | K128: 6 | P128: =Table_Shelter[[#This Row],[HHperShelter]]*(Table_Shelter[[#This Row],['#ofTemporaryShelterUnitsBuilt]]+Table_Shelter[[#This Row],['#ofTemporaryShelterUnderConstruction]]+Table_Shelter[[#This Row],['#ofPermanentHouseUnderConstruction]]) -> 6 | Q128: =IFERROR(VLOOKUP(Table_Shelter[[#This Row],[CampName]],CL,2,0),"") -> MMR001CMP069 | R128: =IFERROR(VLOOKUP(Table_Shelter[[#This Row],[CampName]],CL,3,0),"") -> Open | S128: =IFERROR(Table_Shelter[[#This Row],[HHCovered]]/VLOOKUP(Table_Shelter[[#This Row],[CampName]],CL,4,0),"") -> 0.1304347826
A129: 2013-10-31 | B129: UNHCR | C129: UNHCR | D129: Kachin | E129: Momauk | F129: Loi Je Lisu Camp | G129: 1 | J129: 55 | K129: 55 | P129: =Table_Shelter[[#This Row],[HHperShelter]]*(Table_Shelter[[#This Row],['#ofTemporaryShelterUnitsBuilt]]+Table_Shelter[[#This Row],['#ofTemporaryShelterUnderConstruction]]+Table_Shelter[[#This Row],['#ofPermanentHouseUnderConstruction]]) -> 55 | Q129: =IFERROR(VLOOKUP(Table_Shelter[[#This Row],[CampName]],CL,2,0),"") -> MMR001CMP070 | R129: =IFERROR(VLOOKUP(Table_Shelter[[#This Row],[CampName]],CL,3,0),"") -> Open | S129: =IFERROR(Table_Shelter[[#This Row],[HHCovered]]/VLOOKUP(Table_Shelter[[#This Row],[CampName]],CL,4,0),"") -> 0.3873239437
A130: 2013-10-31 | B130: UNHCR | C130: UNHCR | D130: Kachin | E130: Momauk | F130: Man Bung Catholic compound | G130: 1 | J130: 40 | K130: 40 | P130: =Table_Shelter[[#This Row],[HHperShelter]]*(Table_Shelter[[#This Row],['#ofTemporaryShelterUnitsBuilt]]+Table_Shelter[[#This Row],['#ofTemporaryShelterUnderConstruction]]+Table_Shelter[[#This Row],['#ofPermanentHouseUnderConstruction]]) -> 40 | Q130: =IFERROR(VLOOKUP(Table_Shelter[[#This Row],[CampName]],CL,2,0),"") -> MMR001CMP062 | R130: =IFERROR(VLOOKUP(Table_Shelter[[#This Row],[CampName]],CL,3,0),"") -> Open | S130: =IFERROR(Table_Shelter[[#This Row],[HHCovered]]/VLOOKUP(Table_Shelter[[#This Row],[CampName]],CL,4,0),"") -> 0.3418803419
A131: 2013-10-31 | B131: UNHCR | C131: UNHCR | D131: Kachin | E131: Momauk | F131: Momauk Baptist Church | G131: 1 | J131: 10 | K131: 10 | P131: =Table_Shelter[[#This Row],[HHperShelter]]*(Table_Shelter[[#This Row],['#ofTemporaryShelterUnitsBuilt]]+Table_Shelter[[#This Row],['#ofTemporaryShelterUnderConstruction]]+Table_Shelter[[#This Row],['#ofPermanentHouseUnderConstruction]]) -> 10 | Q131: =IFERROR(VLOOKUP(Table_Shelter[[#This Row],[CampName]],CL,2,0),"") -> MMR001CMP056 | R131: =IFERROR(VLOOKUP(Table_Shelter[[#This Row],[CampName]],CL,3,0),"") -> Open | S131: =IFERROR(Table_Shelter[[#This Row],[HHCovered]]/VLOOKUP(Table_Shelter[[#This Row],[CampName]],CL,4,0),"") -> 0.02506265664
A132: 2013-10-31 | B132: UNHCR | C132: UNHCR | D132: Kachin | E132: Momauk | F132: Momauk Baptist Church | G132: 1 | J132: 40 | K132: 40 | P132: =Table_Shelter[[#This Row],[HHperShelter]]*(Table_Shelter[[#This Row],['#ofTemporaryShelterUnitsBuilt]]+Table_Shelter[[#This Row],['#ofTemporaryShelterUnderConstruction]]+Table_Shelter[[#This Row],['#ofPermanentHouseUnderConstruction]]) -> 40 | Q132: =IFERROR(VLOOKUP(Table_Shelter[[#This Row],[CampName]],CL,2,0),"") -> MMR001CMP056 | R132: =IFERROR(VLOOKUP(Table_Shelter[[#This Row],[CampName]],CL,3,0),"") -> Open | S132: =IFERROR(Table_Shelter[[#This Row],[HHCovered]]/VLOOKUP(Table_Shelter[[#This Row],[CampName]],CL,4,0),"") -> 0.1002506266
A133: 2013-10-31 | B133: UNHCR | C133: UNHCR | D133: Kachin | E133: Momauk | F133: Ni Thaw Ka Monestry | G133: 1 | J133: 5 | K133: 5 | P133: =Table_Shelter[[#This Row],[HHperShelter]]*(Table_Shelter[[#This Row],['#ofTemporaryShelterUnitsBuilt]]+Table_Shelter[[#This Row],['#ofTemporaryShelterUnderConstruction]]+Table_Shelter[[#This Row],['#ofPermanentHouseUnderConstruction]]) -> 5 | Q133: =IFERROR(VLOOKUP(Table_Shelter[[#This Row],[CampName]],CL,2,0),"") -> MMR001CMP059 | R133: =IFERROR(VLOOKUP(Table_Shelter[[#This Row],[CampName]],CL,3,0),"") -> Open | S133: =IFERROR(Table_Shelter[[#This Row],[HHCovered]]/VLOOKUP(Table_Shelter[[#This Row],[CampName]],CL,4,0),"") -> 0.2173913043
A134: 2013-10-31 | B134: UNHCR | C134: UNHCR | D134: Kachin | E134: Momauk | F134: Nyaung Na Pin | G134: 1 | J134: 45 | K134: 45 | P134: =Table_Shelter[[#This Row],[HHperShelter]]*(Table_Shelter[[#This Row],['#ofTemporaryShelterUnitsBuilt]]+Table_Shelter[[#This Row],['#ofTemporaryShelterUnderConstruction]]+Table_Shelter[[#This Row],['#ofPermanentHouseUnderConstruction]]) -> 45 | Q134: =IFERROR(VLOOKUP(Table_Shelter[[#This Row],[CampName]],CL,2,0),"") -> MMR001CMP072 | R134: =IFERROR(VLOOKUP(Table_Shelter[[#This Row],[CampName]],CL,3,0),"") -> Open | S134: =IFERROR(Table_Shelter[[#This Row],[HHCovered]]/VLOOKUP(Table_Shelter[[#This Row],[CampName]],CL,4,0),"") -> 0.9574468085
A135: 2013-10-31 | B135: UNHCR | C135: UNHCR | D135: Kachin | E135: Momauk | F135: Seng Ja | G135: 1 | J135: 40 | K135: 40 | P135: =Table_Shelter[[#This Row],[HHperShelter]]*(Table_Shelter[[#This Row],['#ofTemporaryShelterUnitsBuilt]]+Table_Shelter[[#This Row],['#ofTemporaryShelterUnderConstruction]]+Table_Shelter[[#This Row],['#ofPermanentHouseUnderConstruction]]) -> 40 | Q135: =IFERROR(VLOOKUP(Table_Shelter[[#This Row],[CampName]],CL,2,0),"") -> MMR001CMP073 | R135: =IFERROR(VLOOKUP(Table_Shelter[[#This Row],[CampName]],CL,3,0),"") -> Open | S135: =IFERROR(Table_Shelter[[#This Row],[HHCovered]]/VLOOKUP(Table_Shelter[[#This Row],[CampName]],CL,4,0),"") -> 1.142857143
A136: 2013-10-31 | B136: UNHCR | C136: UNHCR | D136: Kachin | E136: Myitkyina | F136: Du Kahtawng Qtr. 14 | G136: 1 | J136: 3 | K136: 3 | P136: =Table_Shelter[[#This Row],[HHperShelter]]*(Table_Shelter[[#This Row],['#ofTemporaryShelterUnitsBuilt]]+Table_Shelter[[#This Row],['#ofTemporaryShelterUnderConstruction]]+Table_Shelter[[#This Row],['#ofPermanentHouseUnderConstruction]]) -> 3 | Q136: =IFERROR(VLOOKUP(Table_Shelter[[#This Row],[CampName]],CL,2,0),"") -> MMR001CMP012 | R136: =IFERROR(VLOOKUP(Table_Shelter[[#This Row],[CampName]],CL,3,0),"") -> Open | S136: =IFERROR(Table_Shelter[[#This Row],[HHCovered]]/VLOOKUP(Table_Shelter[[#This Row],[CampName]],CL,4,0),"") -> 0.5
A137: 2013-10-31 | B137: UNHCR | C137: UNHCR | D137: Kachin | E137: Myitkyina | F137: Du Kahtawng Qtr. 4 | G137: 1 | J137: 6 | K137: 6 | P137: =Table_Shelter[[#This Row],[HHperShelter]]*(Table_Shelter[[#This Row],['#ofTemporaryShelterUnitsBuilt]]+Table_Shelter[[#This Row],['#ofTemporaryShelterUnderConstruction]]+Table_Shelter[[#This Row],['#ofPermanentHouseUnderConstruction]]) -> 6 | Q137: =IFERROR(VLOOKUP(Table_Shelter[[#This Row],[CampName]],CL,2,0),"") -> MMR001CMP010 | R137: =IFERROR(VLOOKUP(Table_Shelter[[#This Row],[CampName]],CL,3,0),"") -> Open | S137: =IFERROR(Table_Shelter[[#This Row],[HHCovered]]/VLOOKUP(Table_Shelter[[#This Row],[CampName]],CL,4,0),"") -> 1
A138: 2013-10-31 | B138: UNHCR | C138: UNHCR | D138: Kachin | E138: Myitkyina | F138: Du Kahtawng Qtr. 5 | G138: 1 | J138: 3 | K138: 3 | P138: =Table_Shelter[[#This Row],[HHperShelter]]*(Table_Shelter[[#This Row],['#ofTemporaryShelterUnitsBuilt]]+Table_Shelter[[#This Row],['#ofTemporaryShelterUnderConstruction]]+Table_Shelter[[#This Row],['#ofPermanentHouseUnderConstruction]]) -> 3 | Q138: =IFERROR(VLOOKUP(Table_Shelter[[#This Row],[CampName]],CL,2,0),"") -> MMR001CMP011 | R138: =IFERROR(VLOOKUP(Table_Shelter[[#This Row],[CampName]],CL,3,0),"") -> Open | S138: =IFERROR(Table_Shelter[[#This Row],[HHCovered]]/VLOOKUP(Table_Shelter[[#This Row],[CampName]],CL,4,0),"") -> 0.375
A139: 2013-10-31 | B139: UNHCR | C139: UNHCR | D139: Kachin | E139: Myitkyina | F139: Jan Mai Kawng Baptist Church | G139: 1 | J139: 50 | K139: 50 | P139: =Table_Shelter[[#This Row],[HHperShelter]]*(Table_Shelter[[#This Row],['#ofTemporaryShelterUnitsBuilt]]+Table_Shelter[[#This Row],['#ofTemporaryShelterUnderConstruction]]+Table_Shelter[[#This Row],['#ofPermanentHouseUnderConstruction]]) -> 50 | Q139: =IFERROR(VLOOKUP(Table_Shelter[[#This Row],[CampName]],CL,2,0),"") -> MMR001CMP018 | R139: =IFERROR(VLOOKUP(Table_Shelter[[#This Row],[CampName]],CL,3,0),"") -> Open | S139: =IFERROR(Table_Shelter[[#This Row],[HHCovered]]/VLOOKUP(Table_Shelter[[#This Row],[CampName]],CL,4,0),"") -> 0.2463054187
A140: 2013-10-31 | B140: UNHCR | C140: UNHCR | D140: Kachin | E140: Myitkyina | F140: Le Kone Ziun Baptist Church | G140: 1 | J140: 5 | K140: 5 | P140: =Table_Shelter[[#This Row],[HHperShelter]]*(Table_Shelter[[#This Row],['#ofTemporaryShelterUnitsBuilt]]+Table_Shelter[[#This Row],['#ofTemporaryShelterUnderConstruction]]+Table_Shelter[[#This Row],['#ofPermanentHouseUnderConstruction]]) -> 5 | Q140: =IFERROR(VLOOKUP(Table_Shelter[[#This Row],[CampName]],CL,2,0),"") -> MMR001CMP014 | R140: =IFERROR(VLOOKUP(Table_Shelter[[#This Row],[CampName]],CL,3,0),"") -> Open | S140: =IFERROR(Table_Shelter[[#This Row],[HHCovered]]/VLOOKUP(Table_Shelter[[#This Row],[CampName]],CL,4,0),"") -> 0.03424657534
A141: 2013-10-31 | B141: UNHCR | C141: UNHCR | D141: Kachin | E141: Myitkyina | F141: Man Hkring Baptist Church | G141: 1 | J141: 20 | K141: 20 | P141: =Table_Shelter[[#This Row],[HHperShelter]]*(Table_Shelter[[#This Row],['#ofTemporaryShelterUnitsBuilt]]+Table_Shelter[[#This Row],['#ofTemporaryShelterUnderConstruction]]+Table_Shelter[[#This Row],['#ofPermanentHouseUnderConstruction]]) -> 20 | Q141: =IFERROR(VLOOKUP(Table_Shelter[[#This Row],[CampName]],CL,2,0),"") -> MMR001CMP008 | R141: =IFERROR(VLOOKUP(Table_Shelter[[#This Row],[CampName]],CL,3,0),"") -> Open | S141: =IFERROR(Table_Shelter[[#This Row],[HHCovered]]/VLOOKUP(Table_Shelter[[#This Row],[CampName]],CL,4,0),"") -> 0.2105263158
A142: 2013-10-31 | B142: UNHCR | C142: UNHCR | D142: Kachin | E142: Myitkyina | F142: Shatapru Sut Ngai Tawng | G142: 1 | J142: 40 | K142: 40 | P142: =Table_Shelter[[#This Row],[HHperShelter]]*(Table_Shelter[[#This Row],['#ofTemporaryShelterUnitsBuilt]]+Table_Shelter[[#This Row],['#ofTemporaryShelterUnderConstruction]]+Table_Shelter[[#This Row],['#ofPermanentHouseUnderConstruction]]) -> 40 | Q142: =IFERROR(VLOOKUP(Table_Shelter[[#This Row],[CampName]],CL,2,0),"") -> MMR001CMP006 | R142: =IFERROR(VLOOKUP(Table_Shelter[[#This Row],[CampName]],CL,3,0),"") -> Open | S142: =IFERROR(Table_Shelter[[#This Row],[HHCovered]]/VLOOKUP(Table_Shelter[[#This Row],[CampName]],CL,4,0),"") -> 0.3773584906
A143: 2013-10-31 | B143: UNHCR | C143: UNHCR | D143: Kachin | E143: Myitkyina | F143: Tat Kone Emanuel Church | G143: 1 | J143: 5 | K143: 5 | P143: =Table_Shelter[[#This Row],[HHperShelter]]*(Table_Shelter[[#This Row],['#ofTemporaryShelterUnitsBuilt]]+Table_Shelter[[#This Row],['#ofTemporaryShelterUnderConstruction]]+Table_Shelter[[#This Row],['#ofPermanentHouseUnderConstruction]]) -> 5 | Q143: =IFERROR(VLOOKUP(Table_Shelter[[#This Row],[CampName]],CL,2,0),"") -> MMR001CMP004 | R143: =IFERROR(VLOOKUP(Table_Shelter[[#This Row],[CampName]],CL,3,0),"") -> Open | S143: =IFERROR(Table_Shelter[[#This Row],[HHCovered]]/VLOOKUP(Table_Shelter[[#This Row],[CampName]],CL,4,0),"") -> 0.3571428571
A144: 2013-10-31 | B144: UNHCR | C144: UNHCR | D144: Kachin | E144: Waingmaw | F144: Maina Catholic Church (St. Joseph) | G144: 1 | J144: 120 | K144: 120 | P144: =Table_Shelter[[#This Row],[HHperShelter]]*(Table_Shelter[[#This Row],['#ofTemporaryShelterUnitsBuilt]]+Table_Shelter[[#This Row],['#ofTemporaryShelterUnderConstruction]]+Table_Shelter[[#This Row],['#ofPermanentHouseUnderConstruction]]) -> 120 | Q144: =IFERROR(VLOOKUP(Table_Shelter[[#This Row],[CampName]],CL,2,0),"") -> MMR001CMP029 | R144: =IFERROR(VLOOKUP(Table_Shelter[[#This Row],[CampName]],CL,3,0),"") -> Open | S144: =IFERROR(Table_Shelter[[#This Row],[HHCovered]]/VLOOKUP(Table_Shelter[[#This Row],[CampName]],CL,4,0),"") -> 0.5172413793
A145: 2013-10-31 | B145: UNHCR | C145: UNHCR | D145: Kachin | E145: Waingmaw | F145: Qtr. 2 Lhaovo Baptist Church | G145: 1 | J145: 5 | K145: 5 | P145: =Table_Shelter[[#This Row],[HHperShelter]]*(Table_Shelter[[#This Row],['#ofTemporaryShelterUnitsBuilt]]+Table_Shelter[[#This Row],['#ofTemporaryShelterUnderConstruction]]+Table_Shelter[[#This Row],['#ofPermanentHouseUnderConstruction]]) -> 5 | Q145: =IFERROR(VLOOKUP(Table_Shelter[[#This Row],[CampName]],CL,2,0),"") -> MMR001CMP032 | R145: =IFERROR(VLOOKUP(Table_Shelter[[#This Row],[CampName]],CL,3,0),"") -> Open | S145: =IFERROR(Table_Shelter[[#This Row],[HHCovered]]/VLOOKUP(Table_Shelter[[#This Row],[CampName]],CL,4,0),"") -> 0.04166666667
A146: 2013-10-31 | B146: UNHCR | C146: UNHCR | D146: Kachin | E146: Waingmaw | F146: Qtr. 2 Myoma Baptist Church | G146: 1 | J146: 20 | K146: 20 | P146: =Table_Shelter[[#This Row],[HHperShelter]]*(Table_Shelter[[#This Row],['#ofTemporaryShelterUnitsBuilt]]+Table_Shelter[[#This Row],['#ofTemporaryShelterUnderConstruction]]+Table_Shelter[[#This Row],['#ofPermanentHouseUnderConstruction]]) -> 20 | Q146: =IFERROR(VLOOKUP(Table_Shelter[[#This Row],[CampName]],CL,2,0),"") -> MMR001CMP025 | R146: =IFERROR(VLOOKUP(Table_Shelter[[#This Row],[CampName]],CL,3,0),"") -> Open | S146: =IFERROR(Table_Shelter[[#This Row],[HHCovered]]/VLOOKUP(Table_Shelter[[#This Row],[CampName]],CL,4,0),"") -> 0.2409638554
A147: 2013-10-31 | B147: UNHCR | C147: UNHCR | D147: Kachin | E147: Waingmaw | F147: Waingmaw Baptist Zonal Office | G147: 1 | J147: 5 | K147: 5 | P147: =Table_Shelter[[#This Row],[HHperShelter]]*(Table_Shelter[[#This Row],['#ofTemporaryShelterUnitsBuilt]]+Table_Shelter[[#This Row],['#ofTemporaryShelterUnderConstruction]]+Table_Shelter[[#This Row],['#ofPermanentHouseUnderConstruction]]) -> 5 | Q147: =IFERROR(VLOOKUP(Table_Shelter[[#This Row],[CampName]],CL,2,0),"") -> MMR001CMP036 | R147: =IFERROR(VLOOKUP(Table_Shelter[[#This Row],[CampName]],CL,3,0),"") -> Open | S147: =IFERROR(Table_Shelter[[#This Row],[HHCovered]]/VLOOKUP(Table_Shelter[[#This Row],[CampName]],CL,4,0),"") -> 
A148: 2013-10-31 | B148: Worl d Vision | C148: Worl d Vision | D148: Kachin | E148: Waingmaw | F148: Maina Lawang Baptist Church | G148: 1 | J148: 10 | K148: 10 | P148: =Table_Shelter[[#This Row],[HHperShelter]]*(Table_Shelter[[#This Row],['#ofTemporaryShelterUnitsBuilt]]+Table_Shelter[[#This Row],['#ofTemporaryShelterUnderConstruction]]+Table_Shelter[[#This Row],['#ofPermanentHouseUnderConstruction]]) -> 10 | Q148: =IFERROR(VLOOKUP(Table_Shelter[[#This Row],[CampName]],CL,2,0),"") -> MMR001CMP039 | R148: =IFERROR(VLOOKUP(Table_Shelter[[#This Row],[CampName]],CL,3,0),"") -> Open | S148: =IFERROR(Table_Shelter[[#This Row],[HHCovered]]/VLOOKUP(Table_Shelter[[#This Row],[CampName]],CL,4,0),"") -> 0.2040816327
A149: 2013-10-31 | B149: World Vision | C149: World Vision | D149: Kachin | E149: Waingmaw | F149: Maina AG Church | G149: 1 | J149: 27 | K149: 27 | P149: =Table_Shelter[[#This Row],[HHperShelter]]*(Table_Shelter[[#This Row],['#ofTemporaryShelterUnitsBuilt]]+Table_Shelter[[#This Row],['#ofTemporaryShelterUnderConstruction]]+Table_Shelter[[#This Row],['#ofPermanentHouseUnderConstruction]]) -> 27 | Q149: =IFERROR(VLOOKUP(Table_Shelter[[#This Row],[CampName]],CL,2,0),"") -> MMR001CMP031 | R149: =IFERROR(VLOOKUP(Table_Shelter[[#This Row],[CampName]],CL,3,0),"") -> Open | S149: =IFERROR(Table_Shelter[[#This Row],[HHCovered]]/VLOOKUP(Table_Shelter[[#This Row],[CampName]],CL,4,0),"") -> 0.1914893617
A150: 2013-10-31 | B150: World Vision | C150: World Vision | D150: Kachin | E150: Waingmaw | F150: Qtr. 2 Lhaovo Baptist Church | G150: 1 | J150: 10 | K150: 10 | P150: =Table_Shelter[[#This Row],[HHperShelter]]*(Table_Shelter[[#This Row],['#ofTemporaryShelterUnitsBuilt]]+Table_Shelter[[#This Row],['#ofTemporaryShelterUnderConstruction]]+Table_Shelter[[#This Row],['#ofPermanentHouseUnderConstruction]]) -> 10 | Q150: =IFERROR(VLOOKUP(Table_Shelter[[#This Row],[CampName]],CL,2,0),"") -> MMR001CMP032 | R150: =IFERROR(VLOOKUP(Table_Shelter[[#This Row],[CampName]],CL,3,0),"") -> Open | S150: =IFERROR(Table_Shelter[[#This Row],[HHCovered]]/VLOOKUP(Table_Shelter[[#This Row],[CampName]],CL,4,0),"") -> 0.08333333333
A151: 2013-10-31 | B151: World Vision | C151: World Vision | D151: Kachin | E151: Waingmaw | F151: Thargaya Lisu Baptist Church | G151: 1 | J151: 24 | K151: 24 | P151: =Table_Shelter[[#This Row],[HHperShelter]]*(Table_Shelter[[#This Row],['#ofTemporaryShelterUnitsBuilt]]+Table_Shelter[[#This Row],['#ofTemporaryShelterUnderConstruction]]+Table_Shelter[[#This Row],['#ofPermanentHouseUnderConstruction]]) -> 24 | Q151: =IFERROR(VLOOKUP(Table_Shelter[[#This Row],[CampName]],CL,2,0),"") -> MMR001CMP037 | R151: =IFERROR(VLOOKUP(Table_Shelter[[#This Row],[CampName]],CL,3,0),"") -> Open | S151: =IFERROR(Table_Shelter[[#This Row],[HHCovered]]/VLOOKUP(Table_Shelter[[#This Row],[CampName]],CL,4,0),"") -> 0.3243243243
A152: 2013-10-31 | B152: World Vision | C152: World Vision | D152: Kachin | E152: Waingmaw | F152: Waingmaw AG Church | G152: 1 | J152: 15 | K152: 15 | P152: =Table_Shelter[[#This Row],[HHperShelter]]*(Table_Shelter[[#This Row],['#ofTemporaryShelterUnitsBuilt]]+Table_Shelter[[#This Row],['#ofTemporaryShelterUnderConstruction]]+Table_Shelter[[#This Row],['#ofPermanentHouseUnderConstruction]]) -> 15 | Q152: =IFERROR(VLOOKUP(Table_Shelter[[#This Row],[CampName]],CL,2,0),"") -> MMR001CMP038 | R152: =IFERROR(VLOOKUP(Table_Shelter[[#This Row],[CampName]],CL,3,0),"") -> Open | S152: =IFERROR(Table_Shelter[[#This Row],[HHCovered]]/VLOOKUP(Table_Shelter[[#This Row],[CampName]],CL,4,0),"") -> 0.1851851852
A153: 2013-10-31 | B153: World Vision | C153: World Vision | D153: Kachin | E153: Waingmaw | F153: Waingmaw Baptist Zonal Office | G153: 1 | J153: 10 | K153: 10 | P153: =Table_Shelter[[#This Row],[HHperShelter]]*(Table_Shelter[[#This Row],['#ofTemporaryShelterUnitsBuilt]]+Table_Shelter[[#This Row],['#ofTemporaryShelterUnderConstruction]]+Table_Shelter[[#This Row],['#ofPermanentHouseUnderConstruction]]) -> 10 | Q153: =IFERROR(VLOOKUP(Table_Shelter[[#This Row],[CampName]],CL,2,0),"") -> MMR001CMP036 | R153: =IFERROR(VLOOKUP(Table_Shelter[[#This Row],[CampName]],CL,3,0),"") -> Open | S153: =IFERROR(Table_Shelter[[#This Row],[HHCovered]]/VLOOKUP(Table_Shelter[[#This Row],[CampName]],CL,4,0),"") -> 
A154: 2013-10-31 | B154: Yedai Foundation | C154: KBC | D154: Kachin | E154: Waingmaw | F154: Maina KBC (Bawng Ring) | G154: 1 | J154: 10 | K154: 10 | P154: =Table_Shelter[[#This Row],[HHperShelter]]*(Table_Shelter[[#This Row],['#ofTemporaryShelterUnitsBuilt]]+Table_Shelter[[#This Row],['#ofTemporaryShelterUnderConstruction]]+Table_Shelter[[#This Row],['#ofPermanentHouseUnderConstruction]]) -> 10 | Q154: =IFERROR(VLOOKUP(Table_Shelter[[#This Row],[CampName]],CL,2,0),"") -> MMR001CMP040 | R154: =IFERROR(VLOOKUP(Table_Shelter[[#This Row],[CampName]],CL,3,0),"") -> Open | S154: =IFERROR(Table_Shelter[[#This Row],[HHCovered]]/VLOOKUP(Table_Shelter[[#This Row],[CampName]],CL,4,0),"") -> 0.02380952381
A155: 2013-10-31 | B155: ACTED | C155: ACTED | D155: Kachin | E155: Waingmaw | F155: Post 6 Camp | G155: 1 | H155: 207 | I155: 207 | P155: =Table_Shelter[[#This Row],[HHperShelter]]*(Table_Shelter[[#This Row],['#ofTemporaryShelterUnitsBuilt]]+Table_Shelter[[#This Row],['#ofTemporaryShelterUnderConstruction]]+Table_Shelter[[#This Row],['#ofPermanentHouseUnderConstruction]]) -> 0 | Q155: =IFERROR(VLOOKUP(Table_Shelter[[#This Row],[CampName]],CL,2,0),"") -> MMR001CMP160 | R155: =IFERROR(VLOOKUP(Table_Shelter[[#This Row],[CampName]],CL,3,0),"") -> Open | S155: =IFERROR(Table_Shelter[[#This Row],[HHCovered]]/VLOOKUP(Table_Shelter[[#This Row],[CampName]],CL,4,0),"") -> 0
A156: 2013-10-31 | B156: ACTED | C156: ACTED | D156: Kachin | E156: Waingmaw | F156: Border Post 8 | G156: 1 | H156: 41 | I156: 41 | P156: =Table_Shelter[[#This Row],[HHperShelter]]*(Table_Shelter[[#This Row],['#ofTemporaryShelterUnitsBuilt]]+Table_Shelter[[#This Row],['#ofTemporaryShelterUnderConstruction]]+Table_Shelter[[#This Row],['#ofPermanentHouseUnderConstruction]]) -> 0 | Q156: =IFERROR(VLOOKUP(Table_Shelter[[#This Row],[CampName]],CL,2,0),"") -> MMR001CMP113 | R156: =IFERROR(VLOOKUP(Table_Shelter[[#This Row],[CampName]],CL,3,0),"") -> Open | S156: =IFERROR(Table_Shelter[[#This Row],[HHCovered]]/VLOOKUP(Table_Shelter[[#This Row],[CampName]],CL,4,0),"") -> 0
A157: 2013-10-31 | B157: ACTED | C157: ACTED | D157: Kachin | E157: Myitkyina | F157: RRD Office | G157: 1 | H157: 1 | I157: 1 | P157: =Table_Shelter[[#This Row],[HHperShelter]]*(Table_Shelter[[#This Row],['#ofTemporaryShelterUnitsBuilt]]+Table_Shelter[[#This Row],['#ofTemporaryShelterUnderConstruction]]+Table_Shelter[[#This Row],['#ofPermanentHouseUnderConstruction]]) -> 0 | Q157: =IFERROR(VLOOKUP(Table_Shelter[[#This Row],[CampName]],CL,2,0),"") ->  | R157: =IFERROR(VLOOKUP(Table_Shelter[[#This Row],[CampName]],CL,3,0),"") ->  | S157: =IFERROR(Table_Shelter[[#This Row],[HHCovered]]/VLOOKUP(Table_Shelter[[#This Row],[CampName]],CL,4,0),"") -> 
A158: 2013-10-31 | B158: ACTED | C158: ACTED | D158: Kachin | E158: Myitkyina | F158: Nan Kway St. John Catholic Church | G158: 1 | H158: 1 | I158: 1 | P158: =Table_Shelter[[#This Row],[HHperShelter]]*(Table_Shelter[[#This Row],['#ofTemporaryShelterUnitsBuilt]]+Table_Shelter[[#This Row],['#ofTemporaryShelterUnderConstruction]]+Table_Shelter[[#This Row],['#ofPermanentHouseUnderConstruction]]) -> 0 | Q158: =IFERROR(VLOOKUP(Table_Shelter[[#This Row],[CampName]],CL,2,0),"") -> MMR001CMP024 | R158: =IFERROR(VLOOKUP(Table_Shelter[[#This Row],[CampName]],CL,3,0),"") -> Open | S158: =IFERROR(Table_Shelter[[#This Row],[HHCovered]]/VLOOKUP(Table_Shelter[[#This Row],[CampName]],CL,4,0),"") -> 0
A159: 2013-10-31 | B159: ACTED | C159: ACTED | D159: Kachin | E159: Hpakant | F159: Warra Zup | G159: 1 | H159: 47 | I159: 47 | P159: =Table_Shelter[[#This Row],[HHperShelter]]*(Table_Shelter[[#This Row],['#ofTemporaryShelterUnitsBuilt]]+Table_Shelter[[#This Row],['#ofTemporaryShelterUnderConstruction]]+Table_Shelter[[#This Row],['#ofPermanentHouseUnderConstruction]]) -> 0 | Q159: =IFERROR(VLOOKUP(Table_Shelter[[#This Row],[CampName]],CL,2,0),"") ->  | R159: =IFERROR(VLOOKUP(Table_Shelter[[#This Row],[CampName]],CL,3,0),"") ->  | S159: =IFERROR(Table_Shelter[[#This Row],[HHCovered]]/VLOOKUP(Table_Shelter[[#This Row],[CampName]],CL,4,0),"") -> 
A160: 2013-10-31 | B160: ACTED | C160: ACTED | D160: Kachin | E160: Hpakant | F160: Nam Ma Phyit, COC | G160: 1 | H160: 8 | I160: 8 | P160: =Table_Shelter[[#This Row],[HHperShelter]]*(Table_Shelter[[#This Row],['#ofTemporaryShelterUnitsBuilt]]+Table_Shelter[[#This Row],['#ofTemporaryShelterUnderConstruction]]+Table_Shelter[[#This Row],['#ofPermanentHouseUnderConstruction]]) -> 0 | Q160: =IFERROR(VLOOKUP(Table_Shelter[[#This Row],[CampName]],CL,2,0),"") -> MMR001CMP192 | R160: =IFERROR(VLOOKUP(Table_Shelter[[#This Row],[CampName]],CL,3,0),"") -> Open | S160: =IFERROR(Table_Shelter[[#This Row],[HHCovered]]/VLOOKUP(Table_Shelter[[#This Row],[CampName]],CL,4,0),"") -> 0
A161: 2013-10-31 | B161: ACTED | C161: ACTED | D161: Kachin | E161: Hpakant | F161: AG Church, Hmaw Si Sa | G161: 1 | H161: 10 | I161: 10 | P161: =Table_Shelter[[#This Row],[HHperShelter]]*(Table_Shelter[[#This Row],['#ofTemporaryShelterUnitsBuilt]]+Table_Shelter[[#This Row],['#ofTemporaryShelterUnderConstruction]]+Table_Shelter[[#This Row],['#ofPermanentHouseUnderConstruction]]) -> 0 | Q161: =IFERROR(VLOOKUP(Table_Shelter[[#This Row],[CampName]],CL,2,0),"") -> MMR001CMP176 | R161: =IFERROR(VLOOKUP(Table_Shelter[[#This Row],[CampName]],CL,3,0),"") -> Open | S161: =IFERROR(Table_Shelter[[#This Row],[HHCovered]]/VLOOKUP(Table_Shelter[[#This Row],[CampName]],CL,4,0),"") -> 0
A162: 2013-10-31 | B162: ACTED | C162: ACTED | D162: Kachin | E162: Hpakant | F162: Baptist Church, Hmaw Si Sar(Lon Khin) | G162: 1 | H162: 10 | I162: 10 | P162: =Table_Shelter[[#This Row],[HHperShelter]]*(Table_Shelter[[#This Row],['#ofTemporaryShelterUnitsBuilt]]+Table_Shelter[[#This Row],['#ofTemporaryShelterUnderConstruction]]+Table_Shelter[[#This Row],['#ofPermanentHouseUnderConstruction]]) -> 0 | Q162: =IFERROR(VLOOKUP(Table_Shelter[[#This Row],[CampName]],CL,2,0),"") -> MMR001CMP169 | R162: =IFERROR(VLOOKUP(Table_Shelter[[#This Row],[CampName]],CL,3,0),"") -> Open | S162: =IFERROR(Table_Shelter[[#This Row],[HHCovered]]/VLOOKUP(Table_Shelter[[#This Row],[CampName]],CL,4,0),"") -> 0
A163: 2013-10-31 | B163: ACTED | C163: ACTED | D163: Kachin | E163: Hpakant | F163: 5 Ward Baptist Church(lon Khin) | G163: 1 | H163: 25 | I163: 25 | P163: =Table_Shelter[[#This Row],[HHperShelter]]*(Table_Shelter[[#This Row],['#ofTemporaryShelterUnitsBuilt]]+Table_Shelter[[#This Row],['#ofTemporaryShelterUnderConstruction]]+Table_Shelter[[#This Row],['#ofPermanentHouseUnderConstruction]]) -> 0 | Q163: =IFERROR(VLOOKUP(Table_Shelter[[#This Row],[CampName]],CL,2,0),"") -> MMR001CMP179 | R163: =IFERROR(VLOOKUP(Table_Shelter[[#This Row],[CampName]],CL,3,0),"") -> Open | S163: =IFERROR(Table_Shelter[[#This Row],[HHCovered]]/VLOOKUP(Table_Shelter[[#This Row],[CampName]],CL,4,0),"") -> 0
A164: 2013-10-31 | B164: ACTED | C164: ACTED | D164: Kachin | E164: Hpakant | F164: Dhama Rakhita, Nyein Chan Tar Yar Ward(Lon Khin) | G164: 1 | H164: 5 | I164: 5 | P164: =Table_Shelter[[#This Row],[HHperShelter]]*(Table_Shelter[[#This Row],['#ofTemporaryShelterUnitsBuilt]]+Table_Shelter[[#This Row],['#ofTemporaryShelterUnderConstruction]]+Table_Shelter[[#This Row],['#ofPermanentHouseUnderConstruction]]) -> 0 | Q164: =IFERROR(VLOOKUP(Table_Shelter[[#This Row],[CampName]],CL,2,0),"") -> MMR001CMP174 | R164: =IFERROR(VLOOKUP(Table_Shelter[[#This Row],[CampName]],CL,3,0),"") -> Open | S164: =IFERROR(Table_Shelter[[#This Row],[HHCovered]]/VLOOKUP(Table_Shelter[[#This Row],[CampName]],CL,4,0),"") -> 0
A165: 2013-10-31 | B165: ACTED | C165: ACTED | D165: Kachin | E165: Hpakant | F165: Ward 2 Sai Taung Baptist Church, Seik Mu | G165: 1 | H165: 7 | I165: 7 | P165: =Table_Shelter[[#This Row],[HHperShelter]]*(Table_Shelter[[#This Row],['#ofTemporaryShelterUnitsBuilt]]+Table_Shelter[[#This Row],['#ofTemporaryShelterUnderConstruction]]+Table_Shelter[[#This Row],['#ofPermanentHouseUnderConstruction]]) -> 0 | Q165: =IFERROR(VLOOKUP(Table_Shelter[[#This Row],[CampName]],CL,2,0),"") -> MMR001CMP184 | R165: =IFERROR(VLOOKUP(Table_Shelter[[#This Row],[CampName]],CL,3,0),"") -> Open | S165: =IFERROR(Table_Shelter[[#This Row],[HHCovered]]/VLOOKUP(Table_Shelter[[#This Row],[CampName]],CL,4,0),"") -> 0
A166: 2013-10-31 | B166: ACTED | C166: ACTED | D166: Kachin | E166: Hpakant | F166: Sai Nai Baptish Church, Maw Shan Vil., Seki Mu | G166: 1 | H166: 7 | I166: 7 | P166: =Table_Shelter[[#This Row],[HHperShelter]]*(Table_Shelter[[#This Row],['#ofTemporaryShelterUnitsBuilt]]+Table_Shelter[[#This Row],['#ofTemporaryShelterUnderConstruction]]+Table_Shelter[[#This Row],['#ofPermanentHouseUnderConstruction]]) -> 0 | Q166: =IFERROR(VLOOKUP(Table_Shelter[[#This Row],[CampName]],CL,2,0),"") -> MMR001CMP183 | R166: =IFERROR(VLOOKUP(Table_Shelter[[#This Row],[CampName]],CL,3,0),"") -> Open | S166: =IFERROR(Table_Shelter[[#This Row],[HHCovered]]/VLOOKUP(Table_Shelter[[#This Row],[CampName]],CL,4,0),"") -> 0
A167: 2013-10-31 | B167: ACTED | C167: ACTED | D167: Kachin | E167: Hpakant | F167: Rawan Baptist Church, Maw Shan Vil., Seik Mu | G167: 1 | H167: 9 | I167: 9 | P167: =Table_Shelter[[#This Row],[HHperShelter]]*(Table_Shelter[[#This Row],['#ofTemporaryShelterUnitsBuilt]]+Table_Shelter[[#This Row],['#ofTemporaryShelterUnderConstruction]]+Table_Shelter[[#This Row],['#ofPermanentHouseUnderConstruction]]) -> 0 | Q167: =IFERROR(VLOOKUP(Table_Shelter[[#This Row],[CampName]],CL,2,0),"") -> MMR001CMP182 | R167: =IFERROR(VLOOKUP(Table_Shelter[[#This Row],[CampName]],CL,3,0),"") -> Open | S167: =IFERROR(Table_Shelter[[#This Row],[HHCovered]]/VLOOKUP(Table_Shelter[[#This Row],[CampName]],CL,4,0),"") -> 0
A168: 2013-10-31 | B168: ACTED | C168: ACTED | D168: Kachin | E168: Hpakant | F168: Hmaw Wan, Anglican | G168: 1 | H168: 5 | I168: 5 | P168: =Table_Shelter[[#This Row],[HHperShelter]]*(Table_Shelter[[#This Row],['#ofTemporaryShelterUnitsBuilt]]+Table_Shelter[[#This Row],['#ofTemporaryShelterUnderConstruction]]+Table_Shelter[[#This Row],['#ofPermanentHouseUnderConstruction]]) -> 0 | Q168: =IFERROR(VLOOKUP(Table_Shelter[[#This Row],[CampName]],CL,2,0),"") -> MMR001CMP191 | R168: =IFERROR(VLOOKUP(Table_Shelter[[#This Row],[CampName]],CL,3,0),"") -> Open | S168: =IFERROR(Table_Shelter[[#This Row],[HHCovered]]/VLOOKUP(Table_Shelter[[#This Row],[CampName]],CL,4,0),"") -> 0
A169: 2013-10-31 | B169: ACTED | C169: ACTED | D169: Kachin | E169: Hpakant | F169: Hmaw Wan, Anglican | G169: 1 | H169: 15 | I169: 15 | P169: =Table_Shelter[[#This Row],[HHperShelter]]*(Table_Shelter[[#This Row],['#ofTemporaryShelterUnitsBuilt]]+Table_Shelter[[#This Row],['#ofTemporaryShelterUnderConstruction]]+Table_Shelter[[#This Row],['#ofPermanentHouseUnderConstruction]]) -> 0 | Q169: =IFERROR(VLOOKUP(Table_Shelter[[#This Row],[CampName]],CL,2,0),"") -> MMR001CMP191 | R169: =IFERROR(VLOOKUP(Table_Shelter[[#This Row],[CampName]],CL,3,0),"") -> Open | S169: =IFERROR(Table_Shelter[[#This Row],[HHCovered]]/VLOOKUP(Table_Shelter[[#This Row],[CampName]],CL,4,0),"") -> 0
A170: 2013-10-31 | B170: ACTED | C170: ACTED | D170: Kachin | E170: Hpakant | F170: Nga Pyaw Taw Baptist Nursery School | G170: 1 | H170: 50 | I170: 50 | P170: =Table_Shelter[[#This Row],[HHperShelter]]*(Table_Shelter[[#This Row],['#ofTemporaryShelterUnitsBuilt]]+Table_Shelter[[#This Row],['#ofTemporaryShelterUnderConstruction]]+Table_Shelter[[#This Row],['#ofPermanentHouseUnderConstruction]]) -> 0 | Q170: =IFERROR(VLOOKUP(Table_Shelter[[#This Row],[CampName]],CL,2,0),"") -> MMR001CMP082 | R170: =IFERROR(VLOOKUP(Table_Shelter[[#This Row],[CampName]],CL,3,0),"") -> Open | S170: =IFERROR(Table_Shelter[[#This Row],[HHCovered]]/VLOOKUP(Table_Shelter[[#This Row],[CampName]],CL,4,0),"") -> 0
A171: 2013-12-12 | B171: UNHCR | C171: SHALOM | D171: Kachin | E171: Hpakant | F171: AG Church, Hmaw Si Sa | G171: 1 | J171: 30 | K171: 15 | P171: =Table_Shelter[[#This Row],[HHperShelter]]*(Table_Shelter[[#This Row],['#ofTemporaryShelterUnitsBuilt]]+Table_Shelter[[#This Row],['#ofTemporaryShelterUnderConstruction]]+Table_Shelter[[#This Row],['#ofPermanentHouseUnderConstruction]]) -> 15 | Q171: =IFERROR(VLOOKUP(Table_Shelter[[#This Row],[CampName]],CL,2,0),"") -> MMR001CMP176 | R171: =IFERROR(VLOOKUP(Table_Shelter[[#This Row],[CampName]],CL,3,0),"") -> Open | S171: =IFERROR(Table_Shelter[[#This Row],[HHCovered]]/VLOOKUP(Table_Shelter[[#This Row],[CampName]],CL,4,0),"") -> 0.2307692308
A172: 2013-12-12 | B172: UNHCR | C172: SHALOM | D172: Kachin | E172: Hpakant | F172: Nam Ma Phyit, COC | G172: 1 | J172: 5 | K172: 5 | P172: =Table_Shelter[[#This Row],[HHperShelter]]*(Table_Shelter[[#This Row],['#ofTemporaryShelterUnitsBuilt]]+Table_Shelter[[#This Row],['#ofTemporaryShelterUnderConstruction]]+Table_Shelter[[#This Row],['#ofPermanentHouseUnderConstruction]]) -> 5 | Q172: =IFERROR(VLOOKUP(Table_Shelter[[#This Row],[CampName]],CL,2,0),"") -> MMR001CMP192 | R172: =IFERROR(VLOOKUP(Table_Shelter[[#This Row],[CampName]],CL,3,0),"") -> Open | S172: =IFERROR(Table_Shelter[[#This Row],[HHCovered]]/VLOOKUP(Table_Shelter[[#This Row],[CampName]],CL,4,0),"") -> 0.2083333333
A173: 2013-12-12 | B173: UNHCR | C173: SHALOM | D173: Kachin | E173: Hpakant | F173: Chin Church, Seik Mu | G173: 1 | J173: 4 | K173: 4 | P173: =Table_Shelter[[#This Row],[HHperShelter]]*(Table_Shelter[[#This Row],['#ofTemporaryShelterUnitsBuilt]]+Table_Shelter[[#This Row],['#ofTemporaryShelterUnderConstruction]]+Table_Shelter[[#This Row],['#ofPermanentHouseUnderConstruction]]) -> 4 | Q173: =IFERROR(VLOOKUP(Table_Shelter[[#This Row],[CampName]],CL,2,0),"") -> MMR001CMP109 | R173: =IFERROR(VLOOKUP(Table_Shelter[[#This Row],[CampName]],CL,3,0),"") -> Open | S173: =IFERROR(Table_Shelter[[#This Row],[HHCovered]]/VLOOKUP(Table_Shelter[[#This Row],[CampName]],CL,4,0),"") -> 1
A174: 2013-12-12 | B174: UNHCR | C174: SHALOM | D174: Kachin | E174: Hpakant | F174: Hmaw Wan, Anglican | G174: 1 | J174: 10 | K174: 5 | P174: =Table_Shelter[[#This Row],[HHperShelter]]*(Table_Shelter[[#This Row],['#ofTemporaryShelterUnitsBuilt]]+Table_Shelter[[#This Row],['#ofTemporaryShelterUnderConstruction]]+Table_Shelter[[#This Row],['#ofPermanentHouseUnderConstruction]]) -> 5 | Q174: =IFERROR(VLOOKUP(Table_Shelter[[#This Row],[CampName]],CL,2,0),"") -> MMR001CMP191 | R174: =IFERROR(VLOOKUP(Table_Shelter[[#This Row],[CampName]],CL,3,0),"") -> Open | S174: =IFERROR(Table_Shelter[[#This Row],[HHCovered]]/VLOOKUP(Table_Shelter[[#This Row],[CampName]],CL,4,0),"") -> 0.4545454545
A175: 2013-12-12 | B175: UNHCR | C175: SHALOM | D175: Kachin | E175: Hpakant | F175: Lisu Baptist Church, Maw Shan Vil,. Seik Mu | G175: 1 | J175: 13 | K175: 8 | P175: =Table_Shelter[[#This Row],[HHperShelter]]*(Table_Shelter[[#This Row],['#ofTemporaryShelterUnitsBuilt]]+Table_Shelter[[#This Row],['#ofTemporaryShelterUnderConstruction]]+Table_Shelter[[#This Row],['#ofPermanentHouseUnderConstruction]]) -> 8 | Q175: =IFERROR(VLOOKUP(Table_Shelter[[#This Row],[CampName]],CL,2,0),"") -> MMR001CMP181 | R175: =IFERROR(VLOOKUP(Table_Shelter[[#This Row],[CampName]],CL,3,0),"") -> Open | S175: =IFERROR(Table_Shelter[[#This Row],[HHCovered]]/VLOOKUP(Table_Shelter[[#This Row],[CampName]],CL,4,0),"") -> 0.347826087
A176: 2013-12-12 | B176: UNHCR | C176: SHALOM | D176: Kachin | E176: Hpakant | F176: Rawan Baptist Church, Maw Shan Vil., Seik Mu | G176: 1 | J176: 5 | K176: 5 | P176: =Table_Shelter[[#This Row],[HHperShelter]]*(Table_Shelter[[#This Row],['#ofTemporaryShelterUnitsBuilt]]+Table_Shelter[[#This Row],['#ofTemporaryShelterUnderConstruction]]+Table_Shelter[[#This Row],['#ofPermanentHouseUnderConstruction]]) -> 5 | Q176: =IFERROR(VLOOKUP(Table_Shelter[[#This Row],[CampName]],CL,2,0),"") -> MMR001CMP182 | R176: =IFERROR(VLOOKUP(Table_Shelter[[#This Row],[CampName]],CL,3,0),"") -> Open | S176: =IFERROR(Table_Shelter[[#This Row],[HHCovered]]/VLOOKUP(Table_Shelter[[#This Row],[CampName]],CL,4,0),"") -> 0.3846153846
A177: 2013-12-12 | B177: UNHCR | C177: KBSS | D177: Kachin | E177: Mansi | F177: Lagatyan | G177: 1 | J177: 60 | K177: 50 | P177: =Table_Shelter[[#This Row],[HHperShelter]]*(Table_Shelter[[#This Row],['#ofTemporaryShelterUnitsBuilt]]+Table_Shelter[[#This Row],['#ofTemporaryShelterUnderConstruction]]+Table_Shelter[[#This Row],['#ofPermanentHouseUnderConstruction]]) -> 50 | Q177: =IFERROR(VLOOKUP(Table_Shelter[[#This Row],[CampName]],CL,2,0),"") -> MMR001CMP202 | R177: =IFERROR(VLOOKUP(Table_Shelter[[#This Row],[CampName]],CL,3,0),"") -> Open | S177: =IFERROR(Table_Shelter[[#This Row],[HHCovered]]/VLOOKUP(Table_Shelter[[#This Row],[CampName]],CL,4,0),"") -> 0.2222222222
P178: =Table_Shelter[[#This Row],[HHperShelter]]*(Table_Shelter[[#This Row],['#ofTemporaryShelterUnitsBuilt]]+Table_Shelter[[#This Row],['#ofTemporaryShelterUnderConstruction]]+Table_Shelter[[#This Row],['#ofPermanentHouseUnderConstruction]]) -> 0 | Q178: =IFERROR(VLOOKUP(Table_Shelter[[#This Row],[CampName]],CL,2,0),"") ->  | R178: =IFERROR(VLOOKUP(Table_Shelter[[#This Row],[CampName]],CL,3,0),"") ->  | S178: =IFERROR(Table_Shelter[[#This Row],[HHCovered]]/VLOOKUP(Table_Shelter[[#This Row],[CampName]],CL,4,0),"") -> 
P179: =Table_Shelter[[#This Row],[HHperShelter]]*(Table_Shelter[[#This Row],['#ofTemporaryShelterUnitsBuilt]]+Table_Shelter[[#This Row],['#ofTemporaryShelterUnderConstruction]]+Table_Shelter[[#This Row],['#ofPermanentHouseUnderConstruction]]) -> 0 | Q179: =IFERROR(VLOOKUP(Table_Shelter[[#This Row],[CampName]],CL,2,0),"") ->  | R179: =IFERROR(VLOOKUP(Table_Shelter[[#This Row],[CampName]],CL,3,0),"") ->  | S179: =IFERROR(Table_Shelter[[#This Row],[HHCovered]]/VLOOKUP(Table_Shelter[[#This Row],[CampName]],CL,4,0),"") -> 
P180: =Table_Shelter[[#This Row],[HHperShelter]]*(Table_Shelter[[#This Row],['#ofTemporaryShelterUnitsBuilt]]+Table_Shelter[[#This Row],['#ofTemporaryShelterUnderConstruction]]+Table_Shelter[[#This Row],['#ofPermanentHouseUnderConstruction]]) -> 0 | Q180: =IFERROR(VLOOKUP(Table_Shelter[[#This Row],[CampName]],CL,2,0),"") ->  | R180: =IFERROR(VLOOKUP(Table_Shelter[[#This Row],[CampName]],CL,3,0),"") ->  | S180: =IFERROR(Table_Shelter[[#This Row],[HHCovered]]/VLOOKUP(Table_Shelter[[#This Row],[CampName]],CL,4,0),"") -> 
P181: =Table_Shelter[[#This Row],[HHperShelter]]*(Table_Shelter[[#This Row],['#ofTemporaryShelterUnitsBuilt]]+Table_Shelter[[#This Row],['#ofTemporaryShelterUnderConstruction]]+Table_Shelter[[#This Row],['#ofPermanentHouseUnderConstruction]]) -> 0 | Q181: =IFERROR(VLOOKUP(Table_Shelter[[#This Row],[CampName]],CL,2,0),"") ->  | R181: =IFERROR(VLOOKUP(Table_Shelter[[#This Row],[CampName]],CL,3,0),"") ->  | S181: =IFERROR(Table_Shelter[[#This Row],[HHCovered]]/VLOOKUP(Table_Shelter[[#This Row],[CampName]],CL,4,0),"") -> 

Sheet Sheet2 (hidden)
A1: DateUpdated | B1: Organization | C1: ImplementingPartner | D1: State | E1: Township | F1: CampName | G1: HHperShelter | H1: #ofFamilyTentPlanned(Target) | I1: #ofFamilyTentDistributed | J1: #ofTemporaryShelterPlanned(Target) | K1: #ofTemporaryShelterBuilt | L1: #ofTemporaryShelterUnderConstruction | M1: #ofPermanentHousePlanned(Target) | N1: #ofPermanentHouseBuilt | O1: #ofPermanentHouseUnderConstruction | P1: HHCovered | Q1: Pcode | R1: Status | S1: Column1 | T1: Column2 | U1: Column3
A2: 31.12.2012 | B2: UNHCR | C2: Shalom | D2: Kachin | E2: Bhamo | F2: Robert Church | G2: 1 | K2: 30 | P2: 30 | Q2: MMR001CMP047 | U2: 1
A3: 31.12.2012 | B3: UNHCR | C3: KBC | D3: Shan_North | E3: Manton | F3: Mandung - Jinghpaw | G3: 1 | J3: 10 | K3: 10 | P3: 10 | Q3: MMR015CMP009 | U3: 1
A4: 31.12.2012 | B4: UNHCR | C4: KBC | D4: Shan_North | E4: Manton | F4: Howa | G4: 1 | J4: 10 | K4: 10 | P4: 10 | Q4: MMR015CMP010 | U4: 1
A5: 31.07.2013 | B5: UNHCR | C5: KMSS Bhamo | D5: Kachin | E5: Bhamo | F5: AD-2000 Tharthana Compound | G5: 1 | J5: 132 | K5: 132 | P5: 132 | Q5: MMR001CMP050 | U5: 1
A6: 31.07.2013 | B6: UNHCR | C6: KMSS Bhamo | D6: Kachin | E6: Waingmaw | F6: Woi Chyai | G6: 1 | J6: 160 | L6: 160 | Q6: MMR001CMP116
A7: 31.07.2013 | B7: UNHCR | C7: KMSS Bhamo | D7: Kachin | E7: Momauk | F7: Momauk Catholic Church (St. Patrick) | G7: 1 | J7: 12 | K7: 12 | P7: 12 | Q7: MMR001CMP057 | U7: 1
A8: 31.07.2013 | B8: UNHCR | C8: KBC | D8: Kachin | E8: Hpakant | F8: Sai Nai Baptish Church, Maw Shan Vil., Seki Mu | G8: 1 | J8: 5 | L8: 5 | Q8: MMR001CMP183
A9: 31.07.2013 | B9: UNHCR | C9: KBC | D9: Kachin | E9: Hpakant | F9: Ward 2 Sai Taung Baptist Church, Seik Mu | G9: 1 | J9: 15 | L9: 15 | Q9: MMR001CMP184
A10: 31.07.2013 | B10: UNHCR | C10: KBC | D10: Kachin | E10: Hpakant | F10: Baptist Church, Hmaw Si Sar(Lon Khin) | G10: 1 | J10: 20 | L10: 20 | Q10: MMR001CMP169
A11: 31.07.2013 | B11: UNHCR | C11: KBC | D11: Kachin | E11: Hpakant | F11: 5 Ward Baptist Church(lon Khin) | G11: 1 | J11: 20 | L11: 20 | Q11: MMR001CMP179
A12: 31.07.2013 | B12: UNHCR | C12: KBC | D12: Kachin | E12: Hpakant | F12: Nam Ma Phyit COC | G12: 1 | J12: 40 | L12: 40
A13: 31.12.2012 | B13: UNHCR | C13: KMSS Bhamo | D13: Kachin | E13: Momauk | F13: Loi Je Catholic Church | G13: 1 | J13: 0 | K13: 0 | P13: 0 | Q13: MMR001CMP069 | U13: 1
A14: 31.12.2012 | B14: UNHCR | C14: KMSS Bhamo | D14: Kachin | E14: Momauk | F14: Je Yang Hka | G14: 1 | J14: 249 | K14: 249 | P14: 249 | Q14: MMR001CMP121 | U14: 1
A15: 31.12.2012 | B15: UNHCR | C15: KMSS Bhamo | D15: Kachin | E15: Mansi | F15: Mung Ding Pa (Boarder) | G15: 1 | J15: 24 | K15: 24 | P15: 24 | Q15: MMR001CMP203 | U15: 1
A16: 31.12.2012 | B16: UNHCR | C16: KMSS Bhamo | D16: Kachin | E16: Mansi | F16: Nam Lim Pa - Scattered IDPs in forest | G16: 1 | J16: 36 | K16: 36 | P16: 36 | Q16: MMR001CMP137 | U16: 1
A17: 31.12.2012 | B17: UNHCR | C17: KMSS Bhamo | D17: Kachin | E17: Momauk | F17: Lana Zup Ja | G17: 1 | J17: 350 | K17: 350 | P17: 350 | Q17: MMR001CMP128 | U17: 1
A18: 31.12.2012 | B18: UNHCR | C18: KMSS Bhamo | D18: Kachin | E18: Momauk | F18: Pa Kahtawng | G18: 1 | J18: 130 | K18: 130 | P18: 130 | Q18: MMR001CMP126 | U18: 1
A19: 31.12.2012 | B19: UNHCR | C19: KMSS Bhamo | D19: Kachin | E19: Momauk | F19: Loi Je Catholic Church | G19: 1 | J19: 6 | K19: 6 | P19: 6 | Q19: MMR001CMP069 | U19: 1
A20: 31.12.2012 | B20: UNHCR | C20: KMSS Bhamo | D20: Kachin | E20: Shwegu | F20: Shwe Gu Catholic Church | G20: 1 | J20: 10 | K20: 10 | P20: 10 | Q20: MMR001CMP068 | U20: 1
A21: 31.12.2012 | B21: UNHCR | C21: KMSS Bhamo | D21: Kachin | E21: Mansi | F21: Man Wing Catholic Church | G21: 1 | J21: 200 | K21: 200 | P21: 200 | Q21: MMR001CMP132 | U21: 1
A22: 31.12.2012 | B22: UNHCR | C22: KMSS Bhamo | D22: Kachin | E22: Momauk | F22: Man Bung Catholic compound | G22: 1 | J22: 35 | K22: 35 | P22: 35 | Q22: MMR001CMP062 | U22: 1
A23: 31.12.2012 | B23: UNHCR | C23: HCR | D23: Kachin | E23: Bhamo | F23: AD-2000 Tharthana Compound | G23: 1 | J23: 10 | K23: 10 | P23: 10 | Q23: MMR001CMP050 | U23: 1
A24: 31.12.2012 | B24: UNHCR | C24: HCR | D24: Kachin | E24: Bhamo | F24: Phan Khar Kone | G24: 1 | J24: 30 | K24: 30 | P24: 30 | Q24: MMR001CMP193 | U24: 1
A25: 31.12.2012 | B25: UNHCR | C25: HCR | D25: Kachin | E25: Momauk | F25: Seng Ja | G25: 1 | J25: 40 | K25: 40 | P25: 40 | Q25: MMR001CMP073 | U25: 1
A26: 31.12.2012 | B26: UNHCR | C26: HCR | D26: Kachin | E26: Momauk | F26: Loi Je Lisu Camp | G26: 1 | J26: 57 | K26: 57 | P26: 57 | Q26: MMR001CMP070 | U26: 1
A27: 31.12.2012 | B27: UNHCR | C27: HCR | D27: Kachin | E27: Momauk | F27: Nyaung Na Pin | G27: 1 | J27: 45 | K27: 45 | P27: 45 | Q27: MMR001CMP072 | U27: 1
A28: 31.12.2012 | B28: UNHCR | C28: HCR | D28: Kachin | E28: Momauk | F28: Loi Je Baptist Church | G28: 1 | J28: 12 | K28: 12 | P28: 12 | Q28: MMR001CMP071 | U28: 1
A29: 31.12.2012 | B29: UNHCR | C29: HCR | D29: Kachin | E29: Mansi | F29: Mansi Baptist Church | G29: 1 | J29: 10 | K29: 10 | P29: 10 | Q29: MMR001CMP066 | U29: 1
A30: 31.12.2012 | B30: UNHCR | C30: HCR | D30: Kachin | E30: Momauk | F30: Man Bung Catholic compound | G30: 1 | J30: 11 | K30: 11 | P30: 11 | Q30: MMR001CMP062 | U30: 1
A31: 31.12.2012 | B31: UNHCR | C31: HCR | D31: Kachin | E31: Momauk | F31: Ni Thaw Ka Monestry | G31: 1 | J31: 5 | K31: 5 | P31: 5 | Q31: MMR001CMP059 | U31: 1
A32: 31.12.2012 | B32: UNHCR | C32: HCR | D32: Kachin | E32: Momauk | F32: Momauk Baptist Church | G32: 1 | J32: 50 | K32: 50 | P32: 50 | Q32: MMR001CMP056 | U32: 1
A33: 31.12.2012 | B33: UNHCR | C33: HCR | D33: Kachin | E33: Bhamo | F33: Ta Gun Taing Monastery (Shwe Kyi Na) | G33: 1 | J33: 40 | K33: 40 | P33: 40 | Q33: MMR001CMP055 | U33: 1
A34: 31.12.2012 | B34: UNHCR | C34: HCR | D34: Kachin | E34: Bhamo | F34: Nant Hlaing Church | G34: 1 | J34: 10 | K34: 10 | P34: 10 | Q34: MMR001CMP054 | U34: 1
A35: 31.12.2012 | B35: UNHCR | C35: HCR | D35: Kachin | E35: Bhamo | F35: Lisu Boarding-House | G35: 1 | J35: 15 | K35: 15 | P35: 15 | Q35: MMR001CMP049 | U35: 1
A36: 31.12.2012 | B36: UNHCR | C36: HCR | D36: Kachin | E36: Bhamo | F36: AD-2000 Tharthana Compound | G36: 1 | J36: 10 | K36: 10 | P36: 10 | Q36: MMR001CMP050 | U36: 1
A37: 31.12.2012 | B37: UNHCR | C37: HCR | D37: Kachin | E37: Bhamo | F37: Robert Church | G37: 1 | J37: 140 | K37: 140 | P37: 140 | Q37: MMR001CMP047 | U37: 1
A38: 31.12.2012 | B38: UNHCR | C38: HCR | D38: Kachin | E38: Waingmaw | F38: Maina Catholic Church (St. Joseph) | G38: 1 | J38: 120 | K38: 120 | P38: 120 | Q38: MMR001CMP029 | U38: 1
A39: 31.12.2012 | B39: UNHCR | C39: HCR | D39: Kachin | E39: Waingmaw | F39: Waingmaw Baptist Zonal Office | G39: 1 | J39: 5 | K39: 5 | P39: 5 | Q39: MMR001CMP036 | U39: 1
A40: 31.12.2012 | B40: UNHCR | C40: HCR | D40: Kachin | E40: Waingmaw | F40: Maina Lawang Baptist Church | G40: 1 | J40: 5 | K40: 5 | P40: 5 | Q40: MMR001CMP039 | U40: 1
A41: 31.12.2012 | B41: UNHCR | C41: HCR | D41: Kachin | E41: Waingmaw | F41: Qtr. 2 Myoma Baptist Church | G41: 1 | J41: 10 | K41: 10 | P41: 10 | Q41: MMR001CMP025 | U41: 1
A42: 31.12.2012 | B42: UNHCR | C42: HCR | D42: Kachin | E42: Myitkyina | F42: Jan Mai Kawng Baptist Church | G42: 1 | J42: 50 | K42: 50 | P42: 50 | Q42: MMR001CMP018 | U42: 1
A43: 31.12.2012 | B43: UNHCR | C43: HCR | D43: Kachin | E43: Myitkyina | F43: Tat Kone Emanuel Church | G43: 1 | J43: 5 | K43: 5 | P43: 5 | Q43: MMR001CMP004 | U43: 1
A44: 31.12.2012 | B44: UNHCR | C44: HCR | D44: Kachin | E44: Myitkyina | F44: Du Kahtawng Qtr. 14 | G44: 1 | J44: 3 | K44: 3 | P44: 3 | Q44: MMR001CMP012 | U44: 1
A45: 31.12.2012 | B45: UNHCR | C45: KBC | D45: Kachin | E45: Myitkyina | F45: Le Kone Bethlehem Church | G45: 1 | J45: 10 | K45: 10 | P45: 10 | Q45: MMR001CMP015 | U45: 1
A46: 31.12.2012 | B46: UNHCR | C46: KBC | D46: Kachin | E46: Myitkyina | F46: Tat Kone Baptist Church | G46: 1 | J46: 60 | K46: 60 | P46: 60 | Q46: MMR001CMP001 | U46: 1
A47: 31.12.2012 | B47: UNHCR | C47: KBC | D47: Kachin | E47: Myitkyina | F47: Tat Kone Galile Baptist Church | G47: 1 | J47: 20 | K47: 20 | P47: 20 | Q47: MMR001CMP003 | U47: 1
A48: 31.12.2012 | B48: UNHCR | C48: KBC | D48: Kachin | E48: Myitkyina | F48: Kyun Pin Thar Baptist Church | G48: 1 | J48: 5 | K48: 5 | P48: 5 | Q48: MMR001CMP013 | U48: 1
A49: 31.12.2012 | B49: UNHCR | C49: KBC | D49: Kachin | E49: Myitkyina | F49: Jan Mai Kawng Baptist Church | G49: 1 | J49: 20 | K49: 20 | P49: 20 | Q49: MMR001CMP018 | U49: 1
A50: 31.12.2012 | B50: UNHCR | C50: KBC | D50: Kachin | E50: Myitkyina | F50: Maliyang Baptist Church | G50: 1 | J50: 20 | K50: 20 | P50: 20 | Q50: MMR001CMP016 | U50: 1
A51: 31.12.2012 | B51: UNHCR | C51: KBC | D51: Kachin | E51: Myitkyina | F51: Man Hkring Baptist Church | G51: 1 | J51: 60 | K51: 60 | P51: 60 | Q51: MMR001CMP008 | U51: 1
A52: 31.12.2012 | B52: UNHCR | C52: KBC | D52: Kachin | E52: Myitkyina | F52: Njang Dung Baptist Church | G52: 1 | J52: 20 | K52: 20 | P52: 20 | Q52: MMR001CMP002 | U52: 1
A53: 31.12.2012 | B53: UNHCR | C53: KBC | D53: Kachin | E53: Myitkyina | F53: Tat Kone San Pya Baptist Church | G53: 1 | J53: 10 | K53: 10 | P53: 10 | Q53: MMR001CMP005 | U53: 1
A54: 31.12.2012 | B54: UNHCR | C54: KBC | D54: Kachin | E54: Myitkyina | F54: Shatapru Sut Ngai Tawng | G54: 1 | J54: 10 | K54: 10 | P54: 10 | Q54: MMR001CMP006 | U54: 1
A55: 31.12.2012 | B55: UNHCR | C55: KBC | D55: Kachin | E55: Myitkyina | F55: Shwe Zet Baptist Church | G55: 1 | J55: 50 | K55: 50 | P55: 50 | Q55: MMR001CMP009 | U55: 1
A56: 31.12.2012 | B56: UNHCR | C56: KBC | D56: Kachin | E56: Myitkyina | F56: Le Kone Ziun Baptist Church | G56: 1 | J56: 60 | K56: 60 | P56: 60 | Q56: MMR001CMP014 | U56: 1
A57: 31.12.2012 | B57: UNHCR | C57: KBC | D57: Kachin | E57: Waingmaw | F57: Maina Lawang Baptist Church | G57: 1 | J57: 30 | K57: 30 | P57: 30 | Q57: MMR001CMP039 | U57: 1
A58: 31.12.2012 | B58: UNHCR | C58: KBC | D58: Kachin | E58: Waingmaw | F58: Waingmaw Baptist Zonal Office | G58: 1 | J58: 10 | K58: 10 | P58: 10 | Q58: MMR001CMP036 | U58: 1
A59: 31.12.2012 | B59: UNHCR | C59: KBC | D59: Kachin | E59: Waingmaw | F59: Qtr. 2 Myoma Baptist Church | G59: 1 | J59: 10 | K59: 10 | P59: 10 | Q59: MMR001CMP025 | U59: 1
A60: 31.12.2012 | B60: UNHCR | C60: KBC | D60: Kachin | E60: Waingmaw | F60: Maina KBC (Bawng Ring) | G60: 1 | J60: 400 | K60: 400 | P60: 400 | Q60: MMR001CMP040 | U60: 1
A61: 31.12.2012 | B61: UNHCR | C61: KBC | D61: Kachin | E61: Waingmaw | F61: Zai Awng / Mung Ga Zup | G61: 1 | J61: 325 | K61: 325 | P61: 325 | Q61: MMR001CMP111 | U61: 1
A62: 31.12.2012 | B62: UNHCR | C62: KBC | D62: Kachin | E62: Waingmaw | F62: Pajau / Jan Mai | G62: 1 | J62: 35 | K62: 35 | P62: 35 | Q62: MMR001CMP120 | U62: 1
A63: 31.12.2012 | B63: UNHCR | C63: KBC | D63: Kachin | E63: Waingmaw | F63: Shing Jai | G63: 1 | J63: 170 | K63: 170 | P63: 170 | Q63: MMR001CMP041 | U63: 1
A64: 31.12.2012 | B64: UNHCR | C64: KBC | D64: Kachin | E64: Mansi | F64: Man Wing Baptist Church | G64: 1 | J64: 0 | K64: 0 | P64: 0 | Q64: MMR001CMP133 | U64: 1
A65: 31.12.2012 | B65: UNHCR | C65: KBC | D65: Kachin | E65: Namhkan | F65: Nam Hkam (KBC Jaw Wang) | G65: 1 | J65: 0 | K65: 0 | P65: 0 | Q65: MMR015CMP001 | U65: 1
A66: 31.12.2012 | B66: UNHCR | C66: KBC | D66: Kachin | E66: Namtu | F66: Nam Tu | G66: 1 | J66: 10 | K66: 10 | P66: 10 | U66: 1
A67: 31.12.2012 | B67: UNHCR | C67: KBC | D67: Kachin | E67: Namhkan | F67: Nam Hkam - Nay Win Ni (Palawng) | G67: 1 | J67: 20 | K67: 20 | P67: 20 | Q67: MMR015CMP004 | U67: 1
A68: 31.12.2012 | B68: UNHCR | C68: KBC | D68: Kachin | E68: Myitkyina | F68: Du Kahtawng Qtr. 4 | G68: 1 | J68: 0 | K68: 0 | P68: 0 | Q68: MMR001CMP010 | U68: 1
A69: 31.12.2012 | B69: UNHCR | C69: KBC | D69: Kachin | E69: Myitkyina | F69: Du Kahtawng Qtr. 5 | G69: 1 | J69: 0 | K69: 0 | P69: 0 | Q69: MMR001CMP011 | U69: 1
A70: 31.12.2012 | B70: UNHCR | C70: KBC | D70: Kachin | E70: Myitkyina | F70: Du Kahtawng Qtr. 14 | G70: 1 | J70: 0 | K70: 0 | P70: 0 | Q70: MMR001CMP012 | U70: 1
A71: 31.12.2012 | B71: UNHCR | C71: KBC | D71: Kachin | E71: Mogaung | F71: Kyun Taw Baptist Church | G71: 1 | J71: 15 | K71: 15 | P71: 15 | Q71: MMR001CMP078 | U71: 1
A72: 31.12.2012 | B72: UNHCR | C72: KBC | D72: Kachin | E72: Mogaung | F72: Mang Hawng Baptist Church | G72: 1 | J72: 10 | K72: 10 | P72: 10 | Q72: MMR001CMP077 | U72: 1
A73: 31.12.2012 | B73: UNHCR | C73: KBC | D73: Kachin | E73: Mogaung | F73: Nat Gyi Kone Baptist Church | G73: 1 | J73: 15 | K73: 15 | P73: 15 | Q73: MMR001CMP079 | U73: 1
A74: 31.12.2012 | B74: UNHCR | C74: KBC | D74: Kachin | E74: Mohnyin | F74: Nawng Ing (Indawgyi) Baptist Church | G74: 1 | J74: 20 | K74: 20 | P74: 20 | Q74: MMR001CMP152 | U74: 1
A75: 31.12.2012 | B75: UNHCR | C75: KMSS | D75: Kachin | E75: Myitkyina | F75: Jan Mai Kawng Catholic Church | G75: 1 | J75: 20 | K75: 20 | P75: 20 | Q75: MMR001CMP019 | U75: 1
A76: 31.12.2012 | B76: UNHCR | C76: KMSS | D76: Kachin | E76: Myitkyina | F76: Nong Pong Camp | G76: 1 | J76: 21 | K76: 21 | P76: 21 | U76: 1
A77: 31.12.2012 | B77: UNHCR | C77: KMSS | D77: Kachin | E77: Waingmaw | F77: Maina Catholic Church (St. Joseph) | G77: 1 | J77: 58 | K77: 58 | P77: 58 | Q77: MMR001CMP029 | U77: 1
A78: 31.12.2012 | B78: UNHCR | C78: KMSS | D78: Kachin | E78: Waingmaw | F78: Border Post 8 | G78: 1 | J78: 237 | K78: 237 | P78: 237 | Q78: MMR001CMP113 | U78: 1
A79: 31.12.2012 | B79: UNHCR | C79: KMSS | D79: Kachin | E79: Waingmaw | F79: Post 6 Camp | G79: 1 | J79: 0 | K79: 0 | P79: 0 | Q79: MMR001CMP160 | U79: 1
A80: 31.12.2012 | B80: UNHCR | C80: KMSS | D80: Kachin | E80: Momauk | F80: Dum Bung | G80: 1 | J80: 123 | K80: 123 | P80: 123 | Q80: MMR001CMP123 | U80: 1
